Workbook

Sheet Guidance
C1: THE CONTENTS OF THE WORKBOOK INCLUDE ESTIMATES
C2: BASED ON SMALL SAMPLE SIZES WHICH MAY BE UNRELIABLE
C3: THEY ARE PROVIDED ON A CAVEAT EMPTOR BASIS
G5: Users should follow the guidelines set out in general terms below
G6: and in more detail in the Working Futures technical documentation available on line at:
G7: https://www.gov.uk/government/publications/working-futures-2012-to-2022
G9: If in doubt about what to do please contact:
G11: UKCES: Peter Glover, UK Commission for Employment and Skills, email: peter.glover@ukces.org.uk, tel: 01709 774942
G12: All other enquiries: Rob Wilson, IER, University of Warwick, email: r.a.wilson@warwick.ac.uk, tel: 024 7652 3530
G14: Copyright: Warwick Institute for Employment Research / Cambridge Econometrics, 2013
G17: REPORTING
G18: The projections presented in this Workbook are calculated from a number of different data sources, using
G19: a variety of econometric and statistical techniques. As a result, precise margins of error cannot be assigned
G20: to the estimates. For further details, see the Working Futures Technical Report.
G22: However, as a general rule of thumb, it is not advisable to use any statistics or analyses in published reports etc which are not
G23: based on data for at least 10,000 individuals. This should provide a reasonable degree of statistical robustness to
G24: the estimates whether historic or forecast.
G26: For unpublished analyses, a more lenient criterion can be used. However, the uncertainties associated with
G27: projections involving fewer than 1,000 individuals are probably too great to make such estimates useful.
G28: However, there is inevitably some degree of judgement required on the part of the researcher.
G30: For cases in between 1,000 and 10,000 individuals, it is difficult to prescribe general rules, and an element of
G31: judgement by on behalf of the user is needed.
G33: Thus, in summary, CE/IER advise:
G35: PUBLISHED ANALYSIS: Ideally, a minimum of 10,000 individuals per cell
G36: UNPUBLISHED ANALYSIS: A minimum of 1,000 individuals per cell

Sheet Info
A1: England
A2: c132 | B2: <-MDM forecast identifier
A3: Occupational forecast: Friday, 9 October 2013 at 17:09

Sheet Figure 6.x.1.1
S1: ="Total Employment (FT+PT+SE)"&CHAR(13)&S2 -> Total Employment (FT+PT+SE) Agriculture, etc
S2: =Males!A35 -> Agriculture, etc | T2: =All!B7 -> 1990 | U2: =All!C7 -> 1991 | V2: =All!D7 -> 1992 | W2: =All!E7 -> 1993 | X2: =All!F7 -> 1994 | Y2: =All!G7 -> 1995 | Z2: =All!H7 -> 1996 | AA2: =All!I7 -> 1997 | AB2: =All!J7 -> 1998 | AC2: =All!K7 -> 1999 | AD2: =All!L7 -> 2000 | AE2: =All!M7 -> 2001 | AF2: =All!N7 -> 2002 | AG2: =All!O7 -> 2003 | AH2: =All!P7 -> 2004 | AI2: =All!Q7 -> 2005 | AJ2: =All!R7 -> 2006 | AK2: =All!S7 -> 2007 | AL2: =All!T7 -> 2008 | AM2: =All!U7 -> 2009 | AN2: =All!V7 -> 2010 | AO2: =All!W7 -> 2011 | AP2: =All!X7 -> 2012 | AQ2: =All!Y7 -> 2013 | AR2: =All!Z7 -> 2014 | AS2: =All!AA7 -> 2015 | AT2: =All!AB7 -> 2016 | AU2: =All!AC7 -> 2017 | AV2: =All!AD7 -> 2018 | AW2: =All!AE7 -> 2019 | AX2: =All!AF7 -> 2020 | AY2: =All!AG7 -> 2021 | AZ2: =All!AH7 -> 2022
S3: Women | T3: =Females!B36/1000 -> 118.203 | U3: =Females!C36/1000 -> 117.48 | V3: =Females!D36/1000 -> 111.757 | W3: =Females!E36/1000 -> 111.607 | X3: =Females!F36/1000 -> 95.338 | Y3: =Females!G36/1000 -> 83.508 | Z3: =Females!H36/1000 -> 78.144 | AA3: =Females!I36/1000 -> 81.329 | AB3: =Females!J36/1000 -> 97.078 | AC3: =Females!K36/1000 -> 83.975 | AD3: =Females!L36/1000 -> 77.635 | AE3: =Females!M36/1000 -> 76.048 | AF3: =Females!N36/1000 -> 70.28 | AG3: =Females!O36/1000 -> 64.798 | AH3: =Females!P36/1000 -> 71.225 | AI3: =Females!Q36/1000 -> 85.324 | AJ3: =Females!R36/1000 -> 75.524 | AK3: =Females!S36/1000 -> 70.623 | AL3: =Females!T36/1000 -> 80.984 | AM3: =Females!U36/1000 -> 57.015 | AN3: =Females!V36/1000 -> 79.068 | AO3: =Females!W36/1000 -> 75.21 | AP3: =Females!X36/1000 -> 94.693 | AQ3: =Females!Y36/1000 -> 79.762 | AR3: =Females!Z36/1000 -> 80.958 | AS3: =Females!AA36/1000 -> 81.799 | AT3: =Females!AB36/1000 -> 82.628 | AU3: =Females!AC36/1000 -> 83.67 | AV3: =Females!AD36/1000 -> 83.855 | AW3: =Females!AE36/1000 -> 84.634 | AX3: =Females!AF36/1000 -> 85.391 | AY3: =Females!AG36/1000 -> 86.332 | AZ3: =Females!AH36/1000 -> 87.568
S4: Men | T4: =Males!B36/1000 -> 295.747 | U4: =Males!C36/1000 -> 298.179 | V4: =Males!D36/1000 -> 279.149 | W4: =Males!E36/1000 -> 272.659 | X4: =Males!F36/1000 -> 266.535 | Y4: =Males!G36/1000 -> 255.905 | Z4: =Males!H36/1000 -> 253.357 | AA4: =Males!I36/1000 -> 269.102 | AB4: =Males!J36/1000 -> 236.614 | AC4: =Males!K36/1000 -> 211.076 | AD4: =Males!L36/1000 -> 196.436 | AE4: =Males!M36/1000 -> 173.786 | AF4: =Males!N36/1000 -> 169.872 | AG4: =Males!O36/1000 -> 160.189 | AH4: =Males!P36/1000 -> 176.789 | AI4: =Males!Q36/1000 -> 174.624 | AJ4: =Males!R36/1000 -> 178.461 | AK4: =Males!S36/1000 -> 171.117 | AL4: =Males!T36/1000 -> 185.589 | AM4: =Males!U36/1000 -> 194.583 | AN4: =Males!V36/1000 -> 207.629 | AO4: =Males!W36/1000 -> 210.678 | AP4: =Males!X36/1000 -> 213.735 | AQ4: =Males!Y36/1000 -> 179.95 | AR4: =Males!Z36/1000 -> 178.545 | AS4: =Males!AA36/1000 -> 176.496 | AT4: =Males!AB36/1000 -> 174.11 | AU4: =Males!AC36/1000 -> 172.022 | AV4: =Males!AD36/1000 -> 168.205 | AW4: =Males!AE36/1000 -> 165.482 | AX4: =Males!AF36/1000 -> 162.642 | AY4: =Males!AG36/1000 -> 160.116 | AZ4: =Males!AH36/1000 -> 158.02
T6: 1990 | U6: 1991 | V6: 1992 | W6: 1993 | X6: 1994 | Y6: 1995 | Z6: 1996 | AA6: 1997 | AB6: 1998 | AC6: 1999 | AD6: 2000 | AE6: 2001 | AF6: 2002 | AG6: 2003 | AH6: 2004 | AI6: 2005 | AJ6: 2006 | AK6: 2007 | AL6: 2008 | AM6: 2009 | AN6: 2010 | AO6: 2011 | AP6: 2012 | AQ6: 2013 | AR6: 2014 | AS6: 2015 | AT6: 2016 | AU6: 2017 | AV6: 2018 | AW6: 2019 | AX6: 2020 | AY6: 2021 | AZ6: 2022
S29: ="Total Employment (FT+PT+SE)"&CHAR(13)&S30 -> Total Employment (FT+PT+SE) Coal, oil & gas; Mining & related
S30: =Males!A63 -> Coal, oil & gas; Mining & related | T30: =T$2 -> 1990 | U30: =U$2 -> 1991 | V30: 1992 | W30: 1993 | X30: 1994 | Y30: 1995 | Z30: 1996 | AA30: 1997 | AB30: 1998 | AC30: 1999 | AD30: 2000 | AE30: 2001 | AF30: 2002 | AG30: 2003 | AH30: 2004 | AI30: 2005 | AJ30: 2006 | AK30: 2007 | AL30: 2008 | AM30: 2009 | AN30: 2010 | AO30: 2011 | AP30: 2012 | AQ30: 2013 | AR30: 2014 | AS30: 2015 | AT30: 2016 | AU30: 2017 | AV30: 2018 | AW30: 2019 | AX30: 2020 | AY30: 2021 | AZ30: 2022
S31: Women | T31: =Females!B64/1000 -> 8.484 | U31: =Females!C64/1000 -> 7.153 | V31: =Females!D64/1000 -> 6.392 | W31: =Females!E64/1000 -> 4.608 | X31: =Females!F64/1000 -> 3.254 | Y31: =Females!G64/1000 -> 2.521 | Z31: =Females!H64/1000 -> 2.866 | AA31: =Females!I64/1000 -> 3.608 | AB31: =Females!J64/1000 -> 3.58 | AC31: =Females!K64/1000 -> 3.726 | AD31: =Females!L64/1000 -> 5.556 | AE31: =Females!M64/1000 -> 7.15 | AF31: =Females!N64/1000 -> 6.735 | AG31: =Females!O64/1000 -> 5.211 | AH31: =Females!P64/1000 -> 5.171 | AI31: =Females!Q64/1000 -> 4.971 | AJ31: =Females!R64/1000 -> 3.147 | AK31: =Females!S64/1000 -> 5.203 | AL31: =Females!T64/1000 -> 5.543 | AM31: =Females!U64/1000 -> 2.359 | AN31: =Females!V64/1000 -> 1.278 | AO31: =Females!W64/1000 -> 2.959 | AP31: =Females!X64/1000 -> 4.277 | AQ31: =Females!Y64/1000 -> 4.002 | AR31: =Females!Z64/1000 -> 3.946 | AS31: =Females!AA64/1000 -> 3.954 | AT31: =Females!AB64/1000 -> 3.976 | AU31: =Females!AC64/1000 -> 4.008 | AV31: =Females!AD64/1000 -> 3.992 | AW31: =Females!AE64/1000 -> 3.976 | AX31: =Females!AF64/1000 -> 3.961 | AY31: =Females!AG64/1000 -> 3.945 | AZ31: =Females!AH64/1000 -> 3.93
S32: Men | T32: =Males!B64/1000 -> 104.8 | U32: =Males!C64/1000 -> 95.927 | V32: =Males!D64/1000 -> 77.965 | W32: =Males!E64/1000 -> 54.693 | X32: =Males!F64/1000 -> 40.999 | Y32: =Males!G64/1000 -> 38.592 | Z32: =Males!H64/1000 -> 45.248 | AA32: =Males!I64/1000 -> 44.402 | AB32: =Males!J64/1000 -> 36.364 | AC32: =Males!K64/1000 -> 36.818 | AD32: =Males!L64/1000 -> 38.184 | AE32: =Males!M64/1000 -> 39.594 | AF32: =Males!N64/1000 -> 35.425 | AG32: =Males!O64/1000 -> 30.735 | AH32: =Males!P64/1000 -> 26.676 | AI32: =Males!Q64/1000 -> 26.775 | AJ32: =Males!R64/1000 -> 26.468 | AK32: =Males!S64/1000 -> 28.478 | AL32: =Males!T64/1000 -> 28.793 | AM32: =Males!U64/1000 -> 23.348 | AN32: =Males!V64/1000 -> 22.588 | AO32: =Males!W64/1000 -> 23.426 | AP32: =Males!X64/1000 -> 29.949 | AQ32: =Males!Y64/1000 -> 27.489 | AR32: =Males!Z64/1000 -> 26.903 | AS32: =Males!AA64/1000 -> 26.761 | AT32: =Males!AB64/1000 -> 26.709 | AU32: =Males!AC64/1000 -> 26.733 | AV32: =Males!AD64/1000 -> 26.457 | AW32: =Males!AE64/1000 -> 26.21 | AX32: =Males!AF64/1000 -> 25.968 | AY32: =Males!AG64/1000 -> 25.714 | AZ32: =Males!AH64/1000 -> 25.499
S51: ="Total Employment (FT+PT+SE)"&CHAR(13)&S52 -> Total Employment (FT+PT+SE) Food products
S52: =Males!A91 -> Food products | T52: =T$2 -> 1990 | U52: =U$2 -> 1991 | V52: 1992 | W52: 1993 | X52: 1994 | Y52: 1995 | Z52: 1996 | AA52: 1997 | AB52: 1998 | AC52: 1999 | AD52: 2000 | AE52: 2001 | AF52: 2002 | AG52: 2003 | AH52: 2004 | AI52: 2005 | AJ52: 2006 | AK52: 2007 | AL52: 2008 | AM52: 2009 | AN52: 2010 | AO52: 2011 | AP52: 2012 | AQ52: 2013 | AR52: 2014 | AS52: 2015 | AT52: 2016 | AU52: 2017 | AV52: 2018 | AW52: 2019 | AX52: 2020 | AY52: 2021 | AZ52: 2022
S53: Women | T53: =Females!B92/1000 -> 213.187 | U53: =Females!C92/1000 -> 212.017 | V53: =Females!D92/1000 -> 192.139 | W53: =Females!E92/1000 -> 179.163 | X53: =Females!F92/1000 -> 172.986 | Y53: =Females!G92/1000 -> 174.973 | Z53: =Females!H92/1000 -> 165.689 | AA53: =Females!I92/1000 -> 184.126 | AB53: =Females!J92/1000 -> 168.291 | AC53: =Females!K92/1000 -> 139.678 | AD53: =Females!L92/1000 -> 129.439 | AE53: =Females!M92/1000 -> 126.22 | AF53: =Females!N92/1000 -> 116.932 | AG53: =Females!O92/1000 -> 117.541 | AH53: =Females!P92/1000 -> 112.399 | AI53: =Females!Q92/1000 -> 110.665 | AJ53: =Females!R92/1000 -> 107.082 | AK53: =Females!S92/1000 -> 105.291 | AL53: =Females!T92/1000 -> 103.807 | AM53: =Females!U92/1000 -> 106.122 | AN53: =Females!V92/1000 -> 109.106 | AO53: =Females!W92/1000 -> 102.771 | AP53: =Females!X92/1000 -> 111.754 | AQ53: =Females!Y92/1000 -> 113.064 | AR53: =Females!Z92/1000 -> 112.263 | AS53: =Females!AA92/1000 -> 111.237 | AT53: =Females!AB92/1000 -> 111.661 | AU53: =Females!AC92/1000 -> 111.716 | AV53: =Females!AD92/1000 -> 110.836 | AW53: =Females!AE92/1000 -> 109.723 | AX53: =Females!AF92/1000 -> 108.868 | AY53: =Females!AG92/1000 -> 107.674 | AZ53: =Females!AH92/1000 -> 106.663
S54: Men | T54: =Males!B92/1000 -> 187.819 | U54: =Males!C92/1000 -> 190.905 | V54: =Males!D92/1000 -> 188.033 | W54: =Males!E92/1000 -> 185.064 | X54: =Males!F92/1000 -> 181.568 | Y54: =Males!G92/1000 -> 176.635 | Z54: =Males!H92/1000 -> 181.809 | AA54: =Males!I92/1000 -> 186.355 | AB54: =Males!J92/1000 -> 210.083 | AC54: =Males!K92/1000 -> 237.56 | AD54: =Males!L92/1000 -> 243.883 | AE54: =Males!M92/1000 -> 233.282 | AF54: =Males!N92/1000 -> 229.714 | AG54: =Males!O92/1000 -> 225.395 | AH54: =Males!P92/1000 -> 220.694 | AI54: =Males!Q92/1000 -> 210.688 | AJ54: =Males!R92/1000 -> 208.75 | AK54: =Males!S92/1000 -> 210.83 | AL54: =Males!T92/1000 -> 201.075 | AM54: =Males!U92/1000 -> 183.991 | AN54: =Males!V92/1000 -> 191.215 | AO54: =Males!W92/1000 -> 188.888 | AP54: =Males!X92/1000 -> 194.342 | AQ54: =Males!Y92/1000 -> 195.99 | AR54: =Males!Z92/1000 -> 193.947 | AS54: =Males!AA92/1000 -> 191.528 | AT54: =Males!AB92/1000 -> 191.608 | AU54: =Males!AC92/1000 -> 191.069 | AV54: =Males!AD92/1000 -> 188.954 | AW54: =Males!AE92/1000 -> 186.471 | AX54: =Males!AF92/1000 -> 184.437 | AY54: =Males!AG92/1000 -> 181.856 | AZ54: =Males!AH92/1000 -> 179.588
S79: ="Total Employment (FT+PT+SE)"&CHAR(13)&S80 -> Total Employment (FT+PT+SE) Beverages & tobacco
S80: =Males!A119 -> Beverages & tobacco | T80: =T$2 -> 1990 | U80: =U$2 -> 1991 | V80: 1992 | W80: 1993 | X80: 1994 | Y80: 1995 | Z80: 1996 | AA80: 1997 | AB80: 1998 | AC80: 1999 | AD80: 2000 | AE80: 2001 | AF80: 2002 | AG80: 2003 | AH80: 2004 | AI80: 2005 | AJ80: 2006 | AK80: 2007 | AL80: 2008 | AM80: 2009 | AN80: 2010 | AO80: 2011 | AP80: 2012 | AQ80: 2013 | AR80: 2014 | AS80: 2015 | AT80: 2016 | AU80: 2017 | AV80: 2018 | AW80: 2019 | AX80: 2020 | AY80: 2021 | AZ80: 2022
S81: Women | T81: =Females!B120/1000 -> 13.091 | U81: =Females!C120/1000 -> 13.251 | V81: =Females!D120/1000 -> 11.498 | W81: =Females!E120/1000 -> 11.508 | X81: =Females!F120/1000 -> 10.795 | Y81: =Females!G120/1000 -> 10.476 | Z81: =Females!H120/1000 -> 10.082 | AA81: =Females!I120/1000 -> 11.357 | AB81: =Females!J120/1000 -> 11.662 | AC81: =Females!K120/1000 -> 12.366 | AD81: =Females!L120/1000 -> 12.41 | AE81: =Females!M120/1000 -> 12.452 | AF81: =Females!N120/1000 -> 12.947 | AG81: =Females!O120/1000 -> 11.332 | AH81: =Females!P120/1000 -> 9.984 | AI81: =Females!Q120/1000 -> 9.538 | AJ81: =Females!R120/1000 -> 8.79 | AK81: =Females!S120/1000 -> 9.066 | AL81: =Females!T120/1000 -> 9.754 | AM81: =Females!U120/1000 -> 8.655 | AN81: =Females!V120/1000 -> 8.257 | AO81: =Females!W120/1000 -> 7.908 | AP81: =Females!X120/1000 -> 7.74 | AQ81: =Females!Y120/1000 -> 7.598 | AR81: =Females!Z120/1000 -> 7.516 | AS81: =Females!AA120/1000 -> 7.404 | AT81: =Females!AB120/1000 -> 7.32 | AU81: =Females!AC120/1000 -> 7.25 | AV81: =Females!AD120/1000 -> 7.205 | AW81: =Females!AE120/1000 -> 7.191 | AX81: =Females!AF120/1000 -> 7.153 | AY81: =Females!AG120/1000 -> 7.113 | AZ81: =Females!AH120/1000 -> 7.081
S82: Men | T82: =Males!B120/1000 -> 31.256 | U82: =Males!C120/1000 -> 31.923 | V82: =Males!D120/1000 -> 30.799 | W82: =Males!E120/1000 -> 30.015 | X82: =Males!F120/1000 -> 29.862 | Y82: =Males!G120/1000 -> 28.191 | Z82: =Males!H120/1000 -> 29.701 | AA82: =Males!I120/1000 -> 28.392 | AB82: =Males!J120/1000 -> 28.814 | AC82: =Males!K120/1000 -> 29.297 | AD82: =Males!L120/1000 -> 27.477 | AE82: =Males!M120/1000 -> 26.224 | AF82: =Males!N120/1000 -> 25.256 | AG82: =Males!O120/1000 -> 25.381 | AH82: =Males!P120/1000 -> 25.039 | AI82: =Males!Q120/1000 -> 23.922 | AJ82: =Males!R120/1000 -> 23.535 | AK82: =Males!S120/1000 -> 23.46 | AL82: =Males!T120/1000 -> 22.139 | AM82: =Males!U120/1000 -> 20.716 | AN82: =Males!V120/1000 -> 21.463 | AO82: =Males!W120/1000 -> 18.724 | AP82: =Males!X120/1000 -> 19.193 | AQ82: =Males!Y120/1000 -> 19.071 | AR82: =Males!Z120/1000 -> 19.023 | AS82: =Males!AA120/1000 -> 18.887 | AT82: =Males!AB120/1000 -> 18.825 | AU82: =Males!AC120/1000 -> 18.813 | AV82: =Males!AD120/1000 -> 18.864 | AW82: =Males!AE120/1000 -> 18.988 | AX82: =Males!AF120/1000 -> 19.053 | AY82: =Males!AG120/1000 -> 19.1 | AZ82: =Males!AH120/1000 -> 19.189
S101: ="Total Employment (FT+PT+SE)"&CHAR(13)&S102 -> Total Employment (FT+PT+SE) Textiles
S102: =Males!A147 -> Textiles | T102: =T$2 -> 1990 | U102: =U$2 -> 1991 | V102: 1992 | W102: 1993 | X102: 1994 | Y102: 1995 | Z102: 1996 | AA102: 1997 | AB102: 1998 | AC102: 1999 | AD102: 2000 | AE102: 2001 | AF102: 2002 | AG102: 2003 | AH102: 2004 | AI102: 2005 | AJ102: 2006 | AK102: 2007 | AL102: 2008 | AM102: 2009 | AN102: 2010 | AO102: 2011 | AP102: 2012 | AQ102: 2013 | AR102: 2014 | AS102: 2015 | AT102: 2016 | AU102: 2017 | AV102: 2018 | AW102: 2019 | AX102: 2020 | AY102: 2021 | AZ102: 2022
S103: Women | T103: =Females!B148/1000 -> 103.624 | U103: =Females!C148/1000 -> 85.455 | V103: =Females!D148/1000 -> 82.424 | W103: =Females!E148/1000 -> 78.539 | X103: =Females!F148/1000 -> 76.591 | Y103: =Females!G148/1000 -> 74.94 | Z103: =Females!H148/1000 -> 73.555 | AA103: =Females!I148/1000 -> 74.227 | AB103: =Females!J148/1000 -> 68.278 | AC103: =Females!K148/1000 -> 52.326 | AD103: =Females!L148/1000 -> 56.212 | AE103: =Females!M148/1000 -> 55.748 | AF103: =Females!N148/1000 -> 48.818 | AG103: =Females!O148/1000 -> 35.998 | AH103: =Females!P148/1000 -> 35.033 | AI103: =Females!Q148/1000 -> 33.017 | AJ103: =Females!R148/1000 -> 29.309 | AK103: =Females!S148/1000 -> 27.674 | AL103: =Females!T148/1000 -> 28.34 | AM103: =Females!U148/1000 -> 24.42 | AN103: =Females!V148/1000 -> 27.47 | AO103: =Females!W148/1000 -> 23.67 | AP103: =Females!X148/1000 -> 21.269 | AQ103: =Females!Y148/1000 -> 18.443 | AR103: =Females!Z148/1000 -> 17.957 | AS103: =Females!AA148/1000 -> 17.51 | AT103: =Females!AB148/1000 -> 17.248 | AU103: =Females!AC148/1000 -> 16.979 | AV103: =Females!AD148/1000 -> 16.56 | AW103: =Females!AE148/1000 -> 16.024 | AX103: =Females!AF148/1000 -> 15.518 | AY103: =Females!AG148/1000 -> 14.964 | AZ103: =Females!AH148/1000 -> 14.49
S104: Men | T104: =Males!B148/1000 -> 72.22 | U104: =Males!C148/1000 -> 68.887 | V104: =Males!D148/1000 -> 68.109 | W104: =Males!E148/1000 -> 66.178 | X104: =Males!F148/1000 -> 66.409 | Y104: =Males!G148/1000 -> 60.782 | Z104: =Males!H148/1000 -> 60.843 | AA104: =Males!I148/1000 -> 60.217 | AB104: =Males!J148/1000 -> 64.543 | AC104: =Males!K148/1000 -> 70.786 | AD104: =Males!L148/1000 -> 58.536 | AE104: =Males!M148/1000 -> 55.563 | AF104: =Males!N148/1000 -> 50.589 | AG104: =Males!O148/1000 -> 50.978 | AH104: =Males!P148/1000 -> 44.425 | AI104: =Males!Q148/1000 -> 38.634 | AJ104: =Males!R148/1000 -> 42.463 | AK104: =Males!S148/1000 -> 34.666 | AL104: =Males!T148/1000 -> 33.112 | AM104: =Males!U148/1000 -> 29.848 | AN104: =Males!V148/1000 -> 35.815 | AO104: =Males!W148/1000 -> 28.513 | AP104: =Males!X148/1000 -> 34.705 | AQ104: =Males!Y148/1000 -> 30.08 | AR104: =Males!Z148/1000 -> 28.988 | AS104: =Males!AA148/1000 -> 27.971 | AT104: =Males!AB148/1000 -> 27.255 | AU104: =Males!AC148/1000 -> 26.565 | AV104: =Males!AD148/1000 -> 25.674 | AW104: =Males!AE148/1000 -> 24.637 | AX104: =Males!AF148/1000 -> 23.668 | AY104: =Males!AG148/1000 -> 22.662 | AZ104: =Males!AH148/1000 -> 21.792
... 29 more rows

Sheet Figure 6.x.1.2
O1: ="Total Employment by Status"&CHAR(13)&O2 -> Total Employment by Status Agriculture, etc
O2: =FT!A35 -> Agriculture, etc | P2: =All!B7 -> 1990 | Q2: =All!C7 -> 1991 | R2: =All!D7 -> 1992 | S2: =All!E7 -> 1993 | T2: =All!F7 -> 1994 | U2: =All!G7 -> 1995 | V2: =All!H7 -> 1996 | W2: =All!I7 -> 1997 | X2: =All!J7 -> 1998 | Y2: =All!K7 -> 1999 | Z2: =All!L7 -> 2000 | AA2: =All!M7 -> 2001 | AB2: =All!N7 -> 2002 | AC2: =All!O7 -> 2003 | AD2: =All!P7 -> 2004 | AE2: =All!Q7 -> 2005 | AF2: =All!R7 -> 2006 | AG2: =All!S7 -> 2007 | AH2: =All!T7 -> 2008 | AI2: =All!U7 -> 2009 | AJ2: =All!V7 -> 2010 | AK2: =All!W7 -> 2011 | AL2: =All!X7 -> 2012 | AM2: =All!Y7 -> 2013 | AN2: =All!Z7 -> 2014 | AO2: =All!AA7 -> 2015 | AP2: =All!AB7 -> 2016 | AQ2: =All!AC7 -> 2017 | AR2: =All!AD7 -> 2018 | AS2: =All!AE7 -> 2019 | AT2: =All!AF7 -> 2020 | AU2: =All!AG7 -> 2021 | AV2: =All!AH7 -> 2022
O3: FT | P3: =FT!B36/1000 -> 176.936 | Q3: =FT!C36/1000 -> 170.228 | R3: =FT!D36/1000 -> 171.829 | S3: =FT!E36/1000 -> 179.314 | T3: =FT!F36/1000 -> 157.109 | U3: =FT!G36/1000 -> 134.119 | V3: =FT!H36/1000 -> 132.519 | W3: =FT!I36/1000 -> 165.219 | X3: =FT!J36/1000 -> 177.377 | Y3: =FT!K36/1000 -> 163.216 | Z3: =FT!L36/1000 -> 161.275 | AA3: =FT!M36/1000 -> 125.619 | AB3: =FT!N36/1000 -> 129.374 | AC3: =FT!O36/1000 -> 122.575 | AD3: =FT!P36/1000 -> 132.574 | AE3: =FT!Q36/1000 -> 129.619 | AF3: =FT!R36/1000 -> 143.626 | AG3: =FT!S36/1000 -> 121.198 | AH3: =FT!T36/1000 -> 135.625 | AI3: =FT!U36/1000 -> 120.393 | AJ3: =FT!V36/1000 -> 122.024 | AK3: =FT!W36/1000 -> 107.776 | AL3: =FT!X36/1000 -> 127.546 | AM3: =FT!Y36/1000 -> 107.657 | AN3: =FT!Z36/1000 -> 107.403 | AO3: =FT!AA36/1000 -> 106.698 | AP3: =FT!AB36/1000 -> 105.78 | AQ3: =FT!AC36/1000 -> 105.059 | AR3: =FT!AD36/1000 -> 103.269 | AS3: =FT!AE36/1000 -> 102.159 | AT3: =FT!AF36/1000 -> 100.987 | AU3: =FT!AG36/1000 -> 100.013 | AV3: =FT!AH36/1000 -> 99.325
O4: PT | P4: =PT!B36/1000 -> 43.885 | Q4: =PT!C36/1000 -> 45.335 | R4: =PT!D36/1000 -> 44.609 | S4: =PT!E36/1000 -> 46.432 | T4: =PT!F36/1000 -> 46.009 | U4: =PT!G36/1000 -> 47.921 | V4: =PT!H36/1000 -> 49.538 | W4: =PT!I36/1000 -> 50.869 | X4: =PT!J36/1000 -> 44.513 | Y4: =PT!K36/1000 -> 42.322 | Z4: =PT!L36/1000 -> 36.944 | AA4: =PT!M36/1000 -> 46.668 | AB4: =PT!N36/1000 -> 44.395 | AC4: =PT!O36/1000 -> 34.922 | AD4: =PT!P36/1000 -> 41.226 | AE4: =PT!Q36/1000 -> 38.984 | AF4: =PT!R36/1000 -> 33.648 | AG4: =PT!S36/1000 -> 38.727 | AH4: =PT!T36/1000 -> 35.506 | AI4: =PT!U36/1000 -> 32.65 | AJ4: =PT!V36/1000 -> 37.891 | AK4: =PT!W36/1000 -> 36.203 | AL4: =PT!X36/1000 -> 40.122 | AM4: =PT!Y36/1000 -> 34.18 | AN4: =PT!Z36/1000 -> 34.975 | AO4: =PT!AA36/1000 -> 35.63 | AP4: =PT!AB36/1000 -> 36.282 | AQ4: =PT!AC36/1000 -> 37.027 | AR4: =PT!AD36/1000 -> 37.401 | AS4: =PT!AE36/1000 -> 38.042 | AT4: =PT!AF36/1000 -> 38.675 | AU4: =PT!AG36/1000 -> 39.396 | AV4: =PT!AH36/1000 -> 40.255
O5: SE | P5: =SE!B36/1000 -> 193.129 | Q5: =SE!C36/1000 -> 200.096 | R5: =SE!D36/1000 -> 174.468 | S5: =SE!E36/1000 -> 158.52 | T5: =SE!F36/1000 -> 158.755 | U5: =SE!G36/1000 -> 157.373 | V5: =SE!H36/1000 -> 149.444 | W5: =SE!I36/1000 -> 134.343 | X5: =SE!J36/1000 -> 111.802 | Y5: =SE!K36/1000 -> 89.513 | Z5: =SE!L36/1000 -> 75.852 | AA5: =SE!M36/1000 -> 77.547 | AB5: =SE!N36/1000 -> 66.383 | AC5: =SE!O36/1000 -> 67.49 | AD5: =SE!P36/1000 -> 74.214 | AE5: =SE!Q36/1000 -> 91.345 | AF5: =SE!R36/1000 -> 76.711 | AG5: =SE!S36/1000 -> 81.815 | AH5: =SE!T36/1000 -> 95.442 | AI5: =SE!U36/1000 -> 98.555 | AJ5: =SE!V36/1000 -> 126.782 | AK5: =SE!W36/1000 -> 141.909 | AL5: =SE!X36/1000 -> 140.76 | AM5: =SE!Y36/1000 -> 117.875 | AN5: =SE!Z36/1000 -> 117.125 | AO5: =SE!AA36/1000 -> 115.967 | AP5: =SE!AB36/1000 -> 114.676 | AQ5: =SE!AC36/1000 -> 113.606 | AR5: =SE!AD36/1000 -> 111.39 | AS5: =SE!AE36/1000 -> 109.915 | AT5: =SE!AF36/1000 -> 108.371 | AU5: =SE!AG36/1000 -> 107.039 | AV5: =SE!AH36/1000 -> 106.008
O29: ="Total Employment by Status"&CHAR(13)&O30 -> Total Employment by Status Coal, oil & gas; Mining & related
O30: =FT!A63 -> Coal, oil & gas; Mining & related | P30: =P2 -> 1990 | Q30: =Q2 -> 1991 | R30: 1992 | S30: 1993 | T30: 1994 | U30: 1995 | V30: 1996 | W30: 1997 | X30: 1998 | Y30: 1999 | Z30: 2000 | AA30: 2001 | AB30: 2002 | AC30: 2003 | AD30: 2004 | AE30: 2005 | AF30: 2006 | AG30: 2007 | AH30: 2008 | AI30: 2009 | AJ30: 2010 | AK30: 2011 | AL30: 2012 | AM30: 2013 | AN30: 2014 | AO30: 2015 | AP30: 2016 | AQ30: 2017 | AR30: 2018 | AS30: 2019 | AT30: 2020 | AU30: 2021 | AV30: 2022
O31: FT | P31: =FT!B64/1000 -> 110.34 | Q31: =FT!C64/1000 -> 100.108 | R31: =FT!D64/1000 -> 81.405 | S31: =FT!E64/1000 -> 54.284 | T31: =FT!F64/1000 -> 39.773 | U31: =FT!G64/1000 -> 36.694 | V31: =FT!H64/1000 -> 43.51 | W31: =FT!I64/1000 -> 43.15 | X31: =FT!J64/1000 -> 37.118 | Y31: =FT!K64/1000 -> 38.42 | Z31: =FT!L64/1000 -> 37.509 | AA31: =FT!M64/1000 -> 40.624 | AB31: =FT!N64/1000 -> 36.927 | AC31: =FT!O64/1000 -> 32.553 | AD31: =FT!P64/1000 -> 28.598 | AE31: =FT!Q64/1000 -> 27.62 | AF31: =FT!R64/1000 -> 27.515 | AG31: =FT!S64/1000 -> 28.53 | AH31: =FT!T64/1000 -> 26.683 | AI31: =FT!U64/1000 -> 21.881 | AJ31: =FT!V64/1000 -> 17.328 | AK31: =FT!W64/1000 -> 22.597 | AL31: =FT!X64/1000 -> 24.827 | AM31: =FT!Y64/1000 -> 22.916 | AN31: =FT!Z64/1000 -> 22.434 | AO31: =FT!AA64/1000 -> 22.318 | AP31: =FT!AB64/1000 -> 22.284 | AQ31: =FT!AC64/1000 -> 22.307 | AR31: =FT!AD64/1000 -> 22.062 | AS31: =FT!AE64/1000 -> 21.838 | AT31: =FT!AF64/1000 -> 21.62 | AU31: =FT!AG64/1000 -> 21.389 | AV31: =FT!AH64/1000 -> 21.193
O32: PT | P32: =PT!B64/1000 -> 0 | Q32: =PT!C64/1000 -> 0 | R32: =PT!D64/1000 -> 0 | S32: =PT!E64/1000 -> 1.926 | T32: =PT!F64/1000 -> 1.782 | U32: =PT!G64/1000 -> 1.737 | V32: =PT!H64/1000 -> 1.773 | W32: =PT!I64/1000 -> 2.007 | X32: =PT!J64/1000 -> 2.295 | Y32: =PT!K64/1000 -> 2.115 | Z32: =PT!L64/1000 -> 2.259 | AA32: =PT!M64/1000 -> 2.7 | AB32: =PT!N64/1000 -> 2.421 | AC32: =PT!O64/1000 -> 2.745 | AD32: =PT!P64/1000 -> 2.754 | AE32: =PT!Q64/1000 -> 2.151 | AF32: =PT!R64/1000 -> 0.99 | AG32: =PT!S64/1000 -> 1.017 | AH32: =PT!T64/1000 -> 2.709 | AI32: =PT!U64/1000 -> 0.99 | AJ32: =PT!V64/1000 -> 0.981 | AK32: =PT!W64/1000 -> 1.008 | AL32: =PT!X64/1000 -> 1.008 | AM32: =PT!Y64/1000 -> 0.979 | AN32: =PT!Z64/1000 -> 1.002 | AO32: =PT!AA64/1000 -> 1.043 | AP32: =PT!AB64/1000 -> 1.087 | AQ32: =PT!AC64/1000 -> 1.136 | AR32: =PT!AD64/1000 -> 1.165 | AS32: =PT!AE64/1000 -> 1.197 | AT32: =PT!AF64/1000 -> 1.224 | AU32: =PT!AG64/1000 -> 1.253 | AV32: =PT!AH64/1000 -> 1.281
O33: SE | P33: =SE!B64/1000 -> 2.944 | Q33: =SE!C64/1000 -> 2.972 | R33: =SE!D64/1000 -> 2.952 | S33: =SE!E64/1000 -> 3.091 | T33: =SE!F64/1000 -> 2.698 | U33: =SE!G64/1000 -> 2.682 | V33: =SE!H64/1000 -> 2.831 | W33: =SE!I64/1000 -> 2.853 | X33: =SE!J64/1000 -> 0.531 | Y33: =SE!K64/1000 -> 0.009 | Z33: =SE!L64/1000 -> 3.972 | AA33: =SE!M64/1000 -> 3.42 | AB33: =SE!N64/1000 -> 2.812 | AC33: =SE!O64/1000 -> 0.648 | AD33: =SE!P64/1000 -> 0.495 | AE33: =SE!Q64/1000 -> 1.975 | AF33: =SE!R64/1000 -> 1.11 | AG33: =SE!S64/1000 -> 4.134 | AH33: =SE!T64/1000 -> 4.944 | AI33: =SE!U64/1000 -> 2.836 | AJ33: =SE!V64/1000 -> 5.557 | AK33: =SE!W64/1000 -> 2.78 | AL33: =SE!X64/1000 -> 8.391 | AM33: =SE!Y64/1000 -> 7.596 | AN33: =SE!Z64/1000 -> 7.413 | AO33: =SE!AA64/1000 -> 7.354 | AP33: =SE!AB64/1000 -> 7.314 | AQ33: =SE!AC64/1000 -> 7.298 | AR33: =SE!AD64/1000 -> 7.222 | AS33: =SE!AE64/1000 -> 7.151 | AT33: =SE!AF64/1000 -> 7.085 | AU33: =SE!AG64/1000 -> 7.017 | AV33: =SE!AH64/1000 -> 6.955
O51: ="Total Employment by Status"&CHAR(13)&O52 -> Total Employment by Status Food products
O52: =FT!A91 -> Food products | P52: =P30 -> 1990 | Q52: =Q30 -> 1991 | R52: 1992 | S52: 1993 | T52: 1994 | U52: 1995 | V52: 1996 | W52: 1997 | X52: 1998 | Y52: 1999 | Z52: 2000 | AA52: 2001 | AB52: 2002 | AC52: 2003 | AD52: 2004 | AE52: 2005 | AF52: 2006 | AG52: 2007 | AH52: 2008 | AI52: 2009 | AJ52: 2010 | AK52: 2011 | AL52: 2012 | AM52: 2013 | AN52: 2014 | AO52: 2015 | AP52: 2016 | AQ52: 2017 | AR52: 2018 | AS52: 2019 | AT52: 2020 | AU52: 2021 | AV52: 2022
O53: FT | P53: =FT!B92/1000 -> 285.159 | Q53: =FT!C92/1000 -> 291.187 | R53: =FT!D92/1000 -> 270.603 | S53: =FT!E92/1000 -> 264.232 | T53: =FT!F92/1000 -> 256.113 | U53: =FT!G92/1000 -> 248.324 | V53: =FT!H92/1000 -> 256.152 | W53: =FT!I92/1000 -> 251.093 | X53: =FT!J92/1000 -> 290.562 | Y53: =FT!K92/1000 -> 323.374 | Z53: =FT!L92/1000 -> 321.257 | AA53: =FT!M92/1000 -> 306.719 | AB53: =FT!N92/1000 -> 297.193 | AC53: =FT!O92/1000 -> 300.067 | AD53: =FT!P92/1000 -> 289.941 | AE53: =FT!Q92/1000 -> 281.999 | AF53: =FT!R92/1000 -> 276.602 | AG53: =FT!S92/1000 -> 276.928 | AH53: =FT!T92/1000 -> 264.888 | AI53: =FT!U92/1000 -> 249.902 | AJ53: =FT!V92/1000 -> 255.432 | AK53: =FT!W92/1000 -> 253.255 | AL53: =FT!X92/1000 -> 263.915 | AM53: =FT!Y92/1000 -> 266.028 | AN53: =FT!Z92/1000 -> 263.147 | AO53: =FT!AA92/1000 -> 259.757 | AP53: =FT!AB92/1000 -> 259.763 | AQ53: =FT!AC92/1000 -> 258.931 | AR53: =FT!AD92/1000 -> 255.958 | AS53: =FT!AE92/1000 -> 252.483 | AT53: =FT!AF92/1000 -> 249.627 | AU53: =FT!AG92/1000 -> 246.033 | AV53: =FT!AH92/1000 -> 242.873
O54: PT | P54: =PT!B92/1000 -> 108.944 | Q54: =PT!C92/1000 -> 102.971 | R54: =PT!D92/1000 -> 101.086 | S54: =PT!E92/1000 -> 93.281 | T54: =PT!F92/1000 -> 90.834 | U54: =PT!G92/1000 -> 96.949 | V54: =PT!H92/1000 -> 83.602 | W54: =PT!I92/1000 -> 110.457 | X54: =PT!J92/1000 -> 78.59 | Y54: =PT!K92/1000 -> 48.715 | Z54: =PT!L92/1000 -> 46.579 | AA54: =PT!M92/1000 -> 45.965 | AB54: =PT!N92/1000 -> 44.327 | AC54: =PT!O92/1000 -> 38.363 | AD54: =PT!P92/1000 -> 36.098 | AE54: =PT!Q92/1000 -> 33.647 | AF54: =PT!R92/1000 -> 30.961 | AG54: =PT!S92/1000 -> 30.474 | AH54: =PT!T92/1000 -> 30.029 | AI54: =PT!U92/1000 -> 31.008 | AJ54: =PT!V92/1000 -> 37.129 | AK54: =PT!W92/1000 -> 33.659 | AL54: =PT!X92/1000 -> 32.507 | AM54: =PT!Y92/1000 -> 33.29 | AN54: =PT!Z92/1000 -> 33.447 | AO54: =PT!AA92/1000 -> 33.527 | AP54: =PT!AB92/1000 -> 34.039 | AQ54: =PT!AC92/1000 -> 34.432 | AR54: =PT!AD92/1000 -> 34.529 | AS54: =PT!AE92/1000 -> 34.547 | AT54: =PT!AF92/1000 -> 34.631 | AU54: =PT!AG92/1000 -> 34.594 | AV54: =PT!AH92/1000 -> 34.602
O55: SE | P55: =SE!B92/1000 -> 6.903 | Q55: =SE!C92/1000 -> 8.764 | R55: =SE!D92/1000 -> 8.483 | S55: =SE!E92/1000 -> 6.714 | T55: =SE!F92/1000 -> 7.607 | U55: =SE!G92/1000 -> 6.335 | V55: =SE!H92/1000 -> 7.744 | W55: =SE!I92/1000 -> 8.931 | X55: =SE!J92/1000 -> 9.222 | Y55: =SE!K92/1000 -> 5.149 | Z55: =SE!L92/1000 -> 5.486 | AA55: =SE!M92/1000 -> 6.818 | AB55: =SE!N92/1000 -> 5.126 | AC55: =SE!O92/1000 -> 4.506 | AD55: =SE!P92/1000 -> 7.054 | AE55: =SE!Q92/1000 -> 5.707 | AF55: =SE!R92/1000 -> 8.269 | AG55: =SE!S92/1000 -> 8.719 | AH55: =SE!T92/1000 -> 9.965 | AI55: =SE!U92/1000 -> 9.203 | AJ55: =SE!V92/1000 -> 7.76 | AK55: =SE!W92/1000 -> 4.745 | AL55: =SE!X92/1000 -> 9.674 | AM55: =SE!Y92/1000 -> 9.736 | AN55: =SE!Z92/1000 -> 9.616 | AO55: =SE!AA92/1000 -> 9.481 | AP55: =SE!AB92/1000 -> 9.467 | AQ55: =SE!AC92/1000 -> 9.422 | AR55: =SE!AD92/1000 -> 9.303 | AS55: =SE!AE92/1000 -> 9.164 | AT55: =SE!AF92/1000 -> 9.047 | AU55: =SE!AG92/1000 -> 8.903 | AV55: =SE!AH92/1000 -> 8.776
O79: ="Total Employment by Status"&CHAR(13)&O80 -> Total Employment by Status Beverages & tobacco
O80: =FT!A119 -> Beverages & tobacco | P80: =P52 -> 1990 | Q80: =Q52 -> 1991 | R80: 1992 | S80: 1993 | T80: 1994 | U80: 1995 | V80: 1996 | W80: 1997 | X80: 1998 | Y80: 1999 | Z80: 2000 | AA80: 2001 | AB80: 2002 | AC80: 2003 | AD80: 2004 | AE80: 2005 | AF80: 2006 | AG80: 2007 | AH80: 2008 | AI80: 2009 | AJ80: 2010 | AK80: 2011 | AL80: 2012 | AM80: 2013 | AN80: 2014 | AO80: 2015 | AP80: 2016 | AQ80: 2017 | AR80: 2018 | AS80: 2019 | AT80: 2020 | AU80: 2021 | AV80: 2022
O81: FT | P81: =FT!B120/1000 -> 38.613 | Q81: =FT!C120/1000 -> 39.331 | R81: =FT!D120/1000 -> 36.741 | S81: =FT!E120/1000 -> 36.477 | T81: =FT!F120/1000 -> 35.679 | U81: =FT!G120/1000 -> 33.79 | V81: =FT!H120/1000 -> 35.386 | W81: =FT!I120/1000 -> 35.18 | X81: =FT!J120/1000 -> 36.945 | Y81: =FT!K120/1000 -> 37.407 | Z81: =FT!L120/1000 -> 35.493 | AA81: =FT!M120/1000 -> 34.123 | AB81: =FT!N120/1000 -> 32.985 | AC81: =FT!O120/1000 -> 32.906 | AD81: =FT!P120/1000 -> 31.63 | AE81: =FT!Q120/1000 -> 29.219 | AF81: =FT!R120/1000 -> 28.976 | AG81: =FT!S120/1000 -> 28.234 | AH81: =FT!T120/1000 -> 28.218 | AI81: =FT!U120/1000 -> 27.322 | AJ81: =FT!V120/1000 -> 26.106 | AK81: =FT!W120/1000 -> 23.911 | AL81: =FT!X120/1000 -> 24.521 | AM81: =FT!Y120/1000 -> 24.237 | AN81: =FT!Z120/1000 -> 24.091 | AO81: =FT!AA120/1000 -> 23.838 | AP81: =FT!AB120/1000 -> 23.673 | AQ81: =FT!AC120/1000 -> 23.566 | AR81: =FT!AD120/1000 -> 23.54 | AS81: =FT!AE120/1000 -> 23.6 | AT81: =FT!AF120/1000 -> 23.592 | AU81: =FT!AG120/1000 -> 23.561 | AV81: =FT!AH120/1000 -> 23.573
O82: PT | P82: =PT!B120/1000 -> 2.889 | Q82: =PT!C120/1000 -> 2.736 | R82: =PT!D120/1000 -> 2.808 | S82: =PT!E120/1000 -> 2.758 | T82: =PT!F120/1000 -> 2.687 | U82: =PT!G120/1000 -> 2.992 | V82: =PT!H120/1000 -> 2.058 | W82: =PT!I120/1000 -> 2.674 | X82: =PT!J120/1000 -> 2.914 | Y82: =PT!K120/1000 -> 3.765 | Z82: =PT!L120/1000 -> 3.819 | AA82: =PT!M120/1000 -> 3.962 | AB82: =PT!N120/1000 -> 4.691 | AC82: =PT!O120/1000 -> 3.111 | AD82: =PT!P120/1000 -> 2.835 | AE82: =PT!Q120/1000 -> 2.845 | AF82: =PT!R120/1000 -> 3.038 | AG82: =PT!S120/1000 -> 3.02 | AH82: =PT!T120/1000 -> 3.053 | AI82: =PT!U120/1000 -> 1.844 | AJ82: =PT!V120/1000 -> 2.12 | AK82: =PT!W120/1000 -> 2.083 | AL82: =PT!X120/1000 -> 1.916 | AM82: =PT!Y120/1000 -> 1.936 | AN82: =PT!Z120/1000 -> 1.954 | AO82: =PT!AA120/1000 -> 1.964 | AP82: =PT!AB120/1000 -> 1.985 | AQ82: =PT!AC120/1000 -> 2.01 | AR82: =PT!AD120/1000 -> 2.04 | AS82: =PT!AE120/1000 -> 2.084 | AT82: =PT!AF120/1000 -> 2.118 | AU82: =PT!AG120/1000 -> 2.153 | AV82: =PT!AH120/1000 -> 2.192
O83: SE | P83: =SE!B120/1000 -> 2.845 | Q83: =SE!C120/1000 -> 3.107 | R83: =SE!D120/1000 -> 2.748 | S83: =SE!E120/1000 -> 2.288 | T83: =SE!F120/1000 -> 2.291 | U83: =SE!G120/1000 -> 1.885 | V83: =SE!H120/1000 -> 2.339 | W83: =SE!I120/1000 -> 1.895 | X83: =SE!J120/1000 -> 0.617 | Y83: =SE!K120/1000 -> 0.491 | Z83: =SE!L120/1000 -> 0.575 | AA83: =SE!M120/1000 -> 0.591 | AB83: =SE!N120/1000 -> 0.527 | AC83: =SE!O120/1000 -> 0.696 | AD83: =SE!P120/1000 -> 0.558 | AE83: =SE!Q120/1000 -> 1.396 | AF83: =SE!R120/1000 -> 0.311 | AG83: =SE!S120/1000 -> 1.272 | AH83: =SE!T120/1000 -> 0.622 | AI83: =SE!U120/1000 -> 0.205 | AJ83: =SE!V120/1000 -> 1.494 | AK83: =SE!W120/1000 -> 0.638 | AL83: =SE!X120/1000 -> 0.496 | AM83: =SE!Y120/1000 -> 0.496 | AN83: =SE!Z120/1000 -> 0.494 | AO83: =SE!AA120/1000 -> 0.489 | AP83: =SE!AB120/1000 -> 0.487 | AQ83: =SE!AC120/1000 -> 0.487 | AR83: =SE!AD120/1000 -> 0.489 | AS83: =SE!AE120/1000 -> 0.495 | AT83: =SE!AF120/1000 -> 0.496 | AU83: =SE!AG120/1000 -> 0.499 | AV83: =SE!AH120/1000 -> 0.505
O101: ="Total Employment by Status"&CHAR(13)&O102 -> Total Employment by Status Textiles
O102: =FT!A147 -> Textiles | P102: =P80 -> 1990 | Q102: =Q80 -> 1991 | R102: 1992 | S102: 1993 | T102: 1994 | U102: 1995 | V102: 1996 | W102: 1997 | X102: 1998 | Y102: 1999 | Z102: 2000 | AA102: 2001 | AB102: 2002 | AC102: 2003 | AD102: 2004 | AE102: 2005 | AF102: 2006 | AG102: 2007 | AH102: 2008 | AI102: 2009 | AJ102: 2010 | AK102: 2011 | AL102: 2012 | AM102: 2013 | AN102: 2014 | AO102: 2015 | AP102: 2016 | AQ102: 2017 | AR102: 2018 | AS102: 2019 | AT102: 2020 | AU102: 2021 | AV102: 2022
O103: FT | P103: =FT!B148/1000 -> 138.35 | Q103: =FT!C148/1000 -> 120.801 | R103: =FT!D148/1000 -> 117.58 | S103: =FT!E148/1000 -> 112.467 | T103: =FT!F148/1000 -> 112.659 | U103: =FT!G148/1000 -> 109.442 | V103: =FT!H148/1000 -> 107.801 | W103: =FT!I148/1000 -> 106.22 | X103: =FT!J148/1000 -> 104.757 | Y103: =FT!K148/1000 -> 102.093 | Z103: =FT!L148/1000 -> 95.325 | AA103: =FT!M148/1000 -> 84.979 | AB103: =FT!N148/1000 -> 74.222 | AC103: =FT!O148/1000 -> 70.628 | AD103: =FT!P148/1000 -> 61.524 | AE103: =FT!Q148/1000 -> 54.605 | AF103: =FT!R148/1000 -> 50.91 | AG103: =FT!S148/1000 -> 45.845 | AH103: =FT!T148/1000 -> 40.475 | AI103: =FT!U148/1000 -> 39.221 | AJ103: =FT!V148/1000 -> 46.932 | AK103: =FT!W148/1000 -> 36.443 | AL103: =FT!X148/1000 -> 38.063 | AM103: =FT!Y148/1000 -> 33.018 | AN103: =FT!Z148/1000 -> 31.946 | AO103: =FT!AA148/1000 -> 30.946 | AP103: =FT!AB148/1000 -> 30.273 | AQ103: =FT!AC148/1000 -> 29.62 | AR103: =FT!AD148/1000 -> 28.731 | AS103: =FT!AE148/1000 -> 27.666 | AT103: =FT!AF148/1000 -> 26.664 | AU103: =FT!AG148/1000 -> 25.607 | AV103: =FT!AH148/1000 -> 24.7
O104: PT | P104: =PT!B148/1000 -> 25.431 | Q104: =PT!C148/1000 -> 21.101 | R104: =PT!D148/1000 -> 20.669 | S104: =PT!E148/1000 -> 18.976 | T104: =PT!F148/1000 -> 17.541 | U104: =PT!G148/1000 -> 14.543 | V104: =PT!H148/1000 -> 15.419 | W104: =PT!I148/1000 -> 16.026 | X104: =PT!J148/1000 -> 14.281 | Y104: =PT!K148/1000 -> 11.247 | Z104: =PT!L148/1000 -> 11.09 | AA104: =PT!M148/1000 -> 12.112 | AB104: =PT!N148/1000 -> 12.337 | AC104: =PT!O148/1000 -> 8.433 | AD104: =PT!P148/1000 -> 8.676 | AE104: =PT!Q148/1000 -> 8.617 | AF104: =PT!R148/1000 -> 5.983 | AG104: =PT!S148/1000 -> 6.998 | AH104: =PT!T148/1000 -> 8.576 | AI104: =PT!U148/1000 -> 4.891 | AJ104: =PT!V148/1000 -> 5.292 | AK104: =PT!W148/1000 -> 5.625 | AL104: =PT!X148/1000 -> 4.669 | AM104: =PT!Y148/1000 -> 4.066 | AN104: =PT!Z148/1000 -> 3.98 | AO104: =PT!AA148/1000 -> 3.902 | AP104: =PT!AB148/1000 -> 3.868 | AQ104: =PT!AC148/1000 -> 3.828 | AR104: =PT!AD148/1000 -> 3.75 | AS104: =PT!AE148/1000 -> 3.644 | AT104: =PT!AF148/1000 -> 3.546 | AU104: =PT!AG148/1000 -> 3.435 | AV104: =PT!AH148/1000 -> 3.337
O105: SE | P105: =SE!B148/1000 -> 12.063 | Q105: =SE!C148/1000 -> 12.44 | R105: =SE!D148/1000 -> 12.284 | S105: =SE!E148/1000 -> 13.274 | T105: =SE!F148/1000 -> 12.8 | U105: =SE!G148/1000 -> 11.737 | V105: =SE!H148/1000 -> 11.178 | W105: =SE!I148/1000 -> 12.198 | X105: =SE!J148/1000 -> 13.783 | Y105: =SE!K148/1000 -> 9.772 | Z105: =SE!L148/1000 -> 8.333 | AA105: =SE!M148/1000 -> 14.22 | AB105: =SE!N148/1000 -> 12.848 | AC105: =SE!O148/1000 -> 7.915 | AD105: =SE!P148/1000 -> 9.258 | AE105: =SE!Q148/1000 -> 8.429 | AF105: =SE!R148/1000 -> 14.879 | AG105: =SE!S148/1000 -> 9.497 | AH105: =SE!T148/1000 -> 12.401 | AI105: =SE!U148/1000 -> 10.156 | AJ105: =SE!V148/1000 -> 11.061 | AK105: =SE!W148/1000 -> 10.115 | AL105: =SE!X148/1000 -> 13.242 | AM105: =SE!Y148/1000 -> 11.439 | AN105: =SE!Z148/1000 -> 11.019 | AO105: =SE!AA148/1000 -> 10.633 | AP105: =SE!AB148/1000 -> 10.362 | AQ105: =SE!AC148/1000 -> 10.096 | AR105: =SE!AD148/1000 -> 9.753 | AS105: =SE!AE148/1000 -> 9.351 | AT105: =SE!AF148/1000 -> 8.976 | AU105: =SE!AG148/1000 -> 8.584 | AV105: =SE!AH148/1000 -> 8.245
... 36 more rows

Sheet Figure 6.x.1.3
AA4: These are linked to the chart titles.
AA5: DO NOT DELETE
AA9: ="Employment levels by gender and status, "&Table6.4.1.1!$A$3&"-"&Table6.4.1.1!$A$27&CHAR(13)&AA10 -> Employment levels by gender and status, 2002-2022 All industries
AA10: =All!A7 -> All industries
AA32: ="Employment levels by gender and status, "&Table6.4.1.1!$A$3&"-"&Table6.4.1.1!$A$27&CHAR(13)&AA33 -> Employment levels by gender and status, 2002-2022 Agriculture, etc
AA33: =All!A35 -> Agriculture, etc
AA60: ="Employment levels by gender and status, "&Table6.4.1.1!$A$3&"-"&Table6.4.1.1!$A$27&CHAR(13)&AA61 -> Employment levels by gender and status, 2002-2022 Coal, oil & gas; Mining & related
AA61: =All!A63 -> Coal, oil & gas; Mining & related
AA88: ="Employment levels by gender and status, "&Table6.4.1.1!$A$3&"-"&Table6.4.1.1!$A$27&CHAR(13)&AA89 -> Employment levels by gender and status, 2002-2022 Food products
AA89: =All!A91 -> Food products
AA116: ="Employment levels by gender and status, "&Table6.4.1.1!$A$3&"-"&Table6.4.1.1!$A$27&CHAR(13)&AA117 -> Employment levels by gender and status, 2002-2022 Beverages & tobacco
AA117: =All!A119 -> Beverages & tobacco
... 14 more rows

Sheet Figure 6.x.1.4
AA4: These are linked to the chart titles.
AA5: DO NOT DELETE
AA9: ="Employment shares by gender and status, "&Table6.4.1.1!$A$3&"-"&Table6.4.1.1!$A$27&CHAR(13)&AA10 -> Employment shares by gender and status, 2002-2022 All industries
AA10: =All!A7 -> All industries
AA32: ="Employment shares by gender and status, "&Table6.4.1.1!$A$3&"-"&Table6.4.1.1!$A$27&CHAR(13)&AA33 -> Employment shares by gender and status, 2002-2022 Agriculture, etc
AA33: =All!A35 -> Agriculture, etc
AA60: ="Employment shares by gender and status, "&Table6.4.1.1!$A$3&"-"&Table6.4.1.1!$A$27&CHAR(13)&AA61 -> Employment shares by gender and status, 2002-2022 Coal, oil & gas; Mining & related
AA61: =All!A63 -> Coal, oil & gas; Mining & related
AA88: ="Employment shares by gender and status, "&Table6.4.1.1!$A$3&"-"&Table6.4.1.1!$A$27&CHAR(13)&AA89 -> Employment shares by gender and status, 2002-2022 Food products
AA89: =All!A91 -> Food products
AA116: ="Employment shares by gender and status, "&Table6.4.1.1!$A$3&"-"&Table6.4.1.1!$A$27&CHAR(13)&AA117 -> Employment shares by gender and status, 2002-2022 Beverages & tobacco
AA117: =All!A119 -> Beverages & tobacco
... 14 more rows

Sheet Figure 6.x.1.5
AA2: These are linked to the chart titles.
AA3: DO NOT DELETE
AA4: ="Employment changes by gender and status, "&All!$I$7&"-"&Table6.4.1.1!A$27&", "&CHAR(13)&AA5 -> Employment changes by gender and status, 1997-2022, All industries
AA5: =All!A7 -> All industries
AA26: ="Employment changes by gender and status, "&All!$I$7&"-"&Table6.4.1.1!A$27&", "&CHAR(13)&AA27 -> Employment changes by gender and status, 1997-2022, Agriculture, etc
AA27: =All!A35 -> Agriculture, etc
AA48: ="Employment changes by gender and status, "&All!$I$7&"-"&Table6.4.1.1!A$27&", "&CHAR(13)&AA49 -> Employment changes by gender and status, 1997-2022, Coal, oil & gas; Mining & related
AA49: =All!A63 -> Coal, oil & gas; Mining & related
AA70: ="Employment changes by gender and status, "&All!$I$7&"-"&Table6.4.1.1!A$27&", "&CHAR(13)&AA71 -> Employment changes by gender and status, 1997-2022, Food products
AA71: =All!A91 -> Food products
AA92: ="Employment changes by gender and status, "&All!$I$7&"-"&Table6.4.1.1!A$27&", "&CHAR(13)&AA93 -> Employment changes by gender and status, 1997-2022, Beverages & tobacco
AA93: =All!A119 -> Beverages & tobacco
AA114: ="Employment changes by gender and status, "&All!$I$7&"-"&Table6.4.1.1!A$27&", "&CHAR(13)&AA115 -> Employment changes by gender and status, 1997-2022, Textiles
AA115: =All!A147 -> Textiles
... 26 more rows

Sheet Figure 6.x.1.6
P2: ="Occupational Composition, "&$Q$2&" - "&$U$2&CHAR(13)&All!A7 -> Occupational Composition, 2002 - 2022 All industries | Q2: =All!N7 -> 2002 | R2: =All!S7 -> 2007 | S2: =All!X7 -> 2012 | T2: =All!AC7 -> 2017 | U2: =All!AH7 -> 2022
P3: 1. Managers | Q3: =(All!N9+All!N10)/1000 -> 2362.401915 | R3: =(All!S9+All!S10)/1000 -> 2620.105002 | S3: =(All!X9+All!X10)/1000 -> 2888.659983 | T3: =(All!AC9+All!AC10)/1000 -> 3125.320883 | U3: =(All!AH9+All!AH10)/1000 -> 3400.82921
P4: 2. Professional | Q4: =(All!N11+All!N12+All!N13+All!N14)/1000 -> 4243.561079 | R4: =(All!S11+All!S12+All!S13+All!S14)/1000 -> 4831.953981 | S4: =(All!X11+All!X12+All!X13+All!X14)/1000 -> 5346.15889 | T4: =(All!AC11+All!AC12+All!AC13+All!AC14)/1000 -> 5893.541498 | U4: =(All!AH11+All!AH12+All!AH13+All!AH14)/1000 -> 6339.884256
P5: 3. Associate Prof. | Q5: =(All!N15+All!N16+All!N17+All!N18+All!N19)/1000 -> 3199.348045 | R5: =(All!S15+All!S16+All!S17+All!S18+All!S19)/1000 -> 3535.909338 | S5: =(All!X15+All!X16+All!X17+All!X18+All!X19)/1000 -> 3623.942608 | T5: =(All!AC15+All!AC16+All!AC17+All!AC18+All!AC19)/1000 -> 3862.619471 | U5: =(All!AH15+All!AH16+All!AH17+All!AH18+All!AH19)/1000 -> 4130.109472
P6: 4. Administrative etc | Q6: =(All!N20+All!N21)/1000 -> 3576.446151 | R6: =(All!S20+All!S21)/1000 -> 3474.135082 | S6: =(All!X20+All!X21)/1000 -> 3163.26387 | T6: =(All!AC20+All!AC21)/1000 -> 2931.545828 | U6: =(All!AH20+All!AH21)/1000 -> 2737.094228
P7: 5. Skilled Trades | Q7: =(All!N22+All!N23+All!N24+All!N25)/1000 -> 3112.217405 | R7: =(All!S22+All!S23+All!S24+All!S25)/1000 -> 3041.54723 | S7: =(All!X22+All!X23+All!X24+All!X25)/1000 -> 2917.373749 | T7: =(All!AC22+All!AC23+All!AC24+All!AC25)/1000 -> 2757.326279 | U7: =(All!AH22+All!AH23+All!AH24+All!AH25)/1000 -> 2661.865752
P8: 6. Personal Service | Q8: =(All!N26+All!N27)/1000 -> 1903.882861 | R8: =(All!S26+All!S27)/1000 -> 2155.581372 | S8: =(All!X26+All!X27)/1000 -> 2435.865559 | T8: =(All!AC26+All!AC27)/1000 -> 2718.985353 | U8: =(All!AH26+All!AH27)/1000 -> 2990.094131
P9: 7. Sales | Q9: =(All!N28+All!N29)/1000 -> 2171.402318 | R9: =(All!S28+All!S29)/1000 -> 2259.745778 | S9: =(All!X28+All!X29)/1000 -> 2277.795868 | T9: =(All!AC28+All!AC29)/1000 -> 2217.906838 | U9: =(All!AH28+All!AH29)/1000 -> 2229.433233
P10: 8. Machine Operatives | Q10: =(All!N30+All!N31)/1000 -> 1810.117947 | R10: =(All!S30+All!S31)/1000 -> 1752.370033 | S10: =(All!X30+All!X31)/1000 -> 1670.546911 | T10: =(All!AC30+All!AC31)/1000 -> 1562.949124 | U10: =(All!AH30+All!AH31)/1000 -> 1497.435291
P11: 9. Elementary | Q11: =(All!N32+All!N33)/1000 -> 2978.295281 | R11: =(All!S32+All!S33)/1000 -> 2992.996184 | S11: =(All!X32+All!X33)/1000 -> 2789.864562 | T11: =(All!AC32+All!AC33)/1000 -> 2668.429726 | U11: =(All!AH32+All!AH33)/1000 -> 2739.364426
P24: ="Occupational Composition, "&$Q$2&" - "&$U$2&CHAR(13)&All!A35 -> Occupational Composition, 2002 - 2022 Agriculture, etc | Q24: =Q$2 -> 2002 | R24: =R$2 -> 2007 | S24: =S$2 -> 2012 | T24: =T$2 -> 2017 | U24: =U$2 -> 2022
P25: 1. Managers | Q25: =(All!N37+All!N38)/1000 -> 18.0358 | R25: =(All!S37+All!S38)/1000 -> 16.086868 | S25: =(All!X37+All!X38)/1000 -> 22.863925 | T25: =(All!AC37+All!AC38)/1000 -> 19.818103 | U25: =(All!AH37+All!AH38)/1000 -> 19.510771
P26: 2. Professional | Q26: =(All!N39+All!N40+All!N41+All!N42)/1000 -> 12.771226 | R26: =(All!S39+All!S40+All!S41+All!S42)/1000 -> 12.406307 | S26: =(All!X39+All!X40+All!X41+All!X42)/1000 -> 14.02535 | T26: =(All!AC39+All!AC40+All!AC41+All!AC42)/1000 -> 14.254617 | U26: =(All!AH39+All!AH40+All!AH41+All!AH42)/1000 -> 16.24098
P27: 3. Associate Prof. | Q27: =(All!N43+All!N44+All!N45+All!N46+All!N47)/1000 -> 7.0956 | R27: =(All!S43+All!S44+All!S45+All!S46+All!S47)/1000 -> 7.643819 | S27: =(All!X43+All!X44+All!X45+All!X46+All!X47)/1000 -> 9.516417 | T27: =(All!AC43+All!AC44+All!AC45+All!AC46+All!AC47)/1000 -> 9.255864 | U27: =(All!AH43+All!AH44+All!AH45+All!AH46+All!AH47)/1000 -> 10.25162
P28: 4. Administrative etc | Q28: =(All!N48+All!N49)/1000 -> 15.54423 | R28: =(All!S48+All!S49)/1000 -> 15.041271 | S28: =(All!X48+All!X49)/1000 -> 16.543132 | T28: =(All!AC48+All!AC49)/1000 -> 13.580176 | U28: =(All!AH48+All!AH49)/1000 -> 12.922394
P29: 5. Skilled Trades | Q29: =(All!N50+All!N51+All!N52+All!N53)/1000 -> 100.398269 | R29: =(All!S50+All!S51+All!S52+All!S53)/1000 -> 121.013885 | S29: =(All!X50+All!X51+All!X52+All!X53)/1000 -> 173.897784 | T29: =(All!AC50+All!AC51+All!AC52+All!AC53)/1000 -> 140.014442 | U29: =(All!AH50+All!AH51+All!AH52+All!AH53)/1000 -> 131.033526
P30: 6. Personal Service | Q30: =(All!N54+All!N55)/1000 -> 12.890005 | R30: =(All!S54+All!S55)/1000 -> 9.516247 | S30: =(All!X54+All!X55)/1000 -> 11.604884 | T30: =(All!AC54+All!AC55)/1000 -> 12.113982 | U30: =(All!AH54+All!AH55)/1000 -> 13.371927
P31: 7. Sales | Q31: =(All!N56+All!N57)/1000 -> 3.775627 | R31: =(All!S56+All!S57)/1000 -> 3.367171 | S31: =(All!X56+All!X57)/1000 -> 3.882875 | T31: =(All!AC56+All!AC57)/1000 -> 3.204901 | U31: =(All!AH56+All!AH57)/1000 -> 3.13788
P32: 8. Machine Operatives | Q32: =(All!N58+All!N59)/1000 -> 15.515968 | R32: =(All!S58+All!S59)/1000 -> 14.999189 | S32: =(All!X58+All!X59)/1000 -> 12.136489 | T32: =(All!AC58+All!AC59)/1000 -> 9.037222 | U32: =(All!AH58+All!AH59)/1000 -> 7.753961
P33: 9. Elementary | Q33: =(All!N60+All!N61)/1000 -> 54.125274 | R33: =(All!S60+All!S61)/1000 -> 41.665244 | S33: =(All!X60+All!X61)/1000 -> 43.957143 | T33: =(All!AC60+All!AC61)/1000 -> 34.412693 | U33: =(All!AH60+All!AH61)/1000 -> 31.36494
P46: ="Occupational Composition, "&$Q$2&" - "&$U$2&CHAR(13)&All!A63 -> Occupational Composition, 2002 - 2022 Coal, oil & gas; Mining & related | Q46: =Q$2 -> 2002 | R46: =R$2 -> 2007 | S46: =S$2 -> 2012 | T46: =T$2 -> 2017 | U46: =U$2 -> 2022
P47: 1. Managers | Q47: =(All!N65+All!N66)/1000 -> 3.430293 | R47: =(All!S65+All!S66)/1000 -> 3.916156 | S47: =(All!X65+All!X66)/1000 -> 4.475636 | T47: =(All!AC65+All!AC66)/1000 -> 4.368967 | U47: =(All!AH65+All!AH66)/1000 -> 4.453302
P48: 2. Professional | Q48: =(All!N67+All!N68+All!N69+All!N70)/1000 -> 6.16211 | R48: =(All!S67+All!S68+All!S69+All!S70)/1000 -> 5.044922 | S48: =(All!X67+All!X68+All!X69+All!X70)/1000 -> 5.185049 | T48: =(All!AC67+All!AC68+All!AC69+All!AC70)/1000 -> 4.541362 | U48: =(All!AH67+All!AH68+All!AH69+All!AH70)/1000 -> 4.425204
P49: 3. Associate Prof. | Q49: =(All!N71+All!N72+All!N73+All!N74+All!N75)/1000 -> 5.892979 | R49: =(All!S71+All!S72+All!S73+All!S74+All!S75)/1000 -> 4.666296 | S49: =(All!X71+All!X72+All!X73+All!X74+All!X75)/1000 -> 5.085114 | T49: =(All!AC71+All!AC72+All!AC73+All!AC74+All!AC75)/1000 -> 4.580141 | U49: =(All!AH71+All!AH72+All!AH73+All!AH74+All!AH75)/1000 -> 4.496768
P50: 4. Administrative etc | Q50: =(All!N76+All!N77)/1000 -> 3.630252 | R50: =(All!S76+All!S77)/1000 -> 3.007294 | S50: =(All!X76+All!X77)/1000 -> 2.134582 | T50: =(All!AC76+All!AC77)/1000 -> 1.876592 | U50: =(All!AH76+All!AH77)/1000 -> 1.691645
P51: 5. Skilled Trades | Q51: =(All!N78+All!N79+All!N80+All!N81)/1000 -> 8.484126 | R51: =(All!S78+All!S79+All!S80+All!S81)/1000 -> 6.570269 | S51: =(All!X78+All!X79+All!X80+All!X81)/1000 -> 7.393616 | T51: =(All!AC78+All!AC79+All!AC80+All!AC81)/1000 -> 6.41959 | U51: =(All!AH78+All!AH79+All!AH80+All!AH81)/1000 -> 5.829359
P52: 6. Personal Service | Q52: =(All!N82+All!N83)/1000 -> 0.82778 | R52: =(All!S82+All!S83)/1000 -> 0.459368 | S52: =(All!X82+All!X83)/1000 -> 0.650792 | T52: =(All!AC82+All!AC83)/1000 -> 0.68952 | U52: =(All!AH82+All!AH83)/1000 -> 0.728672
P53: 7. Sales | Q53: =(All!N84+All!N85)/1000 -> 0.961481 | R53: =(All!S84+All!S85)/1000 -> 0.801617 | S53: =(All!X84+All!X85)/1000 -> 0.828714 | T53: =(All!AC84+All!AC85)/1000 -> 0.748528 | U53: =(All!AH84+All!AH85)/1000 -> 0.738024
P54: 8. Machine Operatives | Q54: =(All!N86+All!N87)/1000 -> 11.393027 | R54: =(All!S86+All!S87)/1000 -> 7.972981 | S54: =(All!X86+All!X87)/1000 -> 6.851218 | T54: =(All!AC86+All!AC87)/1000 -> 5.864766 | U54: =(All!AH86+All!AH87)/1000 -> 5.392312
P55: 9. Elementary | Q55: =(All!N88+All!N89)/1000 -> 1.377952 | R55: =(All!S88+All!S89)/1000 -> 1.242097 | S55: =(All!X88+All!X89)/1000 -> 1.621279 | T55: =(All!AC88+All!AC89)/1000 -> 1.651534 | U55: =(All!AH88+All!AH89)/1000 -> 1.673714
P68: ="Occupational Composition, "&$Q$2&" - "&$U$2&CHAR(13)&All!A91 -> Occupational Composition, 2002 - 2022 Food products | Q68: =Q$2 -> 2002 | R68: =R$2 -> 2007 | S68: =S$2 -> 2012 | T68: =T$2 -> 2017 | U68: =U$2 -> 2022
P69: 1. Managers | Q69: =(All!N93+All!N94)/1000 -> 22.60409 | R69: =(All!S93+All!S94)/1000 -> 28.75657 | S69: =(All!X93+All!X94)/1000 -> 24.787076 | T69: =(All!AC93+All!AC94)/1000 -> 28.419574 | U69: =(All!AH93+All!AH94)/1000 -> 30.350583
P70: 2. Professional | Q70: =(All!N95+All!N96+All!N97+All!N98)/1000 -> 20.090673 | R70: =(All!S95+All!S96+All!S97+All!S98)/1000 -> 22.514586 | S70: =(All!X95+All!X96+All!X97+All!X98)/1000 -> 16.81927 | T70: =(All!AC95+All!AC96+All!AC97+All!AC98)/1000 -> 19.645861 | U70: =(All!AH95+All!AH96+All!AH97+All!AH98)/1000 -> 20.811994
P71: 3. Associate Prof. | Q71: =(All!N99+All!N100+All!N101+All!N102+All!N103)/1000 -> 30.619219 | R71: =(All!S99+All!S100+All!S101+All!S102+All!S103)/1000 -> 24.757749 | S71: =(All!X99+All!X100+All!X101+All!X102+All!X103)/1000 -> 31.112794 | T71: =(All!AC99+All!AC100+All!AC101+All!AC102+All!AC103)/1000 -> 34.258168 | U71: =(All!AH99+All!AH100+All!AH101+All!AH102+All!AH103)/1000 -> 35.18206
P72: 4. Administrative etc | Q72: =(All!N104+All!N105)/1000 -> 22.50793 | R72: =(All!S104+All!S105)/1000 -> 20.72013 | S72: =(All!X104+All!X105)/1000 -> 22.503451 | T72: =(All!AC104+All!AC105)/1000 -> 23.65954 | U72: =(All!AH104+All!AH105)/1000 -> 22.656302
P73: 5. Skilled Trades | Q73: =(All!N106+All!N107+All!N108+All!N109)/1000 -> 60.86842 | R73: =(All!S106+All!S107+All!S108+All!S109)/1000 -> 53.017437 | S73: =(All!X106+All!X107+All!X108+All!X109)/1000 -> 45.129795 | T73: =(All!AC106+All!AC107+All!AC108+All!AC109)/1000 -> 39.468436 | U73: =(All!AH106+All!AH107+All!AH108+All!AH109)/1000 -> 33.598411
P74: 6. Personal Service | Q74: =(All!N110+All!N111)/1000 -> 1.563451 | R74: =(All!S110+All!S111)/1000 -> 1.569942 | S74: =(All!X110+All!X111)/1000 -> 1.849412 | T74: =(All!AC110+All!AC111)/1000 -> 2.251248 | U74: =(All!AH110+All!AH111)/1000 -> 2.418802
P75: 7. Sales | Q75: =(All!N112+All!N113)/1000 -> 10.702052 | R75: =(All!S112+All!S113)/1000 -> 9.001831 | S75: =(All!X112+All!X113)/1000 -> 11.790188 | T75: =(All!AC112+All!AC113)/1000 -> 12.425422 | U75: =(All!AH112+All!AH113)/1000 -> 12.418782
P76: 8. Machine Operatives | Q76: =(All!N114+All!N115)/1000 -> 125.33321 | R76: =(All!S114+All!S115)/1000 -> 112.515982 | S76: =(All!X114+All!X115)/1000 -> 96.639697 | T76: =(All!AC114+All!AC115)/1000 -> 86.893972 | U76: =(All!AH114+All!AH115)/1000 -> 73.478
P77: 9. Elementary | Q77: =(All!N116+All!N117)/1000 -> 52.356955 | R77: =(All!S116+All!S117)/1000 -> 43.266774 | S77: =(All!X116+All!X117)/1000 -> 55.464319 | T77: =(All!AC116+All!AC117)/1000 -> 55.762778 | U77: =(All!AH116+All!AH117)/1000 -> 55.336067
P90: ="Occupational Composition, "&$Q$2&" - "&$U$2&CHAR(13)&All!A119 -> Occupational Composition, 2002 - 2022 Beverages & tobacco | Q90: =Q$2 -> 2002 | R90: =R$2 -> 2007 | S90: =S$2 -> 2012 | T90: =T$2 -> 2017 | U90: =U$2 -> 2022
P91: 1. Managers | Q91: =(All!N121+All!N122)/1000 -> 4.517231 | R91: =(All!S121+All!S122)/1000 -> 4.113339 | S91: =(All!X121+All!X122)/1000 -> 3.667024 | T91: =(All!AC121+All!AC122)/1000 -> 3.881654 | U91: =(All!AH121+All!AH122)/1000 -> 4.191076
P92: 2. Professional | Q92: =(All!N123+All!N124+All!N125+All!N126)/1000 -> 4.27669 | R92: =(All!S123+All!S124+All!S125+All!S126)/1000 -> 4.217038 | S92: =(All!X123+All!X124+All!X125+All!X126)/1000 -> 3.61876 | T92: =(All!AC123+All!AC124+All!AC125+All!AC126)/1000 -> 3.815432 | U92: =(All!AH123+All!AH124+All!AH125+All!AH126)/1000 -> 4.067016
P93: 3. Associate Prof. | Q93: =(All!N127+All!N128+All!N129+All!N130+All!N131)/1000 -> 5.797852 | R93: =(All!S127+All!S128+All!S129+All!S130+All!S131)/1000 -> 5.417781 | S93: =(All!X127+All!X128+All!X129+All!X130+All!X131)/1000 -> 4.854991 | T93: =(All!AC127+All!AC128+All!AC129+All!AC130+All!AC131)/1000 -> 4.958418 | U93: =(All!AH127+All!AH128+All!AH129+All!AH130+All!AH131)/1000 -> 5.178823
P94: 4. Administrative etc | Q94: =(All!N132+All!N133)/1000 -> 4.678877 | R94: =(All!S132+All!S133)/1000 -> 3.013658 | S94: =(All!X132+All!X133)/1000 -> 2.278935 | T94: =(All!AC132+All!AC133)/1000 -> 1.942487 | U94: =(All!AH132+All!AH133)/1000 -> 1.733877
P95: 5. Skilled Trades | Q95: =(All!N134+All!N135+All!N136+All!N137)/1000 -> 3.816281 | R95: =(All!S134+All!S135+All!S136+All!S137)/1000 -> 3.286548 | S95: =(All!X134+All!X135+All!X136+All!X137)/1000 -> 2.554002 | T95: =(All!AC134+All!AC135+All!AC136+All!AC137)/1000 -> 2.317722 | U95: =(All!AH134+All!AH135+All!AH136+All!AH137)/1000 -> 2.190992
P96: 6. Personal Service | Q96: =(All!N138+All!N139)/1000 -> 0.901459 | R96: =(All!S138+All!S139)/1000 -> 0.747568 | S96: =(All!X138+All!X139)/1000 -> 0.575647 | T96: =(All!AC138+All!AC139)/1000 -> 0.67929 | U96: =(All!AH138+All!AH139)/1000 -> 0.769827
P97: 7. Sales | Q97: =(All!N140+All!N141)/1000 -> 1.632497 | R97: =(All!S140+All!S141)/1000 -> 1.412883 | S97: =(All!X140+All!X141)/1000 -> 1.177394 | T97: =(All!AC140+All!AC141)/1000 -> 1.120818 | U97: =(All!AH140+All!AH141)/1000 -> 1.13012
P98: 8. Machine Operatives | Q98: =(All!N142+All!N143)/1000 -> 8.901293 | R98: =(All!S142+All!S143)/1000 -> 7.158114 | S98: =(All!X142+All!X143)/1000 -> 5.537038 | T98: =(All!AC142+All!AC143)/1000 -> 5.023072 | U98: =(All!AH142+All!AH143)/1000 -> 4.778396
P99: 9. Elementary | Q99: =(All!N144+All!N145)/1000 -> 3.680818 | R99: =(All!S144+All!S145)/1000 -> 3.15907 | S99: =(All!X144+All!X145)/1000 -> 2.66921 | T99: =(All!AC144+All!AC145)/1000 -> 2.324107 | U99: =(All!AH144+All!AH145)/1000 -> 2.229874
P112: ="Occupational Composition, "&$Q$2&" - "&$U$2&CHAR(13)&All!A147 -> Occupational Composition, 2002 - 2022 Textiles | Q112: =Q$2 -> 2002 | R112: =R$2 -> 2007 | S112: =S$2 -> 2012 | T112: =T$2 -> 2017 | U112: =U$2 -> 2022
P113: 1. Managers | Q113: =(All!N149+All!N150)/1000 -> 8.848481 | R113: =(All!S149+All!S150)/1000 -> 6.402739 | S113: =(All!X149+All!X150)/1000 -> 6.98179 | T113: =(All!AC149+All!AC150)/1000 -> 6.162737 | U113: =(All!AH149+All!AH150)/1000 -> 5.664846
P114: 2. Professional | Q114: =(All!N151+All!N152+All!N153+All!N154)/1000 -> 5.686479 | R114: =(All!S151+All!S152+All!S153+All!S154)/1000 -> 4.235351 | S114: =(All!X151+All!X152+All!X153+All!X154)/1000 -> 4.340569 | T114: =(All!AC151+All!AC152+All!AC153+All!AC154)/1000 -> 3.99268 | U114: =(All!AH151+All!AH152+All!AH153+All!AH154)/1000 -> 3.716596
P115: 3. Associate Prof. | Q115: =(All!N155+All!N156+All!N157+All!N158+All!N159)/1000 -> 9.831818 | R115: =(All!S155+All!S156+All!S157+All!S158+All!S159)/1000 -> 6.670587 | S115: =(All!X155+All!X156+All!X157+All!X158+All!X159)/1000 -> 6.116425 | T115: =(All!AC155+All!AC156+All!AC157+All!AC158+All!AC159)/1000 -> 5.405741 | U115: =(All!AH155+All!AH156+All!AH157+All!AH158+All!AH159)/1000 -> 4.961148
P116: 4. Administrative etc | Q116: =(All!N160+All!N161)/1000 -> 9.021778 | R116: =(All!S160+All!S161)/1000 -> 5.733017 | S116: =(All!X160+All!X161)/1000 -> 4.64569 | T116: =(All!AC160+All!AC161)/1000 -> 3.873318 | U116: =(All!AH160+All!AH161)/1000 -> 3.383266
P117: 5. Skilled Trades | Q117: =(All!N162+All!N163+All!N164+All!N165)/1000 -> 17.714173 | R117: =(All!S162+All!S163+All!S164+All!S165)/1000 -> 12.075021 | S117: =(All!X162+All!X163+All!X164+All!X165)/1000 -> 10.605064 | T117: =(All!AC162+All!AC163+All!AC164+All!AC165)/1000 -> 7.111766 | U117: =(All!AH162+All!AH163+All!AH164+All!AH165)/1000 -> 5.235591
P118: 6. Personal Service | Q118: =(All!N166+All!N167)/1000 -> 1.129395 | R118: =(All!S166+All!S167)/1000 -> 0.778332 | S118: =(All!X166+All!X167)/1000 -> 0.920894 | T118: =(All!AC166+All!AC167)/1000 -> 0.914145 | U118: =(All!AH166+All!AH167)/1000 -> 0.915907
P119: 7. Sales | Q119: =(All!N168+All!N169)/1000 -> 3.960435 | R119: =(All!S168+All!S169)/1000 -> 2.809571 | S119: =(All!X168+All!X169)/1000 -> 2.508637 | T119: =(All!AC168+All!AC169)/1000 -> 2.034624 | U119: =(All!AH168+All!AH169)/1000 -> 1.79298
P120: 8. Machine Operatives | Q120: =(All!N170+All!N171)/1000 -> 33.779289 | R120: =(All!S170+All!S171)/1000 -> 18.276285 | S120: =(All!X170+All!X171)/1000 -> 14.926933 | T120: =(All!AC170+All!AC171)/1000 -> 10.289987 | U120: =(All!AH170+All!AH171)/1000 -> 7.36869
P121: 9. Elementary | Q121: =(All!N172+All!N173)/1000 -> 9.435151 | R121: =(All!S172+All!S173)/1000 -> 5.359097 | S121: =(All!X172+All!X173)/1000 -> 4.927998 | T121: =(All!AC172+All!AC173)/1000 -> 3.759003 | U121: =(All!AH172+All!AH173)/1000 -> 3.242976
... 78 more rows

Sheet Table6.2.4
O1: thousands
A2: Industry 1 : Agriculture, etc | B2: =All!N7 -> 2002 | G2: =All!X7 -> 2012 | L2: =All!AH7 -> 2022
B3: Full-time | C3: Part-time | D3: Self-empl | E3: Total | G3: =B3 -> Full-time | H3: =C3 -> Part-time | I3: =D3 -> Self-empl | J3: =E3 -> Total | L3: =B3 -> Full-time | M3: =C3 -> Part-time | N3: =D3 -> Self-empl | O3: =E3 -> Total
A5: =All!A35 -> Agriculture, etc
A6: Female employment | B6: =FemalesFT!N36/1000 -> 20.099 | C6: =FemalesPT!N36/1000 -> 31.905 | D6: =FemalesSE!N36/1000 -> 18.276 | E6: =Females!N36/1000 -> 70.28 | G6: =FemalesFT!X36/1000 -> 27.928 | H6: =FemalesPT!X36/1000 -> 30.579 | I6: =FemalesSE!X36/1000 -> 36.186 | J6: =Females!X36/1000 -> 94.693 | L6: =FemalesFT!AH36/1000 -> 25.772 | M6: =FemalesPT!AH36/1000 -> 32.634 | N6: =FemalesSE!AH36/1000 -> 29.162 | O6: =Females!AH36/1000 -> 87.568
A7: Male employment | B7: =MalesFT!N36/1000 -> 109.275 | C7: =MalesPT!N36/1000 -> 12.49 | D7: =MalesSE!N36/1000 -> 48.107 | E7: =Males!N36/1000 -> 169.872 | G7: =MalesFT!X36/1000 -> 99.618 | H7: =MalesPT!X36/1000 -> 9.543 | I7: =MalesSE!X36/1000 -> 104.574 | J7: =Males!X36/1000 -> 213.735 | L7: =MalesFT!AH36/1000 -> 73.553 | M7: =MalesPT!AH36/1000 -> 7.621 | N7: =MalesSE!AH36/1000 -> 76.846 | O7: =Males!AH36/1000 -> 158.02
A8: Total employment | B8: =FT!N36/1000 -> 129.374 | C8: =PT!N36/1000 -> 44.395 | D8: =SE!N36/1000 -> 66.383 | E8: =All!N36/1000 -> 240.152 | G8: =FT!X36/1000 -> 127.546 | H8: =PT!X36/1000 -> 40.122 | I8: =SE!X36/1000 -> 140.76 | J8: =All!X36/1000 -> 308.428 | L8: =FT!AH36/1000 -> 99.325 | M8: =PT!AH36/1000 -> 40.255 | N8: =SE!AH36/1000 -> 106.008 | O8: =All!AH36/1000 -> 245.588
A12: Industry 2 : Mining and quarrying | B12: =$B$2 -> 2002 | G12: =$G$2 -> 2012 | L12: =$L$2 -> 2022
B13: Full-time | C13: Part-time | D13: Self-empl | E13: Total | G13: Full-time | H13: Part-time | I13: Self-empl | J13: Total | L13: Full-time | M13: Part-time | N13: Self-empl | O13: Total
A15: =All!A63 -> Coal, oil & gas; Mining & related
A16: Female employment | B16: =FemalesFT!N64/1000 -> 4.548 | C16: =FemalesPT!N64/1000 -> 1.431 | D16: =FemalesSE!N64/1000 -> 0.756 | E16: =Females!N64/1000 -> 6.735 | G16: =FemalesFT!X64/1000 -> 2.464 | H16: =FemalesPT!X64/1000 -> 0.009 | I16: =FemalesSE!X64/1000 -> 1.804 | J16: =Females!X64/1000 -> 4.277 | L16: =FemalesFT!AH64/1000 -> 2.26 | M16: =FemalesPT!AH64/1000 -> 0.009 | N16: =FemalesSE!AH64/1000 -> 1.661 | O16: =Females!AH64/1000 -> 3.93
A17: Male employment | B17: =MalesFT!N64/1000 -> 32.379 | C17: =MalesPT!N64/1000 -> 0.99 | D17: =MalesSE!N64/1000 -> 2.056 | E17: =Males!N64/1000 -> 35.425 | G17: =MalesFT!X64/1000 -> 22.363 | H17: =MalesPT!X64/1000 -> 0.999 | I17: =MalesSE!X64/1000 -> 6.587 | J17: =Males!X64/1000 -> 29.949 | L17: =MalesFT!AH64/1000 -> 18.933 | M17: =MalesPT!AH64/1000 -> 1.272 | N17: =MalesSE!AH64/1000 -> 5.294 | O17: =Males!AH64/1000 -> 25.499
A18: Total employment | B18: =FT!N64/1000 -> 36.927 | C18: =PT!N64/1000 -> 2.421 | D18: =SE!N64/1000 -> 2.812 | E18: =All!N64/1000 -> 42.16 | G18: =FT!X64/1000 -> 24.827 | H18: =PT!X64/1000 -> 1.008 | I18: =SE!X64/1000 -> 8.391 | J18: =All!X64/1000 -> 34.226 | L18: =FT!AH64/1000 -> 21.193 | M18: =PT!AH64/1000 -> 1.281 | N18: =SE!AH64/1000 -> 6.955 | O18: =All!AH64/1000 -> 29.429
A22: Industry 3 : Food drink & tobacco | B22: =$B$2 -> 2002 | G22: =$G$2 -> 2012 | L22: =$L$2 -> 2022
B23: Full-time | C23: Part-time | D23: Self-empl | E23: Total | G23: Full-time | H23: Part-time | I23: Self-empl | J23: Total | L23: Full-time | M23: Part-time | N23: Self-empl | O23: Total
A25: =All!A91 -> Food products
A26: Female employment | B26: =FemalesFT!N92/1000 -> 84.171 | C26: =FemalesPT!N92/1000 -> 30.473 | D26: =FemalesSE!N92/1000 -> 2.288 | E26: =Females!N92/1000 -> 116.932 | G26: =FemalesFT!X92/1000 -> 80.25 | H26: =FemalesPT!X92/1000 -> 23.769 | I26: =FemalesSE!X92/1000 -> 7.735 | J26: =Females!X92/1000 -> 111.754 | L26: =FemalesFT!AH92/1000 -> 76.72 | M26: =FemalesPT!AH92/1000 -> 23.112 | N26: =FemalesSE!AH92/1000 -> 6.831 | O26: =Females!AH92/1000 -> 106.663
A27: Male employment | B27: =MalesFT!N92/1000 -> 213.022 | C27: =MalesPT!N92/1000 -> 13.854 | D27: =MalesSE!N92/1000 -> 2.838 | E27: =Males!N92/1000 -> 229.714 | G27: =MalesFT!X92/1000 -> 183.665 | H27: =MalesPT!X92/1000 -> 8.738 | I27: =MalesSE!X92/1000 -> 1.939 | J27: =Males!X92/1000 -> 194.342 | L27: =MalesFT!AH92/1000 -> 166.153 | M27: =MalesPT!AH92/1000 -> 11.49 | N27: =MalesSE!AH92/1000 -> 1.945 | O27: =Males!AH92/1000 -> 179.588
A28: Total employment | B28: =FT!N92/1000 -> 297.193 | C28: =PT!N92/1000 -> 44.327 | D28: =SE!N92/1000 -> 5.126 | E28: =All!N92/1000 -> 346.646 | G28: =FT!X92/1000 -> 263.915 | H28: =PT!X92/1000 -> 32.507 | I28: =SE!X92/1000 -> 9.674 | J28: =All!X92/1000 -> 306.096 | L28: =FT!AH92/1000 -> 242.873 | M28: =PT!AH92/1000 -> 34.602 | N28: =SE!AH92/1000 -> 8.776 | O28: =All!AH92/1000 -> 286.251
A30: =All!A119 -> Beverages & tobacco
A31: Female employment | B31: =FemalesFT!N120/1000 -> 8.829 | C31: =FemalesPT!N120/1000 -> 3.971 | D31: =FemalesSE!N120/1000 -> 0.147 | E31: =Females!N120/1000 -> 12.947 | G31: =FemalesFT!X120/1000 -> 6.234 | H31: =FemalesPT!X120/1000 -> 1.344 | I31: =FemalesSE!X120/1000 -> 0.162 | J31: =Females!X120/1000 -> 7.74 | L31: =FemalesFT!AH120/1000 -> 5.33 | M31: =FemalesPT!AH120/1000 -> 1.443 | N31: =FemalesSE!AH120/1000 -> 0.308 | O31: =Females!AH120/1000 -> 7.081
A32: Male employment | B32: =MalesFT!N120/1000 -> 24.156 | C32: =MalesPT!N120/1000 -> 0.72 | D32: =MalesSE!N120/1000 -> 0.38 | E32: =Males!N120/1000 -> 25.256 | G32: =MalesFT!X120/1000 -> 18.287 | H32: =MalesPT!X120/1000 -> 0.572 | I32: =MalesSE!X120/1000 -> 0.334 | J32: =Males!X120/1000 -> 19.193 | L32: =MalesFT!AH120/1000 -> 18.243 | M32: =MalesPT!AH120/1000 -> 0.749 | N32: =MalesSE!AH120/1000 -> 0.197 | O32: =Males!AH120/1000 -> 19.189
A33: Total employment | B33: =FT!N120/1000 -> 32.985 | C33: =PT!N120/1000 -> 4.691 | D33: =SE!N120/1000 -> 0.527 | E33: =All!N120/1000 -> 38.203 | G33: =FT!X120/1000 -> 24.521 | H33: =PT!X120/1000 -> 1.916 | I33: =SE!X120/1000 -> 0.496 | J33: =All!X120/1000 -> 26.933 | L33: =FT!AH120/1000 -> 23.573 | M33: =PT!AH120/1000 -> 2.192 | N33: =SE!AH120/1000 -> 0.505 | O33: =All!AH120/1000 -> 26.27
A35: Industry 3 Total
A36: Female employment | B36: =B26+B31 -> 93 | C36: =C26+C31 -> 34.444 | D36: 2.435 | E36: 129.879 | G36: 86.484 | H36: 25.113 | I36: 7.897 | J36: 119.494 | L36: 82.05 | M36: 24.555 | N36: 7.139 | O36: 113.744
A37: Male employment | B37: =B27+B32 -> 237.178 | C37: 14.574 | D37: 3.218 | E37: 254.97 | G37: 201.952 | H37: 9.31 | I37: 2.273 | J37: 213.535 | L37: 184.396 | M37: 12.239 | N37: 2.142 | O37: 198.777
A38: Total employment | B38: =B28+B33 -> 330.178 | C38: 49.018 | D38: 5.653 | E38: 384.849 | G38: 288.436 | H38: 34.423 | I38: 10.17 | J38: 333.029 | L38: 266.446 | M38: 36.794 | N38: 9.281 | O38: 312.521
A42: Industry 4 : Engineering | B42: =$B$2 -> 2002 | G42: =$G$2 -> 2012 | L42: =$L$2 -> 2022
B43: Full-time | C43: Part-time | D43: Self-empl | E43: Total | G43: Full-time | H43: Part-time | I43: Self-empl | J43: Total | L43: Full-time | M43: Part-time | N43: Self-empl | O43: Total
A45: =All!A455 -> Computers, etc
A46: Female employment | B46: =FemalesFT!N456/1000 -> 37.916 | C46: =FemalesPT!N456/1000 -> 7.703 | D46: =FemalesSE!N456/1000 -> 1.655 | E46: =Females!N456/1000 -> 47.274 | G46: =FemalesFT!X456/1000 -> 19.6 | H46: =FemalesPT!X456/1000 -> 6.014 | I46: =FemalesSE!X456/1000 -> 0.245 | J46: =Females!X456/1000 -> 25.859 | L46: =FemalesFT!AH456/1000 -> 17.269 | M46: =FemalesPT!AH456/1000 -> 4.938 | N46: =FemalesSE!AH456/1000 -> 0.247 | O46: =Females!AH456/1000 -> 22.454
A47: Male employment | B47: =MalesFT!N456/1000 -> 113.659 | C47: =MalesPT!N456/1000 -> 2.649 | D47: =MalesSE!N456/1000 -> 8.79 | E47: =Males!N456/1000 -> 125.098 | G47: =MalesFT!X456/1000 -> 72.088 | H47: =MalesPT!X456/1000 -> 1.784 | I47: =MalesSE!X456/1000 -> 3.738 | J47: =Males!X456/1000 -> 77.61 | L47: =MalesFT!AH456/1000 -> 57.922 | M47: =MalesPT!AH456/1000 -> 1.911 | N47: =MalesSE!AH456/1000 -> 3.175 | O47: =Males!AH456/1000 -> 63.008
A48: Total employment | B48: =FT!N456/1000 -> 151.575 | C48: =PT!N456/1000 -> 10.352 | D48: =SE!N456/1000 -> 10.445 | E48: =All!N456/1000 -> 172.372 | G48: =FT!X456/1000 -> 91.688 | H48: =PT!X456/1000 -> 7.798 | I48: =SE!X456/1000 -> 3.983 | J48: =All!X456/1000 -> 103.469 | L48: =FT!AH456/1000 -> 75.191 | M48: =PT!AH456/1000 -> 6.849 | N48: =SE!AH456/1000 -> 3.422 | O48: =All!AH456/1000 -> 85.462
A50: =All!A483 -> Electrical equipment
A51: Female employment | B51: =FemalesFT!N484/1000 -> 25.47 | C51: =FemalesPT!N484/1000 -> 6.423 | D51: =FemalesSE!N484/1000 -> 0.835 | E51: =Females!N484/1000 -> 32.728 | G51: =FemalesFT!X484/1000 -> 17.595 | H51: =FemalesPT!X484/1000 -> 4.226 | I51: =FemalesSE!X484/1000 -> 0.749 | J51: =Females!X484/1000 -> 22.57 | L51: =FemalesFT!AH484/1000 -> 17.905 | M51: =FemalesPT!AH484/1000 -> 4.098 | N51: =FemalesSE!AH484/1000 -> 0.728 | O51: =Females!AH484/1000 -> 22.731
A52: Male employment | B52: =MalesFT!N484/1000 -> 75.361 | C52: =MalesPT!N484/1000 -> 1.884 | D52: =MalesSE!N484/1000 -> 1.573 | E52: =Males!N484/1000 -> 78.818 | G52: =MalesFT!X484/1000 -> 58.027 | H52: =MalesPT!X484/1000 -> 1.712 | I52: =MalesSE!X484/1000 -> 0.712 | J52: =Males!X484/1000 -> 60.451 | L52: =MalesFT!AH484/1000 -> 55.432 | M52: =MalesPT!AH484/1000 -> 2.078 | N52: =MalesSE!AH484/1000 -> 0.743 | O52: =Males!AH484/1000 -> 58.253
A53: Total employment | B53: =FT!N484/1000 -> 100.831 | C53: =PT!N484/1000 -> 8.307 | D53: =SE!N484/1000 -> 2.408 | E53: =All!N484/1000 -> 111.546 | G53: =FT!X484/1000 -> 75.622 | H53: =PT!X484/1000 -> 5.938 | I53: =SE!X484/1000 -> 1.461 | J53: =All!X484/1000 -> 83.021 | L53: =FT!AH484/1000 -> 73.337 | M53: =PT!AH484/1000 -> 6.176 | N53: =SE!AH484/1000 -> 1.471 | O53: =All!AH484/1000 -> 80.984
A55: =All!A511 -> Machinery, etc
A56: Female employment | B56: =FemalesFT!N512/1000 -> 34.769 | C56: =FemalesPT!N512/1000 -> 9.145 | D56: =FemalesSE!N512/1000 -> 0.761 | E56: =Females!N512/1000 -> 44.675 | G56: =FemalesFT!X512/1000 -> 26.66 | H56: =FemalesPT!X512/1000 -> 5.401 | I56: =FemalesSE!X512/1000 -> 0.579 | J56: =Females!X512/1000 -> 32.64 | L56: =FemalesFT!AH512/1000 -> 25.448 | M56: =FemalesPT!AH512/1000 -> 8.68 | N56: =FemalesSE!AH512/1000 -> 0.854 | O56: =Females!AH512/1000 -> 34.982
A57: Male employment | B57: =MalesFT!N512/1000 -> 176.003 | C57: =MalesPT!N512/1000 -> 3.699 | D57: =MalesSE!N512/1000 -> 4.775 | E57: =Males!N512/1000 -> 184.477 | G57: =MalesFT!X512/1000 -> 142.071 | H57: =MalesPT!X512/1000 -> 3.643 | I57: =MalesSE!X512/1000 -> 2.498 | J57: =Males!X512/1000 -> 148.212 | L57: =MalesFT!AH512/1000 -> 117.089 | M57: =MalesPT!AH512/1000 -> 7.291 | N57: =MalesSE!AH512/1000 -> 3.057 | O57: =Males!AH512/1000 -> 127.437
A58: Total employment | B58: =FT!N512/1000 -> 210.772 | C58: =PT!N512/1000 -> 12.844 | D58: =SE!N512/1000 -> 5.536 | E58: =All!N512/1000 -> 229.152 | G58: =FT!X512/1000 -> 168.731 | H58: =PT!X512/1000 -> 9.044 | I58: =SE!X512/1000 -> 3.077 | J58: =All!X512/1000 -> 180.852 | L58: =FT!AH512/1000 -> 142.537 | M58: =PT!AH512/1000 -> 15.971 | N58: =SE!AH512/1000 -> 3.911 | O58: =All!AH512/1000 -> 162.419
A60: Industry 4 Total
A61: Female employment | B61: =B46+B51+B56 -> 98.155 | C61: =C46+C51+C56 -> 23.271 | D61: 3.251 | E61: 124.677 | G61: =G46+G51+G56 -> 63.855 | H61: =H46+H51+H56 -> 15.641 | I61: 1.573 | J61: 81.069 | L61: =L46+L51+L56 -> 60.622 | M61: =M46+M51+M56 -> 17.716 | N61: 1.829 | O61: 80.167
A62: Male employment | B62: =B47+B52+B57 -> 365.023 | C62: 8.232 | D62: 15.138 | E62: 388.393 | G62: =G47+G52+G57 -> 272.186 | H62: 7.139 | I62: 6.948 | J62: 286.273 | L62: =L47+L52+L57 -> 230.443 | M62: 11.28 | N62: 6.975 | O62: 248.698
A63: Total employment | B63: 463.178 | C63: 31.503 | D63: 18.389 | E63: 513.07 | G63: 336.041 | H63: 22.78 | I63: 8.521 | J63: 367.342 | L63: 291.065 | M63: 28.996 | N63: 8.804 | O63: 328.865
A67: Industry 5 : Rest of manufacturing | B67: =$B$2 -> 2002 | G67: =$G$2 -> 2012 | L67: =$L$2 -> 2022
B68: Full-time | C68: Part-time | D68: Self-empl | E68: Total | G68: Full-time | H68: Part-time | I68: Self-empl | J68: Total | L68: Full-time | M68: Part-time | N68: Self-empl | O68: Total
A70: =All!A147 -> Textiles
A71: Female employment | B71: =FemalesFT!N148/1000 -> 30.632 | C71: =FemalesPT!N148/1000 -> 10.479 | D71: =FemalesSE!N148/1000 -> 7.707 | E71: =Females!N148/1000 -> 48.818 | G71: =FemalesFT!X148/1000 -> 11.926 | H71: =FemalesPT!X148/1000 -> 2.905 | I71: =FemalesSE!X148/1000 -> 6.438 | J71: =Females!X148/1000 -> 21.269 | L71: =FemalesFT!AH148/1000 -> 8.317 | M71: =FemalesPT!AH148/1000 -> 2.015 | N71: =FemalesSE!AH148/1000 -> 4.158 | O71: =Females!AH148/1000 -> 14.49
A72: Male employment | B72: =MalesFT!N148/1000 -> 43.59 | C72: =MalesPT!N148/1000 -> 1.858 | D72: =MalesSE!N148/1000 -> 5.141 | E72: =Males!N148/1000 -> 50.589 | G72: =MalesFT!X148/1000 -> 26.137 | H72: =MalesPT!X148/1000 -> 1.764 | I72: =MalesSE!X148/1000 -> 6.804 | J72: =Males!X148/1000 -> 34.705 | L72: =MalesFT!AH148/1000 -> 16.383 | M72: =MalesPT!AH148/1000 -> 1.322 | N72: =MalesSE!AH148/1000 -> 4.087 | O72: =Males!AH148/1000 -> 21.792
A73: Total employment | B73: =FT!N148/1000 -> 74.222 | C73: =PT!N148/1000 -> 12.337 | D73: =SE!N148/1000 -> 12.848 | E73: =All!N148/1000 -> 99.407 | G73: =FT!X148/1000 -> 38.063 | H73: =PT!X148/1000 -> 4.669 | I73: =SE!X148/1000 -> 13.242 | J73: =All!X148/1000 -> 55.974 | L73: =FT!AH148/1000 -> 24.7 | M73: =PT!AH148/1000 -> 3.337 | N73: =SE!AH148/1000 -> 8.245 | O73: =All!AH148/1000 -> 36.282
A75: =All!A175 -> Wearing apparel; Leather, etc
A76: Female employment | B76: =FemalesFT!N176/1000 -> 41.06 | C76: =FemalesPT!N176/1000 -> 10.061 | D76: =FemalesSE!N176/1000 -> 8.003 | E76: =Females!N176/1000 -> 59.124 | G76: =FemalesFT!X176/1000 -> 12.763 | H76: =FemalesPT!X176/1000 -> 6.339 | I76: =FemalesSE!X176/1000 -> 9.933 | J76: =Females!X176/1000 -> 29.035 | L76: =FemalesFT!AH176/1000 -> 9.058 | M76: =FemalesPT!AH176/1000 -> 4.041 | N76: =FemalesSE!AH176/1000 -> 5.835 | O76: =Females!AH176/1000 -> 18.934
A77: Male employment | B77: =MalesFT!N176/1000 -> 35.603 | C77: =MalesPT!N176/1000 -> 3.215 | D77: =MalesSE!N176/1000 -> 3.14 | E77: =Males!N176/1000 -> 41.958 | G77: =MalesFT!X176/1000 -> 9.333 | H77: =MalesPT!X176/1000 -> 2.245 | I77: =MalesSE!X176/1000 -> 1.73 | J77: =Males!X176/1000 -> 13.308 | L77: =MalesFT!AH176/1000 -> 6.613 | M77: =MalesPT!AH176/1000 -> 1.846 | N77: =MalesSE!AH176/1000 -> 1.341 | O77: =Males!AH176/1000 -> 9.8
A78: Total employment | B78: =FT!N176/1000 -> 76.663 | C78: =PT!N176/1000 -> 13.276 | D78: =SE!N176/1000 -> 11.143 | E78: =All!N176/1000 -> 101.082 | G78: =FT!X176/1000 -> 22.096 | H78: =PT!X176/1000 -> 8.584 | I78: =SE!X176/1000 -> 11.663 | J78: =All!X176/1000 -> 42.343 | L78: =FT!AH176/1000 -> 15.671 | M78: =PT!AH176/1000 -> 5.887 | N78: =SE!AH176/1000 -> 7.176 | O78: =All!AH176/1000 -> 28.734
A80: =All!A203 -> Wood, etc
A81: Female employment | B81: =FemalesFT!N204/1000 -> 7.547 | C81: =FemalesPT!N204/1000 -> 8.988 | D81: =FemalesSE!N204/1000 -> 0.365 | E81: =Females!N204/1000 -> 16.9 | G81: =FemalesFT!X204/1000 -> 3.824 | H81: =FemalesPT!X204/1000 -> 1.232 | I81: =FemalesSE!X204/1000 -> 2.573 | J81: =Females!X204/1000 -> 7.629 | L81: =FemalesFT!AH204/1000 -> 4.473 | M81: =FemalesPT!AH204/1000 -> 1.538 | N81: =FemalesSE!AH204/1000 -> 2.516 | O81: =Females!AH204/1000 -> 8.527
A82: Male employment | B82: =MalesFT!N204/1000 -> 47.622 | C82: =MalesPT!N204/1000 -> 0.248 | D82: =MalesSE!N204/1000 -> 7.847 | E82: =Males!N204/1000 -> 55.717 | G82: =MalesFT!X204/1000 -> 36.279 | H82: =MalesPT!X204/1000 -> 1.36 | I82: =MalesSE!X204/1000 -> 11.697 | J82: =Males!X204/1000 -> 49.336 | L82: =MalesFT!AH204/1000 -> 37.549 | M82: =MalesPT!AH204/1000 -> 1.697 | N82: =MalesSE!AH204/1000 -> 11.665 | O82: =Males!AH204/1000 -> 50.911
A83: Total employment | B83: =FT!N204/1000 -> 55.169 | C83: =PT!N204/1000 -> 9.236 | D83: =SE!N204/1000 -> 8.212 | E83: =All!N204/1000 -> 72.617 | G83: =FT!X204/1000 -> 40.103 | H83: =PT!X204/1000 -> 2.592 | I83: =SE!X204/1000 -> 14.27 | J83: =All!X204/1000 -> 56.965 | L83: =FT!AH204/1000 -> 42.022 | M83: =PT!AH204/1000 -> 3.235 | N83: =SE!AH204/1000 -> 14.181 | O83: =All!AH204/1000 -> 59.438
A85: =All!A231 -> Paper, etc
A86: Female employment | B86: =FemalesFT!N232/1000 -> 12.407 | C86: =FemalesPT!N232/1000 -> 4.258 | D86: =FemalesSE!N232/1000 -> 1.76 | E86: =Females!N232/1000 -> 18.425 | G86: =FemalesFT!X232/1000 -> 7.461 | H86: =FemalesPT!X232/1000 -> 1.75 | I86: =FemalesSE!X232/1000 -> 0.775 | J86: =Females!X232/1000 -> 9.986 | L86: =FemalesFT!AH232/1000 -> 5.364 | M86: =FemalesPT!AH232/1000 -> 1.283 | N86: =FemalesSE!AH232/1000 -> 0.54 | O86: =Females!AH232/1000 -> 7.187
A87: Male employment | B87: =MalesFT!N232/1000 -> 36.872 | C87: =MalesPT!N232/1000 -> 14.584 | D87: =MalesSE!N232/1000 -> 2.429 | E87: =Males!N232/1000 -> 53.885 | G87: =MalesFT!X232/1000 -> 33.705 | H87: =MalesPT!X232/1000 -> 0.3 | I87: =MalesSE!X232/1000 -> 3.161 | J87: =Males!X232/1000 -> 37.166 | L87: =MalesFT!AH232/1000 -> 22.356 | M87: =MalesPT!AH232/1000 -> 0.803 | N87: =MalesSE!AH232/1000 -> 1.982 | O87: =Males!AH232/1000 -> 25.141
A88: Total employment | B88: =FT!N232/1000 -> 49.279 | C88: =PT!N232/1000 -> 18.842 | D88: =SE!N232/1000 -> 4.189 | E88: =All!N232/1000 -> 72.31 | G88: =FT!X232/1000 -> 41.166 | H88: =PT!X232/1000 -> 2.05 | I88: =SE!X232/1000 -> 3.936 | J88: =All!X232/1000 -> 47.152 | L88: =FT!AH232/1000 -> 27.72 | M88: =PT!AH232/1000 -> 2.086 | N88: =SE!AH232/1000 -> 2.522 | O88: =All!AH232/1000 -> 32.328
A90: =All!A259 -> Printing & recording
A91: Female employment | B91: =FemalesFT!N260/1000 -> 38.489 | C91: =FemalesPT!N260/1000 -> 23.547 | D91: =FemalesSE!N260/1000 -> 2.419 | E91: =Females!N260/1000 -> 64.455 | G91: =FemalesFT!X260/1000 -> 21.025 | H91: =FemalesPT!X260/1000 -> 6.611 | I91: =FemalesSE!X260/1000 -> 2.602 | J91: =Females!X260/1000 -> 30.238 | L91: =FemalesFT!AH260/1000 -> 19.236 | M91: =FemalesPT!AH260/1000 -> 6.088 | N91: =FemalesSE!AH260/1000 -> 2.307 | O91: =Females!AH260/1000 -> 27.631
A92: Male employment | B92: =MalesFT!N260/1000 -> 110.446 | C92: =MalesPT!N260/1000 -> 6.747 | D92: =MalesSE!N260/1000 -> 8.061 | E92: =Males!N260/1000 -> 125.254 | G92: =MalesFT!X260/1000 -> 69.111 | H92: =MalesPT!X260/1000 -> 3.489 | I92: =MalesSE!X260/1000 -> 8.028 | J92: =Males!X260/1000 -> 80.628 | L92: =MalesFT!AH260/1000 -> 57.951 | M92: =MalesPT!AH260/1000 -> 4.405 | N92: =MalesSE!AH260/1000 -> 6.795 | O92: =Males!AH260/1000 -> 69.151
A93: Total employment | B93: =FT!N260/1000 -> 148.935 | C93: =PT!N260/1000 -> 30.294 | D93: =SE!N260/1000 -> 10.48 | E93: =All!N260/1000 -> 189.709 | G93: =FT!X260/1000 -> 90.136 | H93: =PT!X260/1000 -> 10.1 | I93: =SE!X260/1000 -> 10.63 | J93: =All!X260/1000 -> 110.866 | L93: =FT!AH260/1000 -> 77.187 | M93: =PT!AH260/1000 -> 10.493 | N93: =SE!AH260/1000 -> 9.102 | O93: =All!AH260/1000 -> 96.782
A95: =All!A287 -> Coke & refining; Chemicals,etc
A96: Female employment | B96: =FemalesFT!N288/1000 -> 34.208 | C96: =FemalesPT!N288/1000 -> 6.466 | D96: =FemalesSE!N288/1000 -> 0.63 | E96: =Females!N288/1000 -> 41.304 | G96: =FemalesFT!X288/1000 -> 22.797 | H96: =FemalesPT!X288/1000 -> 4.801 | I96: =FemalesSE!X288/1000 -> 1.911 | J96: =Females!X288/1000 -> 29.509 | L96: =FemalesFT!AH288/1000 -> 17.071 | M96: =FemalesPT!AH288/1000 -> 6.245 | N96: =FemalesSE!AH288/1000 -> 1.938 | O96: =Females!AH288/1000 -> 25.254
A97: Male employment | B97: =MalesFT!N288/1000 -> 97.706 | C97: =MalesPT!N288/1000 -> 2.222 | D97: =MalesSE!N288/1000 -> 1.719 | E97: =Males!N288/1000 -> 101.647 | G97: =MalesFT!X288/1000 -> 71.403 | H97: =MalesPT!X288/1000 -> 2.16 | I97: =MalesSE!X288/1000 -> 1.319 | J97: =Males!X288/1000 -> 74.882 | L97: =MalesFT!AH288/1000 -> 55.99 | M97: =MalesPT!AH288/1000 -> 2.884 | N97: =MalesSE!AH288/1000 -> 0.499 | O97: =Males!AH288/1000 -> 59.373
A98: Total employment | B98: =FT!N288/1000 -> 131.914 | C98: =PT!N288/1000 -> 8.688 | D98: =SE!N288/1000 -> 2.349 | E98: =All!N288/1000 -> 142.951 | G98: =FT!X288/1000 -> 94.2 | H98: =PT!X288/1000 -> 6.961 | I98: =SE!X288/1000 -> 3.23 | J98: =All!X288/1000 -> 104.391 | L98: =FT!AH288/1000 -> 73.061 | M98: =PT!AH288/1000 -> 9.129 | N98: =SE!AH288/1000 -> 2.437 | O98: =All!AH288/1000 -> 84.627
A100: =All!A315 -> Pharmaceuticals
A101: Female employment | B101: =FemalesFT!N316/1000 -> 14.143 | C101: =FemalesPT!N316/1000 -> 2.831 | D101: =FemalesSE!N316/1000 -> 0.539 | E101: =Females!N316/1000 -> 17.513 | G101: =FemalesFT!X316/1000 -> 10.558 | H101: =FemalesPT!X316/1000 -> 2.482 | I101: =FemalesSE!X316/1000 -> 0.737 | J101: =Females!X316/1000 -> 13.777 | L101: =FemalesFT!AH316/1000 -> 12.683 | M101: =FemalesPT!AH316/1000 -> 4.594 | N101: =FemalesSE!AH316/1000 -> 0.912 | O101: =Females!AH316/1000 -> 18.189
A102: Male employment | B102: =MalesFT!N316/1000 -> 41.925 | C102: =MalesPT!N316/1000 -> 0.969 | D102: =MalesSE!N316/1000 -> 1.081 | E102: =Males!N316/1000 -> 43.975 | G102: =MalesFT!X316/1000 -> 21.302 | H102: =MalesPT!X316/1000 -> 0.407 | I102: =MalesSE!X316/1000 -> 0.744 | J102: =Males!X316/1000 -> 22.453 | L102: =MalesFT!AH316/1000 -> 17.483 | M102: =MalesPT!AH316/1000 -> 0.865 | N102: =MalesSE!AH316/1000 -> 0.665 | O102: =Males!AH316/1000 -> 19.013
A103: Total employment | B103: =FT!N316/1000 -> 56.068 | C103: =PT!N316/1000 -> 3.8 | D103: =SE!N316/1000 -> 1.62 | E103: =All!N316/1000 -> 61.488 | G103: =FT!X316/1000 -> 31.86 | H103: =PT!X316/1000 -> 2.889 | I103: =SE!X316/1000 -> 1.481 | J103: =All!X316/1000 -> 36.23 | L103: =FT!AH316/1000 -> 30.166 | M103: =PT!AH316/1000 -> 5.459 | N103: =SE!AH316/1000 -> 1.577 | O103: =All!AH316/1000 -> 37.202
A105: =All!A343 -> Rubber & plastic
A106: Female employment | B106: =FemalesFT!N344/1000 -> 32.968 | C106: =FemalesPT!N344/1000 -> 10.042 | D106: =FemalesSE!N344/1000 -> 1.432 | E106: =Females!N344/1000 -> 44.442 | G106: =FemalesFT!X344/1000 -> 21.307 | H106: =FemalesPT!X344/1000 -> 6.143 | I106: =FemalesSE!X344/1000 -> 0.641 | J106: =Females!X344/1000 -> 28.091 | L106: =FemalesFT!AH344/1000 -> 24.472 | M106: =FemalesPT!AH344/1000 -> 4.584 | N106: =FemalesSE!AH344/1000 -> 0.006 | O106: =Females!AH344/1000 -> 29.062
A107: Male employment | B107: =MalesFT!N344/1000 -> 148.801 | C107: =MalesPT!N344/1000 -> 2.671 | D107: =MalesSE!N344/1000 -> 6.938 | E107: =Males!N344/1000 -> 158.41 | G107: =MalesFT!X344/1000 -> 97.042 | H107: =MalesPT!X344/1000 -> 6.282 | I107: =MalesSE!X344/1000 -> 2.298 | J107: =Males!X344/1000 -> 105.622 | L107: =MalesFT!AH344/1000 -> 88.458 | M107: =MalesPT!AH344/1000 -> 7.834 | N107: =MalesSE!AH344/1000 -> 0.593 | O107: =Males!AH344/1000 -> 96.885
A108: Total employment | B108: =FT!N344/1000 -> 181.769 | C108: =PT!N344/1000 -> 12.713 | D108: =SE!N344/1000 -> 8.37 | E108: =All!N344/1000 -> 202.852 | G108: =FT!X344/1000 -> 118.349 | H108: =PT!X344/1000 -> 12.425 | I108: =SE!X344/1000 -> 2.939 | J108: =All!X344/1000 -> 133.713 | L108: =FT!AH344/1000 -> 112.93 | M108: =PT!AH344/1000 -> 12.418 | N108: =SE!AH344/1000 -> 0.599 | O108: =All!AH344/1000 -> 125.947
A110: =All!A371 -> Other non-metallic
A111: Female employment | B111: =FemalesFT!N372/1000 -> 20.471 | C111: =FemalesPT!N372/1000 -> 3.644 | D111: =FemalesSE!N372/1000 -> 3.492 | E111: =Females!N372/1000 -> 27.607 | G111: =FemalesFT!X372/1000 -> 9.414 | H111: =FemalesPT!X372/1000 -> 3.437 | I111: =FemalesSE!X372/1000 -> 5.533 | J111: =Females!X372/1000 -> 18.384 | L111: =FemalesFT!AH372/1000 -> 7.662 | M111: =FemalesPT!AH372/1000 -> 2.625 | N111: =FemalesSE!AH372/1000 -> 3.886 | O111: =Females!AH372/1000 -> 14.173
A112: Male employment | B112: =MalesFT!N372/1000 -> 84.861 | C112: =MalesPT!N372/1000 -> 1.799 | D112: =MalesSE!N372/1000 -> 7.076 | E112: =Males!N372/1000 -> 93.736 | G112: =MalesFT!X372/1000 -> 56.886 | H112: =MalesPT!X372/1000 -> 1.672 | I112: =MalesSE!X372/1000 -> 5.127 | J112: =Males!X372/1000 -> 63.685 | L112: =MalesFT!AH372/1000 -> 42.271 | M112: =MalesPT!AH372/1000 -> 1.508 | N112: =MalesSE!AH372/1000 -> 3.856 | O112: =Males!AH372/1000 -> 47.635
A113: Total employment | B113: =FT!N372/1000 -> 105.332 | C113: =PT!N372/1000 -> 5.443 | D113: =SE!N372/1000 -> 10.568 | E113: =All!N372/1000 -> 121.343 | G113: =FT!X372/1000 -> 66.3 | H113: =PT!X372/1000 -> 5.109 | I113: =SE!X372/1000 -> 10.66 | J113: =All!X372/1000 -> 82.069 | L113: =FT!AH372/1000 -> 49.933 | M113: =PT!AH372/1000 -> 4.133 | N113: =SE!AH372/1000 -> 7.742 | O113: =All!AH372/1000 -> 61.808
A115: =All!A399 -> Basic metals
A116: Female employment | B116: =FemalesFT!N400/1000 -> 10.293 | C116: =FemalesPT!N400/1000 -> 2.851 | D116: =FemalesSE!N400/1000 -> 0.332 | E116: =Females!N400/1000 -> 13.476 | G116: =FemalesFT!X400/1000 -> 5.613 | H116: =FemalesPT!X400/1000 -> 0.921 | I116: =FemalesSE!X400/1000 -> 0.283 | J116: =Females!X400/1000 -> 6.817 | L116: =FemalesFT!AH400/1000 -> 5.003 | M116: =FemalesPT!AH400/1000 -> 0.825 | N116: =FemalesSE!AH400/1000 -> 0.242 | O116: =Females!AH400/1000 -> 6.07
A117: Male employment | B117: =MalesFT!N400/1000 -> 78.939 | C117: =MalesPT!N400/1000 -> 0.926 | D117: =MalesSE!N400/1000 -> 3.63 | E117: =Males!N400/1000 -> 83.495 | G117: =MalesFT!X400/1000 -> 48.238 | H117: =MalesPT!X400/1000 -> 0.9 | I117: =MalesSE!X400/1000 -> 3.573 | J117: =Males!X400/1000 -> 52.711 | L117: =MalesFT!AH400/1000 -> 40.12 | M117: =MalesPT!AH400/1000 -> 0.94 | N117: =MalesSE!AH400/1000 -> 2.77 | O117: =Males!AH400/1000 -> 43.83
A118: Total employment | B118: =FT!N400/1000 -> 89.232 | C118: =PT!N400/1000 -> 3.777 | D118: =SE!N400/1000 -> 3.962 | E118: =All!N400/1000 -> 96.971 | G118: =FT!X400/1000 -> 53.851 | H118: =PT!X400/1000 -> 1.821 | I118: =SE!X400/1000 -> 3.856 | J118: =All!X400/1000 -> 59.528 | L118: =FT!AH400/1000 -> 45.123 | M118: =PT!AH400/1000 -> 1.765 | N118: =SE!AH400/1000 -> 3.012 | O118: =All!AH400/1000 -> 49.9
A120: =All!A427 -> Metal products
A121: Female employment | B121: =FemalesFT!N428/1000 -> 33.498 | C121: =FemalesPT!N428/1000 -> 27.032 | D121: =FemalesSE!N428/1000 -> 3.47 | E121: =Females!N428/1000 -> 64 | G121: =FemalesFT!X428/1000 -> 27.247 | H121: =FemalesPT!X428/1000 -> 14.057 | I121: =FemalesSE!X428/1000 -> 2.41 | J121: =Females!X428/1000 -> 43.714 | L121: =FemalesFT!AH428/1000 -> 30.291 | M121: =FemalesPT!AH428/1000 -> 17.044 | N121: =FemalesSE!AH428/1000 -> 2.686 | O121: =Females!AH428/1000 -> 50.021
A122: Male employment | B122: =MalesFT!N428/1000 -> 240.799 | C122: =MalesPT!N428/1000 -> 12.986 | D122: =MalesSE!N428/1000 -> 23.269 | E122: =Males!N428/1000 -> 277.054 | G122: =MalesFT!X428/1000 -> 220.084 | H122: =MalesPT!X428/1000 -> 6.102 | I122: =MalesSE!X428/1000 -> 7.852 | J122: =Males!X428/1000 -> 234.038 | L122: =MalesFT!AH428/1000 -> 197.076 | M122: =MalesPT!AH428/1000 -> 5.178 | N122: =MalesSE!AH428/1000 -> 10.946 | O122: =Males!AH428/1000 -> 213.2
A123: Total employment | B123: =FT!N428/1000 -> 274.297 | C123: =PT!N428/1000 -> 40.018 | D123: =SE!N428/1000 -> 26.739 | E123: =All!N428/1000 -> 341.054 | G123: =FT!X428/1000 -> 247.331 | H123: =PT!X428/1000 -> 20.159 | I123: =SE!X428/1000 -> 10.262 | J123: =All!X428/1000 -> 277.752 | L123: =FT!AH428/1000 -> 227.367 | M123: =PT!AH428/1000 -> 22.222 | N123: =SE!AH428/1000 -> 13.632 | O123: =All!AH428/1000 -> 263.221
A125: =All!A539 -> Motor vehicles, etc
... 110 more rows

Sheet Table6.4.1.1
A1: Table 6.4.1.1 | B1: Employment Status
A2: All industries | E2: thousands | I2: Labels for graphs (DO NOT REMOVE!) | M2: - for :- | N2: Figure 6.x.1.3
A3: =All!N7 -> 2002 | N3: Figure 6.x.1.4
A4: Employment by Gender | B4: FT | C4: =I4 -> PT 2002 | D4: SE | E4: Total | I4: =CONCATENATE(" PT ",A3) -> PT 2002 | K4: =CONCATENATE(" PT ",All!$I$7,"-",RIGHT(TEXT(A3,"0"),2)) -> PT 1997-02 | N4: Figure 6.x.1.5
A5: Male employment | B5: =MalesFT!$N$8/1000 -> 9706.173 | C5: =MalesPT!$N$8/1000 -> 1713.601 | D5: =MalesSE!$N$8/1000 -> 2000.777 | E5: =Males!$N$8/1000 -> 13420.551
A6: Female employment | B6: =FemalesFT!$N$8/1000 -> 5792.824 | C6: =FemalesPT!$N$8/1000 -> 5369.107 | D6: =FemalesSE!$N$8/1000 -> 775.191 | E6: =Females!$N$8/1000 -> 11937.122
A7: Total employment | B7: =FT!$N$8/1000 -> 15498.997 | C7: =PT!$N$8/1000 -> 7082.708 | D7: =SE!$N$8/1000 -> 2775.968 | E7: =All!$N$8/1000 -> 25357.673
A9: =All!S7 -> 2007
A10: Employment by Gender | B10: FT | C10: =I10 -> PT 2007 | D10: SE | E10: Total | I10: =CONCATENATE(" PT ",A9) -> PT 2007 | K10: =CONCATENATE(" PT ",A3,"-",RIGHT(TEXT(A9,"0"),2)) -> PT 2002-07
A11: Male employment | B11: =MalesFT!$S$8/1000 -> 9941.984 | C11: =MalesPT!$S$8/1000 -> 1962.157 | D11: =MalesSE!$S$8/1000 -> 2210.659 | E11: =Males!$S$8/1000 -> 14114.8
A12: Female employment | B12: =FemalesFT!$S$8/1000 -> 6196.781 | C12: =FemalesPT!$S$8/1000 -> 5449.327 | D12: =FemalesSE!$S$8/1000 -> 903.436 | E12: =Females!$S$8/1000 -> 12549.544
A13: Total employment | B13: =FT!$S$8/1000 -> 16138.765 | C13: =PT!$S$8/1000 -> 7411.484 | D13: =SE!$S$8/1000 -> 3114.095 | E13: =All!$S$8/1000 -> 26664.344
A15: =All!X7 -> 2012
A16: Employment by Gender | B16: FT | C16: =I16 -> PT 2012 | D16: SE | E16: Total | I16: =CONCATENATE(" PT ",A15) -> PT 2012 | K16: =CONCATENATE(" PT ",A9,"-",RIGHT(TEXT(A15,"0"),2)) -> PT 2007-12
A17: Male employment | B17: =MalesFT!$X$8/1000 -> 9860.269 | C17: =MalesPT!$X$8/1000 -> 2052.208 | D17: =MalesSE!$X$8/1000 -> 2419.958 | E17: =Males!$X$8/1000 -> 14332.435
A18: Female employment | B18: =FemalesFT!$X$8/1000 -> 6019.425 | C18: =FemalesPT!$X$8/1000 -> 5601.285 | D18: =FemalesSE!$X$8/1000 -> 1160.327 | E18: =Females!$X$8/1000 -> 12781.037
A19: Total employment | B19: =FT!$X$8/1000 -> 15879.694 | C19: =PT!$X$8/1000 -> 7653.493 | D19: =SE!$X$8/1000 -> 3580.285 | E19: =All!$X$8/1000 -> 27113.472
A21: =All!AC7 -> 2017
A22: Employment by Gender | B22: FT | C22: =I22 -> PT 2017 | D22: SE | E22: Total | I22: =CONCATENATE(" PT ",A21) -> PT 2017 | K22: =CONCATENATE(" PT ",A15,"-",RIGHT(TEXT(A21,"0"),2)) -> PT 2012-17
A23: Male employment | B23: =MalesFT!$AC$8/1000 -> 9978.24 | C23: =MalesPT!$AC$8/1000 -> 2236.011 | D23: =MalesSE!$AC$8/1000 -> 2415.041 | E23: =Males!$AC$8/1000 -> 14629.292
A24: Female employment | B24: =FemalesFT!$AC$8/1000 -> 6222.352 | C24: =FemalesPT!$AC$8/1000 -> 5723.395 | D24: =FemalesSE!$AC$8/1000 -> 1163.586 | E24: =Females!$AC$8/1000 -> 13109.333
A25: Total employment | B25: =FT!$AC$8/1000 -> 16200.592 | C25: =PT!$AC$8/1000 -> 7959.406 | D25: =SE!$AC$8/1000 -> 3578.627 | E25: =All!$AC$8/1000 -> 27738.625
A27: =All!AH7 -> 2022
A28: Employment by Gender | B28: FT | C28: =I28 -> PT 2022 | D28: SE | E28: Total | I28: =CONCATENATE(" PT ",A27) -> PT 2022 | K28: =CONCATENATE(" PT ",A21,"-",RIGHT(TEXT(A27,"0"),2)) -> PT 2017-22
A29: Male employment | B29: =MalesFT!$AG$8/1000 -> 10131.992 | C29: =MalesPT!$AG$8/1000 -> 2419.299 | D29: =MalesSE!$AG$8/1000 -> 2424.345 | E29: =Males!$AG$8/1000 -> 14975.636
A30: Female employment | B30: =FemalesFT!$AG$8/1000 -> 6466.186 | C30: =FemalesPT!$AG$8/1000 -> 5925.888 | D30: =FemalesSE!$AG$8/1000 -> 1174.994 | E30: =Females!$AG$8/1000 -> 13567.068
A31: Total employment | B31: =FT!$AG$8/1000 -> 16598.178 | C31: =PT!$AG$8/1000 -> 8345.187 | D31: =SE!$AG$8/1000 -> 3599.339 | E31: =All!$AG$8/1000 -> 28542.704
A34: Table 6.4.1.1 | B34: Employment Status
A35: =All!$A$35 -> Agriculture, etc | E35: =$E$2 -> thousands
A36: =A$3 -> 2002
A37: Employment by Gender | B37: FT | C37: PT | D37: SE | E37: Total
A38: Male employment | B38: =MalesFT!$N$36/1000 -> 109.275 | C38: =MalesPT!$N$36/1000 -> 12.49 | D38: =MalesSE!$N$36/1000 -> 48.107 | E38: =Males!$N$36/1000 -> 169.872
A39: Female employment | B39: =FemalesFT!$N$36/1000 -> 20.099 | C39: =FemalesPT!$N$36/1000 -> 31.905 | D39: =FemalesSE!$N$36/1000 -> 18.276 | E39: =Females!$N$36/1000 -> 70.28
A40: Total employment | B40: =FT!$N$36/1000 -> 129.374 | C40: =PT!$N$36/1000 -> 44.395 | D40: =SE!$N$36/1000 -> 66.383 | E40: =All!$N$36/1000 -> 240.152
A42: =A$9 -> 2007
A43: Employment by Gender | B43: FT | C43: PT | D43: SE | E43: Total
A44: Male employment | B44: =MalesFT!$S$36/1000 -> 96.299 | C44: =MalesPT!$S$36/1000 -> 19.281 | D44: =MalesSE!$S$36/1000 -> 55.537 | E44: =Males!$S$36/1000 -> 171.117
A45: Female employment | B45: =FemalesFT!$S$36/1000 -> 24.899 | C45: =FemalesPT!$S$36/1000 -> 19.446 | D45: =FemalesSE!$S$36/1000 -> 26.278 | E45: =Females!$S$36/1000 -> 70.623
A46: Total employment | B46: =FT!$S$36/1000 -> 121.198 | C46: =PT!$S$36/1000 -> 38.727 | D46: =SE!$S$36/1000 -> 81.815 | E46: =All!$S$36/1000 -> 241.74
A48: =A$15 -> 2012
A49: Employment by Gender | B49: FT | C49: PT | D49: SE | E49: Total
A50: Male employment | B50: =MalesFT!$X$36/1000 -> 99.618 | C50: =MalesPT!$X$36/1000 -> 9.543 | D50: =MalesSE!$X$36/1000 -> 104.574 | E50: =Males!$X$36/1000 -> 213.735
A51: Female employment | B51: =FemalesFT!$X$36/1000 -> 27.928 | C51: =FemalesPT!$X$36/1000 -> 30.579 | D51: =FemalesSE!$X$36/1000 -> 36.186 | E51: =Females!$X$36/1000 -> 94.693
A52: Total employment | B52: =FT!$X$36/1000 -> 127.546 | C52: =PT!$X$36/1000 -> 40.122 | D52: =SE!$X$36/1000 -> 140.76 | E52: =All!$X$36/1000 -> 308.428
A54: =A$21 -> 2017
A55: Employment by Gender | B55: FT | C55: PT | D55: SE | E55: Total
A56: Male employment | B56: =MalesFT!$AC$36/1000 -> 80.288 | C56: =MalesPT!$AC$36/1000 -> 7.871 | D56: =MalesSE!$AC$36/1000 -> 83.863 | E56: =Males!$AC$36/1000 -> 172.022
A57: Female employment | B57: =FemalesFT!$AC$36/1000 -> 24.771 | C57: =FemalesPT!$AC$36/1000 -> 29.156 | D57: =FemalesSE!$AC$36/1000 -> 29.743 | E57: =Females!$AC$36/1000 -> 83.67
A58: Total employment | B58: =FT!$AC$36/1000 -> 105.059 | C58: =PT!$AC$36/1000 -> 37.027 | D58: =SE!$AC$36/1000 -> 113.606 | E58: =All!$AC$36/1000 -> 255.692
A60: =A$27 -> 2022
A61: Employment by Gender | B61: FT | C61: PT | D61: SE | E61: Total
A62: Male employment | B62: =MalesFT!$AG$36/1000 -> 74.573 | C62: =MalesPT!$AG$36/1000 -> 7.634 | D62: =MalesSE!$AG$36/1000 -> 77.909 | E62: =Males!$AG$36/1000 -> 160.116
A63: Female employment | B63: =FemalesFT!$AG$36/1000 -> 25.44 | C63: =FemalesPT!$AG$36/1000 -> 31.762 | D63: =FemalesSE!$AG$36/1000 -> 29.13 | E63: =Females!$AG$36/1000 -> 86.332
A64: Total employment | B64: =FT!$AG$36/1000 -> 100.013 | C64: =PT!$AG$36/1000 -> 39.396 | D64: =SE!$AG$36/1000 -> 107.039 | E64: =All!$AG$36/1000 -> 246.448
A67: Table 6.4.1.1 | B67: Employment Status
A68: =All!$A$63 -> Coal, oil & gas; Mining & related | E68: =$E$2 -> thousands
A69: =A$3 -> 2002
A70: Employment by Gender | B70: FT | C70: PT | D70: SE | E70: Total
A71: Male employment | B71: =MalesFT!$N$64/1000 -> 32.379 | C71: =MalesPT!$N$64/1000 -> 0.99 | D71: =MalesSE!$N$64/1000 -> 2.056 | E71: =Males!$N$64/1000 -> 35.425
A72: Female employment | B72: =FemalesFT!$N$64/1000 -> 4.548 | C72: =FemalesPT!$N$64/1000 -> 1.431 | D72: =FemalesSE!$N$64/1000 -> 0.756 | E72: =Females!$N$64/1000 -> 6.735
A73: Total employment | B73: =FT!$N$64/1000 -> 36.927 | C73: =PT!$N$64/1000 -> 2.421 | D73: =SE!$N$64/1000 -> 2.812 | E73: =All!$N$64/1000 -> 42.16
A75: =A$9 -> 2007
A76: Employment by Gender | B76: FT | C76: PT | D76: SE | E76: Total
A77: Male employment | B77: =MalesFT!$S$64/1000 -> 25.443 | C77: =MalesPT!$S$64/1000 -> 1.008 | D77: =MalesSE!$S$64/1000 -> 2.027 | E77: =Males!$S$64/1000 -> 28.478
A78: Female employment | B78: =FemalesFT!$S$64/1000 -> 3.087 | C78: =FemalesPT!$S$64/1000 -> 0.009 | D78: =FemalesSE!$S$64/1000 -> 2.107 | E78: =Females!$S$64/1000 -> 5.203
A79: Total employment | B79: =FT!$S$64/1000 -> 28.53 | C79: =PT!$S$64/1000 -> 1.017 | D79: =SE!$S$64/1000 -> 4.134 | E79: =All!$S$64/1000 -> 33.681
A81: =A$15 -> 2012
A82: Employment by Gender | B82: FT | C82: PT | D82: SE | E82: Total
A83: Male employment | B83: =MalesFT!$X$64/1000 -> 22.363 | C83: =MalesPT!$X$64/1000 -> 0.999 | D83: =MalesSE!$X$64/1000 -> 6.587 | E83: =Males!$X$64/1000 -> 29.949
A84: Female employment | B84: =FemalesFT!$X$64/1000 -> 2.464 | C84: =FemalesPT!$X$64/1000 -> 0.009 | D84: =FemalesSE!$X$64/1000 -> 1.804 | E84: =Females!$X$64/1000 -> 4.277
A85: Total employment | B85: =FT!$X$64/1000 -> 24.827 | C85: =PT!$X$64/1000 -> 1.008 | D85: =SE!$X$64/1000 -> 8.391 | E85: =All!$X$64/1000 -> 34.226
A87: =A$21 -> 2017
A88: Employment by Gender | B88: FT | C88: PT | D88: SE | E88: Total
A89: Male employment | B89: =MalesFT!$AC$64/1000 -> 19.983 | C89: =MalesPT!$AC$64/1000 -> 1.127 | D89: =MalesSE!$AC$64/1000 -> 5.623 | E89: =Males!$AC$64/1000 -> 26.733
A90: Female employment | B90: =FemalesFT!$AC$64/1000 -> 2.324 | C90: =FemalesPT!$AC$64/1000 -> 0.009 | D90: =FemalesSE!$AC$64/1000 -> 1.675 | E90: =Females!$AC$64/1000 -> 4.008
A91: Total employment | B91: =FT!$AC$64/1000 -> 22.307 | C91: =PT!$AC$64/1000 -> 1.136 | D91: =SE!$AC$64/1000 -> 7.298 | E91: =All!$AC$64/1000 -> 30.741
A93: =A$27 -> 2022
A94: Employment by Gender | B94: FT | C94: PT | D94: SE | E94: Total
A95: Male employment | B95: =MalesFT!$AG$64/1000 -> 19.117 | C95: =MalesPT!$AG$64/1000 -> 1.244 | D95: =MalesSE!$AG$64/1000 -> 5.353 | E95: =Males!$AG$64/1000 -> 25.714
A96: Female employment | B96: =FemalesFT!$AG$64/1000 -> 2.272 | C96: =FemalesPT!$AG$64/1000 -> 0.009 | D96: =FemalesSE!$AG$64/1000 -> 1.664 | E96: =Females!$AG$64/1000 -> 3.945
A97: Total employment | B97: =FT!$AG$64/1000 -> 21.389 | C97: =PT!$AG$64/1000 -> 1.253 | D97: =SE!$AG$64/1000 -> 7.017 | E97: =All!$AG$64/1000 -> 29.659
A100: Table 6.4.1.1 | B100: Employment Status
A101: =All!$A$91 -> Food products | E101: =$E$2 -> thousands
A102: =A$3 -> 2002
A103: Employment by Gender | B103: FT | C103: PT | D103: SE | E103: Total
A104: Male employment | B104: =MalesFT!$N$92/1000 -> 213.022 | C104: =MalesPT!$N$92/1000 -> 13.854 | D104: =MalesSE!$N$92/1000 -> 2.838 | E104: =Males!$N$92/1000 -> 229.714
A105: Female employment | B105: =FemalesFT!$N$92/1000 -> 84.171 | C105: =FemalesPT!$N$92/1000 -> 30.473 | D105: =FemalesSE!$N$92/1000 -> 2.288 | E105: =Females!$N$92/1000 -> 116.932
A106: Total employment | B106: =FT!$N$92/1000 -> 297.193 | C106: =PT!$N$92/1000 -> 44.327 | D106: =SE!$N$92/1000 -> 5.126 | E106: =All!$N$92/1000 -> 346.646
A108: =A$9 -> 2007
A109: Employment by Gender | B109: FT | C109: PT | D109: SE | E109: Total
A110: Male employment | B110: =MalesFT!$S$92/1000 -> 195.916 | C110: =MalesPT!$S$92/1000 -> 8.968 | D110: =MalesSE!$S$92/1000 -> 5.946 | E110: =Males!$S$92/1000 -> 210.83
A111: Female employment | B111: =FemalesFT!$S$92/1000 -> 81.012 | C111: =FemalesPT!$S$92/1000 -> 21.506 | D111: =FemalesSE!$S$92/1000 -> 2.773 | E111: =Females!$S$92/1000 -> 105.291
A112: Total employment | B112: =FT!$S$92/1000 -> 276.928 | C112: =PT!$S$92/1000 -> 30.474 | D112: =SE!$S$92/1000 -> 8.719 | E112: =All!$S$92/1000 -> 316.121
A114: =A$15 -> 2012
A115: Employment by Gender | B115: FT | C115: PT | D115: SE | E115: Total
A116: Male employment | B116: =MalesFT!$X$92/1000 -> 183.665 | C116: =MalesPT!$X$92/1000 -> 8.738 | D116: =MalesSE!$X$92/1000 -> 1.939 | E116: =Males!$X$92/1000 -> 194.342
A117: Female employment | B117: =FemalesFT!$X$92/1000 -> 80.25 | C117: =FemalesPT!$X$92/1000 -> 23.769 | D117: =FemalesSE!$X$92/1000 -> 7.735 | E117: =Females!$X$92/1000 -> 111.754
A118: Total employment | B118: =FT!$X$92/1000 -> 263.915 | C118: =PT!$X$92/1000 -> 32.507 | D118: =SE!$X$92/1000 -> 9.674 | E118: =All!$X$92/1000 -> 306.096
A120: =A$21 -> 2017
A121: Employment by Gender | B121: FT | C121: PT | D121: SE | E121: Total
A122: Male employment | B122: =MalesFT!$AC$92/1000 -> 178.638 | C122: =MalesPT!$AC$92/1000 -> 10.44 | D122: =MalesSE!$AC$92/1000 -> 1.991 | E122: =Males!$AC$92/1000 -> 191.069
A123: Female employment | B123: =FemalesFT!$AC$92/1000 -> 80.293 | C123: =FemalesPT!$AC$92/1000 -> 23.992 | D123: =FemalesSE!$AC$92/1000 -> 7.431 | E123: =Females!$AC$92/1000 -> 111.716
A124: Total employment | B124: =FT!$AC$92/1000 -> 258.931 | C124: =PT!$AC$92/1000 -> 34.432 | D124: =SE!$AC$92/1000 -> 9.422 | E124: =All!$AC$92/1000 -> 302.785
... 124 more rows

Sheet Table6.4.1.3
A1: Table 6.4.1.3 | B1: Employment changes
A2: =All!$A$7 -> All industries | E2: thousands | I2: Labels for graphs (DO NOT REMOVE!)
A3: =All!I7&"-"&All!N7 -> 1997-2002
A4: Employment by Gender | B4: FT | C4: =I4 -> PT 1997 | D4: =K4 -> SE -02 | E4: Total | I4: =CONCATENATE(" PT ",All!$I$7) -> PT 1997 | K4: =CONCATENATE(" SE -",RIGHT(TEXT(All!$N$7,"0"),2)) -> SE -02
A5: Male employment | B5: =(MalesFT!$N$8-MalesFT!$I$8)/1000 -> 597.919 | C5: =(MalesPT!$N$8-MalesPT!$I$8)/1000 -> 377.795 | D5: =(MalesSE!$N$8-MalesSE!$I$8)/1000 -> -84.112 | E5: =(Males!$N$8-Males!$I$8)/1000 -> 891.602
A6: Female employment | B6: =(FemalesFT!$N$8-FemalesFT!$I$8)/1000 -> 479.03 | C6: =(FemalesPT!$N$8-FemalesPT!$I$8)/1000 -> 122.8 | D6: =(FemalesSE!$N$8-FemalesSE!$I$8)/1000 -> -29.103 | E6: =(Females!$N$8-Females!$I$8)/1000 -> 572.727
A7: Total employment | B7: =(FT!$N$8-FT!$I$8)/1000 -> 1076.949 | C7: =(PT!$N$8-PT!$I$8)/1000 -> 500.595 | D7: =(SE!$N$8-SE!$I$8)/1000 -> -113.215 | E7: =(All!$N$8-All!$I$8)/1000 -> 1464.329
A9: =All!N7&"-"&All!S7 -> 2002-2007
A10: Employment by Gender | B10: FT | C10: =I10 -> PT 2002 | D10: =K10 -> SE -07 | E10: Total | I10: =CONCATENATE(" PT ",All!$N$7) -> PT 2002 | K10: =CONCATENATE(" SE -",RIGHT(TEXT(All!$S$7,"0"),2)) -> SE -07
A11: Male employment | B11: =(MalesFT!$S$8-MalesFT!$N$8)/1000 -> 235.811 | C11: =(MalesPT!$S$8-MalesPT!$N$8)/1000 -> 248.556 | D11: =(MalesSE!$S$8-MalesSE!$N$8)/1000 -> 209.882 | E11: =(Males!$S$8-Males!$N$8)/1000 -> 694.249
A12: Female employment | B12: =(FemalesFT!$S$8-FemalesFT!$N$8)/1000 -> 403.957 | C12: =(FemalesPT!$S$8-FemalesPT!$N$8)/1000 -> 80.22 | D12: =(FemalesSE!$S$8-FemalesSE!$N$8)/1000 -> 128.245 | E12: =(Females!$S$8-Females!$N$8)/1000 -> 612.422
A13: Total employment | B13: =(FT!$S$8-FT!$N$8)/1000 -> 639.768 | C13: =(PT!$S$8-PT!$N$8)/1000 -> 328.776 | D13: =(SE!$S$8-SE!$N$8)/1000 -> 338.127 | E13: =(All!$S$8-All!$N$8)/1000 -> 1306.671
A15: =All!S7&"-"&All!X7 -> 2007-2012
A16: Employment by Gender | B16: FT | C16: =I16 -> PT 2007 | D16: =K16 -> SE -12 | E16: Total | I16: =CONCATENATE(" PT ",All!$S$7) -> PT 2007 | K16: =CONCATENATE(" SE -",RIGHT(TEXT(All!$X$7,"0"),2)) -> SE -12
A17: Male employment | B17: =(MalesFT!$X$8-MalesFT!$S$8)/1000 -> -81.715 | C17: =(MalesPT!$X$8-MalesPT!$S$8)/1000 -> 90.051 | D17: =(MalesSE!$X$8-MalesSE!$S$8)/1000 -> 209.299 | E17: =(Males!$X$8-Males!$S$8)/1000 -> 217.635
A18: Female employment | B18: =(FemalesFT!$X$8-FemalesFT!$S$8)/1000 -> -177.356 | C18: =(FemalesPT!$X$8-FemalesPT!$S$8)/1000 -> 151.958 | D18: =(FemalesSE!$X$8-FemalesSE!$S$8)/1000 -> 256.891 | E18: =(Females!$X$8-Females!$S$8)/1000 -> 231.493
A19: Total employment | B19: =(FT!$X$8-FT!$S$8)/1000 -> -259.071 | C19: =(PT!$X$8-PT!$S$8)/1000 -> 242.009 | D19: =(SE!$X$8-SE!$S$8)/1000 -> 466.19 | E19: =(All!$X$8-All!$S$8)/1000 -> 449.128
A21: =All!X7&"-"&All!AC7 -> 2012-2017
A22: Employment by Gender | B22: FT | C22: =I22 -> PT 2012 | D22: =K22 -> SE -17 | E22: Total | I22: =CONCATENATE(" PT ",All!$X$7) -> PT 2012 | K22: =CONCATENATE(" SE -",RIGHT(TEXT(All!$AC$7,"0"),2)) -> SE -17
A23: Male employment | B23: =(MalesFT!$AC$8-MalesFT!$X$8)/1000 -> 117.971 | C23: =(MalesPT!$AC$8-MalesPT!$X$8)/1000 -> 183.803 | D23: =(MalesSE!$AC$8-MalesSE!$X$8)/1000 -> -4.917 | E23: =(Males!$AC$8-Males!$X$8)/1000 -> 296.857
A24: Female employment | B24: =(FemalesFT!$AC$8-FemalesFT!$X$8)/1000 -> 202.927 | C24: =(FemalesPT!$AC$8-FemalesPT!$X$8)/1000 -> 122.11 | D24: =(FemalesSE!$AC$8-FemalesSE!$X$8)/1000 -> 3.259 | E24: =(Females!$AC$8-Females!$X$8)/1000 -> 328.296
A25: Total employment | B25: =(FT!$AC$8-FT!$X$8)/1000 -> 320.898 | C25: =(PT!$AC$8-PT!$X$8)/1000 -> 305.913 | D25: =(SE!$AC$8-SE!$X$8)/1000 -> -1.658 | E25: =(All!$AC$8-All!$X$8)/1000 -> 625.153
A27: =All!AC7&"-"&All!AH7 -> 2017-2022
A28: Employment by Gender | B28: FT | C28: =I28 -> PT 2017 | D28: =K28 -> SE -22 | E28: Total | I28: =CONCATENATE(" PT ",All!$AC$7) -> PT 2017 | K28: =CONCATENATE(" SE -",RIGHT(TEXT(All!$AH$7,"0"),2)) -> SE -22
A29: Male employment | B29: =(MalesFT!$AH$8-MalesFT!$AC$8)/1000 -> 183.665 | C29: =(MalesPT!$AH$8-MalesPT!$AC$8)/1000 -> 227.082 | D29: =(MalesSE!$AH$8-MalesSE!$AC$8)/1000 -> 8.223 | E29: =(Males!$AH$8-Males!$AC$8)/1000 -> 418.97
A30: Female employment | B30: =(FemalesFT!$AH$8-FemalesFT!$AC$8)/1000 -> 302.582 | C30: =(FemalesPT!$AH$8-FemalesPT!$AC$8)/1000 -> 251.504 | D30: =(FemalesSE!$AH$8-FemalesSE!$AC$8)/1000 -> 14.429 | E30: =(Females!$AH$8-Females!$AC$8)/1000 -> 568.515
A31: Total employment | B31: =(FT!$AH$8-FT!$AC$8)/1000 -> 486.247 | C31: =(PT!$AH$8-PT!$AC$8)/1000 -> 478.586 | D31: =(SE!$AH$8-SE!$AC$8)/1000 -> 22.652 | E31: =(All!$AH$8-All!$AC$8)/1000 -> 987.485
A34: Table 6.4.1.3 | B34: Employment changes
A35: =All!$A$35 -> Agriculture, etc | E35: =$E$2 -> thousands
A36: =A$3 -> 1997-2002
A37: Employment by Gender | B37: FT | C37: PT | D37: SE | E37: Total
A38: Male employment | B38: =(MalesFT!$N$36-MalesFT!$I$36)/1000 -> -27.944 | C38: =(MalesPT!$N$36-MalesPT!$I$36)/1000 -> -17.168 | D38: =(MalesSE!$N$36-MalesSE!$I$36)/1000 -> -54.118 | E38: =(Males!$N$36-Males!$I$36)/1000 -> -99.23
A39: Female employment | B39: =(FemalesFT!$N$36-FemalesFT!$I$36)/1000 -> -7.901 | C39: =(FemalesPT!$N$36-FemalesPT!$I$36)/1000 -> 10.694 | D39: =(FemalesSE!$N$36-FemalesSE!$I$36)/1000 -> -13.842 | E39: =(Females!$N$36-Females!$I$36)/1000 -> -11.049
A40: Total employment | B40: =(FT!$N$36-FT!$I$36)/1000 -> -35.845 | C40: =(PT!$N$36-PT!$I$36)/1000 -> -6.474 | D40: =(SE!$N$36-SE!$I$36)/1000 -> -67.96 | E40: =(All!$N$36-All!$I$36)/1000 -> -110.279
A42: =A$9 -> 2002-2007
A43: Employment by Gender | B43: FT | C43: PT | D43: SE | E43: Total
A44: Male employment | B44: =(MalesFT!$S$36-MalesFT!$N$36)/1000 -> -12.976 | C44: =(MalesPT!$S$36-MalesPT!$N$36)/1000 -> 6.791 | D44: =(MalesSE!$S$36-MalesSE!$N$36)/1000 -> 7.43 | E44: =(Males!$S$36-Males!$N$36)/1000 -> 1.245
A45: Female employment | B45: =(FemalesFT!$S$36-FemalesFT!$N$36)/1000 -> 4.8 | C45: =(FemalesPT!$S$36-FemalesPT!$N$36)/1000 -> -12.459 | D45: =(FemalesSE!$S$36-FemalesSE!$N$36)/1000 -> 8.002 | E45: =(Females!$S$36-Females!$N$36)/1000 -> 0.343
A46: Total employment | B46: =(FT!$S$36-FT!$N$36)/1000 -> -8.176 | C46: =(PT!$S$36-PT!$N$36)/1000 -> -5.668 | D46: =(SE!$S$36-SE!$N$36)/1000 -> 15.432 | E46: =(All!$S$36-All!$N$36)/1000 -> 1.588
A48: =A$15 -> 2007-2012
A49: Employment by Gender | B49: FT | C49: PT | D49: SE | E49: Total
A50: Male employment | B50: =(MalesFT!$X$36-MalesFT!$S$36)/1000 -> 3.319 | C50: =(MalesPT!$X$36-MalesPT!$S$36)/1000 -> -9.738 | D50: =(MalesSE!$X$36-MalesSE!$S$36)/1000 -> 49.037 | E50: =(Males!$X$36-Males!$S$36)/1000 -> 42.618
A51: Female employment | B51: =(FemalesFT!$X$36-FemalesFT!$S$36)/1000 -> 3.029 | C51: =(FemalesPT!$X$36-FemalesPT!$S$36)/1000 -> 11.133 | D51: =(FemalesSE!$X$36-FemalesSE!$S$36)/1000 -> 9.908 | E51: =(Females!$X$36-Females!$S$36)/1000 -> 24.07
A52: Total employment | B52: =(FT!$X$36-FT!$S$36)/1000 -> 6.348 | C52: =(PT!$X$36-PT!$S$36)/1000 -> 1.395 | D52: =(SE!$X$36-SE!$S$36)/1000 -> 58.945 | E52: =(All!$X$36-All!$S$36)/1000 -> 66.688
A54: =A$21 -> 2012-2017
A55: Employment by Gender | B55: FT | C55: PT | D55: SE | E55: Total
A56: Male employment | B56: =(MalesFT!$AC$36-MalesFT!$X$36)/1000 -> -19.33 | C56: =(MalesPT!$AC$36-MalesPT!$X$36)/1000 -> -1.672 | D56: =(MalesSE!$AC$36-MalesSE!$X$36)/1000 -> -20.711 | E56: =(Males!$AC$36-Males!$X$36)/1000 -> -41.713
A57: Female employment | B57: =(FemalesFT!$AC$36-FemalesFT!$X$36)/1000 -> -3.157 | C57: =(FemalesPT!$AC$36-FemalesPT!$X$36)/1000 -> -1.423 | D57: =(FemalesSE!$AC$36-FemalesSE!$X$36)/1000 -> -6.443 | E57: =(Females!$AC$36-Females!$X$36)/1000 -> -11.023
A58: Total employment | B58: =(FT!$AC$36-FT!$X$36)/1000 -> -22.487 | C58: =(PT!$AC$36-PT!$X$36)/1000 -> -3.095 | D58: =(SE!$AC$36-SE!$X$36)/1000 -> -27.154 | E58: =(All!$AC$36-All!$X$36)/1000 -> -52.736
A60: =A$27 -> 2017-2022
A61: Employment by Gender | B61: FT | C61: PT | D61: SE | E61: Total
A62: Male employment | B62: =(MalesFT!$AH$36-MalesFT!$AC$36)/1000 -> -6.735 | C62: =(MalesPT!$AH$36-MalesPT!$AC$36)/1000 -> -0.25 | D62: =(MalesSE!$AH$36-MalesSE!$AC$36)/1000 -> -7.017 | E62: =(Males!$AH$36-Males!$AC$36)/1000 -> -14.002
A63: Female employment | B63: =(FemalesFT!$AH$36-FemalesFT!$AC$36)/1000 -> 1.001 | C63: =(FemalesPT!$AH$36-FemalesPT!$AC$36)/1000 -> 3.478 | D63: =(FemalesSE!$AH$36-FemalesSE!$AC$36)/1000 -> -0.581 | E63: =(Females!$AH$36-Females!$AC$36)/1000 -> 3.898
A64: Total employment | B64: =(FT!$AH$36-FT!$AC$36)/1000 -> -5.734 | C64: =(PT!$AH$36-PT!$AC$36)/1000 -> 3.228 | D64: =(SE!$AH$36-SE!$AC$36)/1000 -> -7.598 | E64: =(All!$AH$36-All!$AC$36)/1000 -> -10.104
A67: Table 6.4.1.3 | B67: Employment changes
A68: =All!$A$63 -> Coal, oil & gas; Mining & related | E68: =$E$2 -> thousands
A69: =A$3 -> 1997-2002
A70: Employment by Gender | B70: FT | C70: PT | D70: SE | E70: Total
A71: Male employment | B71: =(MalesFT!$N$64-MalesFT!$I$64)/1000 -> -9.215 | C71: =(MalesPT!$N$64-MalesPT!$I$64)/1000 -> 0 | D71: =(MalesSE!$N$64-MalesSE!$I$64)/1000 -> 0.238 | E71: =(Males!$N$64-Males!$I$64)/1000 -> -8.977
A72: Female employment | B72: =(FemalesFT!$N$64-FemalesFT!$I$64)/1000 -> 2.992 | C72: =(FemalesPT!$N$64-FemalesPT!$I$64)/1000 -> 0.414 | D72: =(FemalesSE!$N$64-FemalesSE!$I$64)/1000 -> -0.279 | E72: =(Females!$N$64-Females!$I$64)/1000 -> 3.127
A73: Total employment | B73: =(FT!$N$64-FT!$I$64)/1000 -> -6.223 | C73: =(PT!$N$64-PT!$I$64)/1000 -> 0.414 | D73: =(SE!$N$64-SE!$I$64)/1000 -> -0.041 | E73: =(All!$N$64-All!$I$64)/1000 -> -5.85
A75: =A$9 -> 2002-2007
A76: Employment by Gender | B76: FT | C76: PT | D76: SE | E76: Total
A77: Male employment | B77: =(MalesFT!$S$64-MalesFT!$N$64)/1000 -> -6.936 | C77: =(MalesPT!$S$64-MalesPT!$N$64)/1000 -> 0.018 | D77: =(MalesSE!$S$64-MalesSE!$N$64)/1000 -> -0.029 | E77: =(Males!$S$64-Males!$N$64)/1000 -> -6.947
A78: Female employment | B78: =(FemalesFT!$S$64-FemalesFT!$N$64)/1000 -> -1.461 | C78: =(FemalesPT!$S$64-FemalesPT!$N$64)/1000 -> -1.422 | D78: =(FemalesSE!$S$64-FemalesSE!$N$64)/1000 -> 1.351 | E78: =(Females!$S$64-Females!$N$64)/1000 -> -1.532
A79: Total employment | B79: =(FT!$S$64-FT!$N$64)/1000 -> -8.397 | C79: =(PT!$S$64-PT!$N$64)/1000 -> -1.404 | D79: =(SE!$S$64-SE!$N$64)/1000 -> 1.322 | E79: =(All!$S$64-All!$N$64)/1000 -> -8.479
A81: =A$15 -> 2007-2012
A82: Employment by Gender | B82: FT | C82: PT | D82: SE | E82: Total
A83: Male employment | B83: =(MalesFT!$X$64-MalesFT!$S$64)/1000 -> -3.08 | C83: =(MalesPT!$X$64-MalesPT!$S$64)/1000 -> -0.009 | D83: =(MalesSE!$X$64-MalesSE!$S$64)/1000 -> 4.56 | E83: =(Males!$X$64-Males!$S$64)/1000 -> 1.471
A84: Female employment | B84: =(FemalesFT!$X$64-FemalesFT!$S$64)/1000 -> -0.623 | C84: =(FemalesPT!$X$64-FemalesPT!$S$64)/1000 -> 0 | D84: =(FemalesSE!$X$64-FemalesSE!$S$64)/1000 -> -0.303 | E84: =(Females!$X$64-Females!$S$64)/1000 -> -0.926
A85: Total employment | B85: =(FT!$X$64-FT!$S$64)/1000 -> -3.703 | C85: =(PT!$X$64-PT!$S$64)/1000 -> -0.009 | D85: =(SE!$X$64-SE!$S$64)/1000 -> 4.257 | E85: =(All!$X$64-All!$S$64)/1000 -> 0.545
A87: =A$21 -> 2012-2017
A88: Employment by Gender | B88: FT | C88: PT | D88: SE | E88: Total
A89: Male employment | B89: =(MalesFT!$AC$64-MalesFT!$X$64)/1000 -> -2.38 | C89: =(MalesPT!$AC$64-MalesPT!$X$64)/1000 -> 0.128 | D89: =(MalesSE!$AC$64-MalesSE!$X$64)/1000 -> -0.964 | E89: =(Males!$AC$64-Males!$X$64)/1000 -> -3.216
A90: Female employment | B90: =(FemalesFT!$AC$64-FemalesFT!$X$64)/1000 -> -0.14 | C90: =(FemalesPT!$AC$64-FemalesPT!$X$64)/1000 -> 0 | D90: =(FemalesSE!$AC$64-FemalesSE!$X$64)/1000 -> -0.129 | E90: =(Females!$AC$64-Females!$X$64)/1000 -> -0.269
A91: Total employment | B91: =(FT!$AC$64-FT!$X$64)/1000 -> -2.52 | C91: =(PT!$AC$64-PT!$X$64)/1000 -> 0.128 | D91: =(SE!$AC$64-SE!$X$64)/1000 -> -1.093 | E91: =(All!$AC$64-All!$X$64)/1000 -> -3.485
A93: =A$27 -> 2017-2022
A94: Employment by Gender | B94: FT | C94: PT | D94: SE | E94: Total
A95: Male employment | B95: =(MalesFT!$AH$64-MalesFT!$AC$64)/1000 -> -1.05 | C95: =(MalesPT!$AH$64-MalesPT!$AC$64)/1000 -> 0.145 | D95: =(MalesSE!$AH$64-MalesSE!$AC$64)/1000 -> -0.329 | E95: =(Males!$AH$64-Males!$AC$64)/1000 -> -1.234
A96: Female employment | B96: =(FemalesFT!$AH$64-FemalesFT!$AC$64)/1000 -> -0.064 | C96: =(FemalesPT!$AH$64-FemalesPT!$AC$64)/1000 -> 0 | D96: =(FemalesSE!$AH$64-FemalesSE!$AC$64)/1000 -> -0.014 | E96: =(Females!$AH$64-Females!$AC$64)/1000 -> -0.078
A97: Total employment | B97: =(FT!$AH$64-FT!$AC$64)/1000 -> -1.114 | C97: =(PT!$AH$64-PT!$AC$64)/1000 -> 0.145 | D97: =(SE!$AH$64-SE!$AC$64)/1000 -> -0.343 | E97: =(All!$AH$64-All!$AC$64)/1000 -> -1.312
A100: Table 6.4.1.3 | B100: Employment changes
A101: =All!$A$91 -> Food products | E101: =$E$2 -> thousands
A102: =A$3 -> 1997-2002
A103: Employment by Gender | B103: FT | C103: PT | D103: SE | E103: Total
A104: Male employment | B104: =(MalesFT!$N$92-MalesFT!$I$92)/1000 -> 56.133 | C104: =(MalesPT!$N$92-MalesPT!$I$92)/1000 -> -10.462 | D104: =(MalesSE!$N$92-MalesSE!$I$92)/1000 -> -2.312 | E104: =(Males!$N$92-Males!$I$92)/1000 -> 43.359
A105: Female employment | B105: =(FemalesFT!$N$92-FemalesFT!$I$92)/1000 -> -10.033 | C105: =(FemalesPT!$N$92-FemalesPT!$I$92)/1000 -> -55.668 | D105: =(FemalesSE!$N$92-FemalesSE!$I$92)/1000 -> -1.493 | E105: =(Females!$N$92-Females!$I$92)/1000 -> -67.194
A106: Total employment | B106: =(FT!$N$92-FT!$I$92)/1000 -> 46.1 | C106: =(PT!$N$92-PT!$I$92)/1000 -> -66.13 | D106: =(SE!$N$92-SE!$I$92)/1000 -> -3.805 | E106: =(All!$N$92-All!$I$92)/1000 -> -23.835
A108: =A$9 -> 2002-2007
A109: Employment by Gender | B109: FT | C109: PT | D109: SE | E109: Total
A110: Male employment | B110: =(MalesFT!$S$92-MalesFT!$N$92)/1000 -> -17.106 | C110: =(MalesPT!$S$92-MalesPT!$N$92)/1000 -> -4.886 | D110: =(MalesSE!$S$92-MalesSE!$N$92)/1000 -> 3.108 | E110: =(Males!$S$92-Males!$N$92)/1000 -> -18.884
A111: Female employment | B111: =(FemalesFT!$S$92-FemalesFT!$N$92)/1000 -> -3.159 | C111: =(FemalesPT!$S$92-FemalesPT!$N$92)/1000 -> -8.967 | D111: =(FemalesSE!$S$92-FemalesSE!$N$92)/1000 -> 0.485 | E111: =(Females!$S$92-Females!$N$92)/1000 -> -11.641
A112: Total employment | B112: =(FT!$S$92-FT!$N$92)/1000 -> -20.265 | C112: =(PT!$S$92-PT!$N$92)/1000 -> -13.853 | D112: =(SE!$S$92-SE!$N$92)/1000 -> 3.593 | E112: =(All!$S$92-All!$N$92)/1000 -> -30.525
A114: =A$15 -> 2007-2012
A115: Employment by Gender | B115: FT | C115: PT | D115: SE | E115: Total
A116: Male employment | B116: =(MalesFT!$X$92-MalesFT!$S$92)/1000 -> -12.251 | C116: =(MalesPT!$X$92-MalesPT!$S$92)/1000 -> -0.23 | D116: =(MalesSE!$X$92-MalesSE!$S$92)/1000 -> -4.007 | E116: =(Males!$X$92-Males!$S$92)/1000 -> -16.488
A117: Female employment | B117: =(FemalesFT!$X$92-FemalesFT!$S$92)/1000 -> -0.762 | C117: =(FemalesPT!$X$92-FemalesPT!$S$92)/1000 -> 2.263 | D117: =(FemalesSE!$X$92-FemalesSE!$S$92)/1000 -> 4.962 | E117: =(Females!$X$92-Females!$S$92)/1000 -> 6.463
A118: Total employment | B118: =(FT!$X$92-FT!$S$92)/1000 -> -13.013 | C118: =(PT!$X$92-PT!$S$92)/1000 -> 2.033 | D118: =(SE!$X$92-SE!$S$92)/1000 -> 0.955 | E118: =(All!$X$92-All!$S$92)/1000 -> -10.025
A120: =A$21 -> 2012-2017
A121: Employment by Gender | B121: FT | C121: PT | D121: SE | E121: Total
A122: Male employment | B122: =(MalesFT!$AC$92-MalesFT!$X$92)/1000 -> -5.027 | C122: =(MalesPT!$AC$92-MalesPT!$X$92)/1000 -> 1.702 | D122: =(MalesSE!$AC$92-MalesSE!$X$92)/1000 -> 0.052 | E122: =(Males!$AC$92-Males!$X$92)/1000 -> -3.273
A123: Female employment | B123: =(FemalesFT!$AC$92-FemalesFT!$X$92)/1000 -> 0.043 | C123: =(FemalesPT!$AC$92-FemalesPT!$X$92)/1000 -> 0.223 | D123: =(FemalesSE!$AC$92-FemalesSE!$X$92)/1000 -> -0.304 | E123: =(Females!$AC$92-Females!$X$92)/1000 -> -0.038
A124: Total employment | B124: =(FT!$AC$92-FT!$X$92)/1000 -> -4.984 | C124: =(PT!$AC$92-PT!$X$92)/1000 -> 1.925 | D124: =(SE!$AC$92-SE!$X$92)/1000 -> -0.252 | E124: =(All!$AC$92-All!$X$92)/1000 -> -3.311
... 124 more rows

Sheet Table6.4.1.4
A1: Table 6.4.1.4 | B1: =CONCATENATE("Occupational composition by gender, ",B2,"-",F2,"-",J2) -> Occupational composition by gender, 2002-2012-2022 | L1: thousands
A2: =All!A7 -> All industries | B2: =All!N7 -> 2002 | F2: =All!X7 -> 2012 | J2: =All!AH7 -> 2022
B3: Female | C3: Male | D3: Total | F3: Female | G3: Male | H3: Total | J3: Female | K3: Male | L3: Total
A4: Managers and Senior Officials | B4: =(Females!N9+Females!N10)/1000 -> 693.534426 | C4: =(Males!N9+Males!N10)/1000 -> 1668.867488 | D4: =(All!N9+All!N10)/1000 -> 2362.401915 | F4: =(Females!X9+Females!X10)/1000 -> 992.067174 | G4: =(Males!X9+Males!X10)/1000 -> 1896.59281 | H4: =(All!X9+All!X10)/1000 -> 2888.659983 | J4: =(Females!AH9+Females!AH10)/1000 -> 1296.261685 | K4: =(Males!AH9+Males!AH10)/1000 -> 2104.567526 | L4: =(All!AH9+All!AH10)/1000 -> 3400.82921
A5: Professional occupations | B5: =(Females!N11+Females!N12+Females!N13+Females!N14)/1000 -> 1932.448896 | C5: =(Males!N11+Males!N12+Males!N13+Males!N14)/1000 -> 2311.112183 | D5: =(All!N11+All!N12+All!N13+All!N14)/1000 -> 4243.561079 | F5: =(Females!X11+Females!X12+Females!X13+Females!X14)/1000 -> 2564.55741 | G5: =(Males!X11+Males!X12+Males!X13+Males!X14)/1000 -> 2781.601479 | H5: =(All!X11+All!X12+All!X13+All!X14)/1000 -> 5346.15889 | J5: =(Females!AH11+Females!AH12+Females!AH13+Females!AH14)/1000 -> 3235.086032 | K5: =(Males!AH11+Males!AH12+Males!AH13+Males!AH14)/1000 -> 3104.798223 | L5: =(All!AH11+All!AH12+All!AH13+All!AH14)/1000 -> 6339.884256
A6: Associate Professional and Technical | B6: =(Females!N15+Females!N16+Females!N17+Females!N18+Females!N19)/1000 -> 1228.994244 | C6: =(Males!N15+Males!N16+Males!N17+Males!N18+Males!N19)/1000 -> 1970.3538 | D6: =(All!N15+All!N16+All!N17+All!N18+All!N19)/1000 -> 3199.348045 | F6: =(Females!X15+Females!X16+Females!X17+Females!X18+Females!X19)/1000 -> 1516.196842 | G6: =(Males!X15+Males!X16+Males!X17+Males!X18+Males!X19)/1000 -> 2107.745764 | H6: =(All!X15+All!X16+All!X17+All!X18+All!X19)/1000 -> 3623.942608 | J6: =(Females!AH15+Females!AH16+Females!AH17+Females!AH18+Females!AH19)/1000 -> 1858.155319 | K6: =(Males!AH15+Males!AH16+Males!AH17+Males!AH18+Males!AH19)/1000 -> 2271.954152 | L6: =(All!AH15+All!AH16+All!AH17+All!AH18+All!AH19)/1000 -> 4130.109472
A7: Administrative and Secretarial | B7: =(Females!N20+Females!N21)/1000 -> 2891.127622 | C7: =(Males!N20+Males!N21)/1000 -> 685.318529 | D7: =(All!N20+All!N21)/1000 -> 3576.446151 | F7: =(Females!X20+Females!X21)/1000 -> 2524.986249 | G7: =(Males!X20+Males!X21)/1000 -> 638.277621 | H7: =(All!X20+All!X21)/1000 -> 3163.26387 | J7: =(Females!AH20+Females!AH21)/1000 -> 2100.194394 | K7: =(Males!AH20+Males!AH21)/1000 -> 636.899835 | L7: =(All!AH20+All!AH21)/1000 -> 2737.094228
A8: Skilled Trades Occupations | B8: =(Females!N22+Females!N23+Females!N24+Females!N25)/1000 -> 423.071814 | C8: =(Males!N22+Males!N23+Males!N24+Males!N25)/1000 -> 2689.145588 | D8: =(All!N22+All!N23+All!N24+All!N25)/1000 -> 3112.217405 | F8: =(Females!X22+Females!X23+Females!X24+Females!X25)/1000 -> 396.252006 | G8: =(Males!X22+Males!X23+Males!X24+Males!X25)/1000 -> 2521.121742 | H8: =(All!X22+All!X23+All!X24+All!X25)/1000 -> 2917.373749 | J8: =(Females!AH22+Females!AH23+Females!AH24+Females!AH25)/1000 -> 317.799704 | K8: =(Males!AH22+Males!AH23+Males!AH24+Males!AH25)/1000 -> 2344.06605 | L8: =(All!AH22+All!AH23+All!AH24+All!AH25)/1000 -> 2661.865752
A9: Personal Service Occupations | B9: =(Females!N26+Females!N27)/1000 -> 1557.920111 | C9: =(Males!N26+Males!N27)/1000 -> 345.962749 | D9: =(All!N26+All!N27)/1000 -> 1903.882861 | F9: =(Females!X26+Females!X27)/1000 -> 1998.843269 | G9: =(Males!X26+Males!X27)/1000 -> 437.02229 | H9: =(All!X26+All!X27)/1000 -> 2435.865559 | J9: =(Females!AH26+Females!AH27)/1000 -> 2447.587349 | K9: =(Males!AH26+Males!AH27)/1000 -> 542.506781 | L9: =(All!AH26+All!AH27)/1000 -> 2990.094131
A10: Sales and Customer Service Occupations | B10: =(Females!N28+Females!N29)/1000 -> 1491.550012 | C10: =(Males!N28+Males!N29)/1000 -> 679.852305 | D10: =(All!N28+All!N29)/1000 -> 2171.402318 | F10: =(Females!X28+Females!X29)/1000 -> 1466.254086 | G10: =(Males!X28+Males!X29)/1000 -> 811.541783 | H10: =(All!X28+All!X29)/1000 -> 2277.795868 | J10: =(Females!AH28+Females!AH29)/1000 -> 1278.848797 | K10: =(Males!AH28+Males!AH29)/1000 -> 950.584436 | L10: =(All!AH28+All!AH29)/1000 -> 2229.433233
A11: Machine and Transport Operatives | B11: =(Females!N30+Females!N31)/1000 -> 275.390622 | C11: =(Males!N30+Males!N31)/1000 -> 1534.727325 | D11: =(All!N30+All!N31)/1000 -> 1810.117947 | F11: =(Females!X30+Females!X31)/1000 -> 174.323129 | G11: =(Males!X30+Males!X31)/1000 -> 1496.223782 | H11: =(All!X30+All!X31)/1000 -> 1670.546911 | J11: =(Females!AH30+Females!AH31)/1000 -> 129.391183 | K11: =(Males!AH30+Males!AH31)/1000 -> 1368.044108 | L11: =(All!AH30+All!AH31)/1000 -> 1497.435291
A12: Elementary Occupations | B12: =(Females!N32+Females!N33)/1000 -> 1443.08425 | C12: =(Males!N32+Males!N33)/1000 -> 1535.211031 | D12: =(All!N32+All!N33)/1000 -> 2978.295281 | F12: =(Females!X32+Females!X33)/1000 -> 1147.556833 | G12: =(Males!X32+Males!X33)/1000 -> 1642.30773 | H12: =(All!X32+All!X33)/1000 -> 2789.864562 | J12: =(Females!AH32+Females!AH33)/1000 -> 1014.523537 | K12: =(Males!AH32+Males!AH33)/1000 -> 1724.840889 | L12: =(All!AH32+All!AH33)/1000 -> 2739.364426
A13: Total | B13: =Females!N8/1000 -> 11937.122 | C13: =Males!N8/1000 -> 13420.551 | D13: =All!N8/1000 -> 25357.673 | F13: =Females!X8/1000 -> 12781.037 | G13: =Males!X8/1000 -> 14332.435 | H13: =All!X8/1000 -> 27113.472 | J13: =Females!AH8/1000 -> 13677.848 | K13: =Males!AH8/1000 -> 15048.262 | L13: =All!AH8/1000 -> 28726.11
A16: Table 6.4.1.4 | B16: =B$1 -> Occupational composition by gender, 2002-2012-2022 | L16: =$L$1 -> thousands
A17: =All!A35 -> Agriculture, etc | B17: =B$2 -> 2002 | F17: =F$2 -> 2012 | J17: =J$2 -> 2022
B18: Female | C18: Male | D18: Total | F18: Female | G18: Male | H18: Total | J18: Female | K18: Male | L18: Total
A19: Managers and Senior Officials | B19: =(Females!N37+Females!N38)/1000 -> 3.987497 | C19: =(Males!N37+Males!N38)/1000 -> 14.048303 | D19: =(All!N37+All!N38)/1000 -> 18.0358 | F19: =(Females!X37+Females!X38)/1000 -> 4.757197 | G19: =(Males!X37+Males!X38)/1000 -> 18.106728 | H19: =(All!X37+All!X38)/1000 -> 22.863925 | J19: =(Females!AH37+Females!AH38)/1000 -> 5.486864 | K19: =(Males!AH37+Males!AH38)/1000 -> 14.023907 | L19: =(All!AH37+All!AH38)/1000 -> 19.510771
A20: Professional occupations | B20: =(Females!N39+Females!N40+Females!N41+Females!N42)/1000 -> 2.883554 | C20: =(Males!N39+Males!N40+Males!N41+Males!N42)/1000 -> 9.887672 | D20: =(All!N39+All!N40+All!N41+All!N42)/1000 -> 12.771226 | F20: =(Females!X39+Females!X40+Females!X41+Females!X42)/1000 -> 4.643203 | G20: =(Males!X39+Males!X40+Males!X41+Males!X42)/1000 -> 9.382147 | H20: =(All!X39+All!X40+All!X41+All!X42)/1000 -> 14.02535 | J20: =(Females!AH39+Females!AH40+Females!AH41+Females!AH42)/1000 -> 6.691546 | K20: =(Males!AH39+Males!AH40+Males!AH41+Males!AH42)/1000 -> 9.549434 | L20: =(All!AH39+All!AH40+All!AH41+All!AH42)/1000 -> 16.24098
A21: Associate Professional and Technical | B21: =(Females!N43+Females!N44+Females!N45+Females!N46+Females!N47)/1000 -> 2.662037 | C21: =(Males!N43+Males!N44+Males!N45+Males!N46+Males!N47)/1000 -> 4.433562 | D21: =(All!N43+All!N44+All!N45+All!N46+All!N47)/1000 -> 7.0956 | F21: =(Females!X43+Females!X44+Females!X45+Females!X46+Females!X47)/1000 -> 3.606922 | G21: =(Males!X43+Males!X44+Males!X45+Males!X46+Males!X47)/1000 -> 5.909495 | H21: =(All!X43+All!X44+All!X45+All!X46+All!X47)/1000 -> 9.516417 | J21: =(Females!AH43+Females!AH44+Females!AH45+Females!AH46+Females!AH47)/1000 -> 4.642491 | K21: =(Males!AH43+Males!AH44+Males!AH45+Males!AH46+Males!AH47)/1000 -> 5.609129 | L21: =(All!AH43+All!AH44+All!AH45+All!AH46+All!AH47)/1000 -> 10.25162
A22: Administrative and Secretarial | B22: =(Females!N48+Females!N49)/1000 -> 13.466714 | C22: =(Males!N48+Males!N49)/1000 -> 2.077516 | D22: =(All!N48+All!N49)/1000 -> 15.54423 | F22: =(Females!X48+Females!X49)/1000 -> 14.113206 | G22: =(Males!X48+Males!X49)/1000 -> 2.429926 | H22: =(All!X48+All!X49)/1000 -> 16.543132 | J22: =(Females!AH48+Females!AH49)/1000 -> 11.062648 | K22: =(Males!AH48+Males!AH49)/1000 -> 1.859747 | L22: =(All!AH48+All!AH49)/1000 -> 12.922394
A23: Skilled Trades Occupations | B23: =(Females!N50+Females!N51+Females!N52+Females!N53)/1000 -> 19.780412 | C23: =(Males!N50+Males!N51+Males!N52+Males!N53)/1000 -> 80.617857 | D23: =(All!N50+All!N51+All!N52+All!N53)/1000 -> 100.398269 | F23: =(Females!X50+Females!X51+Females!X52+Females!X53)/1000 -> 43.156348 | G23: =(Males!X50+Males!X51+Males!X52+Males!X53)/1000 -> 130.741436 | H23: =(All!X50+All!X51+All!X52+All!X53)/1000 -> 173.897784 | J23: =(Females!AH50+Females!AH51+Females!AH52+Females!AH53)/1000 -> 37.206777 | K23: =(Males!AH50+Males!AH51+Males!AH52+Males!AH53)/1000 -> 93.826749 | L23: =(All!AH50+All!AH51+All!AH52+All!AH53)/1000 -> 131.033526
A24: Personal Service Occupations | B24: =(Females!N54+Females!N55)/1000 -> 10.093916 | C24: =(Males!N54+Males!N55)/1000 -> 2.79609 | D24: =(All!N54+All!N55)/1000 -> 12.890005 | F24: =(Females!X54+Females!X55)/1000 -> 7.655283 | G24: =(Males!X54+Males!X55)/1000 -> 3.949601 | H24: =(All!X54+All!X55)/1000 -> 11.604884 | J24: =(Females!AH54+Females!AH55)/1000 -> 9.132026 | K24: =(Males!AH54+Males!AH55)/1000 -> 4.239902 | L24: =(All!AH54+All!AH55)/1000 -> 13.371927
A25: Sales and Customer Service Occupations | B25: =(Females!N56+Females!N57)/1000 -> 2.224068 | C25: =(Males!N56+Males!N57)/1000 -> 1.551559 | D25: =(All!N56+All!N57)/1000 -> 3.775627 | F25: =(Females!X56+Females!X57)/1000 -> 2.179416 | G25: =(Males!X56+Males!X57)/1000 -> 1.70346 | H25: =(All!X56+All!X57)/1000 -> 3.882875 | J25: =(Females!AH56+Females!AH57)/1000 -> 1.879271 | K25: =(Males!AH56+Males!AH57)/1000 -> 1.258609 | L25: =(All!AH56+All!AH57)/1000 -> 3.13788
A26: Machine and Transport Operatives | B26: =(Females!N58+Females!N59)/1000 -> 1.266421 | C26: =(Males!N58+Males!N59)/1000 -> 14.249547 | D26: =(All!N58+All!N59)/1000 -> 15.515968 | F26: =(Females!X58+Females!X59)/1000 -> 1.432342 | G26: =(Males!X58+Males!X59)/1000 -> 10.704147 | H26: =(All!X58+All!X59)/1000 -> 12.136489 | J26: =(Females!AH58+Females!AH59)/1000 -> 0.644253 | K26: =(Males!AH58+Males!AH59)/1000 -> 7.109707 | L26: =(All!AH58+All!AH59)/1000 -> 7.753961
A27: Elementary Occupations | B27: =(Females!N60+Females!N61)/1000 -> 13.915381 | C27: =(Males!N60+Males!N61)/1000 -> 40.209893 | D27: =(All!N60+All!N61)/1000 -> 54.125274 | F27: =(Females!X60+Females!X61)/1000 -> 13.149083 | G27: =(Males!X60+Males!X61)/1000 -> 30.808061 | H27: =(All!X60+All!X61)/1000 -> 43.957143 | J27: =(Females!AH60+Females!AH61)/1000 -> 10.822125 | K27: =(Males!AH60+Males!AH61)/1000 -> 20.542815 | L27: =(All!AH60+All!AH61)/1000 -> 31.36494
A28: Total | B28: =Females!N36/1000 -> 70.28 | C28: =Males!N36/1000 -> 169.872 | D28: =All!N36/1000 -> 240.152 | F28: =Females!X36/1000 -> 94.693 | G28: =Males!X36/1000 -> 213.735 | H28: =All!X36/1000 -> 308.428 | J28: =Females!AH36/1000 -> 87.568 | K28: =Males!AH36/1000 -> 158.02 | L28: =All!AH36/1000 -> 245.588
A31: Table 6.4.1.4 | B31: =B$1 -> Occupational composition by gender, 2002-2012-2022 | L31: =$L$1 -> thousands
A32: =All!A63 -> Coal, oil & gas; Mining & related | B32: =B$2 -> 2002 | F32: =F$2 -> 2012 | J32: =J$2 -> 2022
B33: Female | C33: Male | D33: Total | F33: Female | G33: Male | H33: Total | J33: Female | K33: Male | L33: Total
A34: Managers and Senior Officials | B34: =(Females!N65+Females!N66)/1000 -> 0.383123 | C34: =(Males!N65+Males!N66)/1000 -> 3.04717 | D34: =(All!N65+All!N66)/1000 -> 3.430293 | F34: =(Females!X65+Females!X66)/1000 -> 0.443118 | G34: =(Males!X65+Males!X66)/1000 -> 4.032519 | H34: =(All!X65+All!X66)/1000 -> 4.475636 | J34: =(Females!AH65+Females!AH66)/1000 -> 0.487955 | K34: =(Males!AH65+Males!AH66)/1000 -> 3.965347 | L34: =(All!AH65+All!AH66)/1000 -> 4.453302
A35: Professional occupations | B35: =(Females!N67+Females!N68+Females!N69+Females!N70)/1000 -> 1.061575 | C35: =(Males!N67+Males!N68+Males!N69+Males!N70)/1000 -> 5.100536 | D35: =(All!N67+All!N68+All!N69+All!N70)/1000 -> 6.16211 | F35: =(Females!X67+Females!X68+Females!X69+Females!X70)/1000 -> 0.612054 | G35: =(Males!X67+Males!X68+Males!X69+Males!X70)/1000 -> 4.572995 | H35: =(All!X67+All!X68+All!X69+All!X70)/1000 -> 5.185049 | J35: =(Females!AH67+Females!AH68+Females!AH69+Females!AH70)/1000 -> 0.737574 | K35: =(Males!AH67+Males!AH68+Males!AH69+Males!AH70)/1000 -> 3.687629 | L35: =(All!AH67+All!AH68+All!AH69+All!AH70)/1000 -> 4.425204
A36: Associate Professional and Technical | B36: =(Females!N71+Females!N72+Females!N73+Females!N74+Females!N75)/1000 -> 0.95043 | C36: =(Males!N71+Males!N72+Males!N73+Males!N74+Males!N75)/1000 -> 4.942549 | D36: =(All!N71+All!N72+All!N73+All!N74+All!N75)/1000 -> 5.892979 | F36: =(Females!X71+Females!X72+Females!X73+Females!X74+Females!X75)/1000 -> 0.704638 | G36: =(Males!X71+Males!X72+Males!X73+Males!X74+Males!X75)/1000 -> 4.380476 | H36: =(All!X71+All!X72+All!X73+All!X74+All!X75)/1000 -> 5.085114 | J36: =(Females!AH71+Females!AH72+Females!AH73+Females!AH74+Females!AH75)/1000 -> 0.739424 | K36: =(Males!AH71+Males!AH72+Males!AH73+Males!AH74+Males!AH75)/1000 -> 3.757344 | L36: =(All!AH71+All!AH72+All!AH73+All!AH74+All!AH75)/1000 -> 4.496768
A37: Administrative and Secretarial | B37: =(Females!N76+Females!N77)/1000 -> 2.557382 | C37: =(Males!N76+Males!N77)/1000 -> 1.07287 | D37: =(All!N76+All!N77)/1000 -> 3.630252 | F37: =(Females!X76+Females!X77)/1000 -> 1.286417 | G37: =(Males!X76+Males!X77)/1000 -> 0.848166 | H37: =(All!X76+All!X77)/1000 -> 2.134582 | J37: =(Females!AH76+Females!AH77)/1000 -> 0.860353 | K37: =(Males!AH76+Males!AH77)/1000 -> 0.831292 | L37: =(All!AH76+All!AH77)/1000 -> 1.691645
A38: Skilled Trades Occupations | B38: =(Females!N78+Females!N79+Females!N80+Females!N81)/1000 -> 0.285439 | C38: =(Males!N78+Males!N79+Males!N80+Males!N81)/1000 -> 8.198687 | D38: =(All!N78+All!N79+All!N80+All!N81)/1000 -> 8.484126 | F38: =(Females!X78+Females!X79+Females!X80+Females!X81)/1000 -> 0.114736 | G38: =(Males!X78+Males!X79+Males!X80+Males!X81)/1000 -> 7.278879 | H38: =(All!X78+All!X79+All!X80+All!X81)/1000 -> 7.393616 | J38: =(Females!AH78+Females!AH79+Females!AH80+Females!AH81)/1000 -> 0.100067 | K38: =(Males!AH78+Males!AH79+Males!AH80+Males!AH81)/1000 -> 5.729293 | L38: =(All!AH78+All!AH79+All!AH80+All!AH81)/1000 -> 5.829359
A39: Personal Service Occupations | B39: =(Females!N82+Females!N83)/1000 -> 0.48551 | C39: =(Males!N82+Males!N83)/1000 -> 0.342271 | D39: =(All!N82+All!N83)/1000 -> 0.82778 | F39: =(Females!X82+Females!X83)/1000 -> 0.264054 | G39: =(Males!X82+Males!X83)/1000 -> 0.386738 | H39: =(All!X82+All!X83)/1000 -> 0.650792 | J39: =(Females!AH82+Females!AH83)/1000 -> 0.311332 | K39: =(Males!AH82+Males!AH83)/1000 -> 0.417341 | L39: =(All!AH82+All!AH83)/1000 -> 0.728672
A40: Sales and Customer Service Occupations | B40: =(Females!N84+Females!N85)/1000 -> 0.480874 | C40: =(Males!N84+Males!N85)/1000 -> 0.480607 | D40: =(All!N84+All!N85)/1000 -> 0.961481 | F40: =(Females!X84+Females!X85)/1000 -> 0.260088 | G40: =(Males!X84+Males!X85)/1000 -> 0.568626 | H40: =(All!X84+All!X85)/1000 -> 0.828714 | J40: =(Females!AH84+Females!AH85)/1000 -> 0.20692 | K40: =(Males!AH84+Males!AH85)/1000 -> 0.531105 | L40: =(All!AH84+All!AH85)/1000 -> 0.738024
A41: Machine and Transport Operatives | B41: =(Females!N86+Females!N87)/1000 -> 0.211059 | C41: =(Males!N86+Males!N87)/1000 -> 11.181966 | D41: =(All!N86+All!N87)/1000 -> 11.393027 | F41: =(Females!X86+Females!X87)/1000 -> 0.444992 | G41: =(Males!X86+Males!X87)/1000 -> 6.406226 | H41: =(All!X86+All!X87)/1000 -> 6.851218 | J41: =(Females!AH86+Females!AH87)/1000 -> 0.371024 | K41: =(Males!AH86+Males!AH87)/1000 -> 5.021288 | L41: =(All!AH86+All!AH87)/1000 -> 5.392312
A42: Elementary Occupations | B42: =(Females!N88+Females!N89)/1000 -> 0.319609 | C42: =(Males!N88+Males!N89)/1000 -> 1.058343 | D42: =(All!N88+All!N89)/1000 -> 1.377952 | F42: =(Females!X88+Females!X89)/1000 -> 0.146904 | G42: =(Males!X88+Males!X89)/1000 -> 1.474376 | H42: =(All!X88+All!X89)/1000 -> 1.621279 | J42: =(Females!AH88+Females!AH89)/1000 -> 0.115352 | K42: =(Males!AH88+Males!AH89)/1000 -> 1.558362 | L42: =(All!AH88+All!AH89)/1000 -> 1.673714
A43: Total | B43: =Females!N64/1000 -> 6.735 | C43: =Males!N64/1000 -> 35.425 | D43: =All!N64/1000 -> 42.16 | F43: =Females!X64/1000 -> 4.277 | G43: =Males!X64/1000 -> 29.949 | H43: =All!X64/1000 -> 34.226 | J43: =Females!AH64/1000 -> 3.93 | K43: =Males!AH64/1000 -> 25.499 | L43: =All!AH64/1000 -> 29.429
A46: Table 6.4.1.4 | B46: =B$1 -> Occupational composition by gender, 2002-2012-2022 | L46: =$L$1 -> thousands
A47: =All!A91 -> Food products | B47: =B$2 -> 2002 | F47: =F$2 -> 2012 | J47: =J$2 -> 2022
B48: Female | C48: Male | D48: Total | F48: Female | G48: Male | H48: Total | J48: Female | K48: Male | L48: Total
A49: Managers and Senior Officials | B49: =(Females!N93+Females!N94)/1000 -> 3.293167 | C49: =(Males!N93+Males!N94)/1000 -> 19.310923 | D49: =(All!N93+All!N94)/1000 -> 22.60409 | F49: =(Females!X93+Females!X94)/1000 -> 8.241273 | G49: =(Males!X93+Males!X94)/1000 -> 16.545804 | H49: =(All!X93+All!X94)/1000 -> 24.787076 | J49: =(Females!AH93+Females!AH94)/1000 -> 11.38812 | K49: =(Males!AH93+Males!AH94)/1000 -> 18.962463 | L49: =(All!AH93+All!AH94)/1000 -> 30.350583
A50: Professional occupations | B50: =(Females!N95+Females!N96+Females!N97+Females!N98)/1000 -> 7.04379 | C50: =(Males!N95+Males!N96+Males!N97+Males!N98)/1000 -> 13.046883 | D50: =(All!N95+All!N96+All!N97+All!N98)/1000 -> 20.090673 | F50: =(Females!X95+Females!X96+Females!X97+Females!X98)/1000 -> 6.815159 | G50: =(Males!X95+Males!X96+Males!X97+Males!X98)/1000 -> 10.004111 | H50: =(All!X95+All!X96+All!X97+All!X98)/1000 -> 16.81927 | J50: =(Females!AH95+Females!AH96+Females!AH97+Females!AH98)/1000 -> 9.669811 | K50: =(Males!AH95+Males!AH96+Males!AH97+Males!AH98)/1000 -> 11.142182 | L50: =(All!AH95+All!AH96+All!AH97+All!AH98)/1000 -> 20.811994
A51: Associate Professional and Technical | B51: =(Females!N99+Females!N100+Females!N101+Females!N102+Females!N103)/1000 -> 12.101123 | C51: =(Males!N99+Males!N100+Males!N101+Males!N102+Males!N103)/1000 -> 18.518098 | D51: =(All!N99+All!N100+All!N101+All!N102+All!N103)/1000 -> 30.619219 | F51: =(Females!X99+Females!X100+Females!X101+Females!X102+Females!X103)/1000 -> 12.847237 | G51: =(Males!X99+Males!X100+Males!X101+Males!X102+Males!X103)/1000 -> 18.265558 | H51: =(All!X99+All!X100+All!X101+All!X102+All!X103)/1000 -> 31.112794 | J51: =(Females!AH99+Females!AH100+Females!AH101+Females!AH102+Females!AH103)/1000 -> 15.595414 | K51: =(Males!AH99+Males!AH100+Males!AH101+Males!AH102+Males!AH103)/1000 -> 19.586646 | L51: =(All!AH99+All!AH100+All!AH101+All!AH102+All!AH103)/1000 -> 35.18206
A52: Administrative and Secretarial | B52: =(Females!N104+Females!N105)/1000 -> 17.174183 | C52: =(Males!N104+Males!N105)/1000 -> 5.333747 | D52: =(All!N104+All!N105)/1000 -> 22.50793 | F52: =(Females!X104+Females!X105)/1000 -> 14.949972 | G52: =(Males!X104+Males!X105)/1000 -> 7.553479 | H52: =(All!X104+All!X105)/1000 -> 22.503451 | J52: =(Females!AH104+Females!AH105)/1000 -> 15.33677 | K52: =(Males!AH104+Males!AH105)/1000 -> 7.319531 | L52: =(All!AH104+All!AH105)/1000 -> 22.656302
A53: Skilled Trades Occupations | B53: =(Females!N106+Females!N107+Females!N108+Females!N109)/1000 -> 9.422229 | C53: =(Males!N106+Males!N107+Males!N108+Males!N109)/1000 -> 51.446191 | D53: =(All!N106+All!N107+All!N108+All!N109)/1000 -> 60.86842 | F53: =(Females!X106+Females!X107+Females!X108+Females!X109)/1000 -> 11.643084 | G53: =(Males!X106+Males!X107+Males!X108+Males!X109)/1000 -> 33.48671 | H53: =(All!X106+All!X107+All!X108+All!X109)/1000 -> 45.129795 | J53: =(Females!AH106+Females!AH107+Females!AH108+Females!AH109)/1000 -> 6.710746 | K53: =(Males!AH106+Males!AH107+Males!AH108+Males!AH109)/1000 -> 26.887665 | L53: =(All!AH106+All!AH107+All!AH108+All!AH109)/1000 -> 33.598411
A54: Personal Service Occupations | B54: =(Females!N110+Females!N111)/1000 -> 0.673794 | C54: =(Males!N110+Males!N111)/1000 -> 0.889657 | D54: =(All!N110+All!N111)/1000 -> 1.563451 | F54: =(Females!X110+Females!X111)/1000 -> 0.793541 | G54: =(Males!X110+Males!X111)/1000 -> 1.055873 | H54: =(All!X110+All!X111)/1000 -> 1.849412 | J54: =(Females!AH110+Females!AH111)/1000 -> 1.183465 | K54: =(Males!AH110+Males!AH111)/1000 -> 1.235337 | L54: =(All!AH110+All!AH111)/1000 -> 2.418802
A55: Sales and Customer Service Occupations | B55: =(Females!N112+Females!N113)/1000 -> 6.762301 | C55: =(Males!N112+Males!N113)/1000 -> 3.939751 | D55: =(All!N112+All!N113)/1000 -> 10.702052 | F55: =(Females!X112+Females!X113)/1000 -> 6.474764 | G55: =(Males!X112+Males!X113)/1000 -> 5.315424 | H55: =(All!X112+All!X113)/1000 -> 11.790188 | J55: =(Females!AH112+Females!AH113)/1000 -> 6.507183 | K55: =(Males!AH112+Males!AH113)/1000 -> 5.9116 | L55: =(All!AH112+All!AH113)/1000 -> 12.418782
A56: Machine and Transport Operatives | B56: =(Females!N114+Females!N115)/1000 -> 39.356118 | C56: =(Males!N114+Males!N115)/1000 -> 85.977092 | D56: =(All!N114+All!N115)/1000 -> 125.33321 | F56: =(Females!X114+Females!X115)/1000 -> 23.185926 | G56: =(Males!X114+Males!X115)/1000 -> 73.453769 | H56: =(All!X114+All!X115)/1000 -> 96.639697 | J56: =(Females!AH114+Females!AH115)/1000 -> 11.965274 | K56: =(Males!AH114+Males!AH115)/1000 -> 61.512726 | L56: =(All!AH114+All!AH115)/1000 -> 73.478
A57: Elementary Occupations | B57: =(Females!N116+Females!N117)/1000 -> 21.105296 | C57: =(Males!N116+Males!N117)/1000 -> 31.25166 | D57: =(All!N116+All!N117)/1000 -> 52.356955 | F57: =(Females!X116+Females!X117)/1000 -> 26.803046 | G57: =(Males!X116+Males!X117)/1000 -> 28.661274 | H57: =(All!X116+All!X117)/1000 -> 55.464319 | J57: =(Females!AH116+Females!AH117)/1000 -> 28.306217 | K57: =(Males!AH116+Males!AH117)/1000 -> 27.029849 | L57: =(All!AH116+All!AH117)/1000 -> 55.336067
A58: Total | B58: =Females!N92/1000 -> 116.932 | C58: =Males!N92/1000 -> 229.714 | D58: =All!N92/1000 -> 346.646 | F58: =Females!X92/1000 -> 111.754 | G58: =Males!X92/1000 -> 194.342 | H58: =All!X92/1000 -> 306.096 | J58: =Females!AH92/1000 -> 106.663 | K58: =Males!AH92/1000 -> 179.588 | L58: =All!AH92/1000 -> 286.251
A61: Table 6.4.1.4 | B61: =B$1 -> Occupational composition by gender, 2002-2012-2022 | L61: =$L$1 -> thousands
A62: =All!A119 -> Beverages & tobacco | B62: =B$2 -> 2002 | F62: =F$2 -> 2012 | J62: =J$2 -> 2022
B63: Female | C63: Male | D63: Total | F63: Female | G63: Male | H63: Total | J63: Female | K63: Male | L63: Total
A64: Managers and Senior Officials | B64: =(Females!N121+Females!N122)/1000 -> 0.970172 | C64: =(Males!N121+Males!N122)/1000 -> 3.54706 | D64: =(All!N121+All!N122)/1000 -> 4.517231 | F64: =(Females!X121+Females!X122)/1000 -> 1.039507 | G64: =(Males!X121+Males!X122)/1000 -> 2.627517 | H64: =(All!X121+All!X122)/1000 -> 3.667024 | J64: =(Females!AH121+Females!AH122)/1000 -> 1.151469 | K64: =(Males!AH121+Males!AH122)/1000 -> 3.039606 | L64: =(All!AH121+All!AH122)/1000 -> 4.191076
A65: Professional occupations | B65: =(Females!N123+Females!N124+Females!N125+Females!N126)/1000 -> 1.189865 | C65: =(Males!N123+Males!N124+Males!N125+Males!N126)/1000 -> 3.086827 | D65: =(All!N123+All!N124+All!N125+All!N126)/1000 -> 4.27669 | F65: =(Females!X123+Females!X124+Females!X125+Females!X126)/1000 -> 0.916018 | G65: =(Males!X123+Males!X124+Males!X125+Males!X126)/1000 -> 2.702742 | H65: =(All!X123+All!X124+All!X125+All!X126)/1000 -> 3.61876 | J65: =(Females!AH123+Females!AH124+Females!AH125+Females!AH126)/1000 -> 1.068407 | K65: =(Males!AH123+Males!AH124+Males!AH125+Males!AH126)/1000 -> 2.998609 | L65: =(All!AH123+All!AH124+All!AH125+All!AH126)/1000 -> 4.067016
A66: Associate Professional and Technical | B66: =(Females!N127+Females!N128+Females!N129+Females!N130+Females!N131)/1000 -> 2.236661 | C66: =(Males!N127+Males!N128+Males!N129+Males!N130+Males!N131)/1000 -> 3.56119 | D66: =(All!N127+All!N128+All!N129+All!N130+All!N131)/1000 -> 5.797852 | F66: =(Females!X127+Females!X128+Females!X129+Females!X130+Females!X131)/1000 -> 1.479095 | G66: =(Males!X127+Males!X128+Males!X129+Males!X130+Males!X131)/1000 -> 3.375896 | H66: =(All!X127+All!X128+All!X129+All!X130+All!X131)/1000 -> 4.854991 | J66: =(Females!AH127+Females!AH128+Females!AH129+Females!AH130+Females!AH131)/1000 -> 1.548613 | K66: =(Males!AH127+Males!AH128+Males!AH129+Males!AH130+Males!AH131)/1000 -> 3.63021 | L66: =(All!AH127+All!AH128+All!AH129+All!AH130+All!AH131)/1000 -> 5.178823
A67: Administrative and Secretarial | B67: =(Females!N132+Females!N133)/1000 -> 3.499775 | C67: =(Males!N132+Males!N133)/1000 -> 1.179102 | D67: =(All!N132+All!N133)/1000 -> 4.678877 | F67: =(Females!X132+Females!X133)/1000 -> 1.845729 | G67: =(Males!X132+Males!X133)/1000 -> 0.433206 | H67: =(All!X132+All!X133)/1000 -> 2.278935 | J67: =(Females!AH132+Females!AH133)/1000 -> 1.257485 | K67: =(Males!AH132+Males!AH133)/1000 -> 0.476391 | L67: =(All!AH132+All!AH133)/1000 -> 1.733877
A68: Skilled Trades Occupations | B68: =(Females!N134+Females!N135+Females!N136+Females!N137)/1000 -> 0.679123 | C68: =(Males!N134+Males!N135+Males!N136+Males!N137)/1000 -> 3.137159 | D68: =(All!N134+All!N135+All!N136+All!N137)/1000 -> 3.816281 | F68: =(Females!X134+Females!X135+Females!X136+Females!X137)/1000 -> 0.436098 | G68: =(Males!X134+Males!X135+Males!X136+Males!X137)/1000 -> 2.117903 | H68: =(All!X134+All!X135+All!X136+All!X137)/1000 -> 2.554002 | J68: =(Females!AH134+Females!AH135+Females!AH136+Females!AH137)/1000 -> 0.331047 | K68: =(Males!AH134+Males!AH135+Males!AH136+Males!AH137)/1000 -> 1.859946 | L68: =(All!AH134+All!AH135+All!AH136+All!AH137)/1000 -> 2.190992
A69: Personal Service Occupations | B69: =(Females!N138+Females!N139)/1000 -> 0.714941 | C69: =(Males!N138+Males!N139)/1000 -> 0.186519 | D69: =(All!N138+All!N139)/1000 -> 0.901459 | F69: =(Females!X138+Females!X139)/1000 -> 0.396727 | G69: =(Males!X138+Males!X139)/1000 -> 0.178919 | H69: =(All!X138+All!X139)/1000 -> 0.575647 | J69: =(Females!AH138+Females!AH139)/1000 -> 0.523342 | K69: =(Males!AH138+Males!AH139)/1000 -> 0.246485 | L69: =(All!AH138+All!AH139)/1000 -> 0.769827
A70: Sales and Customer Service Occupations | B70: =(Females!N140+Females!N141)/1000 -> 0.929865 | C70: =(Males!N140+Males!N141)/1000 -> 0.702632 | D70: =(All!N140+All!N141)/1000 -> 1.632497 | F70: =(Females!X140+Females!X141)/1000 -> 0.612064 | G70: =(Males!X140+Males!X141)/1000 -> 0.56533 | H70: =(All!X140+All!X141)/1000 -> 1.177394 | J70: =(Females!AH140+Females!AH141)/1000 -> 0.515512 | K70: =(Males!AH140+Males!AH141)/1000 -> 0.614607 | L70: =(All!AH140+All!AH141)/1000 -> 1.13012
A71: Machine and Transport Operatives | B71: =(Females!N142+Females!N143)/1000 -> 1.080369 | C71: =(Males!N142+Males!N143)/1000 -> 7.820923 | D71: =(All!N142+All!N143)/1000 -> 8.901293 | F71: =(Females!X142+Females!X143)/1000 -> 0.368044 | G71: =(Males!X142+Males!X143)/1000 -> 5.168994 | H71: =(All!X142+All!X143)/1000 -> 5.537038 | J71: =(Females!AH142+Females!AH143)/1000 -> 0.187054 | K71: =(Males!AH142+Males!AH143)/1000 -> 4.591341 | L71: =(All!AH142+All!AH143)/1000 -> 4.778396
A72: Elementary Occupations | B72: =(Females!N144+Females!N145)/1000 -> 1.64623 | C72: =(Males!N144+Males!N145)/1000 -> 2.034588 | D72: =(All!N144+All!N145)/1000 -> 3.680818 | F72: =(Females!X144+Females!X145)/1000 -> 0.646716 | G72: =(Males!X144+Males!X145)/1000 -> 2.022494 | H72: =(All!X144+All!X145)/1000 -> 2.66921 | J72: =(Females!AH144+Females!AH145)/1000 -> 0.498071 | K72: =(Males!AH144+Males!AH145)/1000 -> 1.731804 | L72: =(All!AH144+All!AH145)/1000 -> 2.229874
A73: Total | B73: =Females!N120/1000 -> 12.947 | C73: =Males!N120/1000 -> 25.256 | D73: =All!N120/1000 -> 38.203 | F73: =Females!X120/1000 -> 7.74 | G73: =Males!X120/1000 -> 19.193 | H73: =All!X120/1000 -> 26.933 | J73: =Females!AH120/1000 -> 7.081 | K73: =Males!AH120/1000 -> 19.189 | L73: =All!AH120/1000 -> 26.27
A76: Table 6.4.1.4 | B76: =B$1 -> Occupational composition by gender, 2002-2012-2022 | L76: =$L$1 -> thousands
A77: =All!A147 -> Textiles | B77: =B$2 -> 2002 | F77: =F$2 -> 2012 | J77: =J$2 -> 2022
B78: Female | C78: Male | D78: Total | F78: Female | G78: Male | H78: Total | J78: Female | K78: Male | L78: Total
A79: Managers and Senior Officials | B79: =(Females!N149+Females!N150)/1000 -> 2.277368 | C79: =(Males!N149+Males!N150)/1000 -> 6.571112 | D79: =(All!N149+All!N150)/1000 -> 8.848481 | F79: =(Females!X149+Females!X150)/1000 -> 1.541035 | G79: =(Males!X149+Males!X150)/1000 -> 5.440755 | H79: =(All!X149+All!X150)/1000 -> 6.98179 | J79: =(Females!AH149+Females!AH150)/1000 -> 1.615313 | K79: =(Males!AH149+Males!AH150)/1000 -> 4.049533 | L79: =(All!AH149+All!AH150)/1000 -> 5.664846
A80: Professional occupations | B80: =(Females!N151+Females!N152+Females!N153+Females!N154)/1000 -> 2.028781 | C80: =(Males!N151+Males!N152+Males!N153+Males!N154)/1000 -> 3.657699 | D80: =(All!N151+All!N152+All!N153+All!N154)/1000 -> 5.686479 | F80: =(Females!X151+Females!X152+Females!X153+Females!X154)/1000 -> 1.37791 | G80: =(Males!X151+Males!X152+Males!X153+Males!X154)/1000 -> 2.96266 | H80: =(All!X151+All!X152+All!X153+All!X154)/1000 -> 4.340569 | J80: =(Females!AH151+Females!AH152+Females!AH153+Females!AH154)/1000 -> 1.481732 | K80: =(Males!AH151+Males!AH152+Males!AH153+Males!AH154)/1000 -> 2.234864 | L80: =(All!AH151+All!AH152+All!AH153+All!AH154)/1000 -> 3.716596
A81: Associate Professional and Technical | B81: =(Females!N155+Females!N156+Females!N157+Females!N158+Females!N159)/1000 -> 4.468226 | C81: =(Males!N155+Males!N156+Males!N157+Males!N158+Males!N159)/1000 -> 5.363592 | D81: =(All!N155+All!N156+All!N157+All!N158+All!N159)/1000 -> 9.831818 | F81: =(Females!X155+Females!X156+Females!X157+Females!X158+Females!X159)/1000 -> 2.509948 | G81: =(Males!X155+Males!X156+Males!X157+Males!X158+Males!X159)/1000 -> 3.606478 | H81: =(All!X155+All!X156+All!X157+All!X158+All!X159)/1000 -> 6.116425 | J81: =(Females!AH155+Females!AH156+Females!AH157+Females!AH158+Females!AH159)/1000 -> 2.374814 | K81: =(Males!AH155+Males!AH156+Males!AH157+Males!AH158+Males!AH159)/1000 -> 2.586336 | L81: =(All!AH155+All!AH156+All!AH157+All!AH158+All!AH159)/1000 -> 4.961148
A82: Administrative and Secretarial | B82: =(Females!N160+Females!N161)/1000 -> 7.584497 | C82: =(Males!N160+Males!N161)/1000 -> 1.437281 | D82: =(All!N160+All!N161)/1000 -> 9.021778 | F82: =(Females!X160+Females!X161)/1000 -> 3.240409 | G82: =(Males!X160+Males!X161)/1000 -> 1.405281 | H82: =(All!X160+All!X161)/1000 -> 4.64569 | J82: =(Females!AH160+Females!AH161)/1000 -> 2.435781 | K82: =(Males!AH160+Males!AH161)/1000 -> 0.947485 | L82: =(All!AH160+All!AH161)/1000 -> 3.383266
A83: Skilled Trades Occupations | B83: =(Females!N162+Females!N163+Females!N164+Females!N165)/1000 -> 7.541549 | C83: =(Males!N162+Males!N163+Males!N164+Males!N165)/1000 -> 10.172625 | D83: =(All!N162+All!N163+All!N164+All!N165)/1000 -> 17.714173 | F83: =(Females!X162+Females!X163+Females!X164+Females!X165)/1000 -> 3.333635 | G83: =(Males!X162+Males!X163+Males!X164+Males!X165)/1000 -> 7.271429 | H83: =(All!X162+All!X163+All!X164+All!X165)/1000 -> 10.605064 | J83: =(Females!AH162+Females!AH163+Females!AH164+Females!AH165)/1000 -> 1.440482 | K83: =(Males!AH162+Males!AH163+Males!AH164+Males!AH165)/1000 -> 3.795107 | L83: =(All!AH162+All!AH163+All!AH164+All!AH165)/1000 -> 5.235591
A84: Personal Service Occupations | B84: =(Females!N166+Females!N167)/1000 -> 0.996519 | C84: =(Males!N166+Males!N167)/1000 -> 0.132877 | D84: =(All!N166+All!N167)/1000 -> 1.129395 | F84: =(Females!X166+Females!X167)/1000 -> 0.803911 | G84: =(Males!X166+Males!X167)/1000 -> 0.116983 | H84: =(All!X166+All!X167)/1000 -> 0.920894 | J84: =(Females!AH166+Females!AH167)/1000 -> 0.819921 | K84: =(Males!AH166+Males!AH167)/1000 -> 0.095985 | L84: =(All!AH166+All!AH167)/1000 -> 0.915907
A85: Sales and Customer Service Occupations | B85: =(Females!N168+Females!N169)/1000 -> 2.585708 | C85: =(Males!N168+Males!N169)/1000 -> 1.374727 | D85: =(All!N168+All!N169)/1000 -> 3.960435 | F85: =(Females!X168+Females!X169)/1000 -> 1.390917 | G85: =(Males!X168+Males!X169)/1000 -> 1.11772 | H85: =(All!X168+All!X169)/1000 -> 2.508637 | J85: =(Females!AH168+Females!AH169)/1000 -> 1.011524 | K85: =(Males!AH168+Males!AH169)/1000 -> 0.781456 | L85: =(All!AH168+All!AH169)/1000 -> 1.79298
A86: Machine and Transport Operatives | B86: =(Females!N170+Females!N171)/1000 -> 16.731237 | C86: =(Males!N170+Males!N171)/1000 -> 17.048052 | D86: =(All!N170+All!N171)/1000 -> 33.779289 | F86: =(Females!X170+Females!X171)/1000 -> 5.650166 | G86: =(Males!X170+Males!X171)/1000 -> 9.276766 | H86: =(All!X170+All!X171)/1000 -> 14.926933 | J86: =(Females!AH170+Females!AH171)/1000 -> 2.230103 | K86: =(Males!AH170+Males!AH171)/1000 -> 5.138588 | L86: =(All!AH170+All!AH171)/1000 -> 7.36869
A87: Elementary Occupations | B87: =(Females!N172+Females!N173)/1000 -> 4.604115 | C87: =(Males!N172+Males!N173)/1000 -> 4.831036 | D87: =(All!N172+All!N173)/1000 -> 9.435151 | F87: =(Females!X172+Females!X173)/1000 -> 1.421069 | G87: =(Males!X172+Males!X173)/1000 -> 3.506927 | H87: =(All!X172+All!X173)/1000 -> 4.927998 | J87: =(Females!AH172+Females!AH173)/1000 -> 1.08033 | K87: =(Males!AH172+Males!AH173)/1000 -> 2.162647 | L87: =(All!AH172+All!AH173)/1000 -> 3.242976
A88: Total | B88: =Females!N148/1000 -> 48.818 | C88: =Males!N148/1000 -> 50.589 | D88: =All!N148/1000 -> 99.407 | F88: =Females!X148/1000 -> 21.269 | G88: =Males!X148/1000 -> 34.705 | H88: =All!X148/1000 -> 55.974 | J88: =Females!AH148/1000 -> 14.49 | K88: =Males!AH148/1000 -> 21.792 | L88: =All!AH148/1000 -> 36.282
A91: Table 6.4.1.4 | B91: =B$1 -> Occupational composition by gender, 2002-2012-2022 | L91: =$L$1 -> thousands
A92: =All!A175 -> Wearing apparel; Leather, etc | B92: =B$2 -> 2002 | F92: =F$2 -> 2012 | J92: =J$2 -> 2022
B93: Female | C93: Male | D93: Total | F93: Female | G93: Male | H93: Total | J93: Female | K93: Male | L93: Total
A94: Managers and Senior Officials | B94: =(Females!N177+Females!N178)/1000 -> 2.419749 | C94: =(Males!N177+Males!N178)/1000 -> 6.697718 | D94: =(All!N177+All!N178)/1000 -> 9.117467 | F94: =(Females!X177+Females!X178)/1000 -> 2.312636 | G94: =(Males!X177+Males!X178)/1000 -> 1.501094 | H94: =(All!X177+All!X178)/1000 -> 3.813731 | J94: =(Females!AH177+Females!AH178)/1000 -> 2.072232 | K94: =(Males!AH177+Males!AH178)/1000 -> 1.350518 | L94: =(All!AH177+All!AH178)/1000 -> 3.42275
A95: Professional occupations | B95: =(Females!N179+Females!N180+Females!N181+Females!N182)/1000 -> 2.754096 | C95: =(Males!N179+Males!N180+Males!N181+Males!N182)/1000 -> 4.057782 | D95: =(All!N179+All!N180+All!N181+All!N182)/1000 -> 6.811879 | F95: =(Females!X179+Females!X180+Females!X181+Females!X182)/1000 -> 2.202097 | G95: =(Males!X179+Males!X180+Males!X181+Males!X182)/1000 -> 1.135745 | H95: =(All!X179+All!X180+All!X181+All!X182)/1000 -> 3.337842 | J95: =(Females!AH179+Females!AH180+Females!AH181+Females!AH182)/1000 -> 2.696852 | K95: =(Males!AH179+Males!AH180+Males!AH181+Males!AH182)/1000 -> 1.027715 | L95: =(All!AH179+All!AH180+All!AH181+All!AH182)/1000 -> 3.724567
A96: Associate Professional and Technical | B96: =(Females!N183+Females!N184+Females!N185+Females!N186+Females!N187)/1000 -> 6.064411 | C96: =(Males!N183+Males!N184+Males!N185+Males!N186+Males!N187)/1000 -> 4.454416 | D96: =(All!N183+All!N184+All!N185+All!N186+All!N187)/1000 -> 10.518826 | F96: =(Females!X183+Females!X184+Females!X185+Females!X186+Females!X187)/1000 -> 4.600343 | G96: =(Males!X183+Males!X184+Males!X185+Males!X186+Males!X187)/1000 -> 1.235651 | H96: =(All!X183+All!X184+All!X185+All!X186+All!X187)/1000 -> 5.835995 | J96: =(Females!AH183+Females!AH184+Females!AH185+Females!AH186+Females!AH187)/1000 -> 3.702696 | K96: =(Males!AH183+Males!AH184+Males!AH185+Males!AH186+Males!AH187)/1000 -> 1.064106 | L96: =(All!AH183+All!AH184+All!AH185+All!AH186+All!AH187)/1000 -> 4.766801
A97: Administrative and Secretarial | B97: =(Females!N188+Females!N189)/1000 -> 6.488185 | C97: =(Males!N188+Males!N189)/1000 -> 1.585796 | D97: =(All!N188+All!N189)/1000 -> 8.073981 | F97: =(Females!X188+Females!X189)/1000 -> 3.956757 | G97: =(Males!X188+Males!X189)/1000 -> 0.448231 | H97: =(All!X188+All!X189)/1000 -> 4.404988 | J97: =(Females!AH188+Females!AH189)/1000 -> 2.85715 | K97: =(Males!AH188+Males!AH189)/1000 -> 0.352003 | L97: =(All!AH188+All!AH189)/1000 -> 3.209153
A98: Skilled Trades Occupations | B98: =(Females!N190+Females!N191+Females!N192+Females!N193)/1000 -> 9.754829 | C98: =(Males!N190+Males!N191+Males!N192+Males!N193)/1000 -> 7.75837 | D98: =(All!N190+All!N191+All!N192+All!N193)/1000 -> 17.513199 | F98: =(Females!X190+Females!X191+Females!X192+Females!X193)/1000 -> 6.154116 | G98: =(Males!X190+Males!X191+Males!X192+Males!X193)/1000 -> 2.556757 | H98: =(All!X190+All!X191+All!X192+All!X193)/1000 -> 8.710873 | J98: =(Females!AH190+Females!AH191+Females!AH192+Females!AH193)/1000 -> 2.250129 | K98: =(Males!AH190+Males!AH191+Males!AH192+Males!AH193)/1000 -> 1.56251 | L98: =(All!AH190+All!AH191+All!AH192+All!AH193)/1000 -> 3.812638
A99: Personal Service Occupations | B99: =(Females!N194+Females!N195)/1000 -> 1.263934 | C99: =(Males!N194+Males!N195)/1000 -> 0.31526 | D99: =(All!N194+All!N195)/1000 -> 1.579194 | F99: =(Females!X194+Females!X195)/1000 -> 0.821506 | G99: =(Males!X194+Males!X195)/1000 -> 0.157229 | H99: =(All!X194+All!X195)/1000 -> 0.978736 | J99: =(Females!AH194+Females!AH195)/1000 -> 1.432797 | K99: =(Males!AH194+Males!AH195)/1000 -> 0.161706 | L99: =(All!AH194+All!AH195)/1000 -> 1.594503
A100: Sales and Customer Service Occupations | B100: =(Females!N196+Females!N197)/1000 -> 2.014731 | C100: =(Males!N196+Males!N197)/1000 -> 0.965884 | D100: =(All!N196+All!N197)/1000 -> 2.980616 | F100: =(Females!X196+Females!X197)/1000 -> 1.557423 | G100: =(Males!X196+Males!X197)/1000 -> 0.370628 | H100: =(All!X196+All!X197)/1000 -> 1.92805 | J100: =(Females!AH196+Females!AH197)/1000 -> 1.192931 | K100: =(Males!AH196+Males!AH197)/1000 -> 0.318414 | L100: =(All!AH196+All!AH197)/1000 -> 1.511346
A101: Machine and Transport Operatives | B101: =(Females!N198+Females!N199)/1000 -> 24.08361 | C101: =(Males!N198+Males!N199)/1000 -> 12.619945 | D101: =(All!N198+All!N199)/1000 -> 36.703555 | F101: =(Females!X198+Females!X199)/1000 -> 5.194304 | G101: =(Males!X198+Males!X199)/1000 -> 2.801197 | H101: =(All!X198+All!X199)/1000 -> 7.995501 | J101: =(Females!AH198+Females!AH199)/1000 -> 1.246197 | K101: =(Males!AH198+Males!AH199)/1000 -> 1.956342 | L101: =(All!AH198+All!AH199)/1000 -> 3.20254
A102: Elementary Occupations | B102: =(Females!N200+Females!N201)/1000 -> 4.280456 | C102: =(Males!N200+Males!N201)/1000 -> 3.502827 | D102: =(All!N200+All!N201)/1000 -> 7.783284 | F102: =(Females!X200+Females!X201)/1000 -> 2.235815 | G102: =(Males!X200+Males!X201)/1000 -> 3.101469 | H102: =(All!X200+All!X201)/1000 -> 5.337283 | J102: =(Females!AH200+Females!AH201)/1000 -> 1.483017 | K102: =(Males!AH200+Males!AH201)/1000 -> 2.006685 | L102: =(All!AH200+All!AH201)/1000 -> 3.489702
A103: Total | B103: =Females!N176/1000 -> 59.124 | C103: =Males!N176/1000 -> 41.958 | D103: =All!N176/1000 -> 101.082 | F103: =Females!X176/1000 -> 29.035 | G103: =Males!X176/1000 -> 13.308 | H103: =All!X176/1000 -> 42.343 | J103: =Females!AH176/1000 -> 18.934 | K103: =Males!AH176/1000 -> 9.8 | L103: =All!AH176/1000 -> 28.734
A106: Table 6.4.1.4 | B106: =B$1 -> Occupational composition by gender, 2002-2012-2022 | L106: =$L$1 -> thousands
A107: =All!A203 -> Wood, etc | B107: =B$2 -> 2002 | F107: =F$2 -> 2012 | J107: =J$2 -> 2022
B108: Female | C108: Male | D108: Total | F108: Female | G108: Male | H108: Total | J108: Female | K108: Male | L108: Total
A109: Managers and Senior Officials | B109: =(Females!N205+Females!N206)/1000 -> 0.635971 | C109: =(Males!N205+Males!N206)/1000 -> 5.055519 | D109: =(All!N205+All!N206)/1000 -> 5.69149 | F109: =(Females!X205+Females!X206)/1000 -> 1.256894 | G109: =(Males!X205+Males!X206)/1000 -> 3.857179 | H109: =(All!X205+All!X206)/1000 -> 5.114072 | J109: =(Females!AH205+Females!AH206)/1000 -> 1.637539 | K109: =(Males!AH205+Males!AH206)/1000 -> 4.583524 | L109: =(All!AH205+All!AH206)/1000 -> 6.221063
A110: Professional occupations | B110: =(Females!N207+Females!N208+Females!N209+Females!N210)/1000 -> 0.91545 | C110: =(Males!N207+Males!N208+Males!N209+Males!N210)/1000 -> 2.193372 | D110: =(All!N207+All!N208+All!N209+All!N210)/1000 -> 3.108822 | F110: =(Females!X207+Females!X208+Females!X209+Females!X210)/1000 -> 0.680414 | G110: =(Males!X207+Males!X208+Males!X209+Males!X210)/1000 -> 1.801506 | H110: =(All!X207+All!X208+All!X209+All!X210)/1000 -> 2.48192 | J110: =(Females!AH207+Females!AH208+Females!AH209+Females!AH210)/1000 -> 0.998054 | K110: =(Males!AH207+Males!AH208+Males!AH209+Males!AH210)/1000 -> 2.137851 | L110: =(All!AH207+All!AH208+All!AH209+All!AH210)/1000 -> 3.135906
A111: Associate Professional and Technical | B111: =(Females!N211+Females!N212+Females!N213+Females!N214+Females!N215)/1000 -> 1.295869 | C111: =(Males!N211+Males!N212+Males!N213+Males!N214+Males!N215)/1000 -> 3.102701 | D111: =(All!N211+All!N212+All!N213+All!N214+All!N215)/1000 -> 4.398571 | F111: =(Females!X211+Females!X212+Females!X213+Females!X214+Females!X215)/1000 -> 0.842698 | G111: =(Males!X211+Males!X212+Males!X213+Males!X214+Males!X215)/1000 -> 3.961738 | H111: =(All!X211+All!X212+All!X213+All!X214+All!X215)/1000 -> 4.804436 | J111: =(Females!AH211+Females!AH212+Females!AH213+Females!AH214+Females!AH215)/1000 -> 1.098545 | K111: =(Males!AH211+Males!AH212+Males!AH213+Males!AH214+Males!AH215)/1000 -> 4.671796 | L111: =(All!AH211+All!AH212+All!AH213+All!AH214+All!AH215)/1000 -> 5.770341
A112: Administrative and Secretarial | B112: =(Females!N216+Females!N217)/1000 -> 7.675363 | C112: =(Males!N216+Males!N217)/1000 -> 0.922396 | D112: =(All!N216+All!N217)/1000 -> 8.597758 | F112: =(Females!X216+Females!X217)/1000 -> 2.027282 | G112: =(Males!X216+Males!X217)/1000 -> 0.751442 | H112: =(All!X216+All!X217)/1000 -> 2.778724 | J112: =(Females!AH216+Females!AH217)/1000 -> 1.884616 | K112: =(Males!AH216+Males!AH217)/1000 -> 0.816876 | L112: =(All!AH216+All!AH217)/1000 -> 2.701492
A113: Skilled Trades Occupations | B113: =(Females!N218+Females!N219+Females!N220+Females!N221)/1000 -> 2.518659 | C113: =(Males!N218+Males!N219+Males!N220+Males!N221)/1000 -> 23.503723 | D113: =(All!N218+All!N219+All!N220+All!N221)/1000 -> 26.022381 | F113: =(Females!X218+Females!X219+Females!X220+Females!X221)/1000 -> 1.18035 | G113: =(Males!X218+Males!X219+Males!X220+Males!X221)/1000 -> 20.610231 | H113: =(All!X218+All!X219+All!X220+All!X221)/1000 -> 21.790582 | J113: =(Females!AH218+Females!AH219+Females!AH220+Females!AH221)/1000 -> 1.148095 | K113: =(Males!AH218+Males!AH219+Males!AH220+Males!AH221)/1000 -> 20.580815 | L113: =(All!AH218+All!AH219+All!AH220+All!AH221)/1000 -> 21.728908
A114: Personal Service Occupations | B114: =(Females!N222+Females!N223)/1000 -> 0.53556 | C114: =(Males!N222+Males!N223)/1000 -> 0.18922 | D114: =(All!N222+All!N223)/1000 -> 0.724781 | F114: =(Females!X222+Females!X223)/1000 -> 0.286702 | G114: =(Males!X222+Males!X223)/1000 -> 0.321412 | H114: =(All!X222+All!X223)/1000 -> 0.608115 | J114: =(Females!AH222+Females!AH223)/1000 -> 0.508641 | K114: =(Males!AH222+Males!AH223)/1000 -> 0.535545 | L114: =(All!AH222+All!AH223)/1000 -> 1.044186
A115: Sales and Customer Service Occupations | B115: =(Females!N224+Females!N225)/1000 -> 0.942163 | C115: =(Males!N224+Males!N225)/1000 -> 0.750772 | D115: =(All!N224+All!N225)/1000 -> 1.692935 | F115: =(Females!X224+Females!X225)/1000 -> 0.409284 | G115: =(Males!X224+Males!X225)/1000 -> 0.694028 | H115: =(All!X224+All!X225)/1000 -> 1.103313 | J115: =(Females!AH224+Females!AH225)/1000 -> 0.418788 | K115: =(Males!AH224+Males!AH225)/1000 -> 0.794826 | L115: =(All!AH224+All!AH225)/1000 -> 1.213615
A116: Machine and Transport Operatives | B116: =(Females!N226+Females!N227)/1000 -> 1.227096 | C116: =(Males!N226+Males!N227)/1000 -> 14.274404 | D116: =(All!N226+All!N227)/1000 -> 15.5015 | F116: =(Females!X226+Females!X227)/1000 -> 0.300258 | G116: =(Males!X226+Males!X227)/1000 -> 12.936814 | H116: =(All!X226+All!X227)/1000 -> 13.237072 | J116: =(Females!AH226+Females!AH227)/1000 -> 0.17501 | K116: =(Males!AH226+Males!AH227)/1000 -> 12.346334 | L116: =(All!AH226+All!AH227)/1000 -> 12.521344
A117: Elementary Occupations | B117: =(Females!N228+Females!N229)/1000 -> 1.153868 | C117: =(Males!N228+Males!N229)/1000 -> 5.724894 | D117: =(All!N228+All!N229)/1000 -> 6.878762 | F117: =(Females!X228+Females!X229)/1000 -> 0.645115 | G117: =(Males!X228+Males!X229)/1000 -> 4.40165 | H117: =(All!X228+All!X229)/1000 -> 5.046766 | J117: =(Females!AH228+Females!AH229)/1000 -> 0.657713 | K117: =(Males!AH228+Males!AH229)/1000 -> 4.443434 | L117: =(All!AH228+All!AH229)/1000 -> 5.101147
A118: Total | B118: =Females!N204/1000 -> 16.9 | C118: =Males!N204/1000 -> 55.717 | D118: =All!N204/1000 -> 72.617 | F118: =Females!X204/1000 -> 7.629 | G118: =Males!X204/1000 -> 49.336 | H118: =All!X204/1000 -> 56.965 | J118: =Females!AH204/1000 -> 8.527 | K118: =Males!AH204/1000 -> 50.911 | L118: =All!AH204/1000 -> 59.438
A121: Table 6.4.1.4 | B121: =B$1 -> Occupational composition by gender, 2002-2012-2022 | L121: =$L$1 -> thousands
A122: =All!A231 -> Paper, etc | B122: =B$2 -> 2002 | F122: =F$2 -> 2012 | J122: =J$2 -> 2022
B123: Female | C123: Male | D123: Total | F123: Female | G123: Male | H123: Total | J123: Female | K123: Male | L123: Total
A124: Managers and Senior Officials | B124: =(Females!N233+Females!N234)/1000 -> 1.438254 | C124: =(Males!N233+Males!N234)/1000 -> 7.785257 | D124: =(All!N233+All!N234)/1000 -> 9.22351 | F124: =(Females!X233+Females!X234)/1000 -> 0.976979 | G124: =(Males!X233+Males!X234)/1000 -> 5.471986 | H124: =(All!X233+All!X234)/1000 -> 6.448965 | J124: =(Females!AH233+Females!AH234)/1000 -> 0.883996 | K124: =(Males!AH233+Males!AH234)/1000 -> 4.565924 | L124: =(All!AH233+All!AH234)/1000 -> 5.449918
A125: Professional occupations | B125: =(Females!N235+Females!N236+Females!N237+Females!N238)/1000 -> 1.396973 | C125: =(Males!N235+Males!N236+Males!N237+Males!N238)/1000 -> 5.073599 | D125: =(All!N235+All!N236+All!N237+All!N238)/1000 -> 6.470573 | F125: =(Females!X235+Females!X236+Females!X237+Females!X238)/1000 -> 0.895318 | G125: =(Males!X235+Males!X236+Males!X237+Males!X238)/1000 -> 3.429968 | H125: =(All!X235+All!X236+All!X237+All!X238)/1000 -> 4.325284 | J125: =(Females!AH235+Females!AH236+Females!AH237+Females!AH238)/1000 -> 0.804394 | K125: =(Males!AH235+Males!AH236+Males!AH237+Males!AH238)/1000 -> 2.837721 | L125: =(All!AH235+All!AH236+All!AH237+All!AH238)/1000 -> 3.642115
... 134 more rows

Sheet Table6.4.1.5
A1: Table 6.4.1.5 | B1: =CONCATENATE("Occupational composition by gender, ",B2,"-",G2,"-",L2) -> Occupational composition by gender, 2002-2012-2022 | O1: thousands
A2: =All!A7 -> All industries | B2: =All!N7 -> 2002 | G2: =All!X7 -> 2012 | L2: =All!AH7 -> 2022
B3: Full-time | C3: Part-time | D3: Self-empl | E3: Total | G3: =B3 -> Full-time | H3: =C3 -> Part-time | I3: =D3 -> Self-empl | J3: =E3 -> Total | L3: =B3 -> Full-time | M3: =C3 -> Part-time | N3: =D3 -> Self-empl | O3: =E3 -> Total
A4: Managers and Senior Officials | B4: =(FT!N9+FT!N10)/1000 -> 1794.427412 | C4: =(PT!N9+PT!N10)/1000 -> 168.883363 | D4: =(SE!N9+SE!N10)/1000 -> 399.091139 | E4: =(All!N9+All!N10)/1000 -> 2362.401915 | G4: =(FT!X9+FT!X10)/1000 -> 2137.114335 | H4: =(PT!X9+PT!X10)/1000 -> 281.996579 | I4: =(SE!X9+SE!X10)/1000 -> 469.549069 | J4: =(All!X9+All!X10)/1000 -> 2888.659983 | L4: =(FT!AH9+FT!AH10)/1000 -> 2542.945353 | M4: =(PT!AH9+PT!AH10)/1000 -> 401.478592 | N4: =(SE!AH9+SE!AH10)/1000 -> 456.405265 | O4: =(All!AH9+All!AH10)/1000 -> 3400.82921
A5: Professional occupations | B5: =(FT!N11+FT!N12+FT!N13+FT!N14)/1000 -> 2873.041958 | C5: =(PT!N11+PT!N12+PT!N13+PT!N14)/1000 -> 810.064568 | D5: =(SE!N11+SE!N12+SE!N13+SE!N14)/1000 -> 560.454551 | E5: =(All!N11+All!N12+All!N13+All!N14)/1000 -> 4243.561079 | G5: =(FT!X11+FT!X12+FT!X13+FT!X14)/1000 -> 3487.51842 | H5: =(PT!X11+PT!X12+PT!X13+PT!X14)/1000 -> 1091.341677 | I5: =(SE!X11+SE!X12+SE!X13+SE!X14)/1000 -> 767.298794 | J5: =(All!X11+All!X12+All!X13+All!X14)/1000 -> 5346.15889 | L5: =(FT!AH11+FT!AH12+FT!AH13+FT!AH14)/1000 -> 4062.404825 | M5: =(PT!AH11+PT!AH12+PT!AH13+PT!AH14)/1000 -> 1453.14049 | N5: =(SE!AH11+SE!AH12+SE!AH13+SE!AH14)/1000 -> 824.338941 | O5: =(All!AH11+All!AH12+All!AH13+All!AH14)/1000 -> 6339.884256
A6: Associate Professional and Technical | B6: =(FT!N15+FT!N16+FT!N17+FT!N18+FT!N19)/1000 -> 2356.936712 | C6: =(PT!N15+PT!N16+PT!N17+PT!N18+PT!N19)/1000 -> 447.324675 | D6: =(SE!N15+SE!N16+SE!N17+SE!N18+SE!N19)/1000 -> 395.086655 | E6: =(All!N15+All!N16+All!N17+All!N18+All!N19)/1000 -> 3199.348045 | G6: =(FT!X15+FT!X16+FT!X17+FT!X18+FT!X19)/1000 -> 2485.225058 | H6: =(PT!X15+PT!X16+PT!X17+PT!X18+PT!X19)/1000 -> 602.619572 | I6: =(SE!X15+SE!X16+SE!X17+SE!X18+SE!X19)/1000 -> 536.097977 | J6: =(All!X15+All!X16+All!X17+All!X18+All!X19)/1000 -> 3623.942608 | L6: =(FT!AH15+FT!AH16+FT!AH17+FT!AH18+FT!AH19)/1000 -> 2778.63751 | M6: =(PT!AH15+PT!AH16+PT!AH17+PT!AH18+PT!AH19)/1000 -> 773.97751 | N6: =(SE!AH15+SE!AH16+SE!AH17+SE!AH18+SE!AH19)/1000 -> 577.49445 | O6: =(All!AH15+All!AH16+All!AH17+All!AH18+All!AH19)/1000 -> 4130.109472
A7: Administrative and Secretarial | B7: =(FT!N20+FT!N21)/1000 -> 2123.89263 | C7: =(PT!N20+PT!N21)/1000 -> 1355.203303 | D7: =(SE!N20+SE!N21)/1000 -> 97.350218 | E7: =(All!N20+All!N21)/1000 -> 3576.446151 | G7: =(FT!X20+FT!X21)/1000 -> 1739.427872 | H7: =(PT!X20+PT!X21)/1000 -> 1293.104511 | I7: =(SE!X20+SE!X21)/1000 -> 130.731486 | J7: =(All!X20+All!X21)/1000 -> 3163.26387 | L7: =(FT!AH20+FT!AH21)/1000 -> 1516.060917 | M7: =(PT!AH20+PT!AH21)/1000 -> 1107.413368 | N7: =(SE!AH20+SE!AH21)/1000 -> 113.619942 | O7: =(All!AH20+All!AH21)/1000 -> 2737.094228
A8: Skilled Trades Occupations | B8: =(FT!N22+FT!N23+FT!N24+FT!N25)/1000 -> 2046.669308 | C8: =(PT!N22+PT!N23+PT!N24+PT!N25)/1000 -> 278.395658 | D8: =(SE!N22+SE!N23+SE!N24+SE!N25)/1000 -> 787.152436 | E8: =(All!N22+All!N23+All!N24+All!N25)/1000 -> 3112.217405 | G8: =(FT!X22+FT!X23+FT!X24+FT!X25)/1000 -> 1685.756908 | H8: =(PT!X22+PT!X23+PT!X24+PT!X25)/1000 -> 289.445818 | I8: =(SE!X22+SE!X23+SE!X24+SE!X25)/1000 -> 942.171022 | J8: =(All!X22+All!X23+All!X24+All!X25)/1000 -> 2917.373749 | L8: =(FT!AH22+FT!AH23+FT!AH24+FT!AH25)/1000 -> 1500.749567 | M8: =(PT!AH22+PT!AH23+PT!AH24+PT!AH25)/1000 -> 260.817943 | N8: =(SE!AH22+SE!AH23+SE!AH24+SE!AH25)/1000 -> 900.298242 | O8: =(All!AH22+All!AH23+All!AH24+All!AH25)/1000 -> 2661.865752
A9: Personal Service Occupations | B9: =(FT!N26+FT!N27)/1000 -> 789.304482 | C9: =(PT!N26+PT!N27)/1000 -> 959.357435 | D9: =(SE!N26+SE!N27)/1000 -> 155.220943 | E9: =(All!N26+All!N27)/1000 -> 1903.882861 | G9: =(FT!X26+FT!X27)/1000 -> 1003.576351 | H9: =(PT!X26+PT!X27)/1000 -> 1200.530237 | I9: =(SE!X26+SE!X27)/1000 -> 231.758971 | J9: =(All!X26+All!X27)/1000 -> 2435.865559 | L9: =(FT!AH26+FT!AH27)/1000 -> 1168.922205 | M9: =(PT!AH26+PT!AH27)/1000 -> 1572.528244 | N9: =(SE!AH26+SE!AH27)/1000 -> 248.643681 | O9: =(All!AH26+All!AH27)/1000 -> 2990.094131
A10: Sales and Customer Service Occupations | B10: =(FT!N28+FT!N29)/1000 -> 860.517384 | C10: =(PT!N28+PT!N29)/1000 -> 1240.853086 | D10: =(SE!N28+SE!N29)/1000 -> 70.031847 | E10: =(All!N28+All!N29)/1000 -> 2171.402318 | G10: =(FT!X28+FT!X29)/1000 -> 887.16824 | H10: =(PT!X28+PT!X29)/1000 -> 1303.657607 | I10: =(SE!X28+SE!X29)/1000 -> 86.97002 | J10: =(All!X28+All!X29)/1000 -> 2277.795868 | L10: =(FT!AH28+FT!AH29)/1000 -> 851.086496 | M10: =(PT!AH28+PT!AH29)/1000 -> 1307.976846 | N10: =(SE!AH28+SE!AH29)/1000 -> 70.369891 | O10: =(All!AH28+All!AH29)/1000 -> 2229.433233
A11: Machine and Transport Operatives | B11: =(FT!N30+FT!N31)/1000 -> 1388.483028 | C11: =(PT!N30+PT!N31)/1000 -> 209.186938 | D11: =(SE!N30+SE!N31)/1000 -> 212.447983 | E11: =(All!N30+All!N31)/1000 -> 1810.117947 | G11: =(FT!X30+FT!X31)/1000 -> 1197.111879 | H11: =(PT!X30+PT!X31)/1000 -> 202.013691 | I11: =(SE!X30+SE!X31)/1000 -> 271.421341 | J11: =(All!X30+All!X31)/1000 -> 1670.546911 | L11: =(FT!AH30+FT!AH31)/1000 -> 1005.543225 | M11: =(PT!AH30+PT!AH31)/1000 -> 229.96576 | N11: =(SE!AH30+SE!AH31)/1000 -> 261.926306 | O11: =(All!AH30+All!AH31)/1000 -> 1497.435291
A12: Elementary Occupations | B12: =(FT!N32+FT!N33)/1000 -> 1265.724085 | C12: =(PT!N32+PT!N33)/1000 -> 1613.438971 | D12: =(SE!N32+SE!N33)/1000 -> 99.132226 | E12: =(All!N32+All!N33)/1000 -> 2978.295281 | G12: =(FT!X32+FT!X33)/1000 -> 1256.794935 | H12: =(PT!X32+PT!X33)/1000 -> 1388.783309 | I12: =(SE!X32+SE!X33)/1000 -> 144.286318 | J12: =(All!X32+All!X33)/1000 -> 2789.864562 | L12: =(FT!AH32+FT!AH33)/1000 -> 1260.488901 | M12: =(PT!AH32+PT!AH33)/1000 -> 1330.693246 | N12: =(SE!AH32+SE!AH33)/1000 -> 148.182279 | O12: =(All!AH32+All!AH33)/1000 -> 2739.364426
A13: Total | B13: =FT!N8/1000 -> 15498.997 | C13: =PT!N8/1000 -> 7082.708 | D13: =SE!N8/1000 -> 2775.968 | E13: =All!N8/1000 -> 25357.673 | G13: =FT!X8/1000 -> 15879.694 | H13: =PT!X8/1000 -> 7653.493 | I13: =SE!X8/1000 -> 3580.285 | J13: =All!X8/1000 -> 27113.472 | L13: =FT!AH8/1000 -> 16686.839 | M13: =PT!AH8/1000 -> 8437.992 | N13: =SE!AH8/1000 -> 3601.279 | O13: =All!AH8/1000 -> 28726.11
A16: Table 6.4.1.5 | B16: =CONCATENATE("Occupational composition by gender, ",B17,"-",G17,"-",L17) -> Occupational composition by gender, 2002-2012-2022 | O16: thousands
A17: =All!A35 -> Agriculture, etc | B17: =B$2 -> 2002 | G17: =G$2 -> 2012 | L17: =L$2 -> 2022
B18: Full-time | C18: Part-time | D18: Self-empl | E18: Total | G18: =B18 -> Full-time | H18: =C18 -> Part-time | I18: =D18 -> Self-empl | J18: =E18 -> Total | L18: =B18 -> Full-time | M18: =C18 -> Part-time | N18: =D18 -> Self-empl | O18: =E18 -> Total
A19: Managers and Senior Officials | B19: =(FT!N37+FT!N38)/1000 -> 11.6171 | C19: =(PT!N37+PT!N38)/1000 -> 1.249445 | D19: =(SE!N37+SE!N38)/1000 -> 5.169255 | E19: =(All!N37+All!N38)/1000 -> 18.0358 | G19: =(FT!X37+FT!X38)/1000 -> 11.755877 | H19: =(PT!X37+PT!X38)/1000 -> 1.906051 | I19: =(SE!X37+SE!X38)/1000 -> 9.201997 | J19: =(All!X37+All!X38)/1000 -> 22.863925 | L19: =(FT!AH37+FT!AH38)/1000 -> 10.540955 | M19: =(PT!AH37+PT!AH38)/1000 -> 2.362152 | N19: =(SE!AH37+SE!AH38)/1000 -> 6.607665 | O19: =(All!AH37+All!AH38)/1000 -> 19.510771
A20: Professional occupations | B20: =(FT!N39+FT!N40+FT!N41+FT!N42)/1000 -> 9.025292 | C20: =(PT!N39+PT!N40+PT!N41+PT!N42)/1000 -> 1.004623 | D20: =(SE!N39+SE!N40+SE!N41+SE!N42)/1000 -> 2.741311 | E20: =(All!N39+All!N40+All!N41+All!N42)/1000 -> 12.771226 | G20: =(FT!X39+FT!X40+FT!X41+FT!X42)/1000 -> 7.032799 | H20: =(PT!X39+PT!X40+PT!X41+PT!X42)/1000 -> 1.984378 | I20: =(SE!X39+SE!X40+SE!X41+SE!X42)/1000 -> 5.008172 | J20: =(All!X39+All!X40+All!X41+All!X42)/1000 -> 14.02535 | L20: =(FT!AH39+FT!AH40+FT!AH41+FT!AH42)/1000 -> 7.882092 | M20: =(PT!AH39+PT!AH40+PT!AH41+PT!AH42)/1000 -> 2.96674 | N20: =(SE!AH39+SE!AH40+SE!AH41+SE!AH42)/1000 -> 5.392149 | O20: =(All!AH39+All!AH40+All!AH41+All!AH42)/1000 -> 16.24098
A21: Associate Professional and Technical | B21: =(FT!N43+FT!N44+FT!N45+FT!N46+FT!N47)/1000 -> 5.022404 | C21: =(PT!N43+PT!N44+PT!N45+PT!N46+PT!N47)/1000 -> 0.866806 | D21: =(SE!N43+SE!N44+SE!N45+SE!N46+SE!N47)/1000 -> 1.206388 | E21: =(All!N43+All!N44+All!N45+All!N46+All!N47)/1000 -> 7.0956 | G21: =(FT!X43+FT!X44+FT!X45+FT!X46+FT!X47)/1000 -> 5.489667 | H21: =(PT!X43+PT!X44+PT!X45+PT!X46+PT!X47)/1000 -> 1.470157 | I21: =(SE!X43+SE!X44+SE!X45+SE!X46+SE!X47)/1000 -> 2.556593 | J21: =(All!X43+All!X44+All!X45+All!X46+All!X47)/1000 -> 9.516417 | L21: =(FT!AH43+FT!AH44+FT!AH45+FT!AH46+FT!AH47)/1000 -> 5.456398 | M21: =(PT!AH43+PT!AH44+PT!AH45+PT!AH46+PT!AH47)/1000 -> 1.997614 | N21: =(SE!AH43+SE!AH44+SE!AH45+SE!AH46+SE!AH47)/1000 -> 2.797607 | O21: =(All!AH43+All!AH44+All!AH45+All!AH46+All!AH47)/1000 -> 10.25162
A22: Administrative and Secretarial | B22: =(FT!N48+FT!N49)/1000 -> 5.802993 | C22: =(PT!N48+PT!N49)/1000 -> 8.140888 | D22: =(SE!N48+SE!N49)/1000 -> 1.600348 | E22: =(All!N48+All!N49)/1000 -> 15.54423 | G22: =(FT!X48+FT!X49)/1000 -> 5.828326 | H22: =(PT!X48+PT!X49)/1000 -> 7.983791 | I22: =(SE!X48+SE!X49)/1000 -> 2.731015 | J22: =(All!X48+All!X49)/1000 -> 16.543132 | L22: =(FT!AH48+FT!AH49)/1000 -> 4.236685 | M22: =(PT!AH48+PT!AH49)/1000 -> 6.463628 | N22: =(SE!AH48+SE!AH49)/1000 -> 2.222081 | O22: =(All!AH48+All!AH49)/1000 -> 12.922394
A23: Skilled Trades Occupations | B23: =(FT!N50+FT!N51+FT!N52+FT!N53)/1000 -> 46.184366 | C23: =(PT!N50+PT!N51+PT!N52+PT!N53)/1000 -> 10.680048 | D23: =(SE!N50+SE!N51+SE!N52+SE!N53)/1000 -> 43.533854 | E23: =(All!N50+All!N51+All!N52+All!N53)/1000 -> 100.398269 | G23: =(FT!X50+FT!X51+FT!X52+FT!X53)/1000 -> 60.216903 | H23: =(PT!X50+PT!X51+PT!X52+PT!X53)/1000 -> 16.327558 | I23: =(SE!X50+SE!X51+SE!X52+SE!X53)/1000 -> 97.35332 | J23: =(All!X50+All!X51+All!X52+All!X53)/1000 -> 173.897784 | L23: =(FT!AH50+FT!AH51+FT!AH52+FT!AH53)/1000 -> 48.064326 | M23: =(PT!AH50+PT!AH51+PT!AH52+PT!AH53)/1000 -> 17.306894 | N23: =(SE!AH50+SE!AH51+SE!AH52+SE!AH53)/1000 -> 65.662306 | O23: =(All!AH50+All!AH51+All!AH52+All!AH53)/1000 -> 131.033526
A24: Personal Service Occupations | B24: =(FT!N54+FT!N55)/1000 -> 4.486193 | C24: =(PT!N54+PT!N55)/1000 -> 5.710215 | D24: =(SE!N54+SE!N55)/1000 -> 2.693599 | E24: =(All!N54+All!N55)/1000 -> 12.890005 | G24: =(FT!X54+FT!X55)/1000 -> 3.658307 | H24: =(PT!X54+PT!X55)/1000 -> 2.789894 | I24: =(SE!X54+SE!X55)/1000 -> 5.156682 | J24: =(All!X54+All!X55)/1000 -> 11.604884 | L24: =(FT!AH54+FT!AH55)/1000 -> 3.306308 | M24: =(PT!AH54+PT!AH55)/1000 -> 3.573326 | N24: =(SE!AH54+SE!AH55)/1000 -> 6.492293 | O24: =(All!AH54+All!AH55)/1000 -> 13.371927
A25: Sales and Customer Service Occupations | B25: =(FT!N56+FT!N57)/1000 -> 1.588917 | C25: =(PT!N56+PT!N57)/1000 -> 1.902881 | D25: =(SE!N56+SE!N57)/1000 -> 0.283828 | E25: =(All!N56+All!N57)/1000 -> 3.775627 | G25: =(FT!X56+FT!X57)/1000 -> 1.787547 | H25: =(PT!X56+PT!X57)/1000 -> 1.408862 | I25: =(SE!X56+SE!X57)/1000 -> 0.686467 | J25: =(All!X56+All!X57)/1000 -> 3.882875 | L25: =(FT!AH56+FT!AH57)/1000 -> 1.48414 | M25: =(PT!AH56+PT!AH57)/1000 -> 1.054817 | N25: =(SE!AH56+SE!AH57)/1000 -> 0.598924 | O25: =(All!AH56+All!AH57)/1000 -> 3.13788
A26: Machine and Transport Operatives | B26: =(FT!N58+FT!N59)/1000 -> 12.242095 | C26: =(PT!N58+PT!N59)/1000 -> 1.61959 | D26: =(SE!N58+SE!N59)/1000 -> 1.654282 | E26: =(All!N58+All!N59)/1000 -> 15.515968 | G26: =(FT!X58+FT!X59)/1000 -> 8.441976 | H26: =(PT!X58+PT!X59)/1000 -> 0.959601 | I26: =(SE!X58+SE!X59)/1000 -> 2.734912 | J26: =(All!X58+All!X59)/1000 -> 12.136489 | L26: =(FT!AH58+FT!AH59)/1000 -> 4.61356 | M26: =(PT!AH58+PT!AH59)/1000 -> 0.632073 | N26: =(SE!AH58+SE!AH59)/1000 -> 2.508328 | O26: =(All!AH58+All!AH59)/1000 -> 7.753961
A27: Elementary Occupations | B27: =(FT!N60+FT!N61)/1000 -> 33.404639 | C27: =(PT!N60+PT!N61)/1000 -> 13.220504 | D27: =(SE!N60+SE!N61)/1000 -> 7.500132 | E27: =(All!N60+All!N61)/1000 -> 54.125274 | G27: =(FT!X60+FT!X61)/1000 -> 23.334597 | H27: =(PT!X60+PT!X61)/1000 -> 5.291705 | I27: =(SE!X60+SE!X61)/1000 -> 15.330841 | J27: =(All!X60+All!X61)/1000 -> 43.957143 | L27: =(FT!AH60+FT!AH61)/1000 -> 13.740538 | M27: =(PT!AH60+PT!AH61)/1000 -> 3.897756 | N27: =(SE!AH60+SE!AH61)/1000 -> 13.726646 | O27: =(All!AH60+All!AH61)/1000 -> 31.36494
A28: Total | B28: =FT!N36/1000 -> 129.374 | C28: =PT!N36/1000 -> 44.395 | D28: =SE!N36/1000 -> 66.383 | E28: =All!N36/1000 -> 240.152 | G28: =FT!X36/1000 -> 127.546 | H28: =PT!X36/1000 -> 40.122 | I28: =SE!X36/1000 -> 140.76 | J28: =All!X36/1000 -> 308.428 | L28: =FT!AH36/1000 -> 99.325 | M28: =PT!AH36/1000 -> 40.255 | N28: =SE!AH36/1000 -> 106.008 | O28: =All!AH36/1000 -> 245.588
A31: Table 6.4.1.5 | B31: =CONCATENATE("Occupational composition by gender, ",B32,"-",G32,"-",L32) -> Occupational composition by gender, 2002-2012-2022 | O31: thousands
A32: =All!A63 -> Coal, oil & gas; Mining & related | B32: =B$2 -> 2002 | G32: =G$2 -> 2012 | L32: =L$2 -> 2022
B33: Full-time | C33: Part-time | D33: Self-empl | E33: Total | G33: =B33 -> Full-time | H33: =C33 -> Part-time | I33: =D33 -> Self-empl | J33: =E33 -> Total | L33: =B33 -> Full-time | M33: =C33 -> Part-time | N33: =D33 -> Self-empl | O33: =E33 -> Total
A34: Managers and Senior Officials | B34: =(FT!N65+FT!N66)/1000 -> 3.095532 | C34: =(PT!N65+PT!N66)/1000 -> 0.127038 | D34: =(SE!N65+SE!N66)/1000 -> 0.207723 | E34: =(All!N65+All!N66)/1000 -> 3.430293 | G34: =(FT!X65+FT!X66)/1000 -> 3.290886 | H34: =(PT!X65+PT!X66)/1000 -> 0.058054 | I34: =(SE!X65+SE!X66)/1000 -> 1.126698 | J34: =(All!X65+All!X66)/1000 -> 4.475636 | L34: =(FT!AH65+FT!AH66)/1000 -> 3.293615 | M34: =(PT!AH65+PT!AH66)/1000 -> 0.114827 | N34: =(SE!AH65+SE!AH66)/1000 -> 1.044861 | O34: =(All!AH65+All!AH66)/1000 -> 4.453302
A35: Professional occupations | B35: =(FT!N67+FT!N68+FT!N69+FT!N70)/1000 -> 4.490347 | C35: =(PT!N67+PT!N68+PT!N69+PT!N70)/1000 -> 0.296228 | D35: =(SE!N67+SE!N68+SE!N69+SE!N70)/1000 -> 1.375534 | E35: =(All!N67+All!N68+All!N69+All!N70)/1000 -> 6.16211 | G35: =(FT!X67+FT!X68+FT!X69+FT!X70)/1000 -> 3.523585 | H35: =(PT!X67+PT!X68+PT!X69+PT!X70)/1000 -> 0.168914 | I35: =(SE!X67+SE!X68+SE!X69+SE!X70)/1000 -> 1.49255 | J35: =(All!X67+All!X68+All!X69+All!X70)/1000 -> 5.185049 | L35: =(FT!AH67+FT!AH68+FT!AH69+FT!AH70)/1000 -> 3.246157 | M35: =(PT!AH67+PT!AH68+PT!AH69+PT!AH70)/1000 -> 0.194226 | N35: =(SE!AH67+SE!AH68+SE!AH69+SE!AH70)/1000 -> 0.98482 | O35: =(All!AH67+All!AH68+All!AH69+All!AH70)/1000 -> 4.425204
A36: Associate Professional and Technical | B36: =(FT!N71+FT!N72+FT!N73+FT!N74+FT!N75)/1000 -> 5.329128 | C36: =(PT!N71+PT!N72+PT!N73+PT!N74+PT!N75)/1000 -> 0.146097 | D36: =(SE!N71+SE!N72+SE!N73+SE!N74+SE!N75)/1000 -> 0.417754 | E36: =(All!N71+All!N72+All!N73+All!N74+All!N75)/1000 -> 5.892979 | G36: =(FT!X71+FT!X72+FT!X73+FT!X74+FT!X75)/1000 -> 3.516543 | H36: =(PT!X71+PT!X72+PT!X73+PT!X74+PT!X75)/1000 -> 0.082883 | I36: =(SE!X71+SE!X72+SE!X73+SE!X74+SE!X75)/1000 -> 1.485686 | J36: =(All!X71+All!X72+All!X73+All!X74+All!X75)/1000 -> 5.085114 | L36: =(FT!AH71+FT!AH72+FT!AH73+FT!AH74+FT!AH75)/1000 -> 3.256371 | M36: =(PT!AH71+PT!AH72+PT!AH73+PT!AH74+PT!AH75)/1000 -> 0.105999 | N36: =(SE!AH71+SE!AH72+SE!AH73+SE!AH74+SE!AH75)/1000 -> 1.134397 | O36: =(All!AH71+All!AH72+All!AH73+All!AH74+All!AH75)/1000 -> 4.496768
A37: Administrative and Secretarial | B37: =(FT!N76+FT!N77)/1000 -> 2.877902 | C37: =(PT!N76+PT!N77)/1000 -> 0.457439 | D37: =(SE!N76+SE!N77)/1000 -> 0.294912 | E37: =(All!N76+All!N77)/1000 -> 3.630252 | G37: =(FT!X76+FT!X77)/1000 -> 1.46637 | H37: =(PT!X76+PT!X77)/1000 -> 0.057782 | I37: =(SE!X76+SE!X77)/1000 -> 0.61043 | J37: =(All!X76+All!X77)/1000 -> 2.134582 | L37: =(FT!AH76+FT!AH77)/1000 -> 1.114869 | M37: =(PT!AH76+PT!AH77)/1000 -> 0.146469 | N37: =(SE!AH76+SE!AH77)/1000 -> 0.430306 | O37: =(All!AH76+All!AH77)/1000 -> 1.691645
A38: Skilled Trades Occupations | B38: =(FT!N78+FT!N79+FT!N80+FT!N81)/1000 -> 8.010644 | C38: =(PT!N78+PT!N79+PT!N80+PT!N81)/1000 -> 0.289482 | D38: =(SE!N78+SE!N79+SE!N80+SE!N81)/1000 -> 0.183998 | E38: =(All!N78+All!N79+All!N80+All!N81)/1000 -> 8.484126 | G38: =(FT!X78+FT!X79+FT!X80+FT!X81)/1000 -> 6.072819 | H38: =(PT!X78+PT!X79+PT!X80+PT!X81)/1000 -> 0.080458 | I38: =(SE!X78+SE!X79+SE!X80+SE!X81)/1000 -> 1.240338 | J38: =(All!X78+All!X79+All!X80+All!X81)/1000 -> 7.393616 | L38: =(FT!AH78+FT!AH79+FT!AH80+FT!AH81)/1000 -> 4.824114 | M38: =(PT!AH78+PT!AH79+PT!AH80+PT!AH81)/1000 -> 0.140432 | N38: =(SE!AH78+SE!AH79+SE!AH80+SE!AH81)/1000 -> 0.864813 | O38: =(All!AH78+All!AH79+All!AH80+All!AH81)/1000 -> 5.829359
A39: Personal Service Occupations | B39: =(FT!N82+FT!N83)/1000 -> 0.374274 | C39: =(PT!N82+PT!N83)/1000 -> 0.392215 | D39: =(SE!N82+SE!N83)/1000 -> 0.061292 | E39: =(All!N82+All!N83)/1000 -> 0.82778 | G39: =(FT!X82+FT!X83)/1000 -> 0.283305 | H39: =(PT!X82+PT!X83)/1000 -> 0.094088 | I39: =(SE!X82+SE!X83)/1000 -> 0.273398 | J39: =(All!X82+All!X83)/1000 -> 0.650792 | L39: =(FT!AH82+FT!AH83)/1000 -> 0.312653 | M39: =(PT!AH82+PT!AH83)/1000 -> 0.103296 | N39: =(SE!AH82+SE!AH83)/1000 -> 0.312724 | O39: =(All!AH82+All!AH83)/1000 -> 0.728672
A40: Sales and Customer Service Occupations | B40: =(FT!N84+FT!N85)/1000 -> 0.700845 | C40: =(PT!N84+PT!N85)/1000 -> 0.193011 | D40: =(SE!N84+SE!N85)/1000 -> 0.067625 | E40: =(All!N84+All!N85)/1000 -> 0.961481 | G40: =(FT!X84+FT!X85)/1000 -> 0.507877 | H40: =(PT!X84+PT!X85)/1000 -> 0.112735 | I40: =(SE!X84+SE!X85)/1000 -> 0.208102 | J40: =(All!X84+All!X85)/1000 -> 0.828714 | L40: =(FT!AH84+FT!AH85)/1000 -> 0.464117 | M40: =(PT!AH84+PT!AH85)/1000 -> 0.113437 | N40: =(SE!AH84+SE!AH85)/1000 -> 0.16047 | O40: =(All!AH84+All!AH85)/1000 -> 0.738024
A41: Machine and Transport Operatives | B41: =(FT!N86+FT!N87)/1000 -> 11.00727 | C41: =(PT!N86+PT!N87)/1000 -> 0.255572 | D41: =(SE!N86+SE!N87)/1000 -> 0.130184 | E41: =(All!N86+All!N87)/1000 -> 11.393027 | G41: =(FT!X86+FT!X87)/1000 -> 5.557268 | H41: =(PT!X86+PT!X87)/1000 -> 0.187896 | I41: =(SE!X86+SE!X87)/1000 -> 1.106052 | J41: =(All!X86+All!X87)/1000 -> 6.851218 | L41: =(FT!AH86+FT!AH87)/1000 -> 4.150904 | M41: =(PT!AH86+PT!AH87)/1000 -> 0.238683 | N41: =(SE!AH86+SE!AH87)/1000 -> 1.002725 | O41: =(All!AH86+All!AH87)/1000 -> 5.392312
A42: Elementary Occupations | B42: =(FT!N88+FT!N89)/1000 -> 1.041057 | C42: =(PT!N88+PT!N89)/1000 -> 0.263917 | D42: =(SE!N88+SE!N89)/1000 -> 0.072977 | E42: =(All!N88+All!N89)/1000 -> 1.377952 | G42: =(FT!X88+FT!X89)/1000 -> 0.608348 | H42: =(PT!X88+PT!X89)/1000 -> 0.165188 | I42: =(SE!X88+SE!X89)/1000 -> 0.847744 | J42: =(All!X88+All!X89)/1000 -> 1.621279 | L42: =(FT!AH88+FT!AH89)/1000 -> 0.530198 | M42: =(PT!AH88+PT!AH89)/1000 -> 0.123632 | N42: =(SE!AH88+SE!AH89)/1000 -> 1.019884 | O42: =(All!AH88+All!AH89)/1000 -> 1.673714
A43: Total | B43: =FT!N64/1000 -> 36.927 | C43: =PT!N64/1000 -> 2.421 | D43: =SE!N64/1000 -> 2.812 | E43: =All!N64/1000 -> 42.16 | G43: =FT!X64/1000 -> 24.827 | H43: =PT!X64/1000 -> 1.008 | I43: =SE!X64/1000 -> 8.391 | J43: =All!X64/1000 -> 34.226 | L43: =FT!AH64/1000 -> 21.193 | M43: =PT!AH64/1000 -> 1.281 | N43: =SE!AH64/1000 -> 6.955 | O43: =All!AH64/1000 -> 29.429
A46: Table 6.4.1.5 | B46: =CONCATENATE("Occupational composition by gender, ",B47,"-",G47,"-",L47) -> Occupational composition by gender, 2002-2012-2022 | O46: thousands
A47: =All!A91 -> Food products | B47: =B$2 -> 2002 | G47: =G$2 -> 2012 | L47: =L$2 -> 2022
B48: Full-time | C48: Part-time | D48: Self-empl | E48: Total | G48: =B48 -> Full-time | H48: =C48 -> Part-time | I48: =D48 -> Self-empl | J48: =E48 -> Total | L48: =B48 -> Full-time | M48: =C48 -> Part-time | N48: =D48 -> Self-empl | O48: =E48 -> Total
A49: Managers and Senior Officials | B49: =(FT!N93+FT!N94)/1000 -> 19.9563 | C49: =(PT!N93+PT!N94)/1000 -> 1.70066 | D49: =(SE!N93+SE!N94)/1000 -> 0.94713 | E49: =(All!N93+All!N94)/1000 -> 22.60409 | G49: =(FT!X93+FT!X94)/1000 -> 22.119137 | H49: =(PT!X93+PT!X94)/1000 -> 1.460096 | I49: =(SE!X93+SE!X94)/1000 -> 1.207844 | J49: =(All!X93+All!X94)/1000 -> 24.787076 | L49: =(FT!AH93+FT!AH94)/1000 -> 26.799502 | M49: =(PT!AH93+PT!AH94)/1000 -> 2.200067 | N49: =(SE!AH93+SE!AH94)/1000 -> 1.351015 | O49: =(All!AH93+All!AH94)/1000 -> 30.350583
A50: Professional occupations | B50: =(FT!N95+FT!N96+FT!N97+FT!N98)/1000 -> 18.302034 | C50: =(PT!N95+PT!N96+PT!N97+PT!N98)/1000 -> 1.168948 | D50: =(SE!N95+SE!N96+SE!N97+SE!N98)/1000 -> 0.61969 | E50: =(All!N95+All!N96+All!N97+All!N98)/1000 -> 20.090673 | G50: =(FT!X95+FT!X96+FT!X97+FT!X98)/1000 -> 14.756574 | H50: =(PT!X95+PT!X96+PT!X97+PT!X98)/1000 -> 0.917749 | I50: =(SE!X95+SE!X96+SE!X97+SE!X98)/1000 -> 1.144944 | J50: =(All!X95+All!X96+All!X97+All!X98)/1000 -> 16.81927 | L50: =(FT!AH95+FT!AH96+FT!AH97+FT!AH98)/1000 -> 17.895435 | M50: =(PT!AH95+PT!AH96+PT!AH97+PT!AH98)/1000 -> 1.42007 | N50: =(SE!AH95+SE!AH96+SE!AH97+SE!AH98)/1000 -> 1.496488 | O50: =(All!AH95+All!AH96+All!AH97+All!AH98)/1000 -> 20.811994
A51: Associate Professional and Technical | B51: =(FT!N99+FT!N100+FT!N101+FT!N102+FT!N103)/1000 -> 27.527693 | C51: =(PT!N99+PT!N100+PT!N101+PT!N102+PT!N103)/1000 -> 2.676353 | D51: =(SE!N99+SE!N100+SE!N101+SE!N102+SE!N103)/1000 -> 0.415173 | E51: =(All!N99+All!N100+All!N101+All!N102+All!N103)/1000 -> 30.619219 | G51: =(FT!X99+FT!X100+FT!X101+FT!X102+FT!X103)/1000 -> 28.148586 | H51: =(PT!X99+PT!X100+PT!X101+PT!X102+PT!X103)/1000 -> 2.266917 | I51: =(SE!X99+SE!X100+SE!X101+SE!X102+SE!X103)/1000 -> 0.697293 | J51: =(All!X99+All!X100+All!X101+All!X102+All!X103)/1000 -> 31.112794 | L51: =(FT!AH99+FT!AH100+FT!AH101+FT!AH102+FT!AH103)/1000 -> 31.471407 | M51: =(PT!AH99+PT!AH100+PT!AH101+PT!AH102+PT!AH103)/1000 -> 2.9566 | N51: =(SE!AH99+SE!AH100+SE!AH101+SE!AH102+SE!AH103)/1000 -> 0.754053 | O51: =(All!AH99+All!AH100+All!AH101+All!AH102+All!AH103)/1000 -> 35.18206
A52: Administrative and Secretarial | B52: =(FT!N104+FT!N105)/1000 -> 15.842037 | C52: =(PT!N104+PT!N105)/1000 -> 6.345607 | D52: =(SE!N104+SE!N105)/1000 -> 0.320286 | E52: =(All!N104+All!N105)/1000 -> 22.50793 | G52: =(FT!X104+FT!X105)/1000 -> 15.35817 | H52: =(PT!X104+PT!X105)/1000 -> 6.239666 | I52: =(SE!X104+SE!X105)/1000 -> 0.905615 | J52: =(All!X104+All!X105)/1000 -> 22.503451 | L52: =(FT!AH104+FT!AH105)/1000 -> 14.801217 | M52: =(PT!AH104+PT!AH105)/1000 -> 7.033315 | N52: =(SE!AH104+SE!AH105)/1000 -> 0.821769 | O52: =(All!AH104+All!AH105)/1000 -> 22.656302
A53: Skilled Trades Occupations | B53: =(FT!N106+FT!N107+FT!N108+FT!N109)/1000 -> 54.852815 | C53: =(PT!N106+PT!N107+PT!N108+PT!N109)/1000 -> 4.164151 | D53: =(SE!N106+SE!N107+SE!N108+SE!N109)/1000 -> 1.851453 | E53: =(All!N106+All!N107+All!N108+All!N109)/1000 -> 60.86842 | G53: =(FT!X106+FT!X107+FT!X108+FT!X109)/1000 -> 39.974026 | H53: =(PT!X106+PT!X107+PT!X108+PT!X109)/1000 -> 2.013949 | I53: =(SE!X106+SE!X107+SE!X108+SE!X109)/1000 -> 3.141819 | J53: =(All!X106+All!X107+All!X108+All!X109)/1000 -> 45.129795 | L53: =(FT!AH106+FT!AH107+FT!AH108+FT!AH109)/1000 -> 30.207204 | M53: =(PT!AH106+PT!AH107+PT!AH108+PT!AH109)/1000 -> 1.582338 | N53: =(SE!AH106+SE!AH107+SE!AH108+SE!AH109)/1000 -> 1.808869 | O53: =(All!AH106+All!AH107+All!AH108+All!AH109)/1000 -> 33.598411
A54: Personal Service Occupations | B54: =(FT!N110+FT!N111)/1000 -> 1.085387 | C54: =(PT!N110+PT!N111)/1000 -> 0.416297 | D54: =(SE!N110+SE!N111)/1000 -> 0.061766 | E54: =(All!N110+All!N111)/1000 -> 1.563451 | G54: =(FT!X110+FT!X111)/1000 -> 1.328926 | H54: =(PT!X110+PT!X111)/1000 -> 0.381589 | I54: =(SE!X110+SE!X111)/1000 -> 0.138898 | J54: =(All!X110+All!X111)/1000 -> 1.849412 | L54: =(FT!AH110+FT!AH111)/1000 -> 1.610614 | M54: =(PT!AH110+PT!AH111)/1000 -> 0.64277 | N54: =(SE!AH110+SE!AH111)/1000 -> 0.165419 | O54: =(All!AH110+All!AH111)/1000 -> 2.418802
A55: Sales and Customer Service Occupations | B55: =(FT!N112+FT!N113)/1000 -> 6.58892 | C55: =(PT!N112+PT!N113)/1000 -> 3.972096 | D55: =(SE!N112+SE!N113)/1000 -> 0.141037 | E55: =(All!N112+All!N113)/1000 -> 10.702052 | G55: =(FT!X112+FT!X113)/1000 -> 6.504475 | H55: =(PT!X112+PT!X113)/1000 -> 4.926656 | I55: =(SE!X112+SE!X113)/1000 -> 0.359056 | J55: =(All!X112+All!X113)/1000 -> 11.790188 | L55: =(FT!AH112+FT!AH113)/1000 -> 6.840347 | M55: =(PT!AH112+PT!AH113)/1000 -> 5.230385 | N55: =(SE!AH112+SE!AH113)/1000 -> 0.348052 | O55: =(All!AH112+All!AH113)/1000 -> 12.418782
A56: Machine and Transport Operatives | B56: =(FT!N114+FT!N115)/1000 -> 109.507399 | C56: =(PT!N114+PT!N115)/1000 -> 15.146908 | D56: =(SE!N114+SE!N115)/1000 -> 0.678903 | E56: =(All!N114+All!N115)/1000 -> 125.33321 | G56: =(FT!X114+FT!X115)/1000 -> 88.218389 | H56: =(PT!X114+PT!X115)/1000 -> 6.696468 | I56: =(SE!X114+SE!X115)/1000 -> 1.72484 | J56: =(All!X114+All!X115)/1000 -> 96.639697 | L56: =(FT!AH114+FT!AH115)/1000 -> 67.131432 | M56: =(PT!AH114+PT!AH115)/1000 -> 4.740078 | N56: =(SE!AH114+SE!AH115)/1000 -> 1.606491 | O56: =(All!AH114+All!AH115)/1000 -> 73.478
A57: Elementary Occupations | B57: =(FT!N116+FT!N117)/1000 -> 43.530417 | C57: =(PT!N116+PT!N117)/1000 -> 8.735977 | D57: =(SE!N116+SE!N117)/1000 -> 0.090561 | E57: =(All!N116+All!N117)/1000 -> 52.356955 | G57: =(FT!X116+FT!X117)/1000 -> 47.506716 | H57: =(PT!X116+PT!X117)/1000 -> 7.603911 | I57: =(SE!X116+SE!X117)/1000 -> 0.353693 | J57: =(All!X116+All!X117)/1000 -> 55.464319 | L57: =(FT!AH116+FT!AH117)/1000 -> 46.115842 | M57: =(PT!AH116+PT!AH117)/1000 -> 8.796378 | N57: =(SE!AH116+SE!AH117)/1000 -> 0.423845 | O57: =(All!AH116+All!AH117)/1000 -> 55.336067
A58: Total | B58: =FT!N92/1000 -> 297.193 | C58: =PT!N92/1000 -> 44.327 | D58: =SE!N92/1000 -> 5.126 | E58: =All!N92/1000 -> 346.646 | G58: =FT!X92/1000 -> 263.915 | H58: =PT!X92/1000 -> 32.507 | I58: =SE!X92/1000 -> 9.674 | J58: =All!X92/1000 -> 306.096 | L58: =FT!AH92/1000 -> 242.873 | M58: =PT!AH92/1000 -> 34.602 | N58: =SE!AH92/1000 -> 8.776 | O58: =All!AH92/1000 -> 286.251
A61: Table 6.4.1.5 | B61: =CONCATENATE("Occupational composition by gender, ",B62,"-",G62,"-",L62) -> Occupational composition by gender, 2002-2012-2022 | O61: thousands
A62: =All!A119 -> Beverages & tobacco | B62: =B$2 -> 2002 | G62: =G$2 -> 2012 | L62: =L$2 -> 2022
B63: Full-time | C63: Part-time | D63: Self-empl | E63: Total | G63: =B63 -> Full-time | H63: =C63 -> Part-time | I63: =D63 -> Self-empl | J63: =E63 -> Total | L63: =B63 -> Full-time | M63: =C63 -> Part-time | N63: =D63 -> Self-empl | O63: =E63 -> Total
A64: Managers and Senior Officials | B64: =(FT!N121+FT!N122)/1000 -> 4.277636 | C64: =(PT!N121+PT!N122)/1000 -> 0.186106 | D64: =(SE!N121+SE!N122)/1000 -> 0.05349 | E64: =(All!N121+All!N122)/1000 -> 4.517231 | G64: =(FT!X121+FT!X122)/1000 -> 3.48687 | H64: =(PT!X121+PT!X122)/1000 -> 0.128683 | I64: =(SE!X121+SE!X122)/1000 -> 0.051471 | J64: =(All!X121+All!X122)/1000 -> 3.667024 | L64: =(FT!AH121+FT!AH122)/1000 -> 3.933175 | M64: =(PT!AH121+PT!AH122)/1000 -> 0.199753 | N64: =(SE!AH121+SE!AH122)/1000 -> 0.058149 | O64: =(All!AH121+All!AH122)/1000 -> 4.191076
A65: Professional occupations | B65: =(FT!N123+FT!N124+FT!N125+FT!N126)/1000 -> 3.740637 | C65: =(PT!N123+PT!N124+PT!N125+PT!N126)/1000 -> 0.395224 | D65: =(SE!N123+SE!N124+SE!N125+SE!N126)/1000 -> 0.14083 | E65: =(All!N123+All!N124+All!N125+All!N126)/1000 -> 4.27669 | G65: =(FT!X123+FT!X124+FT!X125+FT!X126)/1000 -> 3.301914 | H65: =(PT!X123+PT!X124+PT!X125+PT!X126)/1000 -> 0.162813 | I65: =(SE!X123+SE!X124+SE!X125+SE!X126)/1000 -> 0.154033 | J65: =(All!X123+All!X124+All!X125+All!X126)/1000 -> 3.61876 | L65: =(FT!AH123+FT!AH124+FT!AH125+FT!AH126)/1000 -> 3.674432 | M65: =(PT!AH123+PT!AH124+PT!AH125+PT!AH126)/1000 -> 0.232131 | N65: =(SE!AH123+SE!AH124+SE!AH125+SE!AH126)/1000 -> 0.160452 | O65: =(All!AH123+All!AH124+All!AH125+All!AH126)/1000 -> 4.067016
A66: Associate Professional and Technical | B66: =(FT!N127+FT!N128+FT!N129+FT!N130+FT!N131)/1000 -> 4.950559 | C66: =(PT!N127+PT!N128+PT!N129+PT!N130+PT!N131)/1000 -> 0.794985 | D66: =(SE!N127+SE!N128+SE!N129+SE!N130+SE!N131)/1000 -> 0.052307 | E66: =(All!N127+All!N128+All!N129+All!N130+All!N131)/1000 -> 5.797852 | G66: =(FT!X127+FT!X128+FT!X129+FT!X130+FT!X131)/1000 -> 4.477829 | H66: =(PT!X127+PT!X128+PT!X129+PT!X130+PT!X131)/1000 -> 0.322364 | I66: =(SE!X127+SE!X128+SE!X129+SE!X130+SE!X131)/1000 -> 0.054797 | J66: =(All!X127+All!X128+All!X129+All!X130+All!X131)/1000 -> 4.854991 | L66: =(FT!AH127+FT!AH128+FT!AH129+FT!AH130+FT!AH131)/1000 -> 4.719259 | M66: =(PT!AH127+PT!AH128+PT!AH129+PT!AH130+PT!AH131)/1000 -> 0.392833 | N66: =(SE!AH127+SE!AH128+SE!AH129+SE!AH130+SE!AH131)/1000 -> 0.066729 | O66: =(All!AH127+All!AH128+All!AH129+All!AH130+All!AH131)/1000 -> 5.178823
A67: Administrative and Secretarial | B67: =(FT!N132+FT!N133)/1000 -> 3.720628 | C67: =(PT!N132+PT!N133)/1000 -> 0.938368 | D67: =(SE!N132+SE!N133)/1000 -> 0.019881 | E67: =(All!N132+All!N133)/1000 -> 4.678877 | G67: =(FT!X132+FT!X133)/1000 -> 1.859842 | H67: =(PT!X132+PT!X133)/1000 -> 0.392808 | I67: =(SE!X132+SE!X133)/1000 -> 0.026285 | J67: =(All!X132+All!X133)/1000 -> 2.278935 | L67: =(FT!AH132+FT!AH133)/1000 -> 1.277678 | M67: =(PT!AH132+PT!AH133)/1000 -> 0.425941 | N67: =(SE!AH132+SE!AH133)/1000 -> 0.030258 | O67: =(All!AH132+All!AH133)/1000 -> 1.733877
A68: Skilled Trades Occupations | B68: =(FT!N134+FT!N135+FT!N136+FT!N137)/1000 -> 3.466995 | C68: =(PT!N134+PT!N135+PT!N136+PT!N137)/1000 -> 0.239975 | D68: =(SE!N134+SE!N135+SE!N136+SE!N137)/1000 -> 0.109311 | E68: =(All!N134+All!N135+All!N136+All!N137)/1000 -> 3.816281 | G68: =(FT!X134+FT!X135+FT!X136+FT!X137)/1000 -> 2.372152 | H68: =(PT!X134+PT!X135+PT!X136+PT!X137)/1000 -> 0.102317 | I68: =(SE!X134+SE!X135+SE!X136+SE!X137)/1000 -> 0.079532 | J68: =(All!X134+All!X135+All!X136+All!X137)/1000 -> 2.554002 | L68: =(FT!AH134+FT!AH135+FT!AH136+FT!AH137)/1000 -> 2.03384 | M68: =(PT!AH134+PT!AH135+PT!AH136+PT!AH137)/1000 -> 0.0938 | N68: =(SE!AH134+SE!AH135+SE!AH136+SE!AH137)/1000 -> 0.063353 | O68: =(All!AH134+All!AH135+All!AH136+All!AH137)/1000 -> 2.190992
A69: Personal Service Occupations | B69: =(FT!N138+FT!N139)/1000 -> 0.496161 | C69: =(PT!N138+PT!N139)/1000 -> 0.374 | D69: =(SE!N138+SE!N139)/1000 -> 0.031299 | E69: =(All!N138+All!N139)/1000 -> 0.901459 | G69: =(FT!X138+FT!X139)/1000 -> 0.407688 | H69: =(PT!X138+PT!X139)/1000 -> 0.136024 | I69: =(SE!X138+SE!X139)/1000 -> 0.031934 | J69: =(All!X138+All!X139)/1000 -> 0.575647 | L69: =(FT!AH138+FT!AH139)/1000 -> 0.531229 | M69: =(PT!AH138+PT!AH139)/1000 -> 0.189265 | N69: =(SE!AH138+SE!AH139)/1000 -> 0.049334 | O69: =(All!AH138+All!AH139)/1000 -> 0.769827
A70: Sales and Customer Service Occupations | B70: =(FT!N140+FT!N141)/1000 -> 1.238252 | C70: =(PT!N140+PT!N141)/1000 -> 0.37624 | D70: =(SE!N140+SE!N141)/1000 -> 0.018006 | E70: =(All!N140+All!N141)/1000 -> 1.632497 | G70: =(FT!X140+FT!X141)/1000 -> 0.93346 | H70: =(PT!X140+PT!X141)/1000 -> 0.210505 | I70: =(SE!X140+SE!X141)/1000 -> 0.03343 | J70: =(All!X140+All!X141)/1000 -> 1.177394 | L70: =(FT!AH140+FT!AH141)/1000 -> 0.841395 | M70: =(PT!AH140+PT!AH141)/1000 -> 0.258044 | N70: =(SE!AH140+SE!AH141)/1000 -> 0.030681 | O70: =(All!AH140+All!AH141)/1000 -> 1.13012
A71: Machine and Transport Operatives | B71: =(FT!N142+FT!N143)/1000 -> 8.402773 | C71: =(PT!N142+PT!N143)/1000 -> 0.409505 | D71: =(SE!N142+SE!N143)/1000 -> 0.089015 | E71: =(All!N142+All!N143)/1000 -> 8.901293 | G71: =(FT!X142+FT!X143)/1000 -> 5.294389 | H71: =(PT!X142+PT!X143)/1000 -> 0.197085 | I71: =(SE!X142+SE!X143)/1000 -> 0.045563 | J71: =(All!X142+All!X143)/1000 -> 5.537038 | L71: =(FT!AH142+FT!AH143)/1000 -> 4.578508 | M71: =(PT!AH142+PT!AH143)/1000 -> 0.173209 | N71: =(SE!AH142+SE!AH143)/1000 -> 0.026679 | O71: =(All!AH142+All!AH143)/1000 -> 4.778396
A72: Elementary Occupations | B72: =(FT!N144+FT!N145)/1000 -> 2.69136 | C72: =(PT!N144+PT!N145)/1000 -> 0.976598 | D72: =(SE!N144+SE!N145)/1000 -> 0.01286 | E72: =(All!N144+All!N145)/1000 -> 3.680818 | G72: =(FT!X144+FT!X145)/1000 -> 2.386855 | H72: =(PT!X144+PT!X145)/1000 -> 0.263401 | I72: =(SE!X144+SE!X145)/1000 -> 0.018954 | J72: =(All!X144+All!X145)/1000 -> 2.66921 | L72: =(FT!AH144+FT!AH145)/1000 -> 1.983484 | M72: =(PT!AH144+PT!AH145)/1000 -> 0.227023 | N72: =(SE!AH144+SE!AH145)/1000 -> 0.019367 | O72: =(All!AH144+All!AH145)/1000 -> 2.229874
A73: Total | B73: =FT!N120/1000 -> 32.985 | C73: =PT!N120/1000 -> 4.691 | D73: =SE!N120/1000 -> 0.527 | E73: =All!N120/1000 -> 38.203 | G73: =FT!X120/1000 -> 24.521 | H73: =PT!X120/1000 -> 1.916 | I73: =SE!X120/1000 -> 0.496 | J73: =All!X120/1000 -> 26.933 | L73: =FT!AH120/1000 -> 23.573 | M73: =PT!AH120/1000 -> 2.192 | N73: =SE!AH120/1000 -> 0.505 | O73: =All!AH120/1000 -> 26.27
A76: Table 6.4.1.5 | B76: =CONCATENATE("Occupational composition by gender, ",B77,"-",G77,"-",L77) -> Occupational composition by gender, 2002-2012-2022 | O76: thousands
A77: =All!A147 -> Textiles | B77: =B$2 -> 2002 | G77: =G$2 -> 2012 | L77: =L$2 -> 2022
B78: Full-time | C78: Part-time | D78: Self-empl | E78: Total | G78: =B78 -> Full-time | H78: =C78 -> Part-time | I78: =D78 -> Self-empl | J78: =E78 -> Total | L78: =B78 -> Full-time | M78: =C78 -> Part-time | N78: =D78 -> Self-empl | O78: =E78 -> Total
A79: Managers and Senior Officials | B79: =(FT!N149+FT!N150)/1000 -> 6.659643 | C79: =(PT!N149+PT!N150)/1000 -> 0.432001 | D79: =(SE!N149+SE!N150)/1000 -> 1.756837 | E79: =(All!N149+All!N150)/1000 -> 8.848481 | G79: =(FT!X149+FT!X150)/1000 -> 4.531453 | H79: =(PT!X149+PT!X150)/1000 -> 0.246461 | I79: =(SE!X149+SE!X150)/1000 -> 2.203876 | J79: =(All!X149+All!X150)/1000 -> 6.98179 | L79: =(FT!AH149+FT!AH150)/1000 -> 3.813939 | M79: =(PT!AH149+PT!AH150)/1000 -> 0.227348 | N79: =(SE!AH149+SE!AH150)/1000 -> 1.623558 | O79: =(All!AH149+All!AH150)/1000 -> 5.664846
A80: Professional occupations | B80: =(FT!N151+FT!N152+FT!N153+FT!N154)/1000 -> 4.169867 | C80: =(PT!N151+PT!N152+PT!N153+PT!N154)/1000 -> 0.422201 | D80: =(SE!N151+SE!N152+SE!N153+SE!N154)/1000 -> 1.094413 | E80: =(All!N151+All!N152+All!N153+All!N154)/1000 -> 5.686479 | G80: =(FT!X151+FT!X152+FT!X153+FT!X154)/1000 -> 2.853687 | H80: =(PT!X151+PT!X152+PT!X153+PT!X154)/1000 -> 0.209812 | I80: =(SE!X151+SE!X152+SE!X153+SE!X154)/1000 -> 1.277069 | J80: =(All!X151+All!X152+All!X153+All!X154)/1000 -> 4.340569 | L80: =(FT!AH151+FT!AH152+FT!AH153+FT!AH154)/1000 -> 2.443606 | M80: =(PT!AH151+PT!AH152+PT!AH153+PT!AH154)/1000 -> 0.225331 | N80: =(SE!AH151+SE!AH152+SE!AH153+SE!AH154)/1000 -> 1.047659 | O80: =(All!AH151+All!AH152+All!AH153+All!AH154)/1000 -> 3.716596
A81: Associate Professional and Technical | B81: =(FT!N155+FT!N156+FT!N157+FT!N158+FT!N159)/1000 -> 7.234649 | C81: =(PT!N155+PT!N156+PT!N157+PT!N158+PT!N159)/1000 -> 0.768032 | D81: =(SE!N155+SE!N156+SE!N157+SE!N158+SE!N159)/1000 -> 1.829138 | E81: =(All!N155+All!N156+All!N157+All!N158+All!N159)/1000 -> 9.831818 | G81: =(FT!X155+FT!X156+FT!X157+FT!X158+FT!X159)/1000 -> 3.647222 | H81: =(PT!X155+PT!X156+PT!X157+PT!X158+PT!X159)/1000 -> 0.352959 | I81: =(SE!X155+SE!X156+SE!X157+SE!X158+SE!X159)/1000 -> 2.116244 | J81: =(All!X155+All!X156+All!X157+All!X158+All!X159)/1000 -> 6.116425 | L81: =(FT!AH155+FT!AH156+FT!AH157+FT!AH158+FT!AH159)/1000 -> 3.035376 | M81: =(PT!AH155+PT!AH156+PT!AH157+PT!AH158+PT!AH159)/1000 -> 0.336418 | N81: =(SE!AH155+SE!AH156+SE!AH157+SE!AH158+SE!AH159)/1000 -> 1.589352 | O81: =(All!AH155+All!AH156+All!AH157+All!AH158+All!AH159)/1000 -> 4.961148
A82: Administrative and Secretarial | B82: =(FT!N160+FT!N161)/1000 -> 6.27412 | C82: =(PT!N160+PT!N161)/1000 -> 2.477997 | D82: =(SE!N160+SE!N161)/1000 -> 0.269661 | E82: =(All!N160+All!N161)/1000 -> 9.021778 | G82: =(FT!X160+FT!X161)/1000 -> 3.734288 | H82: =(PT!X160+PT!X161)/1000 -> 0.60928 | I82: =(SE!X160+SE!X161)/1000 -> 0.302122 | J82: =(All!X160+All!X161)/1000 -> 4.64569 | L82: =(FT!AH160+FT!AH161)/1000 -> 2.701549 | M82: =(PT!AH160+PT!AH161)/1000 -> 0.492005 | N82: =(SE!AH160+SE!AH161)/1000 -> 0.189711 | O82: =(All!AH160+All!AH161)/1000 -> 3.383266
A83: Skilled Trades Occupations | B83: =(FT!N162+FT!N163+FT!N164+FT!N165)/1000 -> 11.449145 | C83: =(PT!N162+PT!N163+PT!N164+PT!N165)/1000 -> 1.798613 | D83: =(SE!N162+SE!N163+SE!N164+SE!N165)/1000 -> 4.466413 | E83: =(All!N162+All!N163+All!N164+All!N165)/1000 -> 17.714173 | G83: =(FT!X162+FT!X163+FT!X164+FT!X165)/1000 -> 6.96681 | H83: =(PT!X162+PT!X163+PT!X164+PT!X165)/1000 -> 0.574496 | I83: =(SE!X162+SE!X163+SE!X164+SE!X165)/1000 -> 3.063758 | J83: =(All!X162+All!X163+All!X164+All!X165)/1000 -> 10.605064 | L83: =(FT!AH162+FT!AH163+FT!AH164+FT!AH165)/1000 -> 3.62102 | M83: =(PT!AH162+PT!AH163+PT!AH164+PT!AH165)/1000 -> 0.347333 | N83: =(SE!AH162+SE!AH163+SE!AH164+SE!AH165)/1000 -> 1.267237 | O83: =(All!AH162+All!AH163+All!AH164+All!AH165)/1000 -> 5.235591
A84: Personal Service Occupations | B84: =(FT!N166+FT!N167)/1000 -> 0.878368 | C84: =(PT!N166+PT!N167)/1000 -> 0.100891 | D84: =(SE!N166+SE!N167)/1000 -> 0.150135 | E84: =(All!N166+All!N167)/1000 -> 1.129395 | G84: =(FT!X166+FT!X167)/1000 -> 0.409872 | H84: =(PT!X166+PT!X167)/1000 -> 0.041498 | I84: =(SE!X166+SE!X167)/1000 -> 0.469524 | J84: =(All!X166+All!X167)/1000 -> 0.920894 | L84: =(FT!AH166+FT!AH167)/1000 -> 0.400382 | M84: =(PT!AH166+PT!AH167)/1000 -> 0.048157 | N84: =(SE!AH166+SE!AH167)/1000 -> 0.467368 | O84: =(All!AH166+All!AH167)/1000 -> 0.915907
A85: Sales and Customer Service Occupations | B85: =(FT!N168+FT!N169)/1000 -> 2.244895 | C85: =(PT!N168+PT!N169)/1000 -> 1.187462 | D85: =(SE!N168+SE!N169)/1000 -> 0.528078 | E85: =(All!N168+All!N169)/1000 -> 3.960435 | G85: =(FT!X168+FT!X169)/1000 -> 1.333298 | H85: =(PT!X168+PT!X169)/1000 -> 0.465883 | I85: =(SE!X168+SE!X169)/1000 -> 0.709456 | J85: =(All!X168+All!X169)/1000 -> 2.508637 | L85: =(FT!AH168+FT!AH169)/1000 -> 1.004254 | M85: =(PT!AH168+PT!AH169)/1000 -> 0.369291 | N85: =(SE!AH168+SE!AH169)/1000 -> 0.419435 | O85: =(All!AH168+All!AH169)/1000 -> 1.79298
A86: Machine and Transport Operatives | B86: =(FT!N170+FT!N171)/1000 -> 27.728242 | C86: =(PT!N170+PT!N171)/1000 -> 3.64333 | D86: =(SE!N170+SE!N171)/1000 -> 2.407716 | E86: =(All!N170+All!N171)/1000 -> 33.779289 | G86: =(FT!X170+FT!X171)/1000 -> 11.217188 | H86: =(PT!X170+PT!X171)/1000 -> 1.479969 | I86: =(SE!X170+SE!X171)/1000 -> 2.229776 | J86: =(All!X170+All!X171)/1000 -> 14.926933 | L86: =(FT!AH170+FT!AH171)/1000 -> 5.561178 | M86: =(PT!AH170+PT!AH171)/1000 -> 0.752927 | N86: =(SE!AH170+SE!AH171)/1000 -> 1.054587 | O86: =(All!AH170+All!AH171)/1000 -> 7.36869
A87: Elementary Occupations | B87: =(FT!N172+FT!N173)/1000 -> 7.583069 | C87: =(PT!N172+PT!N173)/1000 -> 1.506472 | D87: =(SE!N172+SE!N173)/1000 -> 0.34561 | E87: =(All!N172+All!N173)/1000 -> 9.435151 | G87: =(FT!X172+FT!X173)/1000 -> 3.36918 | H87: =(PT!X172+PT!X173)/1000 -> 0.688641 | I87: =(SE!X172+SE!X173)/1000 -> 0.870176 | J87: =(All!X172+All!X173)/1000 -> 4.927998 | L87: =(FT!AH172+FT!AH173)/1000 -> 2.118696 | M87: =(PT!AH172+PT!AH173)/1000 -> 0.538188 | N87: =(SE!AH172+SE!AH173)/1000 -> 0.586094 | O87: =(All!AH172+All!AH173)/1000 -> 3.242976
A88: Total | B88: =FT!N148/1000 -> 74.222 | C88: =PT!N148/1000 -> 12.337 | D88: =SE!N148/1000 -> 12.848 | E88: =All!N148/1000 -> 99.407 | G88: =FT!X148/1000 -> 38.063 | H88: =PT!X148/1000 -> 4.669 | I88: =SE!X148/1000 -> 13.242 | J88: =All!X148/1000 -> 55.974 | L88: =FT!AH148/1000 -> 24.7 | M88: =PT!AH148/1000 -> 3.337 | N88: =SE!AH148/1000 -> 8.245 | O88: =All!AH148/1000 -> 36.282
A91: Table 6.4.1.5 | B91: =CONCATENATE("Occupational composition by gender, ",B92,"-",G92,"-",L92) -> Occupational composition by gender, 2002-2012-2022 | O91: thousands
A92: =All!A175 -> Wearing apparel; Leather, etc | B92: =B$2 -> 2002 | G92: =G$2 -> 2012 | L92: =L$2 -> 2022
B93: Full-time | C93: Part-time | D93: Self-empl | E93: Total | G93: =B93 -> Full-time | H93: =C93 -> Part-time | I93: =D93 -> Self-empl | J93: =E93 -> Total | L93: =B93 -> Full-time | M93: =C93 -> Part-time | N93: =D93 -> Self-empl | O93: =E93 -> Total
A94: Managers and Senior Officials | B94: =(FT!N177+FT!N178)/1000 -> 7.835379 | C94: =(PT!N177+PT!N178)/1000 -> 0.44749 | D94: =(SE!N177+SE!N178)/1000 -> 0.834597 | E94: =(All!N177+All!N178)/1000 -> 9.117467 | G94: =(FT!X177+FT!X178)/1000 -> 2.300358 | H94: =(PT!X177+PT!X178)/1000 -> 0.414874 | I94: =(SE!X177+SE!X178)/1000 -> 1.098499 | J94: =(All!X177+All!X178)/1000 -> 3.813731 | L94: =(FT!AH177+FT!AH178)/1000 -> 2.135385 | M94: =(PT!AH177+PT!AH178)/1000 -> 0.365192 | N94: =(SE!AH177+SE!AH178)/1000 -> 0.922173 | O94: =(All!AH177+All!AH178)/1000 -> 3.42275
A95: Professional occupations | B95: =(FT!N179+FT!N180+FT!N181+FT!N182)/1000 -> 5.761278 | C95: =(PT!N179+PT!N180+PT!N181+PT!N182)/1000 -> 0.309604 | D95: =(SE!N179+SE!N180+SE!N181+SE!N182)/1000 -> 0.740996 | E95: =(All!N179+All!N180+All!N181+All!N182)/1000 -> 6.811879 | G95: =(FT!X179+FT!X180+FT!X181+FT!X182)/1000 -> 1.839505 | H95: =(PT!X179+PT!X180+PT!X181+PT!X182)/1000 -> 0.294388 | I95: =(SE!X179+SE!X180+SE!X181+SE!X182)/1000 -> 1.20395 | J95: =(All!X179+All!X180+All!X181+All!X182)/1000 -> 3.337842 | L95: =(FT!AH179+FT!AH180+FT!AH181+FT!AH182)/1000 -> 2.295958 | M95: =(PT!AH179+PT!AH180+PT!AH181+PT!AH182)/1000 -> 0.454474 | N95: =(SE!AH179+SE!AH180+SE!AH181+SE!AH182)/1000 -> 0.974136 | O95: =(All!AH179+All!AH180+All!AH181+All!AH182)/1000 -> 3.724567
A96: Associate Professional and Technical | B96: =(FT!N183+FT!N184+FT!N185+FT!N186+FT!N187)/1000 -> 8.054969 | C96: =(PT!N183+PT!N184+PT!N185+PT!N186+PT!N187)/1000 -> 0.950179 | D96: =(SE!N183+SE!N184+SE!N185+SE!N186+SE!N187)/1000 -> 1.513676 | E96: =(All!N183+All!N184+All!N185+All!N186+All!N187)/1000 -> 10.518826 | G96: =(FT!X183+FT!X184+FT!X185+FT!X186+FT!X187)/1000 -> 2.573308 | H96: =(PT!X183+PT!X184+PT!X185+PT!X186+PT!X187)/1000 -> 0.783898 | I96: =(SE!X183+SE!X184+SE!X185+SE!X186+SE!X187)/1000 -> 2.478788 | J96: =(All!X183+All!X184+All!X185+All!X186+All!X187)/1000 -> 5.835995 | L96: =(FT!AH183+FT!AH184+FT!AH185+FT!AH186+FT!AH187)/1000 -> 2.284109 | M96: =(PT!AH183+PT!AH184+PT!AH185+PT!AH186+PT!AH187)/1000 -> 0.684232 | N96: =(SE!AH183+SE!AH184+SE!AH185+SE!AH186+SE!AH187)/1000 -> 1.79846 | O96: =(All!AH183+All!AH184+All!AH185+All!AH186+All!AH187)/1000 -> 4.766801
A97: Administrative and Secretarial | B97: =(FT!N188+FT!N189)/1000 -> 6.559986 | C97: =(PT!N188+PT!N189)/1000 -> 1.225567 | D97: =(SE!N188+SE!N189)/1000 -> 0.288428 | E97: =(All!N188+All!N189)/1000 -> 8.073981 | G97: =(FT!X188+FT!X189)/1000 -> 2.878835 | H97: =(PT!X188+PT!X189)/1000 -> 1.078012 | I97: =(SE!X188+SE!X189)/1000 -> 0.448142 | J97: =(All!X188+All!X189)/1000 -> 4.404988 | L97: =(FT!AH188+FT!AH189)/1000 -> 2.049845 | M97: =(PT!AH188+PT!AH189)/1000 -> 0.796403 | N97: =(SE!AH188+SE!AH189)/1000 -> 0.362905 | O97: =(All!AH188+All!AH189)/1000 -> 3.209153
A98: Skilled Trades Occupations | B98: =(FT!N190+FT!N191+FT!N192+FT!N193)/1000 -> 11.104685 | C98: =(PT!N190+PT!N191+PT!N192+PT!N193)/1000 -> 1.713045 | D98: =(SE!N190+SE!N191+SE!N192+SE!N193)/1000 -> 4.69547 | E98: =(All!N190+All!N191+All!N192+All!N193)/1000 -> 17.513199 | G98: =(FT!X190+FT!X191+FT!X192+FT!X193)/1000 -> 3.55457 | H98: =(PT!X190+PT!X191+PT!X192+PT!X193)/1000 -> 1.158932 | I98: =(SE!X190+SE!X191+SE!X192+SE!X193)/1000 -> 3.997373 | J98: =(All!X190+All!X191+All!X192+All!X193)/1000 -> 8.710873 | L98: =(FT!AH190+FT!AH191+FT!AH192+FT!AH193)/1000 -> 1.647404 | M98: =(PT!AH190+PT!AH191+PT!AH192+PT!AH193)/1000 -> 0.580169 | N98: =(SE!AH190+SE!AH191+SE!AH192+SE!AH193)/1000 -> 1.585066 | O98: =(All!AH190+All!AH191+All!AH192+All!AH193)/1000 -> 3.812638
A99: Personal Service Occupations | B99: =(FT!N194+FT!N195)/1000 -> 1.212901 | C99: =(PT!N194+PT!N195)/1000 -> 0.185015 | D99: =(SE!N194+SE!N195)/1000 -> 0.181278 | E99: =(All!N194+All!N195)/1000 -> 1.579194 | G99: =(FT!X194+FT!X195)/1000 -> 0.45448 | H99: =(PT!X194+PT!X195)/1000 -> 0.232406 | I99: =(SE!X194+SE!X195)/1000 -> 0.29185 | J99: =(All!X194+All!X195)/1000 -> 0.978736 | L99: =(FT!AH194+FT!AH195)/1000 -> 0.878298 | M99: =(PT!AH194+PT!AH195)/1000 -> 0.452348 | N99: =(SE!AH194+SE!AH195)/1000 -> 0.263857 | O99: =(All!AH194+All!AH195)/1000 -> 1.594503
A100: Sales and Customer Service Occupations | B100: =(FT!N196+FT!N197)/1000 -> 1.958057 | C100: =(PT!N196+PT!N197)/1000 -> 0.82297 | D100: =(SE!N196+SE!N197)/1000 -> 0.199589 | E100: =(All!N196+All!N197)/1000 -> 2.980616 | G100: =(FT!X196+FT!X197)/1000 -> 0.80155 | H100: =(PT!X196+PT!X197)/1000 -> 0.805359 | I100: =(SE!X196+SE!X197)/1000 -> 0.321142 | J100: =(All!X196+All!X197)/1000 -> 1.92805 | L100: =(FT!AH196+FT!AH197)/1000 -> 0.696276 | M100: =(PT!AH196+PT!AH197)/1000 -> 0.589699 | N100: =(SE!AH196+SE!AH197)/1000 -> 0.225369 | O100: =(All!AH196+All!AH197)/1000 -> 1.511346
A101: Machine and Transport Operatives | B101: =(FT!N198+FT!N199)/1000 -> 28.184485 | C101: =(PT!N198+PT!N199)/1000 -> 6.262862 | D101: =(SE!N198+SE!N199)/1000 -> 2.256208 | E101: =(All!N198+All!N199)/1000 -> 36.703555 | G101: =(FT!X198+FT!X199)/1000 -> 4.300643 | H101: =(PT!X198+PT!X199)/1000 -> 2.606899 | I101: =(SE!X198+SE!X199)/1000 -> 1.087958 | J101: =(All!X198+All!X199)/1000 -> 7.995501 | L101: =(FT!AH198+FT!AH199)/1000 -> 1.462043 | M101: =(PT!AH198+PT!AH199)/1000 -> 1.173848 | N101: =(SE!AH198+SE!AH199)/1000 -> 0.566648 | O101: =(All!AH198+All!AH199)/1000 -> 3.20254
A102: Elementary Occupations | B102: =(FT!N200+FT!N201)/1000 -> 5.99126 | C102: =(PT!N200+PT!N201)/1000 -> 1.359268 | D102: =(SE!N200+SE!N201)/1000 -> 0.432756 | E102: =(All!N200+All!N201)/1000 -> 7.783284 | G102: =(FT!X200+FT!X201)/1000 -> 3.39275 | H102: =(PT!X200+PT!X201)/1000 -> 1.209232 | I102: =(SE!X200+SE!X201)/1000 -> 0.735301 | J102: =(All!X200+All!X201)/1000 -> 5.337283 | L102: =(FT!AH200+FT!AH201)/1000 -> 2.22168 | M102: =(PT!AH200+PT!AH201)/1000 -> 0.790636 | N102: =(SE!AH200+SE!AH201)/1000 -> 0.477385 | O102: =(All!AH200+All!AH201)/1000 -> 3.489702
A103: Total | B103: =FT!N176/1000 -> 76.663 | C103: =PT!N176/1000 -> 13.276 | D103: =SE!N176/1000 -> 11.143 | E103: =All!N176/1000 -> 101.082 | G103: =FT!X176/1000 -> 22.096 | H103: =PT!X176/1000 -> 8.584 | I103: =SE!X176/1000 -> 11.663 | J103: =All!X176/1000 -> 42.343 | L103: =FT!AH176/1000 -> 15.671 | M103: =PT!AH176/1000 -> 5.887 | N103: =SE!AH176/1000 -> 7.176 | O103: =All!AH176/1000 -> 28.734
A106: Table 6.4.1.5 | B106: =CONCATENATE("Occupational composition by gender, ",B107,"-",G107,"-",L107) -> Occupational composition by gender, 2002-2012-2022 | O106: thousands
A107: =All!A203 -> Wood, etc | B107: =B$2 -> 2002 | G107: =G$2 -> 2012 | L107: =L$2 -> 2022
B108: Full-time | C108: Part-time | D108: Self-empl | E108: Total | G108: =B108 -> Full-time | H108: =C108 -> Part-time | I108: =D108 -> Self-empl | J108: =E108 -> Total | L108: =B108 -> Full-time | M108: =C108 -> Part-time | N108: =D108 -> Self-empl | O108: =E108 -> Total
A109: Managers and Senior Officials | B109: =(FT!N205+FT!N206)/1000 -> 4.503364 | C109: =(PT!N205+PT!N206)/1000 -> 0.284491 | D109: =(SE!N205+SE!N206)/1000 -> 0.903634 | E109: =(All!N205+All!N206)/1000 -> 5.69149 | G109: =(FT!X205+FT!X206)/1000 -> 3.493601 | H109: =(PT!X205+PT!X206)/1000 -> 0.129114 | I109: =(SE!X205+SE!X206)/1000 -> 1.491357 | J109: =(All!X205+All!X206)/1000 -> 5.114072 | L109: =(FT!AH205+FT!AH206)/1000 -> 4.455911 | M109: =(PT!AH205+PT!AH206)/1000 -> 0.226219 | N109: =(SE!AH205+SE!AH206)/1000 -> 1.538932 | O109: =(All!AH205+All!AH206)/1000 -> 6.221063
A110: Professional occupations | B110: =(FT!N207+FT!N208+FT!N209+FT!N210)/1000 -> 2.394341 | C110: =(PT!N207+PT!N208+PT!N209+PT!N210)/1000 -> 0.321753 | D110: =(SE!N207+SE!N208+SE!N209+SE!N210)/1000 -> 0.392728 | E110: =(All!N207+All!N208+All!N209+All!N210)/1000 -> 3.108822 | G110: =(FT!X207+FT!X208+FT!X209+FT!X210)/1000 -> 1.791018 | H110: =(PT!X207+PT!X208+PT!X209+PT!X210)/1000 -> 0.091965 | I110: =(SE!X207+SE!X208+SE!X209+SE!X210)/1000 -> 0.598937 | J110: =(All!X207+All!X208+All!X209+All!X210)/1000 -> 2.48192 | L110: =(FT!AH207+FT!AH208+FT!AH209+FT!AH210)/1000 -> 2.312193 | M110: =(PT!AH207+PT!AH208+PT!AH209+PT!AH210)/1000 -> 0.151066 | N110: =(SE!AH207+SE!AH208+SE!AH209+SE!AH210)/1000 -> 0.672646 | O110: =(All!AH207+All!AH208+All!AH209+All!AH210)/1000 -> 3.135906
A111: Associate Professional and Technical | B111: =(FT!N211+FT!N212+FT!N213+FT!N214+FT!N215)/1000 -> 3.551422 | C111: =(PT!N211+PT!N212+PT!N213+PT!N214+PT!N215)/1000 -> 0.366209 | D111: =(SE!N211+SE!N212+SE!N213+SE!N214+SE!N215)/1000 -> 0.480939 | E111: =(All!N211+All!N212+All!N213+All!N214+All!N215)/1000 -> 4.398571 | G111: =(FT!X211+FT!X212+FT!X213+FT!X214+FT!X215)/1000 -> 3.951011 | H111: =(PT!X211+PT!X212+PT!X213+PT!X214+PT!X215)/1000 -> 0.146733 | I111: =(SE!X211+SE!X212+SE!X213+SE!X214+SE!X215)/1000 -> 0.706693 | J111: =(All!X211+All!X212+All!X213+All!X214+All!X215)/1000 -> 4.804436 | L111: =(FT!AH211+FT!AH212+FT!AH213+FT!AH214+FT!AH215)/1000 -> 4.776741 | M111: =(PT!AH211+PT!AH212+PT!AH213+PT!AH214+PT!AH215)/1000 -> 0.211251 | N111: =(SE!AH211+SE!AH212+SE!AH213+SE!AH214+SE!AH215)/1000 -> 0.782349 | O111: =(All!AH211+All!AH212+All!AH213+All!AH214+All!AH215)/1000 -> 5.770341
A112: Administrative and Secretarial | B112: =(FT!N216+FT!N217)/1000 -> 3.900667 | C112: =(PT!N216+PT!N217)/1000 -> 4.537701 | D112: =(SE!N216+SE!N217)/1000 -> 0.159389 | E112: =(All!N216+All!N217)/1000 -> 8.597758 | G112: =(FT!X216+FT!X217)/1000 -> 1.451592 | H112: =(PT!X216+PT!X217)/1000 -> 0.737513 | I112: =(SE!X216+SE!X217)/1000 -> 0.589619 | J112: =(All!X216+All!X217)/1000 -> 2.778724 | L112: =(FT!AH216+FT!AH217)/1000 -> 1.467631 | M112: =(PT!AH216+PT!AH217)/1000 -> 0.721633 | N112: =(SE!AH216+SE!AH217)/1000 -> 0.512228 | O112: =(All!AH216+All!AH217)/1000 -> 2.701492
A113: Skilled Trades Occupations | B113: =(FT!N218+FT!N219+FT!N220+FT!N221)/1000 -> 19.450788 | C113: =(PT!N218+PT!N219+PT!N220+PT!N221)/1000 -> 1.726762 | D113: =(SE!N218+SE!N219+SE!N220+SE!N221)/1000 -> 4.844832 | E113: =(All!N218+All!N219+All!N220+All!N221)/1000 -> 26.022381 | G113: =(FT!X218+FT!X219+FT!X220+FT!X221)/1000 -> 13.899663 | H113: =(PT!X218+PT!X219+PT!X220+PT!X221)/1000 -> 0.595019 | I113: =(SE!X218+SE!X219+SE!X220+SE!X221)/1000 -> 7.295901 | J113: =(All!X218+All!X219+All!X220+All!X221)/1000 -> 21.790582 | L113: =(FT!AH218+FT!AH219+FT!AH220+FT!AH221)/1000 -> 14.304532 | M113: =(PT!AH218+PT!AH219+PT!AH220+PT!AH221)/1000 -> 0.74034 | N113: =(SE!AH218+SE!AH219+SE!AH220+SE!AH221)/1000 -> 6.684036 | O113: =(All!AH218+All!AH219+All!AH220+All!AH221)/1000 -> 21.728908
A114: Personal Service Occupations | B114: =(FT!N222+FT!N223)/1000 -> 0.389519 | C114: =(PT!N222+PT!N223)/1000 -> 0.283782 | D114: =(SE!N222+SE!N223)/1000 -> 0.05148 | E114: =(All!N222+All!N223)/1000 -> 0.724781 | G114: =(FT!X222+FT!X223)/1000 -> 0.222822 | H114: =(PT!X222+PT!X223)/1000 -> 0.064426 | I114: =(SE!X222+SE!X223)/1000 -> 0.320867 | J114: =(All!X222+All!X223)/1000 -> 0.608115 | L114: =(FT!AH222+FT!AH223)/1000 -> 0.329201 | M114: =(PT!AH222+PT!AH223)/1000 -> 0.19735 | N114: =(SE!AH222+SE!AH223)/1000 -> 0.517636 | O114: =(All!AH222+All!AH223)/1000 -> 1.044186
A115: Sales and Customer Service Occupations | B115: =(FT!N224+FT!N225)/1000 -> 1.076555 | C115: =(PT!N224+PT!N225)/1000 -> 0.530868 | D115: =(SE!N224+SE!N225)/1000 -> 0.085513 | E115: =(All!N224+All!N225)/1000 -> 1.692935 | G115: =(FT!X224+FT!X225)/1000 -> 0.758732 | H115: =(PT!X224+PT!X225)/1000 -> 0.173536 | I115: =(SE!X224+SE!X225)/1000 -> 0.171044 | J115: =(All!X224+All!X225)/1000 -> 1.103313 | L115: =(FT!AH224+FT!AH225)/1000 -> 0.819596 | M115: =(PT!AH224+PT!AH225)/1000 -> 0.226311 | N115: =(SE!AH224+SE!AH225)/1000 -> 0.167708 | O115: =(All!AH224+All!AH225)/1000 -> 1.213615
A116: Machine and Transport Operatives | B116: =(FT!N226+FT!N227)/1000 -> 14.35708 | C116: =(PT!N226+PT!N227)/1000 -> 0.42988 | D116: =(SE!N226+SE!N227)/1000 -> 0.71454 | E116: =(All!N226+All!N227)/1000 -> 15.5015 | G116: =(FT!X226+FT!X227)/1000 -> 11.745946 | H116: =(PT!X226+PT!X227)/1000 -> 0.425607 | I116: =(SE!X226+SE!X227)/1000 -> 1.06552 | J116: =(All!X226+All!X227)/1000 -> 13.237072 | L116: =(FT!AH226+FT!AH227)/1000 -> 10.963942 | M116: =(PT!AH226+PT!AH227)/1000 -> 0.464266 | N116: =(SE!AH226+SE!AH227)/1000 -> 1.093136 | O116: =(All!AH226+All!AH227)/1000 -> 12.521344
A117: Elementary Occupations | B117: =(FT!N228+FT!N229)/1000 -> 5.545265 | C117: =(PT!N228+PT!N229)/1000 -> 0.754554 | D117: =(SE!N228+SE!N229)/1000 -> 0.578945 | E117: =(All!N228+All!N229)/1000 -> 6.878762 | G117: =(FT!X228+FT!X229)/1000 -> 2.788615 | H117: =(PT!X228+PT!X229)/1000 -> 0.228087 | I117: =(SE!X228+SE!X229)/1000 -> 2.030064 | J117: =(All!X228+All!X229)/1000 -> 5.046766 | L117: =(FT!AH228+FT!AH229)/1000 -> 2.592254 | M117: =(PT!AH228+PT!AH229)/1000 -> 0.296563 | N117: =(SE!AH228+SE!AH229)/1000 -> 2.21233 | O117: =(All!AH228+All!AH229)/1000 -> 5.101147
A118: Total | B118: =FT!N204/1000 -> 55.169 | C118: =PT!N204/1000 -> 9.236 | D118: =SE!N204/1000 -> 8.212 | E118: =All!N204/1000 -> 72.617 | G118: =FT!X204/1000 -> 40.103 | H118: =PT!X204/1000 -> 2.592 | I118: =SE!X204/1000 -> 14.27 | J118: =All!X204/1000 -> 56.965 | L118: =FT!AH204/1000 -> 42.022 | M118: =PT!AH204/1000 -> 3.235 | N118: =SE!AH204/1000 -> 14.181 | O118: =All!AH204/1000 -> 59.438
A121: Table 6.4.1.5 | B121: =CONCATENATE("Occupational composition by gender, ",B122,"-",G122,"-",L122) -> Occupational composition by gender, 2002-2012-2022 | O121: thousands
A122: =All!A231 -> Paper, etc | B122: =B$2 -> 2002 | G122: =G$2 -> 2012 | L122: =L$2 -> 2022
B123: Full-time | C123: Part-time | D123: Self-empl | E123: Total | G123: =B123 -> Full-time | H123: =C123 -> Part-time | I123: =D123 -> Self-empl | J123: =E123 -> Total | L123: =B123 -> Full-time | M123: =C123 -> Part-time | N123: =D123 -> Self-empl | O123: =E123 -> Total
A124: Managers and Senior Officials | B124: =(FT!N233+FT!N234)/1000 -> 6.182314 | C124: =(PT!N233+PT!N234)/1000 -> 2.239195 | D124: =(SE!N233+SE!N234)/1000 -> 0.802001 | E124: =(All!N233+All!N234)/1000 -> 9.22351 | G124: =(FT!X233+FT!X234)/1000 -> 5.421231 | H124: =(PT!X233+PT!X234)/1000 -> 0.085656 | I124: =(SE!X233+SE!X234)/1000 -> 0.942078 | J124: =(All!X233+All!X234)/1000 -> 6.448965 | L124: =(FT!AH233+FT!AH234)/1000 -> 4.679722 | M124: =(PT!AH233+PT!AH234)/1000 -> 0.131816 | N124: =(SE!AH233+SE!AH234)/1000 -> 0.638382 | O124: =(All!AH233+All!AH234)/1000 -> 5.449918
A125: Professional occupations | B125: =(FT!N235+FT!N236+FT!N237+FT!N238)/1000 -> 4.469283 | C125: =(PT!N235+PT!N236+PT!N237+PT!N238)/1000 -> 1.442373 | D125: =(SE!N235+SE!N236+SE!N237+SE!N238)/1000 -> 0.558917 | E125: =(All!N235+All!N236+All!N237+All!N238)/1000 -> 6.470573 | G125: =(FT!X235+FT!X236+FT!X237+FT!X238)/1000 -> 3.651998 | H125: =(PT!X235+PT!X236+PT!X237+PT!X238)/1000 -> 0.109451 | I125: =(SE!X235+SE!X236+SE!X237+SE!X238)/1000 -> 0.563835 | J125: =(All!X235+All!X236+All!X237+All!X238)/1000 -> 4.325284 | L125: =(FT!AH235+FT!AH236+FT!AH237+FT!AH238)/1000 -> 3.10386 | M125: =(PT!AH235+PT!AH236+PT!AH237+PT!AH238)/1000 -> 0.144467 | N125: =(SE!AH235+SE!AH236+SE!AH237+SE!AH238)/1000 -> 0.393788 | O125: =(All!AH235+All!AH236+All!AH237+All!AH238)/1000 -> 3.642115
... 134 more rows

Sheet Table 6.x.3
A1: Table 6.0.4 | B1: Changing Composition of Employment by Occupation
B2: =names!A3 -> All industries | H2: =D4&" - "&F4 -> 2012 - 2022
A3: SOC2010 Major Groups | H3: Net | I3: Replacement | J3: Total
A4: Employment Levels (000s) | B4: =All!D1183 -> 1992 | C4: =All!N1183 -> 2002 | D4: =All!X1183 -> 2012 | E4: =All!AC1183 -> 2017 | F4: =All!AH1183 -> 2022 | H4: Change | I4: Demands | J4: Requirement
A5: 1. Managers and Senior Officials | B5: =(All!D9+All!D10)/1000 -> 1881.541989 | C5: =(All!N9+All!N10)/1000 -> 2362.401915 | D5: =(All!X9+All!X10)/1000 -> 2888.659983 | E5: =(All!AC9+All!AC10)/1000 -> 3125.320883 | F5: =(All!AH9+All!AH10)/1000 -> 3400.82921 | H5: =F5-D5 -> 512.169227 | I5: =D5*I17/100 -> 1203.761787 | J5: =I5+H5 -> 1715.931014
A6: 2. Professional Occupations | B6: =(All!D11+All!D12+All!D13+All!D14)/1000 -> 3352.445535 | C6: =(All!N11+All!N12+All!N13+All!N14)/1000 -> 4243.561079 | D6: =(All!X11+All!X12+All!X13+All!X14)/1000 -> 5346.15889 | E6: =(All!AC11+All!AC12+All!AC13+All!AC14)/1000 -> 5893.541498 | F6: =(All!AH11+All!AH12+All!AH13+All!AH14)/1000 -> 6339.884256 | H6: 993.725366 | I6: 2156.607697 | J6: 3150.333063
A7: 3. Associate Professional and Technical Occupations | B7: =(All!D15+All!D16+All!D17+All!D18+All!D19)/1000 -> 2559.815332 | C7: =(All!N15+All!N16+All!N17+All!N18+All!N19)/1000 -> 3199.348045 | D7: =(All!X15+All!X16+All!X17+All!X18+All!X19)/1000 -> 3623.942608 | E7: =(All!AC15+All!AC16+All!AC17+All!AC18+All!AC19)/1000 -> 3862.619471 | F7: =(All!AH15+All!AH16+All!AH17+All!AH18+All!AH19)/1000 -> 4130.109472 | H7: 506.166864 | I7: 1338.968574 | J7: 1845.135438
A8: 4. Administrative, Clerical and Secretarial Occupations | B8: =(All!D20+All!D21)/1000 -> 3778.027402 | C8: =(All!N20+All!N21)/1000 -> 3576.446151 | D8: =(All!X20+All!X21)/1000 -> 3163.26387 | E8: =(All!AC20+All!AC21)/1000 -> 2931.545828 | F8: =(All!AH20+All!AH21)/1000 -> 2737.094228 | H8: -426.169642 | I8: 1353.513322 | J8: 927.3436805
A9: 5. Skilled Trades Occupations | B9: =(All!D22+All!D23+All!D24+All!D25)/1000 -> 3370.795393 | C9: =(All!N22+All!N23+All!N24+All!N25)/1000 -> 3112.217405 | D9: =(All!X22+All!X23+All!X24+All!X25)/1000 -> 2917.373749 | E9: =(All!AC22+All!AC23+All!AC24+All!AC25)/1000 -> 2757.326279 | F9: =(All!AH22+All!AH23+All!AH24+All!AH25)/1000 -> 2661.865752 | H9: -255.507997 | I9: 985.2264794 | J9: 729.7184824
A10: 6. Personal Service Occupations | B10: =(All!D26+All!D27)/1000 -> 1286.528801 | C10: =(All!N26+All!N27)/1000 -> 1903.882861 | D10: =(All!X26+All!X27)/1000 -> 2435.865559 | E10: =(All!AC26+All!AC27)/1000 -> 2718.985353 | F10: =(All!AH26+All!AH27)/1000 -> 2990.094131 | H10: 554.228572 | I10: 1129.087772 | J10: 1683.316344
A11: 7. Sales and Customer Service Occupations | B11: =(All!D28+All!D29)/1000 -> 1870.893754 | C11: =(All!N28+All!N29)/1000 -> 2171.402318 | D11: =(All!X28+All!X29)/1000 -> 2277.795868 | E11: =(All!AC28+All!AC29)/1000 -> 2217.906838 | F11: =(All!AH28+All!AH29)/1000 -> 2229.433233 | H11: -48.362635 | I11: 804.3408458 | J11: 755.9782108
A12: 8. Transport and Machine Operatives | B12: =(All!D30+All!D31)/1000 -> 1998.987134 | C12: =(All!N30+All!N31)/1000 -> 1810.117947 | D12: =(All!X30+All!X31)/1000 -> 1670.546911 | E12: =(All!AC30+All!AC31)/1000 -> 1562.949124 | F12: =(All!AH30+All!AH31)/1000 -> 1497.435291 | H12: -173.11162 | I12: 618.4770747 | J12: 445.3654547
A13: 9. Elementary Occupations | B13: =(All!D32+All!D33)/1000 -> 2809.76366 | C13: =(All!N32+All!N33)/1000 -> 2978.295281 | D13: =(All!X32+All!X33)/1000 -> 2789.864562 | E13: =(All!AC32+All!AC33)/1000 -> 2668.429726 | F13: =(All!AH32+All!AH33)/1000 -> 2739.364426 | H13: -50.500136 | I13: 1030.187355 | J13: 979.6872192
A14: Total | B14: =All!D8/1000 -> 22908.799 | C14: =All!N8/1000 -> 25357.673 | D14: =All!X8/1000 -> 27113.472 | E14: =All!AC8/1000 -> 27738.625 | F14: =All!AH8/1000 -> 28726.11 | H14: 1612.638 | I14: =SUM(I5:I13) -> 10620.17091 | J14: 12232.80891
A16: Percentage Shares | B16: =B$4 -> 1992 | C16: =C$4 -> 2002 | D16: =D$4 -> 2012 | E16: =E$4 -> 2017 | F16: =F$4 -> 2022 | H16: Percentage Changes
A17: 1. Managers and Senior Officials | B17: =IF(B14>0,B5/B14*100,0) -> 8.213184764 | C17: =IF(C14>0,C5/C14*100,0) -> 9.316319818 | D17: =IF(D14>0,D5/D14*100,0) -> 10.65396561 | E17: =IF(E14>0,E5/E14*100,0) -> 11.26703607 | F17: =IF(F14>0,F5/F14*100,0) -> 11.8388087 | H17: =IF(D5>0,H5/D5*100,0) -> 17.73033967 | I17: 41.67197919 | J17: =IF(D5>0,J5/D5*100,0) -> 59.40231886
A18: 2. Professional Occupations | B18: =IF(B14>0,B6/B14*100,0) -> 14.63387729 | C18: =IF(C14>0,C6/C14*100,0) -> 16.73482058 | D18: =IF(D14>0,D6/D14*100,0) -> 19.71772147 | E18: =IF(E14>0,E6/E14*100,0) -> 21.24669661 | F18: =IF(F14>0,F6/F14*100,0) -> 22.07011063 | H18: 18.58765118 | I18: 40.33938649 | J18: 58.92703767
A19: 3. Associate Professional and Technical Occupations | B19: =IF(B14>0,B7/B14*100,0) -> 11.17393946 | C19: =IF(C14>0,C7/C14*100,0) -> 12.61688344 | D19: =IF(D14>0,D7/D14*100,0) -> 13.3658375 | E19: =IF(E14>0,E7/E14*100,0) -> 13.92505746 | F19: =IF(F14>0,F7/F14*100,0) -> 14.37754528 | H19: 13.96729802 | I19: 36.94784158 | J19: 50.9151396
A20: 4. Administrative, Clerical and Secretarial Occupations | B20: =IF(B14>0,B8/B14*100,0) -> 16.49159959 | C20: =IF(C14>0,C8/C14*100,0) -> 14.10399981 | D20: =IF(D14>0,D8/D14*100,0) -> 11.66676061 | E20: =IF(E14>0,E8/E14*100,0) -> 10.56846123 | F20: =IF(F14>0,F8/F14*100,0) -> 9.528245307 | H20: -13.47246577 | I20: 42.7885051 | J20: 29.31603934
A21: 5. Skilled Trades Occupations | B21: =IF(B14>0,B9/B14*100,0) -> 14.7139769 | C21: =IF(C14>0,C9/C14*100,0) -> 12.27327683 | D21: =IF(D14>0,D9/D14*100,0) -> 10.75986782 | E21: =IF(E14>0,E9/E14*100,0) -> 9.940385578 | F21: =IF(F14>0,F9/F14*100,0) -> 9.26636343 | H21: -8.75815096 | I21: 33.77100654 | J21: 25.01285558
A22: 6. Personal Service Occupations | B22: =IF(B14>0,B10/B14*100,0) -> 5.61587188 | C22: =IF(C14>0,C10/C14*100,0) -> 7.508113465 | D22: =IF(D14>0,D10/D14*100,0) -> 8.983967671 | E22: =IF(E14>0,E10/E14*100,0) -> 9.80216342 | F22: =IF(F14>0,F10/F14*100,0) -> 10.40897682 | H22: 22.75283913 | I22: 46.35263091 | J22: 69.10547003
A23: 7. Sales and Customer Service Occupations | B23: =IF(B14>0,B11/B14*100,0) -> 8.16670378 | C23: =IF(C14>0,C11/C14*100,0) -> 8.563097718 | D23: =IF(D14>0,D11/D14*100,0) -> 8.400974497 | E23: =IF(E14>0,E11/E14*100,0) -> 7.995734605 | F23: =IF(F14>0,F11/F14*100,0) -> 7.760999429 | H23: -2.123220771 | I23: 35.31224449 | J23: 33.18902372
A24: 8. Transport and Machine Operatives | B24: =IF(B14>0,B12/B14*100,0) -> 8.725848675 | C24: =IF(C14>0,C12/C14*100,0) -> 7.13834407 | D24: =IF(D14>0,D12/D14*100,0) -> 6.161316821 | E24: =IF(E14>0,E12/E14*100,0) -> 5.634558757 | F24: =IF(F14>0,F12/F14*100,0) -> 5.212802189 | H24: -10.36257161 | I24: 37.02243083 | J24: 26.65985922
A25: 9. Elementary Occupations | B25: =IF(B14>0,B13/B14*100,0) -> 12.26499765 | C25: =IF(C14>0,C13/C14*100,0) -> 11.74514428 | D25: =IF(D14>0,D13/D14*100,0) -> 10.289588 | E25: =IF(E14>0,E13/E14*100,0) -> 9.619906271 | F25: =IF(F14>0,F13/F14*100,0) -> 9.536148215 | H25: -1.810128588 | I25: 36.92607051 | J25: 35.11594192
A26: Total | B26: =IF(B14>0,B14/B14*100,0) -> 100 | C26: =IF(C14>0,C14/C14*100,0) -> 100 | D26: =IF(D14>0,D14/D14*100,0) -> 100 | E26: =IF(E14>0,E14/E14*100,0) -> 100 | F26: =IF(F14>0,F14/F14*100,0) -> 100 | H26: 5.947736977 | I26: 39.1693506 | J26: 45.11708758
A27: =CELL("filename",$A$1) -> R:\Research Info\Individual research project info\Working Futures 2012-2022\Working Futures quant projections 2012-2022\04 Reporting and outputs\Final outputs\Workbooks\Files for gov.uk\England\[75ENv2.xlsm]Table 6.x.3
A29: Table 6.1.4 | B29: Changing Composition of Employment by Occupation
B30: =names!A4 -> Agriculture, etc | H30: =D32&" - "&F32 -> 2012 - 2022
A31: SOC2010 Major Groups | H31: Net | I31: Replacement | J31: Total
A32: Employment Levels (000s) | B32: =B$4 -> 1992 | C32: =C$4 -> 2002 | D32: =D$4 -> 2012 | E32: =E$4 -> 2017 | F32: =F$4 -> 2022 | H32: Change | I32: Demands | J32: Requirement
A33: 1. Managers and Senior Officials | B33: =(All!D37+All!D38)/1000 -> 38.903825 | C33: =(All!N37+All!N38)/1000 -> 18.0358 | D33: =(All!X37+All!X38)/1000 -> 22.863925 | E33: =(All!AC37+All!AC38)/1000 -> 19.818103 | F33: =(All!AH37+All!AH38)/1000 -> 19.510771 | H33: =F33-D33 -> -3.353154 | I33: =D33*I45/100 -> 8.521788217 | J33: =I33+H33 -> 5.168634217
A34: 2. Professional Occupations | B34: =(All!D39+All!D40+All!D41+All!D42)/1000 -> 16.808572 | C34: =(All!N39+All!N40+All!N41+All!N42)/1000 -> 12.771226 | D34: =(All!X39+All!X40+All!X41+All!X42)/1000 -> 14.02535 | E34: =(All!AC39+All!AC40+All!AC41+All!AC42)/1000 -> 14.254617 | F34: =(All!AH39+All!AH40+All!AH41+All!AH42)/1000 -> 16.24098 | H34: 2.21563 | I34: 5.17664125 | J34: 7.39227125
A35: 3. Associate Professional and Technical Occupations | B35: =(All!D43+All!D44+All!D45+All!D46+All!D47)/1000 -> 9.651195 | C35: =(All!N43+All!N44+All!N45+All!N46+All!N47)/1000 -> 7.0956 | D35: =(All!X43+All!X44+All!X45+All!X46+All!X47)/1000 -> 9.516417 | E35: =(All!AC43+All!AC44+All!AC45+All!AC46+All!AC47)/1000 -> 9.255864 | F35: =(All!AH43+All!AH44+All!AH45+All!AH46+All!AH47)/1000 -> 10.25162 | H35: 0.735203 | I35: 3.258271119 | J35: 3.993474119
A36: 4. Administrative, Clerical and Secretarial Occupations | B36: =(All!D48+All!D49)/1000 -> 26.934312 | C36: =(All!N48+All!N49)/1000 -> 15.54423 | D36: =(All!X48+All!X49)/1000 -> 16.543132 | E36: =(All!AC48+All!AC49)/1000 -> 13.580176 | F36: =(All!AH48+All!AH49)/1000 -> 12.922394 | H36: -3.620738 | I36: 6.537210764 | J36: 2.916472764
A37: 5. Skilled Trades Occupations | B37: =(All!D50+All!D51+All!D52+All!D53)/1000 -> 173.493792 | C37: =(All!N50+All!N51+All!N52+All!N53)/1000 -> 100.398269 | D37: =(All!X50+All!X51+All!X52+All!X53)/1000 -> 173.897784 | E37: =(All!AC50+All!AC51+All!AC52+All!AC53)/1000 -> 140.014442 | F37: =(All!AH50+All!AH51+All!AH52+All!AH53)/1000 -> 131.033526 | H37: -42.864258 | I37: 79.12105254 | J37: 36.25679454
A38: 6. Personal Service Occupations | B38: =(All!D54+All!D55)/1000 -> 17.023557 | C38: =(All!N54+All!N55)/1000 -> 12.890005 | D38: =(All!X54+All!X55)/1000 -> 11.604884 | E38: =(All!AC54+All!AC55)/1000 -> 12.113982 | F38: =(All!AH54+All!AH55)/1000 -> 13.371927 | H38: 1.767043 | I38: 4.657353294 | J38: 6.424396294
A39: 7. Sales and Customer Service Occupations | B39: =(All!D56+All!D57)/1000 -> 4.838823 | C39: =(All!N56+All!N57)/1000 -> 3.775627 | D39: =(All!X56+All!X57)/1000 -> 3.882875 | E39: =(All!AC56+All!AC57)/1000 -> 3.204901 | F39: =(All!AH56+All!AH57)/1000 -> 3.13788 | H39: -0.744995 | I39: 1.155031799 | J39: 0.4100367988
A40: 8. Transport and Machine Operatives | B40: =(All!D58+All!D59)/1000 -> 23.130717 | C40: =(All!N58+All!N59)/1000 -> 15.515968 | D40: =(All!X58+All!X59)/1000 -> 12.136489 | E40: =(All!AC58+All!AC59)/1000 -> 9.037222 | F40: =(All!AH58+All!AH59)/1000 -> 7.753961 | H40: -4.382528 | I40: 3.61914433 | J40: -0.7633836702
A41: 9. Elementary Occupations | B41: =(All!D60+All!D61)/1000 -> 80.121208 | C41: =(All!N60+All!N61)/1000 -> 54.125274 | D41: =(All!X60+All!X61)/1000 -> 43.957143 | E41: =(All!AC60+All!AC61)/1000 -> 34.412693 | F41: =(All!AH60+All!AH61)/1000 -> 31.36494 | H41: -12.592203 | I41: 12.67611959 | J41: 0.08391658806
A42: Total | B42: =All!D36/1000 -> 390.906 | C42: =All!N36/1000 -> 240.152 | D42: =All!X36/1000 -> 308.428 | E42: =All!AC36/1000 -> 255.692 | F42: =All!AH36/1000 -> 245.588 | H42: -62.84 | I42: =SUM(I33:I41) -> 124.7226129 | J42: 61.8826129
A44: Percentage Shares | B44: =B$4 -> 1992 | C44: =C$4 -> 2002 | D44: =D$4 -> 2012 | E44: =E$4 -> 2017 | F44: =F$4 -> 2022 | H44: Percentage Changes
A45: 1. Managers and Senior Officials | B45: =IF(B42>0,B33/B42*100,0) -> 9.952219971 | C45: =IF(C42>0,C33/C42*100,0) -> 7.510160232 | D45: =IF(D42>0,D33/D42*100,0) -> 7.41305102 | E45: =IF(E42>0,E33/E42*100,0) -> 7.750771631 | F45: =IF(F42>0,F33/F42*100,0) -> 7.944513168 | H45: =IF(D33>0,H33/D33*100,0) -> -14.66569716 | I45: 37.27176422 | J45: =IF(D33>0,J33/D33*100,0) -> 22.60606706
A46: 2. Professional Occupations | B46: =IF(B42>0,B34/B42*100,0) -> 4.299901255 | C46: =IF(C42>0,C34/C42*100,0) -> 5.317976115 | D46: =IF(D42>0,D34/D42*100,0) -> 4.547365998 | E46: =IF(E42>0,E34/E42*100,0) -> 5.574917088 | F46: =IF(F42>0,F34/F42*100,0) -> 6.613099989 | H46: 15.79732413 | I46: 36.90917695 | J46: 52.70650108
A47: 3. Associate Professional and Technical Occupations | B47: =IF(B42>0,B35/B42*100,0) -> 2.468929871 | C47: =IF(C42>0,C35/C42*100,0) -> 2.954628735 | D47: =IF(D42>0,D35/D42*100,0) -> 3.085458194 | E47: =IF(E42>0,E35/E42*100,0) -> 3.6199271 | F47: =IF(F42>0,F35/F42*100,0) -> 4.174316335 | H47: 7.725628249 | I47: 34.23842312 | J47: 41.96405137
A48: 4. Administrative, Clerical and Secretarial Occupations | B48: =IF(B42>0,B36/B42*100,0) -> 6.890227318 | C48: =IF(C42>0,C36/C42*100,0) -> 6.472663147 | D48: =IF(D42>0,D36/D42*100,0) -> 5.363693309 | E48: =IF(E42>0,E36/E42*100,0) -> 5.311146223 | F48: =IF(F42>0,F36/F42*100,0) -> 5.261818167 | H48: -21.88665363 | I48: 39.51616154 | J48: 17.62950791
A49: 5. Skilled Trades Occupations | B49: =IF(B42>0,B37/B42*100,0) -> 44.38248377 | C49: =IF(C42>0,C37/C42*100,0) -> 41.80613486 | D49: =IF(D42>0,D37/D42*100,0) -> 56.38197051 | E49: =IF(E42>0,E37/E42*100,0) -> 54.75902336 | F49: =IF(F42>0,F37/F42*100,0) -> 53.35501979 | H49: -24.64911111 | I49: 45.49859735 | J49: 20.84948624
A50: 6. Personal Service Occupations | B50: =IF(B42>0,B38/B42*100,0) -> 4.354897853 | C50: =IF(C42>0,C38/C42*100,0) -> 5.367436041 | D50: =IF(D42>0,D38/D42*100,0) -> 3.762590945 | E50: =IF(E42>0,E38/E42*100,0) -> 4.737724293 | F50: =IF(F42>0,F38/F42*100,0) -> 5.44486172 | H50: 15.22671834 | I50: 40.13270011 | J50: 55.35941845
A51: 7. Sales and Customer Service Occupations | B51: =IF(B42>0,B39/B42*100,0) -> 1.237848229 | C51: =IF(C42>0,C39/C42*100,0) -> 1.572182201 | D51: =IF(D42>0,D39/D42*100,0) -> 1.258924287 | E51: =IF(E42>0,E39/E42*100,0) -> 1.253422477 | F51: =IF(F42>0,F39/F42*100,0) -> 1.277700865 | H51: -19.18668512 | I51: 29.74681901 | J51: 10.56013389
A52: 8. Transport and Machine Operatives | B52: =IF(B42>0,B40/B42*100,0) -> 5.91720695 | C52: =IF(C42>0,C40/C42*100,0) -> 6.460894767 | D52: =IF(D42>0,D40/D42*100,0) -> 3.934950458 | E52: =IF(E42>0,E40/E42*100,0) -> 3.534417189 | F52: =IF(F42>0,F40/F42*100,0) -> 3.15730451 | H52: -36.1103446 | I52: 29.82035686 | J52: -6.28998774
A53: 9. Elementary Occupations | B53: =IF(B42>0,B41/B42*100,0) -> 20.49628504 | C53: =IF(C42>0,C41/C42*100,0) -> 22.53792348 | D53: =IF(D42>0,D41/D42*100,0) -> 14.25199496 | E53: =IF(E42>0,E41/E42*100,0) -> 13.45865064 | F53: =IF(F42>0,F41/F42*100,0) -> 12.77136505 | H53: -28.64654557 | I53: 28.83745103 | J53: 0.1909054646
A54: Total | B54: =IF(B42>0,B42/B42*100,0) -> 100 | C54: =IF(C42>0,C42/C42*100,0) -> 100 | D54: =IF(D42>0,D42/D42*100,0) -> 100 | E54: =IF(E42>0,E42/E42*100,0) -> 100 | F54: =IF(F42>0,F42/F42*100,0) -> 100 | H54: -20.37428508 | I54: 40.43816176 | J54: 20.06387647
A55: =$A$27 -> R:\Research Info\Individual research project info\Working Futures 2012-2022\Working Futures quant projections 2012-2022\04 Reporting and outputs\Final outputs\Workbooks\Files for gov.uk\England\[75ENv2.xlsm]Table 6.x.3
A57: Table 6.2.4 | B57: Changing Composition of Employment by Occupation
B58: =names!A5 -> Coal, oil & gas; Mining & related | H58: =D60&" - "&F60 -> 2012 - 2022
A59: SOC2010 Major Groups | H59: Net | I59: Replacement | J59: Total
A60: Employment Levels (000s) | B60: =B$4 -> 1992 | C60: =C$4 -> 2002 | D60: =D$4 -> 2012 | E60: =E$4 -> 2017 | F60: =F$4 -> 2022 | H60: Change | I60: Demands | J60: Requirement
A61: 1. Managers and Senior Officials | B61: =(All!D65+All!D66)/1000 -> 5.423914 | C61: =(All!N65+All!N66)/1000 -> 3.430293 | D61: =(All!X65+All!X66)/1000 -> 4.475636 | E61: =(All!AC65+All!AC66)/1000 -> 4.368967 | F61: =(All!AH65+All!AH66)/1000 -> 4.453302 | H61: =F61-D61 -> -0.022334 | I61: =D61*I73/100 -> 1.496065179 | J61: =I61+H61 -> 1.473731179
A62: 2. Professional Occupations | B62: =(All!D67+All!D68+All!D69+All!D70)/1000 -> 12.00194 | C62: =(All!N67+All!N68+All!N69+All!N70)/1000 -> 6.16211 | D62: =(All!X67+All!X68+All!X69+All!X70)/1000 -> 5.185049 | E62: =(All!AC67+All!AC68+All!AC69+All!AC70)/1000 -> 4.541362 | F62: =(All!AH67+All!AH68+All!AH69+All!AH70)/1000 -> 4.425204 | H62: -0.759845 | I62: 1.493187954 | J62: 0.733342954
A63: 3. Associate Professional and Technical Occupations | B63: =(All!D71+All!D72+All!D73+All!D74+All!D75)/1000 -> 11.523444 | C63: =(All!N71+All!N72+All!N73+All!N74+All!N75)/1000 -> 5.892979 | D63: =(All!X71+All!X72+All!X73+All!X74+All!X75)/1000 -> 5.085114 | E63: =(All!AC71+All!AC72+All!AC73+All!AC74+All!AC75)/1000 -> 4.580141 | F63: =(All!AH71+All!AH72+All!AH73+All!AH74+All!AH75)/1000 -> 4.496768 | H63: -0.588346 | I63: 1.477712662 | J63: 0.8893666616
A64: 4. Administrative, Clerical and Secretarial Occupations | B64: =(All!D76+All!D77)/1000 -> 5.621348 | C64: =(All!N76+All!N77)/1000 -> 3.630252 | D64: =(All!X76+All!X77)/1000 -> 2.134582 | E64: =(All!AC76+All!AC77)/1000 -> 1.876592 | F64: =(All!AH76+All!AH77)/1000 -> 1.691645 | H64: -0.442937 | I64: 0.7860649818 | J64: 0.3431279818
A65: 5. Skilled Trades Occupations | B65: =(All!D78+All!D79+All!D80+All!D81)/1000 -> 23.172396 | C65: =(All!N78+All!N79+All!N80+All!N81)/1000 -> 8.484126 | D65: =(All!X78+All!X79+All!X80+All!X81)/1000 -> 7.393616 | E65: =(All!AC78+All!AC79+All!AC80+All!AC81)/1000 -> 6.41959 | F65: =(All!AH78+All!AH79+All!AH80+All!AH81)/1000 -> 5.829359 | H65: -1.564257 | I65: 2.238089385 | J65: 0.6738323854
A66: 6. Personal Service Occupations | B66: =(All!D82+All!D83)/1000 -> 0.561379 | C66: =(All!N82+All!N83)/1000 -> 0.82778 | D66: =(All!X82+All!X83)/1000 -> 0.650792 | E66: =(All!AC82+All!AC83)/1000 -> 0.68952 | F66: =(All!AH82+All!AH83)/1000 -> 0.728672 | H66: 0.07788 | I66: 0.2908341985 | J66: 0.3687141985
A67: 7. Sales and Customer Service Occupations | B67: =(All!D84+All!D85)/1000 -> 0.90432 | C67: =(All!N84+All!N85)/1000 -> 0.961481 | D67: =(All!X84+All!X85)/1000 -> 0.828714 | E67: =(All!AC84+All!AC85)/1000 -> 0.748528 | F67: =(All!AH84+All!AH85)/1000 -> 0.738024 | H67: -0.09069 | I67: 0.2234297016 | J67: 0.1327397016
A68: 8. Transport and Machine Operatives | B68: =(All!D86+All!D87)/1000 -> 23.252452 | C68: =(All!N86+All!N87)/1000 -> 11.393027 | D68: =(All!X86+All!X87)/1000 -> 6.851218 | E68: =(All!AC86+All!AC87)/1000 -> 5.864766 | F68: =(All!AH86+All!AH87)/1000 -> 5.392312 | H68: -1.458906 | I68: 2.123004115 | J68: 0.6640981151
A69: 9. Elementary Occupations | B69: =(All!D88+All!D89)/1000 -> 1.895807 | C69: =(All!N88+All!N89)/1000 -> 1.377952 | D69: =(All!X88+All!X89)/1000 -> 1.621279 | E69: =(All!AC88+All!AC89)/1000 -> 1.651534 | F69: =(All!AH88+All!AH89)/1000 -> 1.673714 | H69: 0.052435 | I69: 0.5286178003 | J69: 0.5810528003
A70: Total | B70: =All!D64/1000 -> 84.357 | C70: =All!N64/1000 -> 42.16 | D70: =All!X64/1000 -> 34.226 | E70: =All!AC64/1000 -> 30.741 | F70: =All!AH64/1000 -> 29.429 | H70: -4.797 | I70: =SUM(I61:I69) -> 10.65700598 | J70: 5.860005978
A72: Percentage Shares | B72: =B$4 -> 1992 | C72: =C$4 -> 2002 | D72: =D$4 -> 2012 | E72: =E$4 -> 2017 | F72: =F$4 -> 2022 | H72: Percentage Changes
A73: 1. Managers and Senior Officials | B73: =IF(B70>0,B61/B70*100,0) -> 6.429714191 | C73: =IF(C70>0,C61/C70*100,0) -> 8.136368596 | D73: =IF(D70>0,D61/D70*100,0) -> 13.07671361 | E73: =IF(E70>0,E61/E70*100,0) -> 14.21218243 | F73: =IF(F70>0,F61/F70*100,0) -> 15.13235924 | H73: =IF(D61>0,H61/D61*100,0) -> -0.4990128777 | I73: 33.42687339 | J73: =IF(D61>0,J61/D61*100,0) -> 32.92786051
A74: 2. Professional Occupations | B74: =IF(B70>0,B62/B70*100,0) -> 14.22755669 | C74: =IF(C70>0,C62/C70*100,0) -> 14.61601044 | D74: =IF(D70>0,D62/D70*100,0) -> 15.14944487 | E74: =IF(E70>0,E62/E70*100,0) -> 14.77298071 | F74: =IF(F70>0,F62/F70*100,0) -> 15.03688199 | H74: -14.65453846 | I74: 28.79795261 | J74: 14.14341415
A75: 3. Associate Professional and Technical Occupations | B75: =IF(B70>0,B63/B70*100,0) -> 13.66032931 | C75: =IF(C70>0,C63/C70*100,0) -> 13.97765417 | D75: =IF(D70>0,D63/D70*100,0) -> 14.85745924 | E75: =IF(E70>0,E63/E70*100,0) -> 14.8991282 | F75: =IF(F70>0,F63/F70*100,0) -> 15.28005709 | H75: -11.56996677 | I75: 29.05957785 | J75: 17.48961108
A76: 4. Administrative, Clerical and Secretarial Occupations | B76: =IF(B70>0,B64/B70*100,0) -> 6.663759972 | C76: =IF(C70>0,C64/C70*100,0) -> 8.610654649 | D76: =IF(D70>0,D64/D70*100,0) -> 6.236726465 | E76: =IF(E70>0,E64/E70*100,0) -> 6.104524902 | F76: =IF(F70>0,F64/F70*100,0) -> 5.74822454 | H76: -20.75052633 | I76: 36.82524175 | J76: 16.07471542
A77: 5. Skilled Trades Occupations | B77: =IF(B70>0,B65/B70*100,0) -> 27.46944059 | C77: =IF(C70>0,C65/C70*100,0) -> 20.12363852 | D77: =IF(D70>0,D65/D70*100,0) -> 21.6023374 | E77: =IF(E70>0,E65/E70*100,0) -> 20.88282749 | F77: =IF(F70>0,F65/F70*100,0) -> 19.80821299 | H77: -21.15686019 | I77: 30.27056565 | J77: 9.113705464
A78: 6. Personal Service Occupations | B78: =IF(B70>0,B66/B70*100,0) -> 0.6654800431 | C78: =IF(C70>0,C66/C70*100,0) -> 1.963425047 | D78: =IF(D70>0,D66/D70*100,0) -> 1.901455034 | E78: =IF(E70>0,E66/E70*100,0) -> 2.242997951 | F78: =IF(F70>0,F66/F70*100,0) -> 2.476033844 | H78: 11.96695718 | I78: 44.68927069 | J78: 56.65622787
A79: 7. Sales and Customer Service Occupations | B79: =IF(B70>0,B67/B70*100,0) -> 1.072015363 | C79: =IF(C70>0,C67/C70*100,0) -> 2.280552657 | D79: =IF(D70>0,D67/D70*100,0) -> 2.421299597 | E79: =IF(E70>0,E67/E70*100,0) -> 2.434950067 | F79: =IF(F70>0,F67/F70*100,0) -> 2.507812022 | H79: -10.9434618 | I79: 26.96101449 | J79: 16.0175527
A80: 8. Transport and Machine Operatives | B80: =IF(B70>0,B68/B70*100,0) -> 27.56434202 | C80: =IF(C70>0,C68/C70*100,0) -> 27.02330882 | D80: =IF(D70>0,D68/D70*100,0) -> 20.01758312 | E80: =IF(E70>0,E68/E70*100,0) -> 19.07799356 | F80: =IF(F70>0,F68/F70*100,0) -> 18.32312345 | H80: -21.2941115 | I80: 30.98725096 | J80: 9.693139455
A81: 9. Elementary Occupations | B81: =IF(B70>0,B69/B70*100,0) -> 2.247361808 | C81: =IF(C70>0,C69/C70*100,0) -> 3.268387097 | D81: =IF(D70>0,D69/D70*100,0) -> 4.736980658 | E81: =IF(E70>0,E69/E70*100,0) -> 5.37241469 | F81: =IF(F70>0,F69/F70*100,0) -> 5.687294845 | H81: 3.234174994 | I81: 32.60498658 | J81: 35.83916157
A82: Total | B82: =IF(B70>0,B70/B70*100,0) -> 100 | C82: =IF(C70>0,C70/C70*100,0) -> 100 | D82: =IF(D70>0,D70/D70*100,0) -> 100 | E82: =IF(E70>0,E70/E70*100,0) -> 100 | F82: =IF(F70>0,F70/F70*100,0) -> 100 | H82: -14.01566061 | I82: 31.13716465 | J82: 17.12150405
A83: =$A$27 -> R:\Research Info\Individual research project info\Working Futures 2012-2022\Working Futures quant projections 2012-2022\04 Reporting and outputs\Final outputs\Workbooks\Files for gov.uk\England\[75ENv2.xlsm]Table 6.x.3
A85: Table 6.3.4 | B85: Changing Composition of Employment by Occupation
B86: =names!A6 -> Food products | H86: =D88&" - "&F88 -> 2012 - 2022
A87: SOC2010 Major Groups | H87: Net | I87: Replacement | J87: Total
A88: Employment Levels (000s) | B88: =B$4 -> 1992 | C88: =C$4 -> 2002 | D88: =D$4 -> 2012 | E88: =E$4 -> 2017 | F88: =F$4 -> 2022 | H88: Change | I88: Demands | J88: Requirement
A89: 1. Managers and Senior Officials | B89: =(All!D93+All!D94)/1000 -> 17.410136 | C89: =(All!N93+All!N94)/1000 -> 22.60409 | D89: =(All!X93+All!X94)/1000 -> 24.787076 | E89: =(All!AC93+All!AC94)/1000 -> 28.419574 | F89: =(All!AH93+All!AH94)/1000 -> 30.350583 | H89: =F89-D89 -> 5.563507 | I89: =D89*I101/100 -> 10.19898736 | J89: =I89+H89 -> 15.76249436
A90: 2. Professional Occupations | B90: =(All!D95+All!D96+All!D97+All!D98)/1000 -> 15.645644 | C90: =(All!N95+All!N96+All!N97+All!N98)/1000 -> 20.090673 | D90: =(All!X95+All!X96+All!X97+All!X98)/1000 -> 16.81927 | E90: =(All!AC95+All!AC96+All!AC97+All!AC98)/1000 -> 19.645861 | F90: =(All!AH95+All!AH96+All!AH97+All!AH98)/1000 -> 20.811994 | H90: 3.992724 | I90: 6.476317372 | J90: 10.46904137
A91: 3. Associate Professional and Technical Occupations | B91: =(All!D99+All!D100+All!D101+All!D102+All!D103)/1000 -> 26.405156 | C91: =(All!N99+All!N100+All!N101+All!N102+All!N103)/1000 -> 30.619219 | D91: =(All!X99+All!X100+All!X101+All!X102+All!X103)/1000 -> 31.112794 | E91: =(All!AC99+All!AC100+All!AC101+All!AC102+All!AC103)/1000 -> 34.258168 | F91: =(All!AH99+All!AH100+All!AH101+All!AH102+All!AH103)/1000 -> 35.18206 | H91: 4.069266 | I91: 11.3839519 | J91: 15.4532179
A92: 4. Administrative, Clerical and Secretarial Occupations | B92: =(All!D104+All!D105)/1000 -> 36.198665 | C92: =(All!N104+All!N105)/1000 -> 22.50793 | D92: =(All!X104+All!X105)/1000 -> 22.503451 | E92: =(All!AC104+All!AC105)/1000 -> 23.65954 | F92: =(All!AH104+All!AH105)/1000 -> 22.656302 | H92: 0.152851 | I92: 9.995644119 | J92: 10.14849512
A93: 5. Skilled Trades Occupations | B93: =(All!D106+All!D107+All!D108+All!D109)/1000 -> 63.371028 | C93: =(All!N106+All!N107+All!N108+All!N109)/1000 -> 60.86842 | D93: =(All!X106+All!X107+All!X108+All!X109)/1000 -> 45.129795 | E93: =(All!AC106+All!AC107+All!AC108+All!AC109)/1000 -> 39.468436 | F93: =(All!AH106+All!AH107+All!AH108+All!AH109)/1000 -> 33.598411 | H93: -11.531384 | I93: 14.18720699 | J93: 2.655822991
A94: 6. Personal Service Occupations | B94: =(All!D110+All!D111)/1000 -> 1.564029 | C94: =(All!N110+All!N111)/1000 -> 1.563451 | D94: =(All!X110+All!X111)/1000 -> 1.849412 | E94: =(All!AC110+All!AC111)/1000 -> 2.251248 | F94: =(All!AH110+All!AH111)/1000 -> 2.418802 | H94: 0.56939 | I94: 0.9560172661 | J94: 1.525407266
A95: 7. Sales and Customer Service Occupations | B95: =(All!D112+All!D113)/1000 -> 11.851236 | C95: =(All!N112+All!N113)/1000 -> 10.702052 | D95: =(All!X112+All!X113)/1000 -> 11.790188 | E95: =(All!AC112+All!AC113)/1000 -> 12.425422 | F95: =(All!AH112+All!AH113)/1000 -> 12.418782 | H95: 0.628594 | I95: 4.244054063 | J95: 4.872648063
A96: 8. Transport and Machine Operatives | B96: =(All!D114+All!D115)/1000 -> 142.187421 | C96: =(All!N114+All!N115)/1000 -> 125.33321 | D96: =(All!X114+All!X115)/1000 -> 96.639697 | E96: =(All!AC114+All!AC115)/1000 -> 86.893972 | F96: =(All!AH114+All!AH115)/1000 -> 73.478 | H96: -23.161697 | I96: 30.77868681 | J96: 7.616989807
A97: 9. Elementary Occupations | B97: =(All!D116+All!D117)/1000 -> 65.538683 | C97: =(All!N116+All!N117)/1000 -> 52.356955 | D97: =(All!X116+All!X117)/1000 -> 55.464319 | E97: =(All!AC116+All!AC117)/1000 -> 55.762778 | F97: =(All!AH116+All!AH117)/1000 -> 55.336067 | H97: -0.128252 | I97: 21.5562064 | J97: 21.4279544
A98: Total | B98: =All!D92/1000 -> 380.172 | C98: =All!N92/1000 -> 346.646 | D98: =All!X92/1000 -> 306.096 | E98: =All!AC92/1000 -> 302.785 | F98: =All!AH92/1000 -> 286.251 | H98: -19.845 | I98: =SUM(I89:I97) -> 109.7770723 | J98: 89.93207229
A100: Percentage Shares | B100: =B$4 -> 1992 | C100: =C$4 -> 2002 | D100: =D$4 -> 2012 | E100: =E$4 -> 2017 | F100: =F$4 -> 2022 | H100: Percentage Changes
A101: 1. Managers and Senior Officials | B101: =IF(B98>0,B89/B98*100,0) -> 4.579541892 | C101: =IF(C98>0,C89/C98*100,0) -> 6.520799317 | D101: =IF(D98>0,D89/D98*100,0) -> 8.097811144 | E101: =IF(E98>0,E89/E98*100,0) -> 9.386057433 | F101: =IF(F98>0,F89/F98*100,0) -> 10.60278672 | H101: =IF(D89>0,H89/D89*100,0) -> 22.44519281 | I101: 41.14639162 | J101: =IF(D89>0,J89/D89*100,0) -> 63.59158443
A102: 2. Professional Occupations | B102: =IF(B98>0,B90/B98*100,0) -> 4.115411971 | C102: =IF(C98>0,C90/C98*100,0) -> 5.795731957 | D102: =IF(D98>0,D90/D98*100,0) -> 5.494769615 | E102: =IF(E98>0,E90/E98*100,0) -> 6.488386479 | F102: =IF(F98>0,F90/F98*100,0) -> 7.27054019 | H102: 23.7389851 | I102: 38.50534162 | J102: 62.24432673
A103: 3. Associate Professional and Technical Occupations | B103: =IF(B98>0,B91/B98*100,0) -> 6.945581474 | C103: =IF(C98>0,C91/C98*100,0) -> 8.832993602 | D103: =IF(D98>0,D91/D98*100,0) -> 10.16439091 | E103: =IF(E98>0,E91/E98*100,0) -> 11.31435441 | F103: =IF(F98>0,F91/F98*100,0) -> 12.29063305 | H103: 13.07907609 | I103: 36.58929476 | J103: 49.66837085
A104: 4. Administrative, Clerical and Secretarial Occupations | B104: =IF(B98>0,B92/B98*100,0) -> 9.521654672 | C104: =IF(C98>0,C92/C98*100,0) -> 6.493059202 | D104: =IF(D98>0,D92/D98*100,0) -> 7.351762519 | E104: =IF(E98>0,E92/E98*100,0) -> 7.813973612 | F104: =IF(F98>0,F92/F98*100,0) -> 7.914837677 | H104: 0.6792335984 | I104: 44.4182722 | J104: 45.09750579
A105: 5. Skilled Trades Occupations | B105: =IF(B98>0,B93/B98*100,0) -> 16.66904138 | C105: =IF(C98>0,C93/C98*100,0) -> 17.55924488 | D105: =IF(D98>0,D93/D98*100,0) -> 14.74367355 | E105: =IF(E98>0,E93/E98*100,0) -> 13.03513582 | F105: =IF(F98>0,F93/F98*100,0) -> 11.73739515 | H105: -25.55159845 | I105: 31.43645344 | J105: 5.884854987
A106: 6. Personal Service Occupations | B106: =IF(B98>0,B94/B98*100,0) -> 0.4114003662 | C106: =IF(C98>0,C94/C98*100,0) -> 0.4510223686 | D106: =IF(D98>0,D94/D98*100,0) -> 0.6041934556 | E106: =IF(E98>0,E94/E98*100,0) -> 0.7435137144 | F106: =IF(F98>0,F94/F98*100,0) -> 0.8449933799 | H106: 30.78762331 | I106: 51.69303898 | J106: 82.48066229
A107: 7. Sales and Customer Service Occupations | B107: =IF(B98>0,B95/B98*100,0) -> 3.117335311 | C107: =IF(C98>0,C95/C98*100,0) -> 3.087314436 | D107: =IF(D98>0,D95/D98*100,0) -> 3.851794208 | E107: =IF(E98>0,E95/E98*100,0) -> 4.103711214 | F107: =IF(F98>0,F95/F98*100,0) -> 4.338423971 | H107: 5.331501075 | I107: 35.99649186 | J107: 41.32799293
A108: 8. Transport and Machine Operatives | B108: =IF(B98>0,B96/B98*100,0) -> 37.40081358 | C108: =IF(C98>0,C96/C98*100,0) -> 36.15596603 | D108: =IF(D98>0,D96/D98*100,0) -> 31.57169548 | E108: =IF(E98>0,E96/E98*100,0) -> 28.69824199 | F108: =IF(F98>0,F96/F98*100,0) -> 25.66908063 | H108: -23.96706293 | I108: 31.84890657 | J108: 7.881843635
A109: 9. Elementary Occupations | B109: =IF(B98>0,B97/B98*100,0) -> 17.23921883 | C109: =IF(C98>0,C97/C98*100,0) -> 15.10386821 | D109: =IF(D98>0,D97/D98*100,0) -> 18.11990977 | E109: =IF(E98>0,E97/E98*100,0) -> 18.416625 | F109: =IF(F98>0,F97/F98*100,0) -> 19.33130958 | H109: -0.2312333448 | I109: 38.86499788 | J109: 38.63376453
A110: Total | B110: =IF(B98>0,B98/B98*100,0) -> 100 | C110: =IF(C98>0,C98/C98*100,0) -> 100 | D110: =IF(D98>0,D98/D98*100,0) -> 100 | E110: =IF(E98>0,E98/E98*100,0) -> 100 | F110: =IF(F98>0,F98/F98*100,0) -> 100 | H110: -6.483260154 | I110: 35.86360876 | J110: 29.38034874
A111: =$A$27 -> R:\Research Info\Individual research project info\Working Futures 2012-2022\Working Futures quant projections 2012-2022\04 Reporting and outputs\Final outputs\Workbooks\Files for gov.uk\England\[75ENv2.xlsm]Table 6.x.3
A113: Table 6.4.4 | B113: Changing Composition of Employment by Occupation
B114: =names!A7 -> Beverages and tobacco | H114: =D116&" - "&F116 -> 2012 - 2022
A115: SOC2010 Major Groups | H115: Net | I115: Replacement | J115: Total
A116: Employment Levels (000s) | B116: =B$4 -> 1992 | C116: =C$4 -> 2002 | D116: =D$4 -> 2012 | E116: =E$4 -> 2017 | F116: =F$4 -> 2022 | H116: Change | I116: Demands | J116: Requirement
A117: 1. Managers and Senior Officials | B117: =(All!D121+All!D122)/1000 -> 4.424747 | C117: =(All!N121+All!N122)/1000 -> 4.517231 | D117: =(All!X121+All!X122)/1000 -> 3.667024 | E117: =(All!AC121+All!AC122)/1000 -> 3.881654 | F117: =(All!AH121+All!AH122)/1000 -> 4.191076 | H117: =F117-D117 -> 0.524052 | I117: =D117*I129/100 -> 1.410562662 | J117: =I117+H117 -> 1.934614662
A118: 2. Professional Occupations | B118: =(All!D123+All!D124+All!D125+All!D126)/1000 -> 4.425031 | C118: =(All!N123+All!N124+All!N125+All!N126)/1000 -> 4.27669 | D118: =(All!X123+All!X124+All!X125+All!X126)/1000 -> 3.61876 | E118: =(All!AC123+All!AC124+All!AC125+All!AC126)/1000 -> 3.815432 | F118: =(All!AH123+All!AH124+All!AH125+All!AH126)/1000 -> 4.067016 | H118: 0.448256 | I118: 1.292483304 | J118: 1.740739304
A119: 3. Associate Professional and Technical Occupations | B119: =(All!D127+All!D128+All!D129+All!D130+All!D131)/1000 -> 5.317057 | C119: =(All!N127+All!N128+All!N129+All!N130+All!N131)/1000 -> 5.797852 | D119: =(All!X127+All!X128+All!X129+All!X130+All!X131)/1000 -> 4.854991 | E119: =(All!AC127+All!AC128+All!AC129+All!AC130+All!AC131)/1000 -> 4.958418 | F119: =(All!AH127+All!AH128+All!AH129+All!AH130+All!AH131)/1000 -> 5.178823 | H119: 0.323832 | I119: 1.617175216 | J119: 1.941007216
A120: 4. Administrative, Clerical and Secretarial Occupations | B120: =(All!D132+All!D133)/1000 -> 5.459811 | C120: =(All!N132+All!N133)/1000 -> 4.678877 | D120: =(All!X132+All!X133)/1000 -> 2.278935 | E120: =(All!AC132+All!AC133)/1000 -> 1.942487 | F120: =(All!AH132+All!AH133)/1000 -> 1.733877 | H120: -0.545058 | I120: 0.9077310471 | J120: 0.3626730471
A121: 5. Skilled Trades Occupations | B121: =(All!D134+All!D135+All!D136+All!D137)/1000 -> 5.02064 | C121: =(All!N134+All!N135+All!N136+All!N137)/1000 -> 3.816281 | D121: =(All!X134+All!X135+All!X136+All!X137)/1000 -> 2.554002 | E121: =(All!AC134+All!AC135+All!AC136+All!AC137)/1000 -> 2.317722 | F121: =(All!AH134+All!AH135+All!AH136+All!AH137)/1000 -> 2.190992 | H121: -0.36301 | I121: 0.7981608246 | J121: 0.4351508246
A122: 6. Personal Service Occupations | B122: =(All!D138+All!D139)/1000 -> 0.654264 | C122: =(All!N138+All!N139)/1000 -> 0.901459 | D122: =(All!X138+All!X139)/1000 -> 0.575647 | E122: =(All!AC138+All!AC139)/1000 -> 0.67929 | F122: =(All!AH138+All!AH139)/1000 -> 0.769827 | H122: 0.19418 | I122: 0.2724309757 | J122: 0.4666109757
A123: 7. Sales and Customer Service Occupations | B123: =(All!D140+All!D141)/1000 -> 1.300479 | C123: =(All!N140+All!N141)/1000 -> 1.632497 | D123: =(All!X140+All!X141)/1000 -> 1.177394 | E123: =(All!AC140+All!AC141)/1000 -> 1.120818 | F123: =(All!AH140+All!AH141)/1000 -> 1.13012 | H123: -0.047274 | I123: 0.3741048374 | J123: 0.3268308374
A124: 8. Transport and Machine Operatives | B124: =(All!D142+All!D143)/1000 -> 11.877877 | C124: =(All!N142+All!N143)/1000 -> 8.901293 | D124: =(All!X142+All!X143)/1000 -> 5.537038 | E124: =(All!AC142+All!AC143)/1000 -> 5.023072 | F124: =(All!AH142+All!AH143)/1000 -> 4.778396 | H124: -0.758642 | I124: 1.871334013 | J124: 1.112692013
A125: 9. Elementary Occupations | B125: =(All!D144+All!D145)/1000 -> 3.817091 | C125: =(All!N144+All!N145)/1000 -> 3.680818 | D125: =(All!X144+All!X145)/1000 -> 2.66921 | E125: =(All!AC144+All!AC145)/1000 -> 2.324107 | F125: =(All!AH144+All!AH145)/1000 -> 2.229874 | H125: -0.439336 | I125: 0.8313074752 | J125: 0.3919714752
... 146 more rows

Sheet RD Charts(Occupations)
Z2: Values for the charts are written here by program RD_VBtab6x3PGeneratorWF5.xlsm
C4: ="Components of Replacement Demand, "&Z9&", "&AA9 -> Components of Replacement Demand, All occupations, 2012- 2022
Z9: All occupations | AA9: 2012- 2022
Z10: periods | AA10: 2012- 2013 | AB10: 2013- 2014 | AC10: 2014- 2015 | AD10: 2015- 2016 | AE10: 2016- 2017 | AF10: 2017- 2018 | AG10: 2018- 2019 | AH10: 2019- 2020 | AI10: 2020- 2021 | AJ10: 2021- 2022
Z11: labels
Z12: Expansion demand | AA12: 214.105001 | AB12: 75.205 | AC12: 83.367005 | AD12: 93.835994 | AE12: 158.639997 | AF12: 201.663001 | AG12: 211.666997 | AH12: 204.519007 | AI12: 186.230004 | AJ12: 183.405995
Z13: Replacement demand | AA13: 1043.156555 | AB13: 1048.695911 | AC13: 1050.445734 | AD13: 1052.460961 | AE13: 1055.076792 | AF13: 1060.253766 | AG13: 1067.004943 | AH13: 1074.239147 | AI13: 1081.27347 | AJ13: 1087.563628
Z14: Net requirement | AA14: 1257.261556 | AB14: 1123.900911 | AC14: 1133.812739 | AD14: 1146.296955 | AE14: 1213.716789 | AF14: 1261.916767 | AG14: 1278.67194 | AH14: 1278.758154 | AI14: 1267.503474 | AJ14: 1270.969623
C29: ="Components of Replacement Demand, "&Z34&", "&AA34 -> Components of Replacement Demand, Corporate managers and directors, 2012- 2022
Z34: Corporate managers and directors | AA34: 2012- 2022
Z35: periods | AA35: 2012- 2013 | AB35: 2013- 2014 | AC35: 2014- 2015 | AD35: 2015- 2016 | AE35: 2016- 2017 | AF35: 2017- 2018 | AG35: 2018- 2019 | AH35: 2019- 2020 | AI35: 2020- 2021 | AJ35: 2021- 2022
Z36: labels
Z37: Expansion demand | AA37: 59.339661 | AB37: 39.858165 | AC37: 39.791429 | AD37: 38.291834 | AE37: 42.792533 | AF37: 44.155964 | AG37: 44.587076 | AH37: 43.820838 | AI37: 40.903853 | AJ37: 40.138872
Z38: Replacement demand | AA38: 66.9413272 | AB38: 69.09482971 | AC38: 70.56131076 | AD38: 72.01915033 | AE38: 73.42420422 | AF38: 74.99228198 | AG38: 76.60805458 | AH38: 78.23653198 | AI38: 79.84096142 | AJ38: 81.35952156
Z39: Net requirement | AA39: 126.2809882 | AB39: 108.9529947 | AC39: 110.3527398 | AD39: 110.3109843 | AE39: 116.2167372 | AF39: 119.148246 | AG39: 121.1951306 | AH39: 122.05737 | AI39: 120.7448144 | AJ39: 121.4983936
C54: ="Components of Replacement Demand, "&Z59&", "&AA59 -> Components of Replacement Demand, Other managers and proprietors, 2012- 2022
Z59: Other managers and proprietors | AA59: 2012- 2022
Z60: periods | AA60: 2012- 2013 | AB60: 2013- 2014 | AC60: 2014- 2015 | AD60: 2015- 2016 | AE60: 2016- 2017 | AF60: 2017- 2018 | AG60: 2018- 2019 | AH60: 2019- 2020 | AI60: 2020- 2021 | AJ60: 2021- 2022
Z61: labels
Z62: Expansion demand | AA62: -14.339849 | AB62: 8.436399 | AC62: 6.016373 | AD62: 7.878013 | AE62: 8.596341 | AF62: 9.025605 | AG62: 12.64866 | AH62: 13.683133 | AI62: 12.94871 | AJ62: 13.595617
Z63: Replacement demand | AA63: 45.04303839 | AB63: 44.4335519 | AC63: 44.86789815 | AD63: 45.17814788 | AE63: 45.57208073 | AF63: 45.99950776 | AG63: 46.44488424 | AH63: 47.05945779 | AI63: 47.72026741 | AJ63: 48.36477885
Z64: Net requirement | AA64: 30.70318939 | AB64: 52.8699509 | AC64: 50.88427115 | AD64: 53.05616088 | AE64: 54.16842173 | AF64: 55.02511276 | AG64: 59.09354424 | AH64: 60.74259079 | AI64: 60.66897741 | AJ64: 61.96039585
C79: ="Components of Replacement Demand, "&Z84&", "&AA84 -> Components of Replacement Demand, Science, research, engineering and technology professionals, 2012- 2022
Z84: Science, research, engineering and technology professionals | AA84: 2012- 2022
Z85: periods | AA85: 2012- 2013 | AB85: 2013- 2014 | AC85: 2014- 2015 | AD85: 2015- 2016 | AE85: 2016- 2017 | AF85: 2017- 2018 | AG85: 2018- 2019 | AH85: 2019- 2020 | AI85: 2020- 2021 | AJ85: 2021- 2022
Z86: labels
Z87: Expansion demand | AA87: 70.383194 | AB87: 32.299399 | AC87: 30.658324 | AD87: 27.749109 | AE87: 28.26716 | AF87: 25.962958 | AG87: 25.69131 | AH87: 24.868501 | AI87: 21.452698 | AJ87: 20.844217
Z88: Replacement demand | AA88: 43.70382772 | AB88: 45.75761292 | AC88: 46.7185813 | AD88: 47.63311263 | AE88: 48.46501438 | AF88: 49.31811081 | AG88: 50.10552712 | AH88: 50.88624751 | AI88: 51.64543226 | AJ88: 52.30856858
Z89: Net requirement | AA89: 114.0870217 | AB89: 78.05701192 | AC89: 77.3769053 | AD89: 75.38222163 | AE89: 76.73217438 | AF89: 75.28106881 | AG89: 75.79683712 | AH89: 75.75474851 | AI89: 73.09813026 | AJ89: 73.15278558
C104: ="Components of Replacement Demand, "&Z109&", "&AA109 -> Components of Replacement Demand, Health professionals, 2012- 2022
Z109: Health professionals | AA109: 2012- 2022
Z110: periods | AA110: 2012- 2013 | AB110: 2013- 2014 | AC110: 2014- 2015 | AD110: 2015- 2016 | AE110: 2016- 2017 | AF110: 2017- 2018 | AG110: 2018- 2019 | AH110: 2019- 2020 | AI110: 2020- 2021 | AJ110: 2021- 2022
Z111: labels
Z112: Expansion demand | AA112: 73.710861 | AB112: 21.190835 | AC112: 18.981857 | AD112: 4.672961 | AE112: 16.619603 | AF112: 32.389691 | AG112: 20.787624 | AH112: 18.808402 | AI112: 27.557869 | AJ112: 28.164203
Z113: Replacement demand | AA113: 41.2940906 | AB113: 44.12618112 | AC113: 44.9520385 | AD113: 45.69345437 | AE113: 45.88825472 | AF113: 46.5412541 | AG113: 47.80111173 | AH113: 48.62115245 | AI113: 49.36660484 | AJ113: 50.43757091
Z114: Net requirement | AA114: 115.0049516 | AB114: 65.31701612 | AC114: 63.9338955 | AD114: 50.36641537 | AE114: 62.50785772 | AF114: 78.9309451 | AG114: 68.58873573 | AH114: 67.42955445 | AI114: 76.92447384 | AJ114: 78.60177391
... 48 more rows

Sheet Figure 7.1
DA1: Data is written here by the initial setup process (module DataQ) and the appropriate occupation copied to BL347 when an occupation is selected | DO1: Values written here on occupation list 'click'
AT2: Chart titles - do not delete. | AZ2: When an occupation is selected, data for that occupation is written here. | DO2: Replacement Demand etc 2010-2020 for selected occupation | DX2: Males | DY2: -- (as % 2010) -- | EA2: Females
F3: Click on an occupation from the list and the charts will be customised for that occupation | BB3: Chart data | CJ3: Employment by broad ind sector for current occupation | DA3: Emp x qualification for occupation 1 for every industry | DQ3: job openings | DR3: replacement | DS3: net change | DW3: Ex dem | DX3: RD | DZ3: Ex dem | EA3: RD
AT4: Share of all occupations, 1992-2022 | BB4: Shares of total employment for selected occupation for every sector | CJ4: (obviously not reproduced for every industry - that wouldn't make sense) | DA4: 2012 | DB4: =LEFT(names!$D$4,4) -> QCF8 | DC4: =LEFT(names!$D$5,4) -> QCF7 | DD4: =LEFT(names!$D$6,4) -> QCF6 | DE4: =LEFT(names!$D$7,4) -> QCF5 | DF4: =LEFT(names!$D$8,4) -> QCF4 | DG4: =LEFT(names!$D$9,4) -> QCF3 | DH4: =LEFT(names!$D$10,4) -> QCF2 | DI4: =LEFT(names!$D$11,4) -> QCF1 | DJ4: =LEFT(names!$D$12,7) -> No Qual | DO4: All industries | DP4: Females | DQ4: 437.3850651 | DR4: 262.9227721 | DS4: 174.462293 | DW4: 16.44645223 | DX4: 32.33393789 | DZ4: 28.64685793 | EA4: 43.06564131
AT5: Replacement demand, 2012-2022 | BB5: 1992 | BC5: 1993 | BD5: 1994 | BE5: 1995 | BF5: 1996 | BG5: 1997 | BH5: 1998 | BI5: 1999 | BJ5: 2000 | BK5: 2001 | BL5: 2002 | BM5: 2003 | BN5: 2004 | BO5: 2005 | BP5: 2006 | BQ5: 2007 | BR5: 2008 | BS5: 2009 | BT5: 2010 | BU5: 2011 | BV5: 2012 | BW5: 2013 | BX5: 2014 | BY5: 2015 | BZ5: 2016 | CA5: 2017 | CB5: 2018 | CC5: 2019 | CD5: 2020 | CE5: 2021 | CF5: 2022 | CJ5: Industries, 2012 | DA5: All industries | DB5: 26255.65274 | DC5: 228123.7224 | DD5: 553600.5268 | DE5: 118356.7959 | DF5: 166583.0816 | DG5: 335400.3244 | DH5: 308909.1414 | DI5: 208151.3628 | DJ5: 40819.65222 | DP5: Males | DQ5: 753.4651008 | DR5: 597.1095508 | DS5: 156.35555 | DW5: 9.372266515 | DX5: 38.11491921 | DZ5: 4.76224199 | EA5: 47.62828221
AT6: Employment by gender and status, 2012 | AZ6: All industries | BA6: males | BB6: 84.27267278 | BC6: 83.27631437 | BD6: 82.52089274 | BE6: 81.81896778 | BF6: 80.90853503 | BG6: 80.2307697 | BH6: 79.07731738 | BI6: 77.70311945 | BJ6: 77.18254591 | BK6: 76.18663596 | BL6: 76.63299537 | BM6: 75.02362308 | BN6: 74.779488 | BO6: 74.52266436 | BP6: 73.39371281 | BQ6: 73.77156532 | BR6: 73.72346837 | BS6: 72.78808978 | BT6: 72.21064693 | BU6: 71.65367894 | BV6: 71.22149935 | BW6: 70.77060133 | BX6: 70.34721751 | BY6: 69.96360929 | BZ6: 69.57048743 | CA6: 69.16559163 | CB6: 68.74996954 | CC6: 68.33231022 | CD6: 67.92836754 | CE6: 68.33231022 | CF6: 67.92836754 | CJ6: Primary sector & utilities | CK6: 33248.143 | DA6: Agriculture, etc | DB6: 92.97957431 | DC6: 250.7308411 | DD6: 973.093085 | DE6: 58.78318027 | DF6: 551.4787774 | DG6: 807.8410425 | DH6: 627.8373236 | DI6: 317.1453062 | DJ6: 43.2786684 | DO6: Agriculture, etc | DP6: Females | DQ6: 0.9772456769 | DR6: 0.7860156769 | DS6: 0.19123 | DW6: 16.1663655 | DX6: 28.7046654 | DZ6: 26.62853437 | EA6: 39.24537257
AT7: Qualification shares, 2012 | BA7: females | BB7: 15.72732722 | BC7: 16.72368563 | BD7: 17.47910726 | BE7: 18.18103222 | BF7: 19.09146504 | BG7: 19.7692303 | BH7: 20.92268262 | BI7: 22.29688055 | BJ7: 22.81745409 | BK7: 23.81336404 | BL7: 23.36700463 | BM7: 24.97637692 | BN7: 25.220512 | BO7: 25.47733559 | BP7: 26.60628719 | BQ7: 26.22843473 | BR7: 26.27653163 | BS7: 27.21191022 | BT7: 27.78935307 | BU7: 28.34632106 | BV7: 28.77850065 | BW7: 29.22939867 | BX7: 29.65278249 | BY7: 30.03639071 | BZ7: 30.42951257 | CA7: 30.83440837 | CB7: 31.2500305 | CC7: 31.66768978 | CD7: 32.07163246 | CE7: 31.66768978 | CF7: 32.07163246 | CJ7: Manufacturing | CK7: 240923.557 | DA7: Coal, oil and gas | DB7: 0 | DC7: 998.7175219 | DD7: 685.7960007 | DE7: 226.8221165 | DF7: 181.80294 | DG7: 511.6906435 | DH7: 838.9866429 | DI7: 255.3557716 | DJ7: 47.709819 | DP7: Males | DQ7: 1.617392748 | DR7: 1.762780748 | DS7: -0.145388 | DW7: 9.710670724 | DX7: 34.52005166 | DZ7: 9.367810641 | EA7: 45.64390242
AZ8: Agriculture, etc | BA8: males | BB8: 85.57354002 | BC8: 84.51301765 | BD8: 85.93602562 | BE8: 87.1651386 | BF8: 87.19281836 | BG8: 86.28258683 | BH8: 81.59004589 | BI8: 83.99562207 | BJ8: 81.70850896 | BK8: 82.56623164 | BL8: 82.22750897 | BM8: 80.23610594 | BN8: 78.18234028 | BO8: 76.20432613 | BP8: 83.48507341 | BQ8: 81.31836415 | BR8: 77.51917245 | BS8: 84.71180527 | BT8: 72.18661396 | BU8: 71.53565702 | BV8: 71.01094417 | BW8: 70.5909855 | BX8: 70.16351623 | BY8: 69.56890693 | BZ8: 69.23142561 | CA8: 68.93214494 | CB8: 68.65489252 | CC8: 68.40762485 | CD8: 68.16537366 | CE8: 68.40762485 | CF8: 68.16537366 | CJ8: Construction | CK8: 159565.062 | DA8: Other mining | DB8: 0 | DC8: 1934.714872 | DD8: 7092.425608 | DE8: 1847.272586 | DF8: 2019.698904 | DG8: 3508.855403 | DH8: 3972.039821 | DI8: 1845.064454 | DJ8: 355.6889932 | DO8: Coal, oil and gas | DP8: Females | DQ8: 0.08740062948 | DR8: 0.06344062948 | DS8: 0.02396 | DW8: 4.034236021 | DX8: 36.85389384 | DZ8: 19.72584153 | EA8: 47.92804911
BA9: females | BB9: 14.42645998 | BC9: 15.48698235 | BD9: 14.06397438 | BE9: 12.83485044 | BF9: 12.80718164 | BG9: 13.71741317 | BH9: 18.40995411 | BI9: 16.00436651 | BJ9: 18.29149104 | BK9: 17.43376836 | BL9: 17.77249103 | BM9: 19.76389406 | BN9: 21.8176445 | BO9: 23.79567387 | BP9: 16.51492659 | BQ9: 18.68163585 | BR9: 22.48081648 | BS9: 15.28819473 | BT9: 27.81338604 | BU9: 28.46434298 | BV9: 28.98905583 | BW9: 29.40903061 | BX9: 29.83649997 | BY9: 30.43109307 | BZ9: 30.76859055 | CA9: 31.06785506 | CB9: 31.34510748 | CC9: 31.59237515 | CD9: 31.83462634 | CE9: 31.59237515 | CF9: 31.83462634 | CJ9: Trade, accomod. &, transport | CK9: 566759.485 | DA9: Mining support | DB9: 0 | DC9: 264.9111441 | DD9: 972.1393835 | DE9: 257.8314567 | DF9: 270.2133189 | DG9: 491.9993264 | DH9: 535.9392765 | DI9: 273.2002086 | DJ9: 51.40971277 | DP9: Males | DQ9: 0.157419408 | DR9: 0.601418408 | DS9: -0.443999 | DW9: 11.3916492 | DX9: 34.56867237 | DZ9: 25.29520329 | EA9: 46.42393718
B10: To navigate to the charts for a particular | AZ10: Coal, oil and gas | BA10: males | BB10: 96.19969647 | BC10: 96.12805933 | BD10: 95.73265974 | BE10: 94.21140439 | BF10: 96.21028529 | BG10: 96.02076302 | BH10: 94.46372667 | BI10: 94.2553018 | BJ10: 93.10182342 | BK10: 91.98197432 | BL10: 92.82511016 | BM10: 93.93008608 | BN10: 93.77443796 | BO10: 91.92632286 | BP10: 91.420671 | BQ10: 88.88825293 | BR10: 91.27233541 | BS10: 90.36894663 | BT10: 92.63155924 | BU10: 92.17399504 | BV10: 91.45284101 | BW10: 90.94157 | BX10: 90.30983312 | BY10: 89.60891476 | BZ10: 89.01539304 | CA10: 88.39265978 | CB10: 87.88033061 | CC10: 87.38333728 | CD10: 86.70776958 | CE10: 87.38333728 | CF10: 86.70776958 | CJ10: Business & other services | CK10: 741275.214 | DA10: Food products | DB10: 75.20016278 | DC10: 438.2470598 | DD10: 1330.411 | DE10: 285.6412148 | DF10: 699.7592455 | DG10: 952.3599923 | DH10: 810.9495229 | DI10: 573.983775 | DJ10: 197.2042633 | DO10: Other mining | DP10: Females | DQ10: 0.06609375864 | DR10: 0.04876375864 | DS10: 0.01733 | DW10: 9.640963711 | DX10: 28.32200613 | DZ10: -1.084924056 | EA10: 40.10666833
B11: industry, click on the list and then | BA11: females | BB11: 3.80030353 | BC11: 3.871940674 | BD11: 4.267340265 | BE11: 5.788595615 | BF11: 3.789714709 | BG11: 3.979236978 | BH11: 5.536273329 | BI11: 5.744698201 | BJ11: 6.89817658 | BK11: 8.018025683 | BL11: 7.174889845 | BM11: 6.069913919 | BN11: 6.225634446 | BO11: 8.073605123 | BP11: 8.57939473 | BQ11: 11.11174707 | BR11: 8.727714182 | BS11: 9.631053366 | BT11: 7.368497504 | BU11: 7.826061087 | BV11: 8.547158995 | BW11: 9.058429998 | BX11: 9.690229009 | BY11: 10.39108524 | BZ11: 10.9846731 | CA11: 11.60734022 | CB11: 12.11966939 | CC11: 12.61658761 | CD11: 13.29223042 | CE11: 12.61658761 | CF11: 13.29223042 | CJ11: Non-market services | CK11: 284871.798 | DA11: Beverages and tobacco | DB11: 65.62922171 | DC11: 311.4545448 | DD11: 877.2869191 | DE11: 320.1993381 | DF11: 279.1137299 | DG11: 458.1523749 | DH11: 411.8252112 | DI11: 303.9816094 | DJ11: 128.5584414 | DP11: Males | DQ11: 0.8252228091 | DR11: 0.7423268091 | DS11: 0.082896 | DW11: 12.14022355 | DX11: 29.3738464 | DZ11: 12.9163257 | EA11: 41.62224763
B12: click the button | AZ12: Other mining | BA12: males | BB12: 98.09360667 | BC12: 98.11841862 | BD12: 97.57839324 | BE12: 98.03961582 | BF12: 98.17854472 | BG12: 96.88037309 | BH12: 96.47044044 | BI12: 94.92872493 | BJ12: 95.08271528 | BK12: 93.70467612 | BL12: 93.71564263 | BM12: 94.30172075 | BN12: 93.05619441 | BO12: 92.95134693 | BP12: 94.3656032 | BQ12: 95.17316652 | BR12: 96.25293148 | BS12: 94.82326017 | BT12: 94.44287141 | BU12: 94.387103 | BV12: 94.30721272 | BW12: 94.20760551 | BX12: 94.1273184 | BY12: 94.0682109 | BZ12: 94.00501966 | CA12: 93.93553818 | CB12: 93.87467121 | CC12: 93.80594946 | CD12: 93.74321595 | CE12: 93.80594946 | CF12: 93.74321595 | DA12: Textiles | DB12: 68.31227119 | DC12: 397.0812102 | DD12: 1139.190358 | DE12: 228.555426 | DF12: 607.1234285 | DG12: 812.7736104 | DH12: 711.6065825 | DI12: 488.0980604 | DJ12: 151.5727268 | DO12: Mining support | DP12: Females | DQ12: 0.1247224671 | DR12: 0.0789094671 | DS12: 0.045813 | DW12: -7.021478225 | DX12: 24.51626922 | DZ12: 49.74495341 | EA12: 35.63498738
B13: Ctrl-Home will return you here. | BA13: females | BB13: 1.906393335 | BC13: 1.88158138 | BD13: 2.421606763 | BE13: 1.960384176 | BF13: 1.821494628 | BG13: 3.119670826 | BH13: 3.529559561 | BI13: 5.071275068 | BJ13: 4.917284718 | BK13: 6.295323879 | BL13: 6.284357368 | BM13: 5.698279248 | BN13: 6.943805585 | BO13: 7.048653066 | BP13: 5.634442689 | BQ13: 4.826833479 | BR13: 3.747028918 | BS13: 5.176739826 | BT13: 5.557128587 | BU13: 5.612897001 | BV13: 5.692736273 | BW13: 5.792444865 | BX13: 5.872681603 | BY13: 5.931789097 | BZ13: 5.994980339 | CA13: 6.064461822 | CB13: 6.125328787 | CC13: 6.194050544 | CD13: 6.256784054 | CE13: 6.194050544 | CF13: 6.256784054 | DA13: Wearing apparel | DB13: 62.16603702 | DC13: 401.6974062 | DD13: 1096.439496 | DE13: 207.1250161 | DF13: 602.4687905 | DG13: 786.2472345 | DH13: 694.38905 | DI13: 424.033825 | DJ13: 98.21465432 | DP13: Males | DQ13: 0.9873125213 | DR13: 0.8226235213 | DS13: 0.164689 | DW13: 26.84572256 | DX13: 29.94868471 | DZ13: 16.08853816 | EA13: 40.37318816
G14: Charts all refer to the selected occupation - current selection is :- | AZ14: Mining support | BA14: males | BB14: 96.48387853 | BC14: 96.3609964 | BD14: 95.71966221 | BE14: 95.92484053 | BF14: 95.53269717 | BG14: 95.3823547 | BH14: 94.40856124 | BI14: 90.14921309 | BJ14: 90.50414867 | BK14: 89.82035305 | BL14: 87.72248754 | BM14: 91.72530046 | BN14: 91.78939372 | BO14: 89.69618492 | BP14: 88.65029742 | BQ14: 93.29863394 | BR14: 92.4780379 | BS14: 92.15964157 | BT14: 91.59370402 | BU14: 91.75087916 | BV14: 91.83455932 | BW14: 91.80582689 | BX14: 91.62673407 | BY14: 90.77438129 | BZ14: 90.81565944 | CA14: 90.84771436 | CB14: 90.77874349 | CC14: 90.67799647 | CD14: 90.6451495 | CE14: 90.67799647 | CF14: 90.6451495 | CJ14: Employment change by broad industrial sector | DA14: Leather, etc | DB14: 209.1785235 | DC14: 1363.333941 | DD14: 3567.866011 | DE14: 682.304317 | DF14: 1951.015204 | DG14: 2492.727166 | DH14: 2222.620605 | DI14: 1315.866285 | DJ14: 285.315769 | DO14: Food products | DP14: Females | DQ14: 5.494199532 | DR14: 2.983707532 | DS14: 2.510492 | DW14: 10.01456366 | DX14: 31.59551349 | DZ14: 26.62670104 | EA14: 42.69691049
BA15: females | BB15: 3.516121473 | BC15: 3.639081662 | BD15: 4.280260672 | BE15: 4.075159473 | BF15: 4.467302827 | BG15: 4.617645304 | BH15: 5.591369328 | BI15: 9.850713316 | BJ15: 9.495851334 | BK15: 10.17964695 | BL15: 12.27758511 | BM15: 8.27469954 | BN15: 8.210606277 | BO15: 10.30381508 | BP15: 11.34970258 | BQ15: 6.701366062 | BR15: 7.521962097 | BS15: 7.84035843 | BT15: 8.406295983 | BU15: 8.249120838 | BV15: 8.165486216 | BW15: 8.194173114 | BX15: 8.373265932 | BY15: 9.22561871 | BZ15: 9.184340564 | CA15: 9.152285643 | CB15: 9.221256515 | CC15: 9.322003535 | CD15: 9.354850505 | CE15: 9.322003535 | CF15: 9.354850505 | CJ15: Industries, 2012 - 2022 | DA15: Wood and cork | DB15: 221.1801615 | DC15: 1332.179916 | DD15: 3468.404335 | DE15: 758.3354754 | DF15: 1751.259817 | DG15: 2321.83904 | DH15: 2140.707476 | DI15: 1130.685958 | DJ15: 207.8268551 | DP15: Males | DQ15: 10.74918655 | DR15: 6.928863552 | DS15: 3.820323 | DW15: 2.657811079 | DX15: 29.31891312 | DZ15: -8.289034631 | EA15: 42.13414284
B16: 11 Corporate managers and directors | AZ16: Food products | BA16: males | BB16: 78.10532721 | BC16: 77.83285515 | BD16: 77.26243195 | BE16: 77.30559716 | BF16: 78.2930312 | BG16: 75.92540379 | BH16: 77.58920566 | BI16: 80.64712391 | BJ16: 81.26832922 | BK16: 80.2426303 | BL16: 87.22628678 | BM16: 82.75483965 | BN16: 79.46034304 | BO16: 78.00718391 | BP16: 81.64569375 | BQ16: 79.55191005 | BR16: 78.42104332 | BS16: 80.39846937 | BT16: 72.0435473 | BU16: 71.82894197 | BV16: 71.46999332 | BW16: 71.14962192 | BX16: 70.89095784 | BY16: 70.67439819 | BZ16: 70.3587817 | CA16: 70.06071539 | CB16: 69.73672048 | CC16: 69.43406794 | CD16: 69.12537762 | CE16: 69.43406794 | CF16: 69.12537762 | CJ16: =CJ11 -> Non-market services | CK16: 17.023218 | DA16: Paper, etc | DB16: 74.98556324 | DC16: 458.9451793 | DD16: 1239.326952 | DE16: 256.4069342 | DF16: 635.2683462 | DG16: 827.6893736 | DH16: 755.5125803 | DI16: 422.8027721 | DJ16: 83.55180641 | DO16: Beverages and tobacco | DP16: Females | DQ16: 0.7272421571 | DR16: 0.4694371571 | DS16: 0.257805 | DW16: 8.846898747 | DX16: 41.16089809 | DZ16: -29.44797713 | EA16: 47.9680203
BA17: females | BB17: 21.89467279 | BC17: 22.16714485 | BD17: 22.73756805 | BE17: 22.69440284 | BF17: 21.7069688 | BG17: 24.07459621 | BH17: 22.41079434 | BI17: 19.35287609 | BJ17: 18.73167078 | BK17: 19.7573697 | BL17: 12.77371322 | BM17: 17.24516035 | BN17: 20.53965696 | BO17: 21.99281289 | BP17: 18.35430291 | BQ17: 20.44808995 | BR17: 21.57895668 | BS17: 19.60153063 | BT17: 27.9564527 | BU17: 28.17105803 | BV17: 28.53000668 | BW17: 28.85037401 | BX17: 29.10904216 | BY17: 29.325598 | BZ17: 29.64122199 | CA17: 29.9392882 | CB17: 30.26327952 | CC17: 30.56593206 | CD17: 30.87462238 | CE17: 30.56593206 | CF17: 30.87462238 | CJ17: =CJ10 -> Business & other services | CK17: 127.071212 | DA17: Printing and recording | DB17: 230.1047577 | DC17: 1362.529642 | DD17: 3665.943927 | DE17: 717.9426088 | DF17: 1965.794993 | DG17: 2434.476189 | DH17: 2192.741809 | DI17: 1203.29924 | DJ17: 213.4505181 | DP17: Males | DQ17: 1.814401493 | DR17: 1.314718493 | DS17: 0.499683 | DW17: -9.728911476 | DX17: 39.27068156 | DZ17: -17.90852638 | EA17: 50.7603827
J18: All industries | AZ18: Beverages and tobacco | BA18: males | BB18: 92.33061295 | BC18: 91.80754631 | BD18: 91.20869132 | BE18: 90.94685224 | BF18: 90.59110662 | BG18: 88.73726813 | BH18: 87.62196211 | BI18: 86.44161912 | BJ18: 85.63759631 | BK18: 83.42561653 | BL18: 83.03863134 | BM18: 83.39551536 | BN18: 82.55339856 | BO18: 80.61106618 | BP18: 80.40198127 | BQ18: 78.64960568 | BR18: 77.05751742 | BS18: 75.97364886 | BT18: 75.82645046 | BU18: 75.5594566 | BV18: 75.22610912 | BW18: 74.92087612 | BX18: 74.59179095 | BY18: 74.28998866 | BZ18: 74.15572522 | CA18: 74.06565654 | CB18: 73.95237404 | CC18: 73.80466402 | CD18: 73.84294341 | CE18: 73.80466402 | CF18: 73.84294341 | CJ18: =CJ9 -> Trade, accomod. &, transport | CK18: 103.372729 | DA18: Coke and petroleum | DB18: 128.7113609 | DC18: 848.3884378 | DD18: 2299.434401 | DE18: 456.1048659 | DF18: 1281.46483 | DG18: 1615.926956 | DH18: 1389.698466 | DI18: 820.5122592 | DJ18: 183.6492479 | DO18: Textiles | DP18: Females | DQ18: 1.378502503 | DR18: 0.6254255033 | DS18: 0.753077 | DW18: -11.44655611 | DX18: 30.77581019 | DZ18: -27.90960157 | EA18: 43.10099261
BA19: females | BB19: 7.669387048 | BC19: 8.192453687 | BD19: 8.791308684 | BE19: 9.053169061 | BF19: 9.408873007 | BG19: 11.26273187 | BH19: 12.37803789 | BI19: 13.55838088 | BJ19: 14.36240369 | BK19: 16.57438347 | BL19: 16.96136866 | BM19: 16.60448464 | BN19: 17.4466212 | BO19: 19.38893382 | BP19: 19.59804018 | BQ19: 21.35039432 | BR19: 22.94248258 | BS19: 24.02635114 | BT19: 24.17354954 | BU19: 24.4405434 | BV19: 24.77391407 | BW19: 25.07912388 | BX19: 25.40823114 | BY19: 25.71001134 | BZ19: 25.84429593 | CA19: 25.93434346 | CB19: 26.04762596 | CC19: 26.19533598 | CD19: 26.15705659 | CE19: 26.19533598 | CF19: 26.15705659 | CJ19: =CJ8 -> Construction | CK19: 44.888289 | DA19: Chemicals, etc | DB19: 65.14092419 | DC19: 398.1493853 | DD19: 1163.484743 | DE19: 211.4642688 | DF19: 658.7376535 | DG19: 824.9559366 | DH19: 722.5008689 | DI19: 432.1810897 | DJ19: 110.2351268 | DP19: Males | DQ19: 2.690005702 | DR19: 2.213039702 | DS19: 0.476966 | DW19: 7.151409519 | DX19: 30.94506425 | DZ19: 23.37931467 | EA19: 43.25168803
AZ20: Textiles | BA20: males | BB20: 85.464532 | BC20: 83.35837644 | BD20: 82.08969865 | BE20: 80.02821771 | BF20: 79.35715987 | BG20: 77.02225816 | BH20: 78.65698744 | BI20: 83.47095281 | BJ20: 79.9501358 | BK20: 78.36655765 | BL20: 79.11497665 | BM20: 82.70981336 | BN20: 80.9277223 | BO20: 79.31982313 | BP20: 82.77599515 | BQ20: 81.11791261 | BR20: 80.58364315 | BS20: 81.38025752 | BT20: 80.81553667 | BU20: 80.46760896 | BV20: 79.57931548 | BW20: 78.83599969 | BX20: 78.0029648 | BY20: 77.27868616 | BZ20: 76.46771229 | CA20: 75.7674334 | CB20: 74.90363774 | CC20: 74.12325929 | CD20: 73.39118691 | CE20: 74.12325929 | CF20: 73.39118691 | CJ20: =CJ7 -> Manufacturing | CK20: 23.599757 | DA20: Pharmaceuticals | DB20: 422.2086515 | DC20: 2582.048207 | DD20: 7559.571005 | DE20: 1433.29753 | DF20: 4112.344378 | DG20: 5000.077573 | DH20: 4385.516118 | DI20: 2542.676035 | DJ20: 543.1061511 | DO20: Wearing apparel | DP20: Females | DQ20: 0.0807166681 | DR20: 0.4390586681 | DS20: -0.358342 | DW20: -14.19510593 | DX20: 29.77399679 | DZ20: -38.87161354 | EA20: 41.80801052
BA21: females | BB21: 14.53545721 | BC21: 16.64162356 | BD21: 17.91031158 | BE21: 19.97178229 | BF21: 20.64284013 | BG21: 22.97773159 | BH21: 21.34301256 | BI21: 16.52904719 | BJ21: 20.0498642 | BK21: 21.63344235 | BL21: 20.88502335 | BM21: 17.29017525 | BN21: 19.0722777 | BO21: 20.68016245 | BP21: 17.22401816 | BQ21: 18.88208739 | BR21: 19.41635685 | BS21: 18.61974248 | BT21: 19.18447837 | BU21: 19.53239104 | BV21: 20.42068452 | BW21: 21.16400031 | BX21: 21.9970352 | BY21: 22.72131384 | BZ21: 23.53228771 | CA21: 24.23255365 | CB21: 25.09636226 | CC21: 25.87674071 | CD21: 26.60881309 | CE21: 25.87674071 | CF21: 26.60881309 | CJ21: =CJ6 -> Primary sector & utilities | CK21: 1.841866 | DA21: Rubber and plastic | DB21: 201.2045225 | DC21: 1517.960228 | DD21: 3936.11371 | DE21: 636.2224774 | DF21: 2024.622601 | DG21: 2676.939434 | DH21: 2136.896456 | DI21: 1082.000604 | DJ21: 253.497875 | DP21: Males | DQ21: 0.2527004774 | DR21: 0.2665664774 | DS21: -0.013866 | DW21: 50.79930329 | DX21: 27.24188006 | DZ21: 18.48072611 | EA21: 39.4834001
AZ22: Wearing apparel | BA22: males | BB22: 62.28698119 | BC22: 61.81569406 | BD22: 63.02603049 | BE22: 62.3284997 | BF22: 64.08448962 | BG22: 63.93558452 | BH22: 69.48112352 | BI22: 86.37176859 | BJ22: 86.61771973 | BK22: 84.66899575 | BL22: 79.73751565 | BM22: 77.84609894 | BN22: 77.05373438 | BO22: 66.22572549 | BP22: 72.55829 | BQ22: 57.47284664 | BR22: 50.56019134 | BS22: 56.72372765 | BT22: 43.83076213 | BU22: 40.4592208 | BV22: 40.13442342 | BW22: 40.20078457 | BX22: 40.62175325 | BY22: 41.34384055 | BZ22: 43.26937655 | CA22: 44.71194516 | CB22: 46.49793826 | CC22: 48.82742276 | CD22: 50.25453682 | CE22: 48.82742276 | CF22: 50.25453682 | DA22: Other non-metallic | DB22: 144.9778083 | DC22: 1138.071731 | DD22: 2999.935231 | DE22: 511.1970191 | DF22: 1533.263504 | DG22: 2089.023778 | DH22: 1677.320853 | DI22: 896.3397015 | DJ22: 200.192746 | DO22: Leather, etc | DP22: Females | DQ22: 0.08069200816 | DR22: 0.06316500816 | DS22: 0.017527 | DW22: 11.481574 | DX22: 36.23657762 | DZ22: 1.16626638 | EA22: 49.35325316
BA23: females | BB23: 37.71301881 | BC23: 38.18430594 | BD23: 36.97396951 | BE23: 37.67148571 | BF23: 35.91551038 | BG23: 36.06441548 | BH23: 30.51886544 | BI23: 13.62823141 | BJ23: 13.38227184 | BK23: 15.33099353 | BL23: 20.26248435 | BM23: 22.15390106 | BN23: 22.94626562 | BO23: 33.77429702 | BP23: 27.44171 | BQ23: 42.52715336 | BR23: 49.43980866 | BS23: 43.27627235 | BT23: 56.16923787 | BU23: 59.5407792 | BV23: 59.86551815 | BW23: 59.79921543 | BX23: 59.37824675 | BY23: 58.65615945 | BZ23: 56.73062345 | CA23: 55.28805484 | CB23: 53.50206174 | CC23: 51.17264967 | CD23: 49.74553786 | CE23: 51.17264967 | CF23: 49.74553786 | DA23: Basic metals | DB23: 293.4719495 | DC23: 2110.618925 | DD23: 5756.904761 | DE23: 954.8549478 | DF23: 2939.010122 | DG23: 4077.484469 | DH23: 3324.906026 | DI23: 1677.296644 | DJ23: 407.7337565 | DP23: Males | DQ23: 0.123916943 | DR23: 0.127202943 | DS23: -0.003286 | DW23: 7.984849334 | DX23: 24.27686307 | DZ23: -3.83617877 | EA23: 37.8935252
AZ24: Leather, etc | BA24: males | BB24: 78.9357623 | BC24: 76.64932239 | BD24: 76.43376738 | BE24: 76.10321373 | BF24: 75.40700972 | BG24: 71.85192393 | BH24: 80.43029936 | BI24: 87.4912956 | BJ24: 84.55870693 | BK24: 84.94331411 | BL24: 80.76899947 | BM24: 83.36886147 | BN24: 80.59730613 | BO24: 76.40048393 | BP24: 75.99499171 | BQ24: 75.96865573 | BR24: 76.39539517 | BS24: 67.07069738 | BT24: 69.20687549 | BU24: 69.35185895 | BV24: 68.71689891 | BW24: 68.26109514 | BX24: 67.91198672 | BY24: 67.41551401 | BZ24: 67.18729427 | CA24: 66.80626715 | CB24: 66.28490807 | CC24: 65.86529573 | CD24: 65.9756563 | CE24: 65.86529573 | CF24: 65.9756563 | DA24: Metal products | DB24: 127.5073904 | DC24: 818.8017118 | DD24: 2460.160178 | DE24: 447.5840104 | DF24: 1431.61998 | DG24: 1765.997955 | DH24: 1545.172407 | DI24: 980.1209676 | DJ24: 261.2119715 | DO24: Wood and cork | DP24: Females | DQ24: 0.08116681687 | DR24: 0.2793378169 | DS24: -0.198171 | DW24: 35.15879142 | DX24: 20.77198112 | DZ24: 17.88830149 | EA24: 35.30435213
BA25: females | BB25: 21.0642377 | BC25: 23.35067761 | BD25: 23.56623262 | BE25: 23.89678627 | BF25: 24.59299028 | BG25: 28.14800556 | BH25: 19.56970064 | BI25: 12.50864628 | BJ25: 15.44129307 | BK25: 15.05676522 | BL25: 19.23100053 | BM25: 16.63113853 | BN25: 19.40269387 | BO25: 23.59951607 | BP25: 24.00500829 | BQ25: 24.03134427 | BR25: 23.60460483 | BS25: 32.92916937 | BT25: 30.79290405 | BU25: 30.64814105 | BV25: 31.28310109 | BW25: 31.73890486 | BX25: 32.08779712 | BY25: 32.58448599 | BZ25: 32.81270573 | CA25: 33.19373285 | CB25: 33.71509193 | CC25: 34.13470427 | CD25: 34.02455341 | CE25: 34.13470427 | CF25: 34.02455341 | CJ25: QCF group | CK25: Base year level | DA25: Computer, etc | DB25: 136.1407507 | DC25: 914.0161644 | DD25: 2627.405273 | DE25: 503.9040612 | DF25: 1521.29607 | DG25: 1864.00916 | DH25: 1584.492538 | DI25: 827.4342976 | DJ25: 124.7274108 | DP25: Males | DQ25: 2.283840735 | DR25: 1.777398735 | DS25: 0.506442 | DW25: -15.09977571 | DX25: 29.99081043 | DZ25: -39.438946 | EA25: 41.65407433
AZ26: Wood and cork | BA26: males | BB26: 95.41585559 | BC26: 95.20586467 | BD26: 96.15768756 | BE26: 95.45288404 | BF26: 94.04770056 | BG26: 95.86527614 | BH26: 93.18381536 | BI26: 92.19155293 | BJ26: 93.87541114 | BK26: 94.29955478 | BL26: 93.59126607 | BM26: 92.94580287 | BN26: 91.7218734 | BO26: 92.74485411 | BP26: 87.89776532 | BQ26: 86.70123623 | BR26: 86.54177505 | BS26: 83.40099604 | BT26: 87.08839057 | BU26: 87.07112446 | BV26: 87.19011031 | BW26: 87.30320761 | BX26: 87.55640688 | BY26: 87.80279224 | BZ26: 88.06957481 | CA26: 88.98280819 | CB26: 89.98263581 | CC26: 90.82335287 | CD26: 91.61497084 | CE26: 90.82335287 | CF26: 91.61497084 | CK26: 2012 | DA26: Electrical equipment | DB26: 95.17137794 | DC26: 541.206316 | DD26: 1492.201959 | DE26: 294.3834233 | DF26: 778.717992 | DG26: 1048.359231 | DH26: 936.496194 | DI26: 565.8792754 | DJ26: 127.0529271 | DO26: Paper, etc | DP26: Females | DQ26: 0.7177665548 | DR26: 0.3568825548 | DS26: 0.360884 | DW26: 8.321701516 | DX26: 37.62633014 | DZ26: 16.18806061 | EA26: 47.62372213
BA27: females | BB27: 4.584144413 | BC27: 4.794151442 | BD27: 3.842296662 | BE27: 4.547098048 | BF27: 5.952299437 | BG27: 4.13474055 | BH27: 6.816184636 | BI27: 7.808464632 | BJ27: 6.124588857 | BK27: 5.700445221 | BL27: 6.408733928 | BM27: 7.054197135 | BN27: 8.278126604 | BO27: 7.255145888 | BP27: 12.10223468 | BQ27: 13.29876377 | BR27: 13.45822495 | BS27: 16.59900396 | BT27: 12.91158969 | BU27: 12.92887554 | BV27: 12.80988969 | BW27: 12.69677268 | BX27: 12.44357359 | BY27: 12.19720776 | BZ27: 11.93042519 | CA27: 11.01719181 | CB27: 10.01736419 | CC27: 9.176647126 | CD27: 8.385010541 | CE27: 9.176647126 | CF27: 8.385010541 | CJ27: QCF 7-8 | CK27: 1878259.585 | DA27: Machinery n.e.c. | DB27: 187.6867993 | DC27: 885.3364413 | DD27: 2453.469853 | DE27: 538.7434401 | DF27: 1148.801307 | DG27: 1536.620934 | DH27: 1395.928167 | DI27: 877.5973122 | DJ27: 202.2839025 | DP27: Males | DQ27: 1.597960771 | DR27: 1.639224771 | DS27: -0.041264 | DW27: -6.777363694 | DX27: 28.99591485 | DZ27: 10.01913932 | EA27: 41.74011747
AZ28: Paper, etc | BA28: males | BB28: 87.9087531 | BC28: 87.4141633 | BD28: 86.81886185 | BE28: 85.47087377 | BF28: 86.3384095 | BG28: 87.13610182 | BH28: 83.65100672 | BI28: 85.34927898 | BJ28: 85.26099132 | BK28: 84.58960844 | BL28: 87.13598407 | BM28: 84.45657494 | BN28: 84.81286745 | BO28: 85.23711665 | BP28: 83.85151638 | BQ28: 84.06523051 | BR28: 86.06408606 | BS28: 84.90298491 | BT28: 84.77646848 | BU28: 84.22851128 | BV28: 83.5866966 | BW28: 83.03536075 | BX28: 82.25983189 | BY28: 81.57223673 | BZ28: 80.95069484 | CA28: 80.07731484 | CB28: 79.26594345 | CC28: 78.56562855 | CD28: 77.69278382 | CE28: 78.56562855 | CF28: 77.69278382 | CJ28: QCF 4-6 | CK28: 7417568.277 | DA28: Motor vehicles, etc | DB28: 158.7145869 | DC28: 943.7507625 | DD28: 2954.812819 | DE28: 491.0482731 | DF28: 1710.206639 | DG28: 2095.844858 | DH28: 1790.763051 | DI28: 1367.219094 | DJ28: 430.8317342 | DO28: Printing and recording | DP28: Females | DQ28: 0.3519979179 | DR28: 0.8545529179 | DS28: -0.502555 | DW28: 20.50411155 | DX28: 29.20383484 | DZ28: -13.07615903 | EA28: 43.44601236
BA29: females | BB29: 12.0912469 | BC29: 12.5858367 | BD29: 13.18113815 | BE29: 14.52912623 | BF29: 13.6616026 | BG29: 12.86391031 | BH29: 16.34899328 | BI29: 14.65072102 | BJ29: 14.73900868 | BK29: 15.41039156 | BL29: 12.86401593 | BM29: 15.54342506 | BN29: 15.18714609 | BO29: 14.76288335 | BP29: 16.14849908 | BQ29: 15.93475332 | BR29: 13.93591394 | BS29: 15.09701509 | BT29: 15.22353152 | BU29: 15.77148872 | BV29: 16.4133034 | BW29: 16.96465938 | BX29: 17.74014797 | BY29: 18.42776327 | BZ29: 19.04930516 | CA29: 19.92266554 | CB29: 20.73405655 | CC29: 21.43437145 | CD29: 22.30721618 | CE29: 21.43437145 | CF29: 22.30721618 | CJ29: QCF 3 | CK29: 5973784.73 | DA29: Other transport equipment | DB29: 134.1769423 | DC29: 1389.673172 | DD29: 2771.198961 | DE29: 557.4243855 | DF29: 1348.136376 | DG29: 1534.57678 | DH29: 436.4533346 | DI29: 705.2918104 | DJ29: 53.1969933 | DP29: Males | DQ29: 3.997794997 | DR29: 5.170456997 | DS29: -1.172662 | DV29: All occs | DW29: 7.258293363 | DX29: 31.36931632 | DZ29: 5.098813149 | EA29: 42.69230701 | EB29: not currently used
AZ30: Printing and recording | BA30: males | BB30: 84.74982892 | BC30: 84.02410518 | BD30: 83.19047546 | BE30: 82.38474908 | BF30: 80.4411974 | BG30: 79.47753151 | BH30: 78.12348419 | BI30: 82.62798033 | BJ30: 83.42768017 | BK30: 81.40969263 | BL30: 81.20251304 | BM30: 79.55173644 | BN30: 81.01894292 | BO30: 78.82329035 | BP30: 81.41090882 | BQ30: 79.161894 | BR30: 82.00579078 | BS30: 81.89745784 | BT30: 86.8111039 | BU30: 86.77788412 | BV30: 86.79115174 | BW30: 86.70360261 | BX30: 86.93725776 | BY30: 87.31129158 | BZ30: 87.69376147 | CA30: 88.00769538 | CB30: 88.44730715 | CC30: 88.64572074 | CD30: 88.8917126 | CE30: 88.64572074 | CF30: 88.8917126 | CJ30: QCF 2 | CK30: 6685148.396 | DA30: Furniture | DB30: 24.43903618 | DC30: 480.2208102 | DD30: 1027.016064 | DE30: 32.73917684 | DF30: 267.7892676 | DG30: 0 | DH30: 353.5274656 | DI30: 363.8917694 | DJ30: 187.4294886 | DO30: Coke and petroleum | DP30: Females | DQ30: 0.1254409288 | DR30: 0.06109692876 | DS30: 0.064344
BA31: females | BB31: 15.25017108 | BC31: 15.97590013 | BD31: 16.80952454 | BE31: 17.61525092 | BF31: 19.5588026 | BG31: 20.52247371 | BH31: 21.87652075 | BI31: 17.37201967 | BJ31: 16.57231983 | BK31: 18.59030737 | BL31: 18.79748696 | BM31: 20.44826356 | BN31: 18.98105708 | BO31: 21.17671479 | BP31: 18.58909118 | BQ31: 20.83811128 | BR31: 17.99420922 | BS31: 18.10254909 | BT31: 13.1888961 | BU31: 13.22211588 | BV31: 13.20884826 | BW31: 13.29639739 | BX31: 13.06274224 | BY31: 12.6887152 | BZ31: 12.30623853 | CA31: 11.99230462 | CB31: 11.55268571 | CC31: 11.35427926 | CD31: 11.10827993 | CE31: 11.35427926 | CF31: 11.10827993 | CJ31: QCF 1 | CK31: 5357778.981 | DA31: Other manufacturing | DB31: 6.721112799 | DC31: 154.2721242 | DD31: 319.8560904 | DE31: 10.62935565 | DF31: 85.09433048 | DG31: 0 | DH31: 116.1645127 | DI31: 132.7768064 | DJ31: 66.42976739 | DP31: Males | DQ31: 0.6539019015 | DR31: 0.4731059015 | DS31: 0.180796 | DW31: These are 'all industry values & will need updating
AZ32: Coke and petroleum | BA32: males | BB32: 98.66334621 | BC32: 98.02871444 | BD32: 98.00632523 | BE32: 98.38322797 | BF32: 98.09202698 | BG32: 97.57993966 | BH32: 97.09826031 | BI32: 96.93889501 | BJ32: 97.44142442 | BK32: 95.41341797 | BL32: 97.07885222 | BM32: 93.30488468 | BN32: 92.16906245 | BO32: 91.15093137 | BP32: 90.73613441 | BQ32: 89.719665 | BR32: 90.75164996 | BS32: 89.25774901 | BT32: 89.73986597 | BU32: 89.85599997 | BV32: 89.37318589 | BW32: 88.95566842 | BX32: 88.6667783 | BY32: 88.45406189 | BZ32: 88.11512706 | CA32: 87.79399575 | CB32: 87.48242829 | CC32: 87.18618106 | CD32: 86.88239786 | CE32: 87.18618106 | CF32: 86.88239786 | CJ32: No Qual | CK32: 3124402.429 | DA32: Repair and installation | DB32: 73.21600754 | DC32: 1510.495481 | DD32: 3129.022111 | DE32: 104.0747885 | DF32: 828.6101959 | DG32: 0 | DH32: 1127.236126 | DI32: 1270.302911 | DJ32: 635.1133864 | DO32: Chemicals, etc | DP32: Females | DQ32: 1.852172383 | DR32: 1.218250383 | DS32: 0.633922 | DW32: ? Use values for every industry separately when available?
BA33: females | BB33: 1.336653791 | BC33: 1.971285562 | BD33: 1.993674774 | BE33: 1.616772031 | BF33: 1.907973018 | BG33: 2.420060339 | BH33: 2.901739693 | BI33: 3.061210494 | BJ33: 2.558575582 | BK33: 4.586582025 | BL33: 2.921147777 | BM33: 6.695211175 | BN33: 7.831037495 | BO33: 8.849068632 | BP33: 9.26386559 | BQ33: 10.28026336 | BR33: 9.248282529 | BS33: 10.74225099 | BT33: 10.26013403 | BU33: 10.14400003 | BV33: 10.62681411 | BW33: 11.04433158 | BX33: 11.3332217 | BY33: 11.54593811 | BZ33: 11.88487294 | CA33: 12.20607247 | CB33: 12.51757171 | CC33: 12.81381894 | CD33: 13.1175371 | CE33: 12.81381894 | CF33: 13.1175371 | DA33: Emp x qualification for occupation 2 for every industry | DB33: 105.4075559 | DC33: 3606.776142 | DD33: 6885.051258 | DE33: 2114.867643 | DF33: 5286.201153 | DG33: 8997.370972 | DH33: 6768.988493 | DI33: 4194.784236 | DJ33: 1441.801629 | DP33: Males | DQ33: 4.389752559 | DR33: 3.848914559 | DS33: 0.540838
AZ34: Chemicals, etc | BA34: males | BB34: 91.69481076 | BC34: 91.18617786 | BD34: 90.17080169 | BE34: 89.52204066 | BF34: 88.52231262 | BG34: 87.91201265 | BH34: 86.89600296 | BI34: 87.73160009 | BJ34: 87.94974409 | BK34: 87.44527607 | BL34: 86.16544944 | BM34: 81.97046522 | BN34: 81.60081057 | BO34: 81.76895436 | BP34: 82.87077208 | BQ34: 80.44759073 | BR34: 81.39131393 | BS34: 80.26184766 | BT34: 78.60411675 | BU34: 78.04528298 | BV34: 77.5678238 | BW34: 77.14772084 | BX34: 76.78227994 | BY34: 76.42021506 | BZ34: 76.07828359 | CA34: 75.75287265 | CB34: 75.43232911 | CC34: 75.13545076 | CD34: 74.83735594 | CE34: 75.13545076 | CF34: 74.83735594 | DA34: Water | DB34: 58.69002772 | DC34: 1704.021172 | DD34: 3412.413258 | DE34: 951.2129138 | DF34: 2459.302088 | DG34: 3725.913018 | DH34: 3205.574131 | DI34: 1839.02435 | DJ34: 492.8984967 | DO34: Pharmaceuticals | DP34: Females | DQ34: 0.9569352765 | DR34: 0.5585822765 | DS34: 0.398353
BA35: females | BB35: 8.305194406 | BC35: 8.813822143 | BD35: 9.829203912 | BE35: 10.47795934 | BF35: 11.47768738 | BG35: 12.08798218 | BH35: 13.10399704 | BI35: 12.26840496 | BJ35: 12.05025591 | BK35: 12.55472393 | BL35: 13.83455056 | BM35: 18.02953478 | BN35: 18.39918943 | BO35: 18.23104564 | BP35: 17.12922792 | BQ35: 19.55240283 | BR35: 18.60868607 | BS35: 19.73815234 | BT35: 21.39588325 | BU35: 21.95471702 | BV35: 22.4321762 | BW35: 22.85227916 | BX35: 23.21772006 | BY35: 23.57978494 | BZ35: 23.92171641 | CA35: 24.24711978 | CB35: 24.56767089 | CC35: 24.86454924 | CD35: 25.16264406 | CE35: 24.86454924 | CF35: 25.16264406 | DA35: Sewerage | DB35: 222.5191417 | DC35: 6376.173741 | DD35: 12843.67731 | DE35: 3987.421747 | DF35: 10265.46051 | DG35: 18370.52377 | DH35: 13685.59345 | DI35: 7763.573927 | DJ35: 2722.127483 | DP35: Males | DQ35: 1.90998822 | DR35: 1.30030522 | DS35: 0.609683
AZ36: Pharmaceuticals | BA36: males | BB36: 88.81671746 | BC36: 87.98419949 | BD36: 87.32625348 | BE36: 86.84726488 | BF36: 87.66397174 | BG36: 86.84517023 | BH36: 85.03248544 | BI36: 86.91554974 | BJ36: 86.61368261 | BK36: 86.85934142 | BL36: 86.76486849 | BM36: 82.91527709 | BN36: 81.97072125 | BO36: 83.1597098 | BP36: 84.95783035 | BQ36: 78.04424006 | BR36: 74.20337385 | BS36: 78.78514976 | BT36: 72.1453192 | BU36: 71.79921171 | BV36: 71.49881168 | BW36: 71.25467911 | BX36: 70.97999509 | BY36: 70.75238445 | BZ36: 70.47170321 | CA36: 70.2057011 | CB36: 69.9385568 | CC36: 69.69102124 | CD36: 69.46039758 | CE36: 69.69102124 | CF36: 69.46039758 | DA36: Waste management | DB36: 60.48448354 | DC36: 1376.405131 | DD36: 7224.166396 | DE36: 1483.636068 | DF36: 2760.000453 | DG36: 7602.126063 | DH36: 7196.032255 | DI36: 6602.185696 | DJ36: 1040.657948 | DO36: Rubber and plastic | DP36: Females | DQ36: 2.220506621 | DR36: 1.425450621 | DS36: 0.795056
BA37: females | BB37: 11.18328254 | BC37: 12.01580051 | BD37: 12.67374652 | BE37: 13.15273512 | BF37: 12.33602826 | BG37: 13.15482977 | BH37: 14.96751456 | BI37: 13.08445026 | BJ37: 13.38631739 | BK37: 13.14065858 | BL37: 13.23513151 | BM37: 17.0847093 | BN37: 18.02927875 | BO37: 16.8402902 | BP37: 15.04215558 | BQ37: 21.95577705 | BR37: 25.79662615 | BS37: 21.21485024 | BT37: 27.8546808 | BU37: 28.20078829 | BV37: 28.50118832 | BW37: 28.74534259 | BX37: 29.01998403 | BY37: 29.24761555 | BZ37: 29.52829679 | CA37: 29.7942989 | CB37: 30.0614432 | CC37: 30.30896001 | CD37: 30.53960242 | CE37: 30.30896001 | CF37: 30.53960242 | DA37: Construction | DB37: 200.1757881 | DC37: 7315.880892 | DD37: 35460.1638 | DE37: 7932.583385 | DF37: 12877.03747 | DG37: 37524.97124 | DH37: 36465.13733 | DI37: 33388.38648 | DJ37: 5109.145074 | DP37: Males | DQ37: 7.75466973 | DR37: 6.76528873 | DS37: 0.989381
AZ38: Rubber and plastic | BA38: males | BB38: 94.53939421 | BC38: 94.44404416 | BD38: 94.18656624 | BE38: 94.30628354 | BF38: 94.05573939 | BG38: 93.87797378 | BH38: 92.93191213 | BI38: 92.15162374 | BJ38: 92.10806722 | BK38: 92.10664255 | BL38: 91.04204004 | BM38: 91.67619451 | BN38: 87.8726267 | BO38: 88.98270878 | BP38: 90.14948152 | BQ38: 88.53487996 | BR38: 88.15350257 | BS38: 86.68577578 | BT38: 84.38678448 | BU38: 84.13748313 | BV38: 83.77763945 | BW38: 83.41974166 | BX38: 83.09725348 | BY38: 82.79652054 | BZ38: 82.52962121 | CA38: 82.26830809 | CB38: 81.98255756 | CC38: 81.71136221 | CD38: 81.44782874 | CE38: 81.71136221 | CF38: 81.44782874 | DA38: Civil engineering | DB38: 312.505232 | DC38: 9216.58716 | DD38: 44143.38131 | DE38: 10603.55261 | DF38: 14276.82446 | DG38: 46073.28068 | DH38: 50469.94211 | DI38: 41748.79919 | DJ38: 7064.305276 | DO38: Other non-metallic | DP38: Females | DQ38: 0.6929402808 | DR38: 0.5370592808 | DS38: 0.155881
BA39: females | BB39: 5.460605794 | BC39: 5.555955841 | BD39: 5.813433764 | BE39: 5.693711254 | BF39: 5.944260607 | BG39: 6.122026217 | BH39: 7.068087874 | BI39: 7.848371345 | BJ39: 7.891932778 | BK39: 7.89335745 | BL39: 8.957959958 | BM39: 8.323805494 | BN39: 12.1273733 | BO39: 11.01729595 | BP39: 9.850518478 | BQ39: 11.46512004 | BR39: 11.84649743 | BS39: 13.31422422 | BT39: 15.61321019 | BU39: 15.86251687 | BV39: 16.22236055 | BW39: 16.5802534 | BX39: 16.90274652 | BY39: 17.20348427 | BZ39: 17.47037879 | CA39: 17.7316872 | CB39: 18.01744244 | CC39: 18.28863779 | CD39: 18.55217126 | CE39: 18.28863779 | CF39: 18.55217126 | DA39: Specialised construction | DB39: 181.526924 | DC39: 1955.21377 | DD39: 6631.907963 | DE39: 799.9865178 | DF39: 1571.133901 | DG39: 4505.604812 | DH39: 5505.37082 | DI39: 3468.555252 | DJ39: 984.1860749 | DP39: Males | DQ39: 3.72635238 | DR39: 3.89090138 | DS39: -0.164549
AZ40: Other non-metallic | BA40: males | BB40: 94.43988912 | BC40: 94.31634467 | BD40: 94.04881611 | BE40: 93.41055769 | BF40: 93.34658201 | BG40: 93.08342539 | BH40: 92.22407374 | BI40: 89.68384985 | BJ40: 90.06141243 | BK40: 89.5214431 | BL40: 89.09375531 | BM40: 89.08166908 | BN40: 88.44516726 | BO40: 89.11039764 | BP40: 89.54661868 | BQ40: 88.59732721 | BR40: 88.8191972 | BS40: 88.37509842 | BT40: 89.10964288 | BU40: 88.95069017 | BV40: 88.76464293 | BW40: 88.59625817 | BX40: 88.39744982 | BY40: 88.22921209 | BZ40: 88.0475888 | CA40: 87.88866138 | CB40: 87.70589766 | CC40: 87.51869043 | CD40: 87.32717338 | CE40: 87.51869043 | CF40: 87.32717338 | DA40: Motor vehicle trade | DB40: 8.071765525 | DC40: 116.0721316 | DD40: 322.471982 | DE40: 45.4159158 | DF40: 73.18119239 | DG40: 182.7107541 | DH40: 251.2391451 | DI40: 136.5015217 | DJ40: 76.79880259 | DO40: Basic metals | DP40: Females | DQ40: 0.5802487691 | DR40: 0.2788267691 | DS40: 0.301422
BA41: females | BB41: 5.560122586 | BC41: 5.683655326 | BD41: 5.951195488 | BE41: 6.589453759 | BF41: 6.653406248 | BG41: 6.916574607 | BH41: 7.775926256 | BI41: 10.31615015 | BJ41: 9.938587569 | BK41: 10.4785569 | BL41: 10.90624469 | BM41: 10.91833092 | BN41: 11.55484346 | BO41: 10.88960236 | BP41: 10.45338132 | BQ41: 11.40267279 | BR41: 11.1807943 | BS41: 11.62489112 | BT41: 10.89035712 | BU41: 11.04930983 | BV41: 11.23535707 | BW41: 11.40374183 | BX41: 11.60255018 | BY41: 11.77078791 | BZ41: 11.9524112 | CA41: 12.11134756 | CB41: 12.29410234 | CC41: 12.48130957 | CD41: 12.67282662 | CE41: 12.48130957 | CF41: 12.67282662 | DA41: Wholesale trade | DB41: 35.03658279 | DC41: 406.9304772 | DD41: 1171.296926 | DE41: 132.2909551 | DF41: 270.5195734 | DG41: 582.4966712 | DH41: 719.8199355 | DI41: 633.1711287 | DJ41: 116.3122345 | DP41: Males | DQ41: 2.132455592 | DR41: 1.693508592 | DS41: 0.438947
AZ42: Basic metals | BA42: males | BB42: 98.27319586 | BC42: 98.11780375 | BD42: 98.11257817 | BE42: 98.0408346 | BF42: 98.2325924 | BG42: 97.71307263 | BH42: 96.17988502 | BI42: 94.09509 | BJ42: 94.09667384 | BK42: 93.88264129 | BL42: 93.82765078 | BM42: 91.74582362 | BN42: 91.29288146 | BO42: 89.36921847 | BP42: 92.44794674 | BQ42: 91.94040063 | BR42: 91.14973189 | BS42: 90.36367767 | BT42: 87.92580506 | BU42: 87.47324727 | BV42: 87.06505886 | BW42: 86.65475159 | BX42: 86.22273161 | BY42: 85.88310102 | BZ42: 85.38295766 | CA42: 84.89811812 | CB42: 84.40796649 | CC42: 83.90974994 | CD42: 83.42841935 | CE42: 83.90974994 | CF42: 83.42841935 | DA42: Retail trade | DB42: 277.831254 | DC42: 3067.650194 | DD42: 10139.34611 | DE42: 1064.266429 | DF42: 2201.324759 | DG42: 7085.046537 | DH42: 8077.385055 | DI42: 6262.209455 | DJ42: 1071.459591 | DO42: Metal products | DP42: Females | DQ42: 4.079680411 | DR42: 1.475159411 | DS42: 2.604521
BA43: females | BB43: 1.726814755 | BC43: 1.882196246 | BD43: 1.887421833 | BE43: 1.9591654 | BF43: 1.767407605 | BG43: 2.286917064 | BH43: 3.820114979 | BI43: 5.904898481 | BJ43: 5.903326162 | BK43: 6.117358706 | BL43: 6.172360949 | BM43: 8.254176375 | BN43: 8.707118535 | BO43: 10.63078153 | BP43: 7.552039332 | BQ43: 8.059599372 | BR43: 8.85026811 | BS43: 9.6363102 | BT43: 12.07421287 | BU43: 12.52675273 | BV43: 12.93492079 | BW43: 13.34522876 | BX43: 13.77726839 | BY43: 14.11689898 | BZ43: 14.61702434 | CA43: 15.10188188 | CB43: 15.59203351 | CC43: 16.09025006 | CD43: 16.57159833 | CE43: 16.09025006 | CF43: 16.57159833 | DA43: Land transport, etc | DB43: 94.91014438 | DC43: 995.5536832 | DD43: 3573.807576 | DE43: 597.5481645 | DF43: 957.722325 | DG43: 2636.43231 | DH43: 3437.937715 | DI43: 2046.319183 | DJ43: 759.7923587 | DP43: Males | DQ43: 13.61688538 | DR43: 10.70152838 | DS43: 2.915357
AZ44: Metal products | BA44: males | BB44: 96.29678107 | BC44: 96.06780883 | BD44: 95.99718442 | BE44: 95.8822846 | BF44: 95.84620707 | BG44: 95.21718297 | BH44: 94.77524681 | BI44: 91.21978421 | BJ44: 91.82008888 | BK44: 91.48419156 | BL44: 91.98219835 | BM44: 90.00476675 | BN44: 91.39439318 | BO44: 91.26733639 | BP44: 90.89985212 | BQ44: 89.19086081 | BR44: 90.15013827 | BS44: 91.94117928 | BT44: 90.47166794 | BU44: 89.7821427 | BV44: 89.0203578 | BW44: 88.2532852 | BX44: 87.48458696 | BY44: 86.72462367 | BZ44: 86.07746814 | CA44: 85.41266058 | CB44: 84.72297473 | CC44: 84.01626562 | CD44: 83.3218491 | CE44: 84.01626562 | CF44: 83.3218491 | DA44: Water transport | DB44: 4.545860721 | DC44: 742.4715357 | DD44: 1956.436438 | DE44: 198.6981824 | DF44: 515.566668 | DG44: 1146.762961 | DH44: 1839.062336 | DI44: 1121.375605 | DJ44: 125.9864776 | DO44: Computer, etc | DP44: Females | DQ44: 1.021429979 | DR44: 1.038060979 | DS44: -0.016631
BA45: females | BB45: 3.703218926 | BC45: 3.932194199 | BD45: 4.00281558 | BE45: 4.117715404 | BF45: 4.153790232 | BG45: 4.782819707 | BH45: 5.224753194 | BI45: 8.780215788 | BJ45: 8.17991112 | BK45: 8.515808444 | BL45: 8.017798819 | BM45: 9.995233247 | BN45: 8.605603935 | BO45: 8.73266361 | BP45: 9.100147882 | BQ45: 10.80913608 | BR45: 9.849861729 | BS45: 8.05882344 | BT45: 9.528332058 | BU45: 10.2178573 | BV45: 10.9796422 | BW45: 11.7467148 | BX45: 12.51541304 | BY45: 13.27537633 | BZ45: 13.92253186 | CA45: 14.58733942 | CB45: 15.27702527 | CC45: 15.98373438 | CD45: 16.67815375 | CE45: 15.98373438 | CF45: 16.67815375 | DA45: Air transport | DB45: 23.66978355 | DC45: 2553.83518 | DD45: 6409.396804 | DE45: 699.1438481 | DF45: 1674.482092 | DG45: 4414.937176 | DH45: 6147.698992 | DI45: 3598.883438 | DJ45: 549.1231125 | DP45: Males | DQ45: 3.821074488 | DR45: 5.553798488 | DS45: -1.732724
AZ46: Computer, etc | BA46: males | BB46: 88.88617302 | BC46: 88.60550428 | BD46: 88.33784107 | BE46: 88.00901958 | BF46: 88.05378547 | BG46: 87.98992148 | BH46: 87.59764246 | BI46: 88.04635036 | BJ46: 87.40556353 | BK46: 87.62660725 | BL46: 87.45975001 | BM46: 87.99773968 | BN46: 88.01362981 | BO46: 87.42468316 | BP46: 87.12948636 | BQ46: 87.59798259 | BR46: 86.58099291 | BS46: 87.924983 | BT46: 85.6792009 | BU46: 85.6071557 | BV46: 85.43205649 | BW46: 85.23216864 | BX46: 85.04576966 | BY46: 84.85187395 | BZ46: 84.71549634 | CA46: 84.51170176 | CB46: 84.26986398 | CC46: 84.04664191 | CD46: 83.80992058 | CE46: 84.04664191 | CF46: 83.80992058 | DA46: Warehousing, etc | DB46: 232.885702 | DC46: 1936.114272 | DD46: 5518.717866 | DE46: 701.2039046 | DF46: 863.1563984 | DG46: 2419.820638 | DH46: 2346.354949 | DI46: 1626.671627 | DJ46: 192.1795351 | DO46: Electrical equipment | DP46: Females | DQ46: 0.9341995556 | DR46: 0.5684635556 | DS46: 0.365736
BA47: females | BB47: 11.11382698 | BC47: 11.39449572 | BD47: 11.66215893 | BE47: 11.99098042 | BF47: 11.94621033 | BG47: 12.01007852 | BH47: 12.40235367 | BI47: 11.95365368 | BJ47: 12.59443647 | BK47: 12.37339275 | BL47: 12.54025433 | BM47: 12.00226032 | BN47: 11.98637019 | BO47: 12.57531684 | BP47: 12.87051878 | BQ47: 12.40201741 | BR47: 13.41900709 | BS47: 12.075017 | BT47: 14.3207991 | BU47: 14.3928443 | BV47: 14.56794351 | BW47: 14.76783136 | BX47: 14.95422417 | BY47: 15.14812605 | BZ47: 15.28450366 | CA47: 15.48829824 | CB47: 15.73013602 | CC47: 15.95335809 | CD47: 16.19007942 | CE47: 15.95335809 | CF47: 16.19007942 | DA47: Postal and courier | DB47: 97.82325757 | DC47: 827.4215474 | DD47: 2273.321868 | DE47: 304.6125142 | DF47: 350.1582666 | DG47: 911.3543779 | DH47: 942.0482528 | DI47: 687.3077598 | DJ47: 113.0568744 | DP47: Males | DQ47: 3.84733156 | DR47: 3.60631356 | DS47: 0.241018
AZ48: Electrical equipment | BA48: males | BB48: 90.30646616 | BC48: 90.0307836 | BD48: 89.6372585 | BE48: 90.03338279 | BF48: 89.85758669 | BG48: 89.74569561 | BH48: 87.92237264 | BI48: 89.42818694 | BJ48: 88.77701419 | BK48: 88.60696457 | BL48: 86.96566571 | BM48: 89.31415064 | BN48: 88.12172406 | BO48: 88.78410501 | BP48: 88.16777116 | BQ48: 87.45937493 | BR48: 86.14409008 | BS48: 87.85746341 | BT48: 88.03093673 | BU48: 87.76734983 | BV48: 87.4542746 | BW48: 87.16651407 | BX48: 86.79840597 | BY48: 86.49380672 | BZ48: 86.17183765 | CA48: 85.87811447 | CB48: 85.41913181 | CC48: 85.12957856 | CD48: 84.80364283 | CE48: 85.12957856 | CF48: 84.80364283 | DA48: Accommodation | DB48: 44.2607198 | DC48: 466.8975987 | DD48: 1243.889821 | DE48: 152.4024331 | DF48: 194.4656886 | DG48: 467.9513728 | DH48: 493.7278548 | DI48: 364.253951 | DJ48: 30.90654237 | DO48: Machinery n.e.c. | DP48: Females | DQ48: 1.573589311 | DR48: 0.9220833112 | DS48: 0.651506
